Workbook

Sheet Bases de Dados
A1: Bases de Dados
A2: COPASA CENTRO 01_2021
A3: COPASA NORDESTE 01_2021
A4: COPASA NORTE 01_2021
A5: COPASA OESTE 01_2021
A6: COPASA SUDESTE 01_2021
A7: COPASA SUL 01_2021
A8: COPASA CENTRO 12_2020
A9: COPASA NORDESTE 12_2020
A10: COPASA NORTE 12_2020
A11: COPASA OESTE 12_2020
A12: COPASA SUDESTE 12_2020
A13: COPASA SUL 12_2020
A14: COPASA CENTRO 11_2020
A15: COPASA NORDESTE 11_2020
A16: COPASA NORTE 11_2020
A17: COPASA OESTE 11_2020
A18: COPASA SUDESTE 11_2020
A19: COPASA SUL 11_2020
A20: COPASA CENTRO 10_2020
A21: COPASA NORDESTE 10_2020
A22: COPASA NORTE 10_2020
A23: COPASA OESTE 10_2020
A24: COPASA SUDESTE 10_2020 | B24: Obs.: O SPB Bases de Dados é atualizado mensalmente no site do BDMG. Para realizar a construção de um Projeto ou Aditivo o usuário deverá realizar o download do arquivo atualizado no site do BDMG. A consulta de seviços e/ou materias disponíveis nas bases de dados, somente é realizada através da pesquisa de código no SPB. Para maiores informações sobre utilização, consultar o Manual do SPB - Sistema de Planilhas BDMG.
A25: COPASA SUL 10_2020
A26: COPASA CENTRO 08_2020
A27: COPASA NORDESTE 08_2020
A28: COPASA NORTE 08_2020
A29: COPASA OESTE 08_2020
A30: COPASA SUDESTE 08_2020
A31: COPASA SUL 08_2020
A32: DNIT 07_2020
A33: SINAPI 01_2021
A34: SINAPI 12_2020
A35: SINAPI 11_2020
A36: SINAPI 10_2020
A37: SINAPI 09_2020
A38: SINAPI 08_2020
A39: SUDECAP 10_2020
A40: SUDECAP 09_2020
A41: SUDECAP 08_2020
A42: SUDECAP 06_2020
A43: SUDECAP 05_2020
A44: SUDECAP 04_2020
A45: SETOP Central 09_2020
A46: SETOP Jequitinhonha 09_2020
A47: SETOP Leste 09_2020
A48: SETOP Norte 09_2020
A49: SETOP Sul 09_2020
A50: SETOP Triângulo 09_2020
A51: SETOP Central 07_2020
A52: SETOP Jequitinhonha 07_2020
A53: SETOP Leste 07_2020
A54: SETOP Norte 07_2020
A55: SETOP Sul 07_2020
A56: SETOP Triângulo 07_2020

Sheet COPASA CENTRO 01_2021
A1: CÓD | B1: DESCRIÇÃO | C1: UNID | D1: VR ONERADO | E1: VR DESONERADO | F1: DIF
A2: 35000000 | B2: SERVENTE AGUA - COPASA | C2: H | D2: 15.55 | E2: 13.43 | F2: =E2/D2-1 -> -0.1363344051
A3: 35000001 | B3: SERVENTE ESGOTO - COPASA | C3: H | D3: 15.55 | E3: 13.43 | F3: =E3/D3-1 -> -0.1363344051
A4: 35000002 | B4: SERVICO AUXILIAR OPERACIONAL - COPASA | C4: H | D4: 15.55 | E4: 13.43 | F4: -0.1363344051
A5: 35000003 | B5: AUXILIAR DE LABORATORIO - COPASA | C5: H | D5: 15.86 | E5: 13.7 | F5: -0.1361916772
A6: 35000004 | B6: AUXILIAR DE ESCRITORIO CEC | C6: H | D6: 19.31 | E6: 17.12 | F6: -0.1134127395
A7: 35000005 | B7: AUXILIAR APOIO ADMINISTRATIVO - COPASA | C7: H | D7: 21.35 | E7: 18.45 | F7: -0.1358313817
A8: 35000006 | B8: ATENDENTE COMERCIAL - COPASA | C8: H | D8: 26.02 | E8: 22.48 | F8: -0.1360491929
A9: 35000007 | B9: BIOLOGO - COPASA | C9: H | D9: 70.38 | E9: 60.8 | F9: -0.1361182154
A10: 35000008 | B10: TECNICO ORCAMENTISTA CEC | C10: H | D10: 34.74 | E10: 30.39 | F10: -0.1252158895
A11: 35000009 | B11: LEITURISTA - COPASA | C11: H | D11: 21.35 | E11: 18.45 | F11: -0.1358313817
A12: 35000010 | B12: ENCARREGADO MANUTENCAO AGUA II - COPASA | C12: H | D12: 21.35 | E12: 18.45 | F12: -0.1358313817
A13: 35000011 | B13: ENCARREGADO MANUTENCAO ESGOTO I - COPASA | C13: H | D13: 21.35 | E13: 18.45 | F13: -0.1358313817
A14: 35000012 | B14: TECNICO DE LABORATORIO - COPASA | C14: H | D14: 40.23 | E14: 34.75 | F14: -0.1362167537
A15: 35000013 | B15: TECNICO DE LABORATORIO CEC | C15: H | D15: 34.76 | E15: 30.42 | F15: -0.1248561565
A16: 35000014 | B16: TECNICO DE SEGURANCA DO TRABALHO CEC | C16: H | D16: 34.76 | E16: 30.42 | F16: -0.1248561565
A17: 35000015 | B17: PROGRAMACAO PROCES. DADOS - COPASA | C17: H | D17: 40.23 | E17: 34.75 | F17: -0.1362167537
A18: 35000016 | B18: ENCARREGADO DE AREAS CEC | C18: H | D18: 26.82 | E18: 23.66 | F18: -0.1178225205
A19: 35000017 | B19: ENCARREGADO GERAL CEC | C19: H | D19: 34.76 | E19: 30.42 | F19: -0.1248561565
A20: 35000018 | B20: CONSULTOR | C20: H | D20: 330 | E20: 330 | F20: 0
A21: 35000019 | B21: ENGENHEIRO NÍVEL I FAIXA I CEC | C21: MES | D21: 17248.7 | E21: 14914.56 | F21: -0.135322662
A22: 35000021 | B22: ENGENHEIRO NÍVEL II FAIXA I CEC | C22: MES | D22: 19423.28 | E22: 16785.45 | F22: -0.1358076494
A23: 35000022 | B23: ENGENHEIRO NÍVEL IV FAIXA I CEC | C23: MES | D23: 24660.03 | E23: 21290.87 | F23: -0.1366243269
A24: 35000023 | B24: ENGENHEIRO NÍVEL III FAIXA I CEC | C24: MES | D24: 21881.4 | E24: 18900.29 | F24: -0.1362394545
A25: 35000024 | B25: ENGENHEIRO NÍVEL II FAIXA II CEC | C25: MES | D25: 20209.41 | E25: 17461.8 | F25: -0.1359569626
A26: 35000025 | B26: HIDROGEOLOGO CEC | C26: MES | D26: 16561.81 | E26: 14322.98 | F26: -0.1351802732
A27: 35000026 | B27: PROJETISTA CEC | C27: MES | D27: 12218.27 | E27: 10586.03 | F27: -0.1335901073
A28: 35000027 | B28: SUPERVISOR TECNICO CEC | C28: MES | D28: 9021.53 | E28: 7827.03 | F28: -0.1324054789
A29: 35000028 | B29: AUXILIAR DE PROGRAMACAO CEC | C29: MES | D29: 4915.41 | E29: 4296.68 | F29: -0.1258755628
A30: 35000029 | B30: ALMOXARIFE CEC | C30: MES | D30: 4919.8 | E30: 4301.08 | F30: -0.1257612098
A31: 35000030 | B31: AUXILIAR DE ALMOXARIFE CEC | C31: MES | D31: 3956.01 | E31: 3476.57 | F31: -0.121192818
A32: 35000032 | B32: TOPOGRAFO CEC | C32: MES | D32: 6619.37 | E32: 5755.04 | F32: -0.1305758705
A33: 35000033 | B33: TECNICO CADASTRISTA CEC | C33: MES | D33: 6614.97 | E33: 5750.64 | F33: -0.1306627241
A34: 35000034 | B34: NIVELADOR CEC | C34: MES | D34: 4919.8 | E34: 4301.08 | F34: -0.1257612098
A35: 35000035 | B35: AUXILIAR DE TOPOGRAFIA CEC | C35: MES | D35: 3956.01 | E35: 3476.57 | F35: -0.121192818
A36: 35000037 | B36: TECNICO CALCULISTA CEC | C36: MES | D36: 6614.97 | E36: 5750.64 | F36: -0.1306627241
A37: 35000038 | B37: DESENHISTA TECNICO (CADISTA) CEC | C37: MES | D37: 4915.41 | E37: 4296.68 | F37: -0.1258755628
A38: 35000039 | B38: ALMOXARIFE CEC | C38: H | D38: 28.24 | E38: 24.81 | F38: -0.1214589235
A39: 35000040 | B39: AUXILIAR DE ALMOXARIFE CEC | C39: H | D39: 22.72 | E39: 20.06 | F39: -0.1170774648
A40: 35000041 | B40: OFICIAL CEC | C40: H | D40: 22.5 | E40: 19.94 | F40: -0.1137777778
A41: 35000042 | B41: NIVELADOR CEC | C41: H | D41: 28.24 | E41: 24.81 | F41: -0.1214589235
A42: 35000043 | B42: AUXILIAR DE OFICIAL CEC | C42: H | D42: 17.98 | E42: 16.04 | F42: -0.1078976641
A43: 35000044 | B43: SERVENTE CEC | C43: H | D43: 16.06 | E43: 14.38 | F43: -0.104607721
A44: 35000045 | B44: TOPOGRAFO CEC | C44: H | D44: 37.98 | E44: 33.18 | F44: -0.1263823065
A45: 35000046 | B45: AUXILIAR DE TOPOGRAFIA CEC | C45: H | D45: 22.72 | E45: 20.06 | F45: -0.1170774648
A46: 35000047 | B46: AUXILIAR DE OPERADOR - MAQ PESADAS CEC | C46: H | D46: 17.66 | E46: 15.73 | F46: -0.1092865232
A47: 35000048 | B47: MOTORISTA CEC | C47: H | D47: 23.14 | E47: 20.45 | F47: -0.1162489196
A48: 35000049 | B48: OPERADOR DE MAQUINAS PESADAS CEC | C48: H | D48: 25.1 | E48: 22.13 | F48: -0.1183266932
A49: 35000050 | B49: SONDADOR I - COPASA | C49: H | D49: 17.18 | E49: 14.84 | F49: -0.1362048894
A50: 35000051 | B50: SONDADOR II - COPASA | C50: H | D50: 21.35 | E50: 18.45 | F50: -0.1358313817
A51: 35000052 | B51: ACO CA-50 A OU B | C51: TO | D51: 5639.14 | E51: 5639.14 | F51: 0
A52: 35000053 | B52: ACO CA-60 A OU B | C52: TO | D52: 5745.44 | E52: 5745.44 | F52: 0
A53: 35000056 | B53: VEU DE POLIESTER 75 G/M2 | C53: M2 | D53: 3.25 | E53: 3.25 | F53: 0
A54: 35000059 | B54: LIMITADOR JUNTA TARUCEL - JUNTA 1x1CM | C54: M | D54: 0.32 | E54: 0.32 | F54: 0
A55: 35000060 | B55: LIMITADOR JUNTA TARUCEL - JUNTA 2x2CM | C55: M | D55: 0.82 | E55: 0.82 | F55: 0
A56: 35000062 | B56: ACELERADOR-IMPERMEABILIZANTE | C56: KG | D56: 9.76 | E56: 9.76 | F56: 0
A57: 35000063 | B57: RESINA POLIURETANO-MC 2300 NV OU SIMILAR | C57: L | D57: 110.5 | E57: 110.5 | F57: 0
A58: 35000064 | B58: RESINA POLIURETANO MC 2033 OU SIMILAR | C58: L | D58: 132 | E58: 132 | F58: 0
A59: 35000065 | B59: XYPEX CONCENTRADO OU SIMILAR | C59: KG | D59: 17.5 | E59: 17.5 | F59: 0
A60: 35000066 | B60: XYPEX MODIFICADO OU SIMILAR | C60: KG | D60: 16.2 | E60: 16.2 | F60: 0
A61: 35000067 | B61: XYPEX PATCH'N PLUG OU SIMILAR | C61: KG | D61: 9 | E61: 9 | F61: 0
A62: 35000068 | B62: ADESIVO EPOXICO MCDUR 1300 TX OU SIMILAR | C62: KG | D62: 21.6 | E62: 21.6 | F62: 0
A63: 35000069 | B63: SOLVENTE REINIGUNGSMITTEL U OU SIMILAR | C63: L | D63: 41.6 | E63: 41.6 | F63: 0
A64: 35000070 | B64: BEXIGA BORRACHA- BLOQUEADOR FLUXO Ø100MM | C64: UN | D64: 1850 | E64: 1850 | F64: 0
A65: 35000071 | B65: SIKA I | C65: L | D65: 5.24 | E65: 5.24 | F65: 0
A66: 35000072 | B66: SIKA CHAPISCO PLUS | C66: KG | D66: 7.84 | E66: 7.84 | F66: 0
A67: 35000073 | B67: SIKA TOP 122 - BICOMPONENTE A E B | C67: KG | D67: 9.46 | E67: 9.46 | F67: =E67/D67-1 -> 0
A68: 35000074 | B68: SIKALIT - ADITIVO IMPERMEABILIZANTE | C68: KG | D68: 16.36 | E68: 16.36 | F68: 0
A69: 35000075 | B69: SIKADUR 32 | C69: KG | D69: 91.93 | E69: 91.93 | F69: 0
A70: 35000076 | B70: ADESIVO EPOXI SIKADUR 31 | C70: KG | D70: 84.98 | E70: 84.98 | F70: 0
A71: 35000077 | B71: SIKAGROUT - 250 | C71: KG | D71: 1.36 | E71: 1.36 | F71: 0
A72: 35000078 | B72: SIKAFLEX 1A - CARTUCHO DE 310 ML | C72: UN | D72: 69.9 | E72: 69.9 | F72: 0
A73: 35000079 | B73: SIKA PRIMER 1 - LATA COM 320 ML | C73: UN | D73: 74.32 | E73: 74.32 | F73: 0
A74: 35000080 | B74: IMPERMEABILIZANTE TIPO HEYDI - K11 | C74: KG | D74: 2.9 | E74: 2.9 | F74: 0
A75: 35000081 | B75: IMPERMEABILIZANTE TIPO HEYDI - KZ | C75: KG | D75: 16.89 | E75: 16.89 | F75: 0
A76: 35000082 | B76: SIKA TOP 107 | C76: KG | D76: 7.71 | E76: 7.71 | F76: 0
A77: 35000083 | B77: SIKA TOP 108 ARMATEC | C77: KG | D77: 21.41 | E77: 21.41 | F77: 0
A78: 35000084 | B78: DESMOLDANTE PARA FORMAS | C78: L | D78: 9.02 | E78: 9.02 | F78: 0
A79: 35000085 | B79: CONCRETO - FCK 10 MPA - USINADO | C79: M3 | D79: 234.83 | E79: 234.83 | F79: 0
A80: 35000086 | B80: CONCRETO - FCK-15 MPA - USINADO | C80: M3 | D80: 254.8 | E80: 254.8 | F80: 0
A81: 35000087 | B81: CONCRETO - FCK - 20MPA - USINADO | C81: M3 | D81: 266.03 | E81: 266.03 | F81: 0
A82: 35000088 | B82: CONCRETO - FCK -25 MPA - USINADO | C82: M3 | D82: 279.33 | E82: 279.33 | F82: 0
A83: 35000089 | B83: CONCRETO-FCK-30MPA - USINADO/ADITIVO | C83: M3 | D83: 290.46 | E83: 290.46 | F83: 0
A84: 35000090 | B84: CONCRETO-FCK-35MPA - USINADO/ADITIVO | C84: M3 | D84: 297.46 | E84: 297.46 | F84: 0
A85: 35000091 | B85: CONCRETO-FCK-40MPA - USINADO/ADITIVO | C85: M3 | D85: 327.62 | E85: 327.62 | F85: 0
A86: 35000092 | B86: ARAME DE AMARRACAO GABIAO-Ø=2,2MM. | C86: KG | D86: 19.54 | E86: 19.54 | F86: 0
A87: 35000093 | B87: GABIAO-MALHA 8X10 GALV ALT=0,50M | C87: M3 | D87: 336.19 | E87: 336.19 | F87: 0
A88: 35000094 | B88: GABIAO-MALHA 8X10 GALV ALT=1,00M | C88: M3 | D88: 244.69 | E88: 244.69 | F88: 0
A89: 35000095 | B89: COLCHAO RENO-MALHA 6X 8 GPVC-E=0,30M | C89: M2 | D89: 139.72 | E89: 139.72 | F89: 0
A90: 35000096 | B90: GABIAO TIPO SACO-MALHA 8X10 REC. C/ PVC | C90: M3 | D90: 318.61 | E90: 318.61 | F90: 0
A91: 35000097 | B91: CANALETA DE CONCRETO- MEIA CANA,Ø300MM | C91: M | D91: 31.96 | E91: 31.96 | F91: 0
A92: 35000098 | B92: CANALETA DE CONCRETO- MEIA CANA,Ø400MM | C92: M | D92: 40.46 | E92: 40.46 | F92: 0
A93: 35000099 | B93: CANALETA DE CONCRETO- MEIA CANA,Ø500MM | C93: M | D93: 44.11 | E93: 44.11 | F93: 0
A94: 35000100 | B94: CANALETA DE CONCRETO- MEIA CANA,Ø600MM | C94: M | D94: 58.84 | E94: 58.84 | F94: 0
A95: 35000101 | B95: CORDEL DETONANTE NP-10 | C95: M | D95: 1.23 | E95: 1.23 | F95: 0
A96: 35000102 | B96: DINAMITE-ENCARTUCHADO, Ø 1" A 1.1/2" | C96: KG | D96: 9.25 | E96: 9.25 | F96: 0
A97: 35000103 | B97: ESPOLETA SIMPLES NR. 8 | C97: UN | D97: 3.25 | E97: 3.25 | F97: 0
A98: 35000104 | B98: ESTOPIM SIMPLES | C98: M | D98: 4.21 | E98: 4.21 | F98: 0
A99: 35000105 | B99: RETARDO P/CORDEL-NP-05/10-ESPERA 25/50MS | C99: UN | D99: 16.46 | E99: 16.46 | F99: 0
A100: 35000107 | B100: CANGA DE MINERIO DE FERRO | C100: TO | D100: 23.9 | E100: 23.9 | F100: 0
A101: 35000108 | B101: ESCORIA DE ALTO FORNO | C101: TO | D101: 77.49 | E101: 77.49 | F101: 0
A102: 35000109 | B102: BICA CORRIDA | C102: TO | D102: 27.09 | E102: 27.09 | F102: 0
A103: 35000110 | B103: BRITA GRADUADA | C103: TO | D103: 62.08 | E103: 62.08 | F103: 0
A104: 35000111 | B104: EMULSAO ASFALTICA RR-1C | C104: KG | D104: 2.53 | E104: 2.53 | F104: 0
A105: 35000112 | B105: EMULSAO ASFALTICA RR-2C | C105: KG | D105: 2.67 | E105: 2.67 | F105: 0
A106: 35000113 | B106: EMULSAO ASFALTICA CM-30 | C106: KG | D106: 4.98 | E106: 4.98 | F106: 0
A107: 35000114 | B107: MEIO FIO DE CONCRETO-12X16,7X35X80CM | C107: UN | D107: 16.33 | E107: 16.33 | F107: 0
A108: 35000115 | B108: CALCARIO - MOSAICO - CALCADA PORTUGUESA | C108: KG | D108: 0.39 | E108: 0.39 | F108: 0
A109: 35000116 | B109: PRE-MOLDADO CONCRETO-BLOQUETE-25X10CM. | C109: M2 | D109: 60 | E109: 60 | F109: 0
A110: 35000117 | B110: CONCRETO BETUMINOSO USINADO-CBUQ-FX-"C" | C110: TO | D110: 314.58 | E110: 314.58 | F110: 0
A111: 35000118 | B111: PARALELEPIPEDO | C111: UN | D111: 3.89 | E111: 3.89 | F111: 0
A112: 35000119 | B112: POLIEDRICO | C112: M3 | D112: 59.66 | E112: 59.66 | F112: 0
A113: 35000120 | B113: PRE-MOLDADO CONCRETO INTERTRAVADO-E=8CM | C113: M2 | D113: 34.12 | E113: 34.12 | F113: 0
A114: 35000121 | B114: GASOLINA TIPO A - COMUM | C114: L | D114: 4.47 | E114: 4.47 | F114: 0
A115: 35000122 | B115: OLEO DIESEL | C115: L | D115: 3.67 | E115: 3.67 | F115: 0
A116: 35000123 | B116: OLEO P/ FERRAMENTAS PNEUMATICAS-FP68 | C116: L | D116: 9.87 | E116: 9.87 | F116: 0
A117: 35000124 | B117: GRAXA LUBRAX GMA - 2 | C117: KG | D117: 24.87 | E117: 24.87 | F117: 0
A118: 35000125 | B118: GRAMA EM PLACAS | C118: M2 | D118: 7.33 | E118: 7.33 | F118: 0
A119: 35000126 | B119: TERRA VEGETAL | C119: M3 | D119: 61.76 | E119: 61.76 | F119: 0
A120: 35000127 | B120: MOURAO - P-COPASA 126 / L = 2,20+/-0,05M | C120: UN | D120: 38.39 | E120: 38.39 | F120: 0
A121: 35000128 | B121: MOURAO MADEIRA -11/13 CM - ALT =2,20M. | C121: UN | D121: 14.47 | E121: 14.47 | F121: 0
A122: 35000129 | B122: MOURAO ESCORA-P-COPASA126/L=2,50+/-0,05M | C122: UN | D122: 34.71 | E122: 34.71 | F122: 0
A123: 35000130 | B123: MOURAO CONC. P-COPASA126 /L=2,80+/-0,06M | C123: UN | D123: 37.08 | E123: 37.08 | F123: 0
A124: 35000131 | B124: PLACA DE IDENTIFICACAO DE OBRA | C124: M2 | D124: 230.9 | E124: 230.9 | F124: 0
A125: 35000132 | B125: CONE PARA SINALIZACAO - P-COPASA - 065/- | C125: UN | D125: 28.01 | E125: 28.01 | F125: 0
A126: 35000133 | B126: PLACA "DISTANCIA DE OBRA"-P-COPASA 066/- | C126: UN | D126: 84.14 | E126: 84.14 | F126: 0
A127: 35000134 | B127: CAVALETE DUPLA FACE - CONFORME MIVC | C127: UN | D127: 380.65 | E127: 380.65 | F127: 0
A128: 35000135 | B128: TRIPE PARA BANDEIROLAS - P-COPASA -102/- | C128: UN | D128: 250 | E128: 250 | F128: 0
A129: 35000136 | B129: GRADE MODULAR SINALIZACAO-P-COPASA 177/- | C129: UN | D129: 290 | E129: 290 | F129: 0
A130: 35000137 | B130: FITA ZEBRADA AMARELO E PRETA L = 75MM | C130: UN | D130: 9.47 | E130: 9.47 | F130: 0
A131: 35000140 | B131: ELETRODO P/ACOS, ILMENITICO Ø = 4MM | C131: KG | D131: 19.27 | E131: 19.27 | F131: =E131/D131-1 -> 0
A132: 35000141 | B132: ACETILENO | C132: KG | D132: 32.13 | E132: 32.13 | F132: 0
A133: 35000142 | B133: OXIGENIO | C133: M3 | D133: 8.22 | E133: 8.22 | F133: 0
A134: 35000143 | B134: MANILHA CERAMICA CL B/C DN100 | C134: M | D134: 9.9 | E134: 9.9 | F134: 0
A135: 35000144 | B135: MANILHA CERAMICA CL B/C DN200 | C135: M | D135: 23.2 | E135: 23.2 | F135: 0
A136: 35000145 | B136: SELIM CERAMICO CL C - 90 GR DN150X100 | C136: UN | D136: 51.95 | E136: 51.95 | F136: 0
A137: 35000146 | B137: SELIM CERAMICO CL C - 90 GR DN200X100 | C137: UN | D137: 51.95 | E137: 51.95 | F137: 0
A138: 35000147 | B138: SELA CERAMICA P.RETA DN200X210X135MM | C138: UN | D138: 26 | E138: 26 | F138: 0
A139: 35000148 | B139: TUBO CERAMICO DRENO PB DE100MM | C139: M | D139: 10.44 | E139: 10.44 | F139: 0
A140: 35000149 | B140: TUBO CERAMICO DRENO PB DE150MM | C140: M | D140: 15.98 | E140: 15.98 | F140: 0
A141: 35000150 | B141: TUBO CERAMICO DRENO PB DE200MM | C141: M | D141: 24.86 | E141: 24.86 | F141: 0
A142: 35000151 | B142: TUBO CONCRETO ARM PA1 PB JR DN1000 | C142: M | D142: 251.28 | E142: 251.28 | F142: 0
A143: 35000152 | B143: TUBO CONCRETO SIMPLES PB JR PS-1 DN600 | C143: M | D143: 91.3 | E143: 91.3 | F143: 0
A144: 35000153 | B144: TAMPA LAMINADA FV C/ALCAS-1020X1020X5MM | C144: UN | D144: 1498.96 | E144: 1498.96 | F144: 0
A145: 35000154 | B145: COTOVELO ADAP P/PEAD FG (KTL) D1/2"x20MM | C145: UN | D145: 30.88 | E145: 30.88 | F145: 0
A146: 35000155 | B146: UNIAO POLIPROPILENO (PEAD) D20MMx1/2" | C146: UN | D146: 1.56 | E146: 1.56 | F146: 0
A147: 35000156 | B147: TUBO POLIETILENO (PEAD) D20MM - PRETO | C147: M | D147: 2.99 | E147: 2.99 | F147: 0
A148: 35000157 | B148: TUBO POLIETILENO (PEAD) D20MM-AZUL GR3 | C148: M | D148: 3.22 | E148: 3.22 | F148: 0
A149: 35000158 | B149: ADESIVO PARA PVC RIGIDO | C149: KG | D149: 34.15 | E149: 34.15 | F149: 0
A150: 35000159 | B150: PASTA LUBRIFICANTE | C150: KG | D150: 26 | E150: 26 | F150: 0
A151: 35000160 | B151: SOLUCAO LIMPADORA P/ PVC RIGIDO | C151: L | D151: 39.73 | E151: 39.73 | F151: 0
A152: 35000161 | B152: ANEL BORRACHA TOROIDAL-AJE-DN50 DE60MM | C152: UN | D152: 1.18 | E152: 1.18 | F152: 0
A153: 35000162 | B153: ANEL BORRACHA TOROIDAL-AJE-DN75 DE85MM | C153: UN | D153: 1.77 | E153: 1.77 | F153: 0
A154: 35000163 | B154: ANEL BORRACHA TOROIDAL-AJE-DN100 DE110MM | C154: UN | D154: 2.23 | E154: 2.23 | F154: 0
A155: 35000164 | B155: ADAPTADOR PVC PBA BFF DN100x100 DE110MM | C155: UN | D155: 22.65 | E155: 22.65 | F155: 0
A156: 35000165 | B156: CURVA 90 GR RL PVC PBA JE DN75 DE85 MM | C156: UN | D156: 27.79 | E156: 27.79 | F156: 0
A157: 35000166 | B157: CURVA 90 GR RL PVC PBA JE DN100 DE110 MM | C157: UN | D157: 56.22 | E157: 56.22 | F157: 0
A158: 35000167 | B158: CANALETA RETA TUBO PVC PB DN 100. | C158: UN | D158: 14.07 | E158: 14.07 | F158: 0
A159: 35000168 | B159: TE 90 GR PVC BBB JE DN50 DE60MM | C159: UN | D159: 18.72 | E159: 18.72 | F159: 0
A160: 35000169 | B160: TUBO PVC PBA CL15 DN50 DE60MM | C160: M | D160: 10.68 | E160: 10.68 | F160: 0
A161: 35000170 | B161: TUBO PVC PBA CL15 DN75 DE85MM | C161: M | D161: 23.72 | E161: 23.72 | F161: 0
A162: 35000171 | B162: TUBO PVC PBA CL15 DN100 DE110MM | C162: M | D162: 36.03 | E162: 36.03 | F162: 0
A163: 35000172 | B163: TUBO PVC PBA CL20 DN50 DE 60MM | C163: M | D163: 13.13 | E163: 13.13 | F163: 0
A164: 35000173 | B164: TUBO PVC PBA CL20 DN75 DE 85MM | C164: M | D164: 29.94 | E164: 29.94 | F164: 0
A165: 35000174 | B165: TUBO PVC PBA CL20 DN100 DE110MM | C165: M | D165: 45.44 | E165: 45.44 | F165: 0
A166: 35000175 | B166: TUBO PVC RIG. DEFOFO PBA JE DN150 | C166: M | D166: 70.18 | E166: 70.18 | F166: 0
A167: 35000176 | B167: AGENTE ESPUMANTE DRILLFOAN OU SIMILAR | C167: L | D167: 18.07 | E167: 18.07 | F167: 0
A168: 35000177 | B168: AREIA SELECIONADA - TIPO PEROLA | C168: KG | D168: 1.02 | E168: 1.02 | F168: 0
A169: 35000178 | B169: HEXAMETAFOSFATO DE SODIO 69% DE P2O5 | C169: KG | D169: 23.04 | E169: 23.04 | F169: 0
A170: 35000179 | B170: BENTONITA ATIVADA | C170: KG | D170: 1.15 | E170: 1.15 | F170: 0
A171: 35000180 | B171: REGISTRO GAVETA, FoFo-RCFV16, DN 50 | C171: UN | D171: 463.95 | E171: 463.95 | F171: 0
A172: 35000181 | B172: REGISTRO S. METRICA CHATA RCFV16 DN 75 | C172: UN | D172: 656.17 | E172: 656.17 | F172: 0
A173: 35000182 | B173: REGISTRO S. METRICA CHATA RCFV16 DN 150 | C173: UN | D173: 1734.31 | E173: 1734.31 | F173: 0
A174: 35000183 | B174: VALVULA RETENCAO FoFo VRPUS16 - DN 150 | C174: UN | D174: 1471.09 | E174: 1471.09 | F174: 0
A175: 35000184 | B175: VENTOSA SIMPLES FOFO C/F 10/16/25 DN 50 | C175: UN | D175: 187.86 | E175: 187.86 | F175: 0
A176: 35000185 | B176: VENTOSA SIMPLES FOFO C/ROSCA PN25 DN1" | C176: UN | D176: 352.95 | E176: 352.95 | F176: 0
A177: 35000186 | B177: VENTOSA SIMPL FOFO C/ROSCA-PN25 DN1.1/2" | C177: UN | D177: 187.86 | E177: 187.86 | F177: 0
A178: 35000187 | B178: CURVA 45º FoFo JE - C45JGS - DN150 | C178: UN | D178: 151.26 | E178: 151.26 | F178: 0
A179: 35000188 | B179: CURVA 90º FoFo FF-C90FF10/16-DN 100 | C179: UN | D179: 193.76 | E179: 193.76 | F179: 0
A180: 35000189 | B180: CURVA 90º FoFo FF-C90FF10/16-DN 150 | C180: UN | D180: 372.53 | E180: 372.53 | F180: 0
A181: 35000190 | B181: EXTREMIDADE FoFo-EPFAV10/16-DN 100 | C181: UN | D181: 293.35 | E181: 293.35 | F181: 0
A182: 35000191 | B182: TE 90º FoFo-TFF10/16-DN 150x100 | C182: UN | D182: 553.34 | E182: 553.34 | F182: 0
A183: 35000192 | B183: VALVULA RET BR PH 150 PSI R BSP D=1.1/2" | C183: UN | D183: 138.19 | E183: 138.19 | F183: 0
A184: 35000193 | B184: VALVULA RET BR PH 150 PSI R BSP D=2" | C184: UN | D184: 208.38 | E184: 208.38 | F184: 0
A185: 35000194 | B185: VALVULA RET BR PH 150 PSI R BSP D=2.1/2" | C185: UN | D185: 343.62 | E185: 343.62 | F185: 0
A186: 35000195 | B186: VALVULA RET BR PH 150 PSI R BSP D=3" | C186: UN | D186: 416.82 | E186: 416.82 | F186: 0
A187: 35000196 | B187: VALVULA RET BR PH 150 PSI R BSP D=4" | C187: UN | D187: 737.35 | E187: 737.35 | F187: 0
A188: 35000197 | B188: TUBO FoFo-TFP10/16-DN 150 L = 3,00M | C188: UN | D188: 1497.9 | E188: 1497.9 | F188: 0
A189: 35000198 | B189: CURVA 45º FoFo FF-C45FF10/16-DN 150 | C189: UN | D189: 413.31 | E189: 413.31 | F189: 0
A190: 35000199 | B190: FLANGE AVULSO FoFo-FA10/16-DN 150 | C190: UN | D190: 140 | E190: 140 | F190: 0
A191: 35000200 | B191: PLACA REDUCAO FoFo FF-PR10/16-DN 100x50 | C191: UN | D191: 160.23 | E191: 160.23 | F191: 0
A192: 35000201 | B192: PARAFUSO P/ JUNTA MECANICA-PJM-DN18x90 | C192: UN | D192: 4.34 | E192: 4.34 | F192: 0
A193: 35000202 | B193: PARAFUSO C/PORCAS P/ FLANGES-PPF DN16x80 | C193: UN | D193: 3.26 | E193: 3.26 | F193: 0
A194: 35000203 | B194: ANEL PREM. CONC. P-104/_-DN 600x320MM. | C194: UN | D194: 71.23 | E194: 71.23 | F194: 0
A195: 35000204 | B195: ANEL PREM. CONC. P-104/_-DN 1000x320MM. | C195: UN | D195: 109.49 | E195: 109.49 | F195: =E195/D195-1 -> 0
A196: 35000205 | B196: ANEL PREM. CONC. P-104/_-DN 1200x320MM. | C196: UN | D196: 150.41 | E196: 150.41 | F196: 0
A197: 35000206 | B197: LAJE RED. CA P-105/_ DE (1300x600x120)MM | C197: UN | D197: 214.95 | E197: 214.95 | F197: 0
A198: 35000207 | B198: LAJE RED. CA P-105/_ DE (1500x600x120)MM | C198: UN | D198: 250.87 | E198: 250.87 | F198: 0
A199: 35000208 | B199: TAMPAO T- 5 FOFO P/PL PADRAO 030/- | C199: UN | D199: 44.57 | E199: 44.57 | F199: 0
A200: 35000209 | B200: TAMPAO T-22 FOFO P/CX PAS. PADRAO 032/- | C200: UN | D200: 88.38 | E200: 88.38 | F200: 0
... 925 more rows

Sheet COPASA NORDESTE 01_2021
A1: CÓD | B1: DESCRIÇÃO | C1: UNID | D1: VR ONERADO | E1: VR DESONERADO | F1: DIF
A2: 35000000 | B2: SERVENTE AGUA - COPASA | C2: H | D2: 15.55 | E2: 13.43 | F2: =E2/D2-1 -> -0.1363344051
A3: 35000001 | B3: SERVENTE ESGOTO - COPASA | C3: H | D3: 15.55 | E3: 13.43 | F3: =E3/D3-1 -> -0.1363344051
A4: 35000002 | B4: SERVICO AUXILIAR OPERACIONAL - COPASA | C4: H | D4: 15.55 | E4: 13.43 | F4: -0.1363344051
A5: 35000003 | B5: AUXILIAR DE LABORATORIO - COPASA | C5: H | D5: 15.86 | E5: 13.7 | F5: -0.1361916772
A6: 35000004 | B6: AUXILIAR DE ESCRITORIO CEC | C6: H | D6: 19.31 | E6: 17.12 | F6: -0.1134127395
A7: 35000005 | B7: AUXILIAR APOIO ADMINISTRATIVO - COPASA | C7: H | D7: 21.35 | E7: 18.45 | F7: -0.1358313817
A8: 35000006 | B8: ATENDENTE COMERCIAL - COPASA | C8: H | D8: 26.02 | E8: 22.48 | F8: -0.1360491929
A9: 35000007 | B9: BIOLOGO - COPASA | C9: H | D9: 70.38 | E9: 60.8 | F9: -0.1361182154
A10: 35000008 | B10: TECNICO ORCAMENTISTA CEC | C10: H | D10: 34.74 | E10: 30.39 | F10: -0.1252158895
A11: 35000009 | B11: LEITURISTA - COPASA | C11: H | D11: 21.35 | E11: 18.45 | F11: -0.1358313817
A12: 35000010 | B12: ENCARREGADO MANUTENCAO AGUA II - COPASA | C12: H | D12: 21.35 | E12: 18.45 | F12: -0.1358313817
A13: 35000011 | B13: ENCARREGADO MANUTENCAO ESGOTO I - COPASA | C13: H | D13: 21.35 | E13: 18.45 | F13: -0.1358313817
A14: 35000012 | B14: TECNICO DE LABORATORIO - COPASA | C14: H | D14: 40.23 | E14: 34.75 | F14: -0.1362167537
A15: 35000013 | B15: TECNICO DE LABORATORIO CEC | C15: H | D15: 34.76 | E15: 30.42 | F15: -0.1248561565
A16: 35000014 | B16: TECNICO DE SEGURANCA DO TRABALHO CEC | C16: H | D16: 34.76 | E16: 30.42 | F16: -0.1248561565
A17: 35000015 | B17: PROGRAMACAO PROCES. DADOS - COPASA | C17: H | D17: 40.23 | E17: 34.75 | F17: -0.1362167537
A18: 35000016 | B18: ENCARREGADO DE AREAS CEC | C18: H | D18: 25.85 | E18: 22.82 | F18: -0.1172147002
A19: 35000017 | B19: ENCARREGADO GERAL CEC | C19: H | D19: 34.76 | E19: 30.42 | F19: -0.1248561565
A20: 35000018 | B20: CONSULTOR | C20: H | D20: 330 | E20: 330 | F20: 0
A21: 35000019 | B21: ENGENHEIRO NÍVEL I FAIXA I CEC | C21: MES | D21: 17248.7 | E21: 14914.56 | F21: -0.135322662
A22: 35000021 | B22: ENGENHEIRO NÍVEL II FAIXA I CEC | C22: MES | D22: 19423.28 | E22: 16785.45 | F22: -0.1358076494
A23: 35000022 | B23: ENGENHEIRO NÍVEL IV FAIXA I CEC | C23: MES | D23: 24660.03 | E23: 21290.87 | F23: -0.1366243269
A24: 35000023 | B24: ENGENHEIRO NÍVEL III FAIXA I CEC | C24: MES | D24: 21881.4 | E24: 18900.29 | F24: -0.1362394545
A25: 35000024 | B25: ENGENHEIRO NÍVEL II FAIXA II CEC | C25: MES | D25: 20209.41 | E25: 17461.8 | F25: -0.1359569626
A26: 35000025 | B26: HIDROGEOLOGO CEC | C26: MES | D26: 16561.81 | E26: 14322.98 | F26: -0.1351802732
A27: 35000026 | B27: PROJETISTA CEC | C27: MES | D27: 12218.27 | E27: 10586.03 | F27: -0.1335901073
A28: 35000027 | B28: SUPERVISOR TECNICO CEC | C28: MES | D28: 9021.53 | E28: 7827.03 | F28: -0.1324054789
A29: 35000028 | B29: AUXILIAR DE PROGRAMACAO CEC | C29: MES | D29: 4915.41 | E29: 4296.68 | F29: -0.1258755628
A30: 35000029 | B30: ALMOXARIFE CEC | C30: MES | D30: 4919.8 | E30: 4301.08 | F30: -0.1257612098
A31: 35000030 | B31: AUXILIAR DE ALMOXARIFE CEC | C31: MES | D31: 3956.01 | E31: 3476.57 | F31: -0.121192818
A32: 35000032 | B32: TOPOGRAFO CEC | C32: MES | D32: 6619.37 | E32: 5755.04 | F32: -0.1305758705
A33: 35000033 | B33: TECNICO CADASTRISTA CEC | C33: MES | D33: 6614.97 | E33: 5750.64 | F33: -0.1306627241
A34: 35000034 | B34: NIVELADOR CEC | C34: MES | D34: 4919.8 | E34: 4301.08 | F34: -0.1257612098
A35: 35000035 | B35: AUXILIAR DE TOPOGRAFIA CEC | C35: MES | D35: 3956.01 | E35: 3476.57 | F35: -0.121192818
A36: 35000037 | B36: TECNICO CALCULISTA CEC | C36: MES | D36: 6614.97 | E36: 5750.64 | F36: -0.1306627241
A37: 35000038 | B37: DESENHISTA TECNICO (CADISTA) CEC | C37: MES | D37: 4915.41 | E37: 4296.68 | F37: -0.1258755628
A38: 35000039 | B38: ALMOXARIFE CEC | C38: H | D38: 28.24 | E38: 24.81 | F38: -0.1214589235
A39: 35000040 | B39: AUXILIAR DE ALMOXARIFE CEC | C39: H | D39: 22.72 | E39: 20.06 | F39: -0.1170774648
A40: 35000041 | B40: OFICIAL CEC | C40: H | D40: 21.72 | E40: 19.26 | F40: -0.1132596685
A41: 35000042 | B41: NIVELADOR CEC | C41: H | D41: 28.24 | E41: 24.81 | F41: -0.1214589235
A42: 35000043 | B42: AUXILIAR DE OFICIAL CEC | C42: H | D42: 17.39 | E42: 15.52 | F42: -0.107533065
A43: 35000044 | B43: SERVENTE CEC | C43: H | D43: 15.55 | E43: 13.94 | F43: -0.1035369775
A44: 35000045 | B44: TOPOGRAFO CEC | C44: H | D44: 37.98 | E44: 33.18 | F44: -0.1263823065
A45: 35000046 | B45: AUXILIAR DE TOPOGRAFIA CEC | C45: H | D45: 22.72 | E45: 20.06 | F45: -0.1170774648
A46: 35000047 | B46: AUXILIAR DE OPERADOR - MAQ PESADAS CEC | C46: H | D46: 17.66 | E46: 15.73 | F46: -0.1092865232
A47: 35000048 | B47: MOTORISTA CEC | C47: H | D47: 23.14 | E47: 20.45 | F47: -0.1162489196
A48: 35000049 | B48: OPERADOR DE MAQUINAS PESADAS CEC | C48: H | D48: 25.1 | E48: 22.13 | F48: -0.1183266932
A49: 35000050 | B49: SONDADOR I - COPASA | C49: H | D49: 17.18 | E49: 14.84 | F49: -0.1362048894
A50: 35000051 | B50: SONDADOR II - COPASA | C50: H | D50: 21.35 | E50: 18.45 | F50: -0.1358313817
A51: 35000052 | B51: ACO CA-50 A OU B | C51: TO | D51: 6383.41 | E51: 6383.41 | F51: 0
A52: 35000053 | B52: ACO CA-60 A OU B | C52: TO | D52: 6383.41 | E52: 6383.41 | F52: 0
A53: 35000056 | B53: VEU DE POLIESTER 75 G/M2 | C53: M2 | D53: 3.25 | E53: 3.25 | F53: 0
A54: 35000059 | B54: LIMITADOR JUNTA TARUCEL - JUNTA 1x1CM | C54: M | D54: 0.32 | E54: 0.32 | F54: 0
A55: 35000060 | B55: LIMITADOR JUNTA TARUCEL - JUNTA 2x2CM | C55: M | D55: 0.82 | E55: 0.82 | F55: 0
A56: 35000062 | B56: ACELERADOR-IMPERMEABILIZANTE | C56: KG | D56: 9.76 | E56: 9.76 | F56: 0
A57: 35000063 | B57: RESINA POLIURETANO-MC 2300 NV OU SIMILAR | C57: L | D57: 110.5 | E57: 110.5 | F57: 0
A58: 35000064 | B58: RESINA POLIURETANO MC 2033 OU SIMILAR | C58: L | D58: 132 | E58: 132 | F58: 0
A59: 35000065 | B59: XYPEX CONCENTRADO OU SIMILAR | C59: KG | D59: 17.5 | E59: 17.5 | F59: 0
A60: 35000066 | B60: XYPEX MODIFICADO OU SIMILAR | C60: KG | D60: 16.2 | E60: 16.2 | F60: 0
A61: 35000067 | B61: XYPEX PATCH'N PLUG OU SIMILAR | C61: KG | D61: 9 | E61: 9 | F61: 0
A62: 35000068 | B62: ADESIVO EPOXICO MCDUR 1300 TX OU SIMILAR | C62: KG | D62: 21.6 | E62: 21.6 | F62: 0
A63: 35000069 | B63: SOLVENTE REINIGUNGSMITTEL U OU SIMILAR | C63: L | D63: 41.6 | E63: 41.6 | F63: 0
A64: 35000070 | B64: BEXIGA BORRACHA- BLOQUEADOR FLUXO Ø100MM | C64: UN | D64: 1850 | E64: 1850 | F64: 0
A65: 35000071 | B65: SIKA I | C65: L | D65: 5.24 | E65: 5.24 | F65: 0
A66: 35000072 | B66: SIKA CHAPISCO PLUS | C66: KG | D66: 7.84 | E66: 7.84 | F66: 0
A67: 35000073 | B67: SIKA TOP 122 - BICOMPONENTE A E B | C67: KG | D67: 9.46 | E67: 9.46 | F67: =E67/D67-1 -> 0
A68: 35000074 | B68: SIKALIT - ADITIVO IMPERMEABILIZANTE | C68: KG | D68: 16.36 | E68: 16.36 | F68: 0
A69: 35000075 | B69: SIKADUR 32 | C69: KG | D69: 91.93 | E69: 91.93 | F69: 0
A70: 35000076 | B70: ADESIVO EPOXI SIKADUR 31 | C70: KG | D70: 84.98 | E70: 84.98 | F70: 0
A71: 35000077 | B71: SIKAGROUT - 250 | C71: KG | D71: 1.36 | E71: 1.36 | F71: 0
A72: 35000078 | B72: SIKAFLEX 1A - CARTUCHO DE 310 ML | C72: UN | D72: 69.9 | E72: 69.9 | F72: 0
A73: 35000079 | B73: SIKA PRIMER 1 - LATA COM 320 ML | C73: UN | D73: 74.32 | E73: 74.32 | F73: 0
A74: 35000080 | B74: IMPERMEABILIZANTE TIPO HEYDI - K11 | C74: KG | D74: 2.9 | E74: 2.9 | F74: 0
A75: 35000081 | B75: IMPERMEABILIZANTE TIPO HEYDI - KZ | C75: KG | D75: 16.89 | E75: 16.89 | F75: 0
A76: 35000082 | B76: SIKA TOP 107 | C76: KG | D76: 7.71 | E76: 7.71 | F76: 0
A77: 35000083 | B77: SIKA TOP 108 ARMATEC | C77: KG | D77: 21.41 | E77: 21.41 | F77: 0
A78: 35000084 | B78: DESMOLDANTE PARA FORMAS | C78: L | D78: 9.02 | E78: 9.02 | F78: 0
A79: 35000085 | B79: CONCRETO - FCK 10 MPA - USINADO | C79: M3 | D79: 219.3 | E79: 219.3 | F79: 0
A80: 35000086 | B80: CONCRETO - FCK-15 MPA - USINADO | C80: M3 | D80: 234.29 | E80: 234.29 | F80: 0
A81: 35000087 | B81: CONCRETO - FCK - 20MPA - USINADO | C81: M3 | D81: 244.51 | E81: 244.51 | F81: 0
A82: 35000088 | B82: CONCRETO - FCK -25 MPA - USINADO | C82: M3 | D82: 255.49 | E82: 255.49 | F82: 0
A83: 35000089 | B83: CONCRETO-FCK-30MPA - USINADO/ADITIVO | C83: M3 | D83: 290.46 | E83: 290.46 | F83: 0
A84: 35000090 | B84: CONCRETO-FCK-35MPA - USINADO/ADITIVO | C84: M3 | D84: 297.46 | E84: 297.46 | F84: 0
A85: 35000091 | B85: CONCRETO-FCK-40MPA - USINADO/ADITIVO | C85: M3 | D85: 327.62 | E85: 327.62 | F85: 0
A86: 35000092 | B86: ARAME DE AMARRACAO GABIAO-Ø=2,2MM. | C86: KG | D86: 19.54 | E86: 19.54 | F86: 0
A87: 35000093 | B87: GABIAO-MALHA 8X10 GALV ALT=0,50M | C87: M3 | D87: 336.19 | E87: 336.19 | F87: 0
A88: 35000094 | B88: GABIAO-MALHA 8X10 GALV ALT=1,00M | C88: M3 | D88: 244.69 | E88: 244.69 | F88: 0
A89: 35000095 | B89: COLCHAO RENO-MALHA 6X 8 GPVC-E=0,30M | C89: M2 | D89: 139.72 | E89: 139.72 | F89: 0
A90: 35000096 | B90: GABIAO TIPO SACO-MALHA 8X10 REC. C/ PVC | C90: M3 | D90: 318.61 | E90: 318.61 | F90: 0
A91: 35000097 | B91: CANALETA DE CONCRETO- MEIA CANA,Ø300MM | C91: M | D91: 31.96 | E91: 31.96 | F91: 0
A92: 35000098 | B92: CANALETA DE CONCRETO- MEIA CANA,Ø400MM | C92: M | D92: 40.46 | E92: 40.46 | F92: 0
A93: 35000099 | B93: CANALETA DE CONCRETO- MEIA CANA,Ø500MM | C93: M | D93: 44.11 | E93: 44.11 | F93: 0
A94: 35000100 | B94: CANALETA DE CONCRETO- MEIA CANA,Ø600MM | C94: M | D94: 58.84 | E94: 58.84 | F94: 0
A95: 35000101 | B95: CORDEL DETONANTE NP-10 | C95: M | D95: 1.23 | E95: 1.23 | F95: 0
A96: 35000102 | B96: DINAMITE-ENCARTUCHADO, Ø 1" A 1.1/2" | C96: KG | D96: 9.25 | E96: 9.25 | F96: 0
A97: 35000103 | B97: ESPOLETA SIMPLES NR. 8 | C97: UN | D97: 3.25 | E97: 3.25 | F97: 0
A98: 35000104 | B98: ESTOPIM SIMPLES | C98: M | D98: 4.21 | E98: 4.21 | F98: 0
A99: 35000105 | B99: RETARDO P/CORDEL-NP-05/10-ESPERA 25/50MS | C99: UN | D99: 16.46 | E99: 16.46 | F99: 0
A100: 35000107 | B100: CANGA DE MINERIO DE FERRO | C100: TO | D100: 23.9 | E100: 23.9 | F100: 0
A101: 35000108 | B101: ESCORIA DE ALTO FORNO | C101: TO | D101: 77.49 | E101: 77.49 | F101: 0
A102: 35000109 | B102: BICA CORRIDA | C102: TO | D102: 27.55 | E102: 27.55 | F102: 0
A103: 35000110 | B103: BRITA GRADUADA | C103: TO | D103: 62.08 | E103: 62.08 | F103: 0
A104: 35000111 | B104: EMULSAO ASFALTICA RR-1C | C104: KG | D104: 2.53 | E104: 2.53 | F104: 0
A105: 35000112 | B105: EMULSAO ASFALTICA RR-2C | C105: KG | D105: 2.67 | E105: 2.67 | F105: 0
A106: 35000113 | B106: EMULSAO ASFALTICA CM-30 | C106: KG | D106: 4.98 | E106: 4.98 | F106: 0
A107: 35000114 | B107: MEIO FIO DE CONCRETO-12X16,7X35X80CM | C107: UN | D107: 16.33 | E107: 16.33 | F107: 0
A108: 35000115 | B108: CALCARIO - MOSAICO - CALCADA PORTUGUESA | C108: KG | D108: 0.39 | E108: 0.39 | F108: 0
A109: 35000116 | B109: PRE-MOLDADO CONCRETO-BLOQUETE-25X10CM. | C109: M2 | D109: 60 | E109: 60 | F109: 0
A110: 35000117 | B110: CONCRETO BETUMINOSO USINADO-CBUQ-FX-"C" | C110: TO | D110: 314.58 | E110: 314.58 | F110: 0
A111: 35000118 | B111: PARALELEPIPEDO | C111: UN | D111: 3.89 | E111: 3.89 | F111: 0
A112: 35000119 | B112: POLIEDRICO | C112: M3 | D112: 59.66 | E112: 59.66 | F112: 0
A113: 35000120 | B113: PRE-MOLDADO CONCRETO INTERTRAVADO-E=8CM | C113: M2 | D113: 34.12 | E113: 34.12 | F113: 0
A114: 35000121 | B114: GASOLINA TIPO A - COMUM | C114: L | D114: 4.69 | E114: 4.69 | F114: 0
A115: 35000122 | B115: OLEO DIESEL | C115: L | D115: 3.79 | E115: 3.79 | F115: 0
A116: 35000123 | B116: OLEO P/ FERRAMENTAS PNEUMATICAS-FP68 | C116: L | D116: 9.87 | E116: 9.87 | F116: 0
A117: 35000124 | B117: GRAXA LUBRAX GMA - 2 | C117: KG | D117: 24.87 | E117: 24.87 | F117: 0
A118: 35000125 | B118: GRAMA EM PLACAS | C118: M2 | D118: 13 | E118: 13 | F118: 0
A119: 35000126 | B119: TERRA VEGETAL | C119: M3 | D119: 61.76 | E119: 61.76 | F119: 0
A120: 35000127 | B120: MOURAO - P-COPASA 126 / L = 2,20+/-0,05M | C120: UN | D120: 38.39 | E120: 38.39 | F120: 0
A121: 35000128 | B121: MOURAO MADEIRA -11/13 CM - ALT =2,20M. | C121: UN | D121: 14.47 | E121: 14.47 | F121: 0
A122: 35000129 | B122: MOURAO ESCORA-P-COPASA126/L=2,50+/-0,05M | C122: UN | D122: 34.71 | E122: 34.71 | F122: 0
A123: 35000130 | B123: MOURAO CONC. P-COPASA126 /L=2,80+/-0,06M | C123: UN | D123: 37.08 | E123: 37.08 | F123: 0
A124: 35000131 | B124: PLACA DE IDENTIFICACAO DE OBRA | C124: M2 | D124: 230.9 | E124: 230.9 | F124: 0
A125: 35000132 | B125: CONE PARA SINALIZACAO - P-COPASA - 065/- | C125: UN | D125: 28.01 | E125: 28.01 | F125: 0
A126: 35000133 | B126: PLACA "DISTANCIA DE OBRA"-P-COPASA 066/- | C126: UN | D126: 84.14 | E126: 84.14 | F126: 0
A127: 35000134 | B127: CAVALETE DUPLA FACE - CONFORME MIVC | C127: UN | D127: 380.65 | E127: 380.65 | F127: 0
A128: 35000135 | B128: TRIPE PARA BANDEIROLAS - P-COPASA -102/- | C128: UN | D128: 250 | E128: 250 | F128: 0
A129: 35000136 | B129: GRADE MODULAR SINALIZACAO-P-COPASA 177/- | C129: UN | D129: 290 | E129: 290 | F129: 0
A130: 35000137 | B130: FITA ZEBRADA AMARELO E PRETA L = 75MM | C130: UN | D130: 9.47 | E130: 9.47 | F130: 0
A131: 35000140 | B131: ELETRODO P/ACOS, ILMENITICO Ø = 4MM | C131: KG | D131: 19.27 | E131: 19.27 | F131: =E131/D131-1 -> 0
A132: 35000141 | B132: ACETILENO | C132: KG | D132: 32.13 | E132: 32.13 | F132: 0
A133: 35000142 | B133: OXIGENIO | C133: M3 | D133: 8.22 | E133: 8.22 | F133: 0
A134: 35000143 | B134: MANILHA CERAMICA CL B/C DN100 | C134: M | D134: 9.9 | E134: 9.9 | F134: 0
A135: 35000144 | B135: MANILHA CERAMICA CL B/C DN200 | C135: M | D135: 23.2 | E135: 23.2 | F135: 0
A136: 35000145 | B136: SELIM CERAMICO CL C - 90 GR DN150X100 | C136: UN | D136: 51.95 | E136: 51.95 | F136: 0
A137: 35000146 | B137: SELIM CERAMICO CL C - 90 GR DN200X100 | C137: UN | D137: 51.95 | E137: 51.95 | F137: 0
A138: 35000147 | B138: SELA CERAMICA P.RETA DN200X210X135MM | C138: UN | D138: 26 | E138: 26 | F138: 0
A139: 35000148 | B139: TUBO CERAMICO DRENO PB DE100MM | C139: M | D139: 10.44 | E139: 10.44 | F139: 0
A140: 35000149 | B140: TUBO CERAMICO DRENO PB DE150MM | C140: M | D140: 15.98 | E140: 15.98 | F140: 0
A141: 35000150 | B141: TUBO CERAMICO DRENO PB DE200MM | C141: M | D141: 24.86 | E141: 24.86 | F141: 0
A142: 35000151 | B142: TUBO CONCRETO ARM PA1 PB JR DN1000 | C142: M | D142: 251.28 | E142: 251.28 | F142: 0
A143: 35000152 | B143: TUBO CONCRETO SIMPLES PB JR PS-1 DN600 | C143: M | D143: 91.3 | E143: 91.3 | F143: 0
A144: 35000153 | B144: TAMPA LAMINADA FV C/ALCAS-1020X1020X5MM | C144: UN | D144: 1498.96 | E144: 1498.96 | F144: 0
A145: 35000154 | B145: COTOVELO ADAP P/PEAD FG (KTL) D1/2"x20MM | C145: UN | D145: 30.88 | E145: 30.88 | F145: 0
A146: 35000155 | B146: UNIAO POLIPROPILENO (PEAD) D20MMx1/2" | C146: UN | D146: 1.56 | E146: 1.56 | F146: 0
A147: 35000156 | B147: TUBO POLIETILENO (PEAD) D20MM - PRETO | C147: M | D147: 2.99 | E147: 2.99 | F147: 0
A148: 35000157 | B148: TUBO POLIETILENO (PEAD) D20MM-AZUL GR3 | C148: M | D148: 3.22 | E148: 3.22 | F148: 0
A149: 35000158 | B149: ADESIVO PARA PVC RIGIDO | C149: KG | D149: 34.15 | E149: 34.15 | F149: 0
A150: 35000159 | B150: PASTA LUBRIFICANTE | C150: KG | D150: 26 | E150: 26 | F150: 0
A151: 35000160 | B151: SOLUCAO LIMPADORA P/ PVC RIGIDO | C151: L | D151: 39.73 | E151: 39.73 | F151: 0
A152: 35000161 | B152: ANEL BORRACHA TOROIDAL-AJE-DN50 DE60MM | C152: UN | D152: 1.18 | E152: 1.18 | F152: 0
A153: 35000162 | B153: ANEL BORRACHA TOROIDAL-AJE-DN75 DE85MM | C153: UN | D153: 1.77 | E153: 1.77 | F153: 0
A154: 35000163 | B154: ANEL BORRACHA TOROIDAL-AJE-DN100 DE110MM | C154: UN | D154: 2.23 | E154: 2.23 | F154: 0
A155: 35000164 | B155: ADAPTADOR PVC PBA BFF DN100x100 DE110MM | C155: UN | D155: 22.65 | E155: 22.65 | F155: 0
A156: 35000165 | B156: CURVA 90 GR RL PVC PBA JE DN75 DE85 MM | C156: UN | D156: 27.79 | E156: 27.79 | F156: 0
A157: 35000166 | B157: CURVA 90 GR RL PVC PBA JE DN100 DE110 MM | C157: UN | D157: 56.22 | E157: 56.22 | F157: 0
A158: 35000167 | B158: CANALETA RETA TUBO PVC PB DN 100. | C158: UN | D158: 14.07 | E158: 14.07 | F158: 0
A159: 35000168 | B159: TE 90 GR PVC BBB JE DN50 DE60MM | C159: UN | D159: 18.72 | E159: 18.72 | F159: 0
A160: 35000169 | B160: TUBO PVC PBA CL15 DN50 DE60MM | C160: M | D160: 10.68 | E160: 10.68 | F160: 0
A161: 35000170 | B161: TUBO PVC PBA CL15 DN75 DE85MM | C161: M | D161: 23.72 | E161: 23.72 | F161: 0
A162: 35000171 | B162: TUBO PVC PBA CL15 DN100 DE110MM | C162: M | D162: 36.03 | E162: 36.03 | F162: 0
A163: 35000172 | B163: TUBO PVC PBA CL20 DN50 DE 60MM | C163: M | D163: 13.13 | E163: 13.13 | F163: 0
A164: 35000173 | B164: TUBO PVC PBA CL20 DN75 DE 85MM | C164: M | D164: 29.94 | E164: 29.94 | F164: 0
A165: 35000174 | B165: TUBO PVC PBA CL20 DN100 DE110MM | C165: M | D165: 45.44 | E165: 45.44 | F165: 0
A166: 35000175 | B166: TUBO PVC RIG. DEFOFO PBA JE DN150 | C166: M | D166: 70.18 | E166: 70.18 | F166: 0
A167: 35000176 | B167: AGENTE ESPUMANTE DRILLFOAN OU SIMILAR | C167: L | D167: 18.07 | E167: 18.07 | F167: 0
A168: 35000177 | B168: AREIA SELECIONADA - TIPO PEROLA | C168: KG | D168: 1.02 | E168: 1.02 | F168: 0
A169: 35000178 | B169: HEXAMETAFOSFATO DE SODIO 69% DE P2O5 | C169: KG | D169: 23.04 | E169: 23.04 | F169: 0
A170: 35000179 | B170: BENTONITA ATIVADA | C170: KG | D170: 1.15 | E170: 1.15 | F170: 0
A171: 35000180 | B171: REGISTRO GAVETA, FoFo-RCFV16, DN 50 | C171: UN | D171: 463.95 | E171: 463.95 | F171: 0
A172: 35000181 | B172: REGISTRO S. METRICA CHATA RCFV16 DN 75 | C172: UN | D172: 656.17 | E172: 656.17 | F172: 0
A173: 35000182 | B173: REGISTRO S. METRICA CHATA RCFV16 DN 150 | C173: UN | D173: 1734.31 | E173: 1734.31 | F173: 0
A174: 35000183 | B174: VALVULA RETENCAO FoFo VRPUS16 - DN 150 | C174: UN | D174: 1471.09 | E174: 1471.09 | F174: 0
A175: 35000184 | B175: VENTOSA SIMPLES FOFO C/F 10/16/25 DN 50 | C175: UN | D175: 187.86 | E175: 187.86 | F175: 0
A176: 35000185 | B176: VENTOSA SIMPLES FOFO C/ROSCA PN25 DN1" | C176: UN | D176: 352.95 | E176: 352.95 | F176: 0
A177: 35000186 | B177: VENTOSA SIMPL FOFO C/ROSCA-PN25 DN1.1/2" | C177: UN | D177: 187.86 | E177: 187.86 | F177: 0
A178: 35000187 | B178: CURVA 45º FoFo JE - C45JGS - DN150 | C178: UN | D178: 151.26 | E178: 151.26 | F178: 0
A179: 35000188 | B179: CURVA 90º FoFo FF-C90FF10/16-DN 100 | C179: UN | D179: 193.76 | E179: 193.76 | F179: 0
A180: 35000189 | B180: CURVA 90º FoFo FF-C90FF10/16-DN 150 | C180: UN | D180: 372.53 | E180: 372.53 | F180: 0
A181: 35000190 | B181: EXTREMIDADE FoFo-EPFAV10/16-DN 100 | C181: UN | D181: 293.35 | E181: 293.35 | F181: 0
A182: 35000191 | B182: TE 90º FoFo-TFF10/16-DN 150x100 | C182: UN | D182: 553.34 | E182: 553.34 | F182: 0
A183: 35000192 | B183: VALVULA RET BR PH 150 PSI R BSP D=1.1/2" | C183: UN | D183: 138.19 | E183: 138.19 | F183: 0
A184: 35000193 | B184: VALVULA RET BR PH 150 PSI R BSP D=2" | C184: UN | D184: 208.38 | E184: 208.38 | F184: 0
A185: 35000194 | B185: VALVULA RET BR PH 150 PSI R BSP D=2.1/2" | C185: UN | D185: 343.62 | E185: 343.62 | F185: 0
A186: 35000195 | B186: VALVULA RET BR PH 150 PSI R BSP D=3" | C186: UN | D186: 416.82 | E186: 416.82 | F186: 0
A187: 35000196 | B187: VALVULA RET BR PH 150 PSI R BSP D=4" | C187: UN | D187: 737.35 | E187: 737.35 | F187: 0
A188: 35000197 | B188: TUBO FoFo-TFP10/16-DN 150 L = 3,00M | C188: UN | D188: 1497.9 | E188: 1497.9 | F188: 0
A189: 35000198 | B189: CURVA 45º FoFo FF-C45FF10/16-DN 150 | C189: UN | D189: 413.31 | E189: 413.31 | F189: 0
A190: 35000199 | B190: FLANGE AVULSO FoFo-FA10/16-DN 150 | C190: UN | D190: 140 | E190: 140 | F190: 0
A191: 35000200 | B191: PLACA REDUCAO FoFo FF-PR10/16-DN 100x50 | C191: UN | D191: 160.23 | E191: 160.23 | F191: 0
A192: 35000201 | B192: PARAFUSO P/ JUNTA MECANICA-PJM-DN18x90 | C192: UN | D192: 4.34 | E192: 4.34 | F192: 0
A193: 35000202 | B193: PARAFUSO C/PORCAS P/ FLANGES-PPF DN16x80 | C193: UN | D193: 3.26 | E193: 3.26 | F193: 0
A194: 35000203 | B194: ANEL PREM. CONC. P-104/_-DN 600x320MM. | C194: UN | D194: 71.23 | E194: 71.23 | F194: 0
A195: 35000204 | B195: ANEL PREM. CONC. P-104/_-DN 1000x320MM. | C195: UN | D195: 109.49 | E195: 109.49 | F195: =E195/D195-1 -> 0
A196: 35000205 | B196: ANEL PREM. CONC. P-104/_-DN 1200x320MM. | C196: UN | D196: 150.41 | E196: 150.41 | F196: 0
A197: 35000206 | B197: LAJE RED. CA P-105/_ DE (1300x600x120)MM | C197: UN | D197: 214.95 | E197: 214.95 | F197: 0
A198: 35000207 | B198: LAJE RED. CA P-105/_ DE (1500x600x120)MM | C198: UN | D198: 250.87 | E198: 250.87 | F198: 0
A199: 35000208 | B199: TAMPAO T- 5 FOFO P/PL PADRAO 030/- | C199: UN | D199: 44.57 | E199: 44.57 | F199: 0
A200: 35000209 | B200: TAMPAO T-22 FOFO P/CX PAS. PADRAO 032/- | C200: UN | D200: 88.38 | E200: 88.38 | F200: 0
... 925 more rows

Sheet COPASA NORTE 01_2021
A1: CÓD | B1: DESCRIÇÃO | C1: UNID | D1: VR ONERADO | E1: VR DESONERADO | F1: DIF
A2: 35000000 | B2: SERVENTE AGUA - COPASA | C2: H | D2: 15.55 | E2: 13.43 | F2: =E2/D2-1 -> -0.1363344051
A3: 35000001 | B3: SERVENTE ESGOTO - COPASA | C3: H | D3: 15.55 | E3: 13.43 | F3: =E3/D3-1 -> -0.1363344051
A4: 35000002 | B4: SERVICO AUXILIAR OPERACIONAL - COPASA | C4: H | D4: 15.55 | E4: 13.43 | F4: -0.1363344051
A5: 35000003 | B5: AUXILIAR DE LABORATORIO - COPASA | C5: H | D5: 15.86 | E5: 13.7 | F5: -0.1361916772
A6: 35000004 | B6: AUXILIAR DE ESCRITORIO CEC | C6: H | D6: 19.31 | E6: 17.12 | F6: -0.1134127395
A7: 35000005 | B7: AUXILIAR APOIO ADMINISTRATIVO - COPASA | C7: H | D7: 21.35 | E7: 18.45 | F7: -0.1358313817
A8: 35000006 | B8: ATENDENTE COMERCIAL - COPASA | C8: H | D8: 26.02 | E8: 22.48 | F8: -0.1360491929
A9: 35000007 | B9: BIOLOGO - COPASA | C9: H | D9: 70.38 | E9: 60.8 | F9: -0.1361182154
A10: 35000008 | B10: TECNICO ORCAMENTISTA CEC | C10: H | D10: 34.74 | E10: 30.39 | F10: -0.1252158895
A11: 35000009 | B11: LEITURISTA - COPASA | C11: H | D11: 21.35 | E11: 18.45 | F11: -0.1358313817
A12: 35000010 | B12: ENCARREGADO MANUTENCAO AGUA II - COPASA | C12: H | D12: 21.35 | E12: 18.45 | F12: -0.1358313817
A13: 35000011 | B13: ENCARREGADO MANUTENCAO ESGOTO I - COPASA | C13: H | D13: 21.35 | E13: 18.45 | F13: -0.1358313817
A14: 35000012 | B14: TECNICO DE LABORATORIO - COPASA | C14: H | D14: 40.23 | E14: 34.75 | F14: -0.1362167537
A15: 35000013 | B15: TECNICO DE LABORATORIO CEC | C15: H | D15: 34.76 | E15: 30.42 | F15: -0.1248561565
A16: 35000014 | B16: TECNICO DE SEGURANCA DO TRABALHO CEC | C16: H | D16: 34.76 | E16: 30.42 | F16: -0.1248561565
A17: 35000015 | B17: PROGRAMACAO PROCES. DADOS - COPASA | C17: H | D17: 40.23 | E17: 34.75 | F17: -0.1362167537
A18: 35000016 | B18: ENCARREGADO DE AREAS CEC | C18: H | D18: 25.85 | E18: 22.82 | F18: -0.1172147002
A19: 35000017 | B19: ENCARREGADO GERAL CEC | C19: H | D19: 34.76 | E19: 30.42 | F19: -0.1248561565
A20: 35000018 | B20: CONSULTOR | C20: H | D20: 330 | E20: 330 | F20: 0
A21: 35000019 | B21: ENGENHEIRO NÍVEL I FAIXA I CEC | C21: MES | D21: 17248.7 | E21: 14914.56 | F21: -0.135322662
A22: 35000021 | B22: ENGENHEIRO NÍVEL II FAIXA I CEC | C22: MES | D22: 19423.28 | E22: 16785.45 | F22: -0.1358076494
A23: 35000022 | B23: ENGENHEIRO NÍVEL IV FAIXA I CEC | C23: MES | D23: 24660.03 | E23: 21290.87 | F23: -0.1366243269
A24: 35000023 | B24: ENGENHEIRO NÍVEL III FAIXA I CEC | C24: MES | D24: 21881.4 | E24: 18900.29 | F24: -0.1362394545
A25: 35000024 | B25: ENGENHEIRO NÍVEL II FAIXA II CEC | C25: MES | D25: 20209.41 | E25: 17461.8 | F25: -0.1359569626
A26: 35000025 | B26: HIDROGEOLOGO CEC | C26: MES | D26: 16561.81 | E26: 14322.98 | F26: -0.1351802732
A27: 35000026 | B27: PROJETISTA CEC | C27: MES | D27: 12218.27 | E27: 10586.03 | F27: -0.1335901073
A28: 35000027 | B28: SUPERVISOR TECNICO CEC | C28: MES | D28: 9021.53 | E28: 7827.03 | F28: -0.1324054789
A29: 35000028 | B29: AUXILIAR DE PROGRAMACAO CEC | C29: MES | D29: 4915.41 | E29: 4296.68 | F29: -0.1258755628
A30: 35000029 | B30: ALMOXARIFE CEC | C30: MES | D30: 4919.8 | E30: 4301.08 | F30: -0.1257612098
A31: 35000030 | B31: AUXILIAR DE ALMOXARIFE CEC | C31: MES | D31: 3956.01 | E31: 3476.57 | F31: -0.121192818
A32: 35000032 | B32: TOPOGRAFO CEC | C32: MES | D32: 6619.37 | E32: 5755.04 | F32: -0.1305758705
A33: 35000033 | B33: TECNICO CADASTRISTA CEC | C33: MES | D33: 6614.97 | E33: 5750.64 | F33: -0.1306627241
A34: 35000034 | B34: NIVELADOR CEC | C34: MES | D34: 4919.8 | E34: 4301.08 | F34: -0.1257612098
A35: 35000035 | B35: AUXILIAR DE TOPOGRAFIA CEC | C35: MES | D35: 3956.01 | E35: 3476.57 | F35: -0.121192818
A36: 35000037 | B36: TECNICO CALCULISTA CEC | C36: MES | D36: 6614.97 | E36: 5750.64 | F36: -0.1306627241
A37: 35000038 | B37: DESENHISTA TECNICO (CADISTA) CEC | C37: MES | D37: 4915.41 | E37: 4296.68 | F37: -0.1258755628
A38: 35000039 | B38: ALMOXARIFE CEC | C38: H | D38: 28.24 | E38: 24.81 | F38: -0.1214589235
A39: 35000040 | B39: AUXILIAR DE ALMOXARIFE CEC | C39: H | D39: 22.72 | E39: 20.06 | F39: -0.1170774648
A40: 35000041 | B40: OFICIAL CEC | C40: H | D40: 21.72 | E40: 19.26 | F40: -0.1132596685
A41: 35000042 | B41: NIVELADOR CEC | C41: H | D41: 28.24 | E41: 24.81 | F41: -0.1214589235
A42: 35000043 | B42: AUXILIAR DE OFICIAL CEC | C42: H | D42: 17.39 | E42: 15.52 | F42: -0.107533065
A43: 35000044 | B43: SERVENTE CEC | C43: H | D43: 15.55 | E43: 13.94 | F43: -0.1035369775
A44: 35000045 | B44: TOPOGRAFO CEC | C44: H | D44: 37.98 | E44: 33.18 | F44: -0.1263823065
A45: 35000046 | B45: AUXILIAR DE TOPOGRAFIA CEC | C45: H | D45: 22.72 | E45: 20.06 | F45: -0.1170774648
A46: 35000047 | B46: AUXILIAR DE OPERADOR - MAQ PESADAS CEC | C46: H | D46: 17.66 | E46: 15.73 | F46: -0.1092865232
A47: 35000048 | B47: MOTORISTA CEC | C47: H | D47: 23.14 | E47: 20.45 | F47: -0.1162489196
A48: 35000049 | B48: OPERADOR DE MAQUINAS PESADAS CEC | C48: H | D48: 25.1 | E48: 22.13 | F48: -0.1183266932
A49: 35000050 | B49: SONDADOR I - COPASA | C49: H | D49: 17.18 | E49: 14.84 | F49: -0.1362048894
A50: 35000051 | B50: SONDADOR II - COPASA | C50: H | D50: 21.35 | E50: 18.45 | F50: -0.1358313817
A51: 35000052 | B51: ACO CA-50 A OU B | C51: TO | D51: 5882.45 | E51: 5882.45 | F51: 0
A52: 35000053 | B52: ACO CA-60 A OU B | C52: TO | D52: 5999.7 | E52: 5999.7 | F52: 0
A53: 35000056 | B53: VEU DE POLIESTER 75 G/M2 | C53: M2 | D53: 3.25 | E53: 3.25 | F53: 0
A54: 35000059 | B54: LIMITADOR JUNTA TARUCEL - JUNTA 1x1CM | C54: M | D54: 0.32 | E54: 0.32 | F54: 0
A55: 35000060 | B55: LIMITADOR JUNTA TARUCEL - JUNTA 2x2CM | C55: M | D55: 0.82 | E55: 0.82 | F55: 0
A56: 35000062 | B56: ACELERADOR-IMPERMEABILIZANTE | C56: KG | D56: 9.76 | E56: 9.76 | F56: 0
A57: 35000063 | B57: RESINA POLIURETANO-MC 2300 NV OU SIMILAR | C57: L | D57: 110.5 | E57: 110.5 | F57: 0
A58: 35000064 | B58: RESINA POLIURETANO MC 2033 OU SIMILAR | C58: L | D58: 132 | E58: 132 | F58: 0
A59: 35000065 | B59: XYPEX CONCENTRADO OU SIMILAR | C59: KG | D59: 17.5 | E59: 17.5 | F59: 0
A60: 35000066 | B60: XYPEX MODIFICADO OU SIMILAR | C60: KG | D60: 16.2 | E60: 16.2 | F60: 0
A61: 35000067 | B61: XYPEX PATCH'N PLUG OU SIMILAR | C61: KG | D61: 9 | E61: 9 | F61: 0
A62: 35000068 | B62: ADESIVO EPOXICO MCDUR 1300 TX OU SIMILAR | C62: KG | D62: 21.6 | E62: 21.6 | F62: 0
A63: 35000069 | B63: SOLVENTE REINIGUNGSMITTEL U OU SIMILAR | C63: L | D63: 41.6 | E63: 41.6 | F63: 0
A64: 35000070 | B64: BEXIGA BORRACHA- BLOQUEADOR FLUXO Ø100MM | C64: UN | D64: 1850 | E64: 1850 | F64: 0
A65: 35000071 | B65: SIKA I | C65: L | D65: 5.24 | E65: 5.24 | F65: 0
A66: 35000072 | B66: SIKA CHAPISCO PLUS | C66: KG | D66: 7.84 | E66: 7.84 | F66: 0
A67: 35000073 | B67: SIKA TOP 122 - BICOMPONENTE A E B | C67: KG | D67: 9.46 | E67: 9.46 | F67: =E67/D67-1 -> 0
A68: 35000074 | B68: SIKALIT - ADITIVO IMPERMEABILIZANTE | C68: KG | D68: 16.36 | E68: 16.36 | F68: 0
A69: 35000075 | B69: SIKADUR 32 | C69: KG | D69: 91.93 | E69: 91.93 | F69: 0
A70: 35000076 | B70: ADESIVO EPOXI SIKADUR 31 | C70: KG | D70: 84.98 | E70: 84.98 | F70: 0
A71: 35000077 | B71: SIKAGROUT - 250 | C71: KG | D71: 1.36 | E71: 1.36 | F71: 0
A72: 35000078 | B72: SIKAFLEX 1A - CARTUCHO DE 310 ML | C72: UN | D72: 69.9 | E72: 69.9 | F72: 0
A73: 35000079 | B73: SIKA PRIMER 1 - LATA COM 320 ML | C73: UN | D73: 74.32 | E73: 74.32 | F73: 0
A74: 35000080 | B74: IMPERMEABILIZANTE TIPO HEYDI - K11 | C74: KG | D74: 2.9 | E74: 2.9 | F74: 0
A75: 35000081 | B75: IMPERMEABILIZANTE TIPO HEYDI - KZ | C75: KG | D75: 16.89 | E75: 16.89 | F75: 0
A76: 35000082 | B76: SIKA TOP 107 | C76: KG | D76: 7.71 | E76: 7.71 | F76: 0
A77: 35000083 | B77: SIKA TOP 108 ARMATEC | C77: KG | D77: 21.41 | E77: 21.41 | F77: 0
A78: 35000084 | B78: DESMOLDANTE PARA FORMAS | C78: L | D78: 9.02 | E78: 9.02 | F78: 0
A79: 35000085 | B79: CONCRETO - FCK 10 MPA - USINADO | C79: M3 | D79: 235.4 | E79: 235.4 | F79: 0
A80: 35000086 | B80: CONCRETO - FCK-15 MPA - USINADO | C80: M3 | D80: 255.42 | E80: 255.42 | F80: 0
A81: 35000087 | B81: CONCRETO - FCK - 20MPA - USINADO | C81: M3 | D81: 266.67 | E81: 266.67 | F81: 0
A82: 35000088 | B82: CONCRETO - FCK -25 MPA - USINADO | C82: M3 | D82: 280 | E82: 280 | F82: 0
A83: 35000089 | B83: CONCRETO-FCK-30MPA - USINADO/ADITIVO | C83: M3 | D83: 290.46 | E83: 290.46 | F83: 0
A84: 35000090 | B84: CONCRETO-FCK-35MPA - USINADO/ADITIVO | C84: M3 | D84: 297.46 | E84: 297.46 | F84: 0
A85: 35000091 | B85: CONCRETO-FCK-40MPA - USINADO/ADITIVO | C85: M3 | D85: 327.62 | E85: 327.62 | F85: 0
A86: 35000092 | B86: ARAME DE AMARRACAO GABIAO-Ø=2,2MM. | C86: KG | D86: 19.54 | E86: 19.54 | F86: 0
A87: 35000093 | B87: GABIAO-MALHA 8X10 GALV ALT=0,50M | C87: M3 | D87: 336.19 | E87: 336.19 | F87: 0
A88: 35000094 | B88: GABIAO-MALHA 8X10 GALV ALT=1,00M | C88: M3 | D88: 244.69 | E88: 244.69 | F88: 0
A89: 35000095 | B89: COLCHAO RENO-MALHA 6X 8 GPVC-E=0,30M | C89: M2 | D89: 139.72 | E89: 139.72 | F89: 0
A90: 35000096 | B90: GABIAO TIPO SACO-MALHA 8X10 REC. C/ PVC | C90: M3 | D90: 318.61 | E90: 318.61 | F90: 0
A91: 35000097 | B91: CANALETA DE CONCRETO- MEIA CANA,Ø300MM | C91: M | D91: 31.96 | E91: 31.96 | F91: 0
A92: 35000098 | B92: CANALETA DE CONCRETO- MEIA CANA,Ø400MM | C92: M | D92: 40.46 | E92: 40.46 | F92: 0
A93: 35000099 | B93: CANALETA DE CONCRETO- MEIA CANA,Ø500MM | C93: M | D93: 44.11 | E93: 44.11 | F93: 0
A94: 35000100 | B94: CANALETA DE CONCRETO- MEIA CANA,Ø600MM | C94: M | D94: 58.84 | E94: 58.84 | F94: 0
A95: 35000101 | B95: CORDEL DETONANTE NP-10 | C95: M | D95: 1.23 | E95: 1.23 | F95: 0
A96: 35000102 | B96: DINAMITE-ENCARTUCHADO, Ø 1" A 1.1/2" | C96: KG | D96: 9.25 | E96: 9.25 | F96: 0
A97: 35000103 | B97: ESPOLETA SIMPLES NR. 8 | C97: UN | D97: 3.25 | E97: 3.25 | F97: 0
A98: 35000104 | B98: ESTOPIM SIMPLES | C98: M | D98: 4.21 | E98: 4.21 | F98: 0
A99: 35000105 | B99: RETARDO P/CORDEL-NP-05/10-ESPERA 25/50MS | C99: UN | D99: 16.46 | E99: 16.46 | F99: 0
A100: 35000107 | B100: CANGA DE MINERIO DE FERRO | C100: TO | D100: 23.9 | E100: 23.9 | F100: 0
A101: 35000108 | B101: ESCORIA DE ALTO FORNO | C101: TO | D101: 77.49 | E101: 77.49 | F101: 0
A102: 35000109 | B102: BICA CORRIDA | C102: TO | D102: 27.55 | E102: 27.55 | F102: 0
A103: 35000110 | B103: BRITA GRADUADA | C103: TO | D103: 62.08 | E103: 62.08 | F103: 0
A104: 35000111 | B104: EMULSAO ASFALTICA RR-1C | C104: KG | D104: 2.53 | E104: 2.53 | F104: 0
A105: 35000112 | B105: EMULSAO ASFALTICA RR-2C | C105: KG | D105: 2.67 | E105: 2.67 | F105: 0
A106: 35000113 | B106: EMULSAO ASFALTICA CM-30 | C106: KG | D106: 4.98 | E106: 4.98 | F106: 0
A107: 35000114 | B107: MEIO FIO DE CONCRETO-12X16,7X35X80CM | C107: UN | D107: 16.33 | E107: 16.33 | F107: 0
A108: 35000115 | B108: CALCARIO - MOSAICO - CALCADA PORTUGUESA | C108: KG | D108: 0.39 | E108: 0.39 | F108: 0
A109: 35000116 | B109: PRE-MOLDADO CONCRETO-BLOQUETE-25X10CM. | C109: M2 | D109: 60 | E109: 60 | F109: 0
A110: 35000117 | B110: CONCRETO BETUMINOSO USINADO-CBUQ-FX-"C" | C110: TO | D110: 320 | E110: 320 | F110: 0
A111: 35000118 | B111: PARALELEPIPEDO | C111: UN | D111: 3.89 | E111: 3.89 | F111: 0
A112: 35000119 | B112: POLIEDRICO | C112: M3 | D112: 59.66 | E112: 59.66 | F112: 0
A113: 35000120 | B113: PRE-MOLDADO CONCRETO INTERTRAVADO-E=8CM | C113: M2 | D113: 34.12 | E113: 34.12 | F113: 0
A114: 35000121 | B114: GASOLINA TIPO A - COMUM | C114: L | D114: 4.74 | E114: 4.74 | F114: 0
A115: 35000122 | B115: OLEO DIESEL | C115: L | D115: 3.6 | E115: 3.6 | F115: 0
A116: 35000123 | B116: OLEO P/ FERRAMENTAS PNEUMATICAS-FP68 | C116: L | D116: 9.87 | E116: 9.87 | F116: 0
A117: 35000124 | B117: GRAXA LUBRAX GMA - 2 | C117: KG | D117: 24.87 | E117: 24.87 | F117: 0
A118: 35000125 | B118: GRAMA EM PLACAS | C118: M2 | D118: 7.45 | E118: 7.45 | F118: 0
A119: 35000126 | B119: TERRA VEGETAL | C119: M3 | D119: 61.76 | E119: 61.76 | F119: 0
A120: 35000127 | B120: MOURAO - P-COPASA 126 / L = 2,20+/-0,05M | C120: UN | D120: 38.39 | E120: 38.39 | F120: 0
A121: 35000128 | B121: MOURAO MADEIRA -11/13 CM - ALT =2,20M. | C121: UN | D121: 14.47 | E121: 14.47 | F121: 0
A122: 35000129 | B122: MOURAO ESCORA-P-COPASA126/L=2,50+/-0,05M | C122: UN | D122: 34.71 | E122: 34.71 | F122: 0
A123: 35000130 | B123: MOURAO CONC. P-COPASA126 /L=2,80+/-0,06M | C123: UN | D123: 37.08 | E123: 37.08 | F123: 0
A124: 35000131 | B124: PLACA DE IDENTIFICACAO DE OBRA | C124: M2 | D124: 230.9 | E124: 230.9 | F124: 0
A125: 35000132 | B125: CONE PARA SINALIZACAO - P-COPASA - 065/- | C125: UN | D125: 28.01 | E125: 28.01 | F125: 0
A126: 35000133 | B126: PLACA "DISTANCIA DE OBRA"-P-COPASA 066/- | C126: UN | D126: 84.14 | E126: 84.14 | F126: 0
A127: 35000134 | B127: CAVALETE DUPLA FACE - CONFORME MIVC | C127: UN | D127: 380.65 | E127: 380.65 | F127: 0
A128: 35000135 | B128: TRIPE PARA BANDEIROLAS - P-COPASA -102/- | C128: UN | D128: 250 | E128: 250 | F128: 0
A129: 35000136 | B129: GRADE MODULAR SINALIZACAO-P-COPASA 177/- | C129: UN | D129: 290 | E129: 290 | F129: 0
A130: 35000137 | B130: FITA ZEBRADA AMARELO E PRETA L = 75MM | C130: UN | D130: 9.47 | E130: 9.47 | F130: 0
A131: 35000140 | B131: ELETRODO P/ACOS, ILMENITICO Ø = 4MM | C131: KG | D131: 19.27 | E131: 19.27 | F131: =E131/D131-1 -> 0
A132: 35000141 | B132: ACETILENO | C132: KG | D132: 32.13 | E132: 32.13 | F132: 0
A133: 35000142 | B133: OXIGENIO | C133: M3 | D133: 8.22 | E133: 8.22 | F133: 0
A134: 35000143 | B134: MANILHA CERAMICA CL B/C DN100 | C134: M | D134: 9.9 | E134: 9.9 | F134: 0
A135: 35000144 | B135: MANILHA CERAMICA CL B/C DN200 | C135: M | D135: 23.2 | E135: 23.2 | F135: 0
A136: 35000145 | B136: SELIM CERAMICO CL C - 90 GR DN150X100 | C136: UN | D136: 51.95 | E136: 51.95 | F136: 0
A137: 35000146 | B137: SELIM CERAMICO CL C - 90 GR DN200X100 | C137: UN | D137: 51.95 | E137: 51.95 | F137: 0
A138: 35000147 | B138: SELA CERAMICA P.RETA DN200X210X135MM | C138: UN | D138: 26 | E138: 26 | F138: 0
A139: 35000148 | B139: TUBO CERAMICO DRENO PB DE100MM | C139: M | D139: 10.44 | E139: 10.44 | F139: 0
A140: 35000149 | B140: TUBO CERAMICO DRENO PB DE150MM | C140: M | D140: 15.98 | E140: 15.98 | F140: 0
A141: 35000150 | B141: TUBO CERAMICO DRENO PB DE200MM | C141: M | D141: 24.86 | E141: 24.86 | F141: 0
A142: 35000151 | B142: TUBO CONCRETO ARM PA1 PB JR DN1000 | C142: M | D142: 251.28 | E142: 251.28 | F142: 0
A143: 35000152 | B143: TUBO CONCRETO SIMPLES PB JR PS-1 DN600 | C143: M | D143: 91.3 | E143: 91.3 | F143: 0
A144: 35000153 | B144: TAMPA LAMINADA FV C/ALCAS-1020X1020X5MM | C144: UN | D144: 1498.96 | E144: 1498.96 | F144: 0
A145: 35000154 | B145: COTOVELO ADAP P/PEAD FG (KTL) D1/2"x20MM | C145: UN | D145: 30.88 | E145: 30.88 | F145: 0
A146: 35000155 | B146: UNIAO POLIPROPILENO (PEAD) D20MMx1/2" | C146: UN | D146: 1.56 | E146: 1.56 | F146: 0
A147: 35000156 | B147: TUBO POLIETILENO (PEAD) D20MM - PRETO | C147: M | D147: 2.99 | E147: 2.99 | F147: 0
A148: 35000157 | B148: TUBO POLIETILENO (PEAD) D20MM-AZUL GR3 | C148: M | D148: 3.22 | E148: 3.22 | F148: 0
A149: 35000158 | B149: ADESIVO PARA PVC RIGIDO | C149: KG | D149: 34.15 | E149: 34.15 | F149: 0
A150: 35000159 | B150: PASTA LUBRIFICANTE | C150: KG | D150: 26 | E150: 26 | F150: 0
A151: 35000160 | B151: SOLUCAO LIMPADORA P/ PVC RIGIDO | C151: L | D151: 39.73 | E151: 39.73 | F151: 0
A152: 35000161 | B152: ANEL BORRACHA TOROIDAL-AJE-DN50 DE60MM | C152: UN | D152: 1.18 | E152: 1.18 | F152: 0
A153: 35000162 | B153: ANEL BORRACHA TOROIDAL-AJE-DN75 DE85MM | C153: UN | D153: 1.77 | E153: 1.77 | F153: 0
A154: 35000163 | B154: ANEL BORRACHA TOROIDAL-AJE-DN100 DE110MM | C154: UN | D154: 2.23 | E154: 2.23 | F154: 0
A155: 35000164 | B155: ADAPTADOR PVC PBA BFF DN100x100 DE110MM | C155: UN | D155: 22.65 | E155: 22.65 | F155: 0
A156: 35000165 | B156: CURVA 90 GR RL PVC PBA JE DN75 DE85 MM | C156: UN | D156: 27.79 | E156: 27.79 | F156: 0
A157: 35000166 | B157: CURVA 90 GR RL PVC PBA JE DN100 DE110 MM | C157: UN | D157: 56.22 | E157: 56.22 | F157: 0
A158: 35000167 | B158: CANALETA RETA TUBO PVC PB DN 100. | C158: UN | D158: 14.07 | E158: 14.07 | F158: 0
A159: 35000168 | B159: TE 90 GR PVC BBB JE DN50 DE60MM | C159: UN | D159: 18.72 | E159: 18.72 | F159: 0
A160: 35000169 | B160: TUBO PVC PBA CL15 DN50 DE60MM | C160: M | D160: 10.68 | E160: 10.68 | F160: 0
A161: 35000170 | B161: TUBO PVC PBA CL15 DN75 DE85MM | C161: M | D161: 23.72 | E161: 23.72 | F161: 0
A162: 35000171 | B162: TUBO PVC PBA CL15 DN100 DE110MM | C162: M | D162: 36.03 | E162: 36.03 | F162: 0
A163: 35000172 | B163: TUBO PVC PBA CL20 DN50 DE 60MM | C163: M | D163: 13.13 | E163: 13.13 | F163: 0
A164: 35000173 | B164: TUBO PVC PBA CL20 DN75 DE 85MM | C164: M | D164: 29.94 | E164: 29.94 | F164: 0
A165: 35000174 | B165: TUBO PVC PBA CL20 DN100 DE110MM | C165: M | D165: 45.44 | E165: 45.44 | F165: 0
A166: 35000175 | B166: TUBO PVC RIG. DEFOFO PBA JE DN150 | C166: M | D166: 70.18 | E166: 70.18 | F166: 0
A167: 35000176 | B167: AGENTE ESPUMANTE DRILLFOAN OU SIMILAR | C167: L | D167: 18.07 | E167: 18.07 | F167: 0
A168: 35000177 | B168: AREIA SELECIONADA - TIPO PEROLA | C168: KG | D168: 1.02 | E168: 1.02 | F168: 0
A169: 35000178 | B169: HEXAMETAFOSFATO DE SODIO 69% DE P2O5 | C169: KG | D169: 23.04 | E169: 23.04 | F169: 0
A170: 35000179 | B170: BENTONITA ATIVADA | C170: KG | D170: 1.15 | E170: 1.15 | F170: 0
A171: 35000180 | B171: REGISTRO GAVETA, FoFo-RCFV16, DN 50 | C171: UN | D171: 463.95 | E171: 463.95 | F171: 0
A172: 35000181 | B172: REGISTRO S. METRICA CHATA RCFV16 DN 75 | C172: UN | D172: 656.17 | E172: 656.17 | F172: 0
A173: 35000182 | B173: REGISTRO S. METRICA CHATA RCFV16 DN 150 | C173: UN | D173: 1734.31 | E173: 1734.31 | F173: 0
A174: 35000183 | B174: VALVULA RETENCAO FoFo VRPUS16 - DN 150 | C174: UN | D174: 1471.09 | E174: 1471.09 | F174: 0
A175: 35000184 | B175: VENTOSA SIMPLES FOFO C/F 10/16/25 DN 50 | C175: UN | D175: 187.86 | E175: 187.86 | F175: 0
A176: 35000185 | B176: VENTOSA SIMPLES FOFO C/ROSCA PN25 DN1" | C176: UN | D176: 352.95 | E176: 352.95 | F176: 0
A177: 35000186 | B177: VENTOSA SIMPL FOFO C/ROSCA-PN25 DN1.1/2" | C177: UN | D177: 187.86 | E177: 187.86 | F177: 0
A178: 35000187 | B178: CURVA 45º FoFo JE - C45JGS - DN150 | C178: UN | D178: 151.26 | E178: 151.26 | F178: 0
A179: 35000188 | B179: CURVA 90º FoFo FF-C90FF10/16-DN 100 | C179: UN | D179: 193.76 | E179: 193.76 | F179: 0
A180: 35000189 | B180: CURVA 90º FoFo FF-C90FF10/16-DN 150 | C180: UN | D180: 372.53 | E180: 372.53 | F180: 0
A181: 35000190 | B181: EXTREMIDADE FoFo-EPFAV10/16-DN 100 | C181: UN | D181: 293.35 | E181: 293.35 | F181: 0
A182: 35000191 | B182: TE 90º FoFo-TFF10/16-DN 150x100 | C182: UN | D182: 553.34 | E182: 553.34 | F182: 0
A183: 35000192 | B183: VALVULA RET BR PH 150 PSI R BSP D=1.1/2" | C183: UN | D183: 138.19 | E183: 138.19 | F183: 0
A184: 35000193 | B184: VALVULA RET BR PH 150 PSI R BSP D=2" | C184: UN | D184: 208.38 | E184: 208.38 | F184: 0
A185: 35000194 | B185: VALVULA RET BR PH 150 PSI R BSP D=2.1/2" | C185: UN | D185: 343.62 | E185: 343.62 | F185: 0
A186: 35000195 | B186: VALVULA RET BR PH 150 PSI R BSP D=3" | C186: UN | D186: 416.82 | E186: 416.82 | F186: 0
A187: 35000196 | B187: VALVULA RET BR PH 150 PSI R BSP D=4" | C187: UN | D187: 737.35 | E187: 737.35 | F187: 0
A188: 35000197 | B188: TUBO FoFo-TFP10/16-DN 150 L = 3,00M | C188: UN | D188: 1497.9 | E188: 1497.9 | F188: 0
A189: 35000198 | B189: CURVA 45º FoFo FF-C45FF10/16-DN 150 | C189: UN | D189: 413.31 | E189: 413.31 | F189: 0
A190: 35000199 | B190: FLANGE AVULSO FoFo-FA10/16-DN 150 | C190: UN | D190: 140 | E190: 140 | F190: 0
A191: 35000200 | B191: PLACA REDUCAO FoFo FF-PR10/16-DN 100x50 | C191: UN | D191: 160.23 | E191: 160.23 | F191: 0
A192: 35000201 | B192: PARAFUSO P/ JUNTA MECANICA-PJM-DN18x90 | C192: UN | D192: 4.34 | E192: 4.34 | F192: 0
A193: 35000202 | B193: PARAFUSO C/PORCAS P/ FLANGES-PPF DN16x80 | C193: UN | D193: 3.26 | E193: 3.26 | F193: 0
A194: 35000203 | B194: ANEL PREM. CONC. P-104/_-DN 600x320MM. | C194: UN | D194: 71.23 | E194: 71.23 | F194: 0
A195: 35000204 | B195: ANEL PREM. CONC. P-104/_-DN 1000x320MM. | C195: UN | D195: 109.49 | E195: 109.49 | F195: =E195/D195-1 -> 0
A196: 35000205 | B196: ANEL PREM. CONC. P-104/_-DN 1200x320MM. | C196: UN | D196: 150.41 | E196: 150.41 | F196: 0
A197: 35000206 | B197: LAJE RED. CA P-105/_ DE (1300x600x120)MM | C197: UN | D197: 214.95 | E197: 214.95 | F197: 0
A198: 35000207 | B198: LAJE RED. CA P-105/_ DE (1500x600x120)MM | C198: UN | D198: 250.87 | E198: 250.87 | F198: 0
A199: 35000208 | B199: TAMPAO T- 5 FOFO P/PL PADRAO 030/- | C199: UN | D199: 44.57 | E199: 44.57 | F199: 0
A200: 35000209 | B200: TAMPAO T-22 FOFO P/CX PAS. PADRAO 032/- | C200: UN | D200: 88.38 | E200: 88.38 | F200: 0
... 925 more rows

Sheet COPASA OESTE 01_2021
A1: CÓD | B1: DESCRIÇÃO | C1: UNID | D1: VR ONERADO | E1: VR DESONERADO | F1: DIF
A2: 35000000 | B2: SERVENTE AGUA - COPASA | C2: H | D2: 15.55 | E2: 13.43 | F2: =E2/D2-1 -> -0.1363344051
A3: 35000001 | B3: SERVENTE ESGOTO - COPASA | C3: H | D3: 15.55 | E3: 13.43 | F3: =E3/D3-1 -> -0.1363344051
A4: 35000002 | B4: SERVICO AUXILIAR OPERACIONAL - COPASA | C4: H | D4: 15.55 | E4: 13.43 | F4: -0.1363344051
A5: 35000003 | B5: AUXILIAR DE LABORATORIO - COPASA | C5: H | D5: 15.86 | E5: 13.7 | F5: -0.1361916772
A6: 35000004 | B6: AUXILIAR DE ESCRITORIO CEC | C6: H | D6: 19.31 | E6: 17.12 | F6: -0.1134127395
A7: 35000005 | B7: AUXILIAR APOIO ADMINISTRATIVO - COPASA | C7: H | D7: 21.35 | E7: 18.45 | F7: -0.1358313817
A8: 35000006 | B8: ATENDENTE COMERCIAL - COPASA | C8: H | D8: 26.02 | E8: 22.48 | F8: -0.1360491929
A9: 35000007 | B9: BIOLOGO - COPASA | C9: H | D9: 70.38 | E9: 60.8 | F9: -0.1361182154
A10: 35000008 | B10: TECNICO ORCAMENTISTA CEC | C10: H | D10: 34.74 | E10: 30.39 | F10: -0.1252158895
A11: 35000009 | B11: LEITURISTA - COPASA | C11: H | D11: 21.35 | E11: 18.45 | F11: -0.1358313817
A12: 35000010 | B12: ENCARREGADO MANUTENCAO AGUA II - COPASA | C12: H | D12: 21.35 | E12: 18.45 | F12: -0.1358313817
A13: 35000011 | B13: ENCARREGADO MANUTENCAO ESGOTO I - COPASA | C13: H | D13: 21.35 | E13: 18.45 | F13: -0.1358313817
A14: 35000012 | B14: TECNICO DE LABORATORIO - COPASA | C14: H | D14: 40.23 | E14: 34.75 | F14: -0.1362167537
A15: 35000013 | B15: TECNICO DE LABORATORIO CEC | C15: H | D15: 34.76 | E15: 30.42 | F15: -0.1248561565
A16: 35000014 | B16: TECNICO DE SEGURANCA DO TRABALHO CEC | C16: H | D16: 34.76 | E16: 30.42 | F16: -0.1248561565
A17: 35000015 | B17: PROGRAMACAO PROCES. DADOS - COPASA | C17: H | D17: 40.23 | E17: 34.75 | F17: -0.1362167537
A18: 35000016 | B18: ENCARREGADO DE AREAS CEC | C18: H | D18: 25.85 | E18: 22.82 | F18: -0.1172147002
A19: 35000017 | B19: ENCARREGADO GERAL CEC | C19: H | D19: 34.76 | E19: 30.42 | F19: -0.1248561565
A20: 35000018 | B20: CONSULTOR | C20: H | D20: 330 | E20: 330 | F20: 0
A21: 35000019 | B21: ENGENHEIRO NÍVEL I FAIXA I CEC | C21: MES | D21: 17248.7 | E21: 14914.56 | F21: -0.135322662
A22: 35000021 | B22: ENGENHEIRO NÍVEL II FAIXA I CEC | C22: MES | D22: 19423.28 | E22: 16785.45 | F22: -0.1358076494
A23: 35000022 | B23: ENGENHEIRO NÍVEL IV FAIXA I CEC | C23: MES | D23: 24660.03 | E23: 21290.87 | F23: -0.1366243269
A24: 35000023 | B24: ENGENHEIRO NÍVEL III FAIXA I CEC | C24: MES | D24: 21881.4 | E24: 18900.29 | F24: -0.1362394545
A25: 35000024 | B25: ENGENHEIRO NÍVEL II FAIXA II CEC | C25: MES | D25: 20209.41 | E25: 17461.8 | F25: -0.1359569626
A26: 35000025 | B26: HIDROGEOLOGO CEC | C26: MES | D26: 16561.81 | E26: 14322.98 | F26: -0.1351802732
A27: 35000026 | B27: PROJETISTA CEC | C27: MES | D27: 12218.27 | E27: 10586.03 | F27: -0.1335901073
A28: 35000027 | B28: SUPERVISOR TECNICO CEC | C28: MES | D28: 9021.53 | E28: 7827.03 | F28: -0.1324054789
A29: 35000028 | B29: AUXILIAR DE PROGRAMACAO CEC | C29: MES | D29: 4915.41 | E29: 4296.68 | F29: -0.1258755628
A30: 35000029 | B30: ALMOXARIFE CEC | C30: MES | D30: 4919.8 | E30: 4301.08 | F30: -0.1257612098
A31: 35000030 | B31: AUXILIAR DE ALMOXARIFE CEC | C31: MES | D31: 3956.01 | E31: 3476.57 | F31: -0.121192818
A32: 35000032 | B32: TOPOGRAFO CEC | C32: MES | D32: 6619.37 | E32: 5755.04 | F32: -0.1305758705
A33: 35000033 | B33: TECNICO CADASTRISTA CEC | C33: MES | D33: 6614.97 | E33: 5750.64 | F33: -0.1306627241
A34: 35000034 | B34: NIVELADOR CEC | C34: MES | D34: 4919.8 | E34: 4301.08 | F34: -0.1257612098
A35: 35000035 | B35: AUXILIAR DE TOPOGRAFIA CEC | C35: MES | D35: 3956.01 | E35: 3476.57 | F35: -0.121192818
A36: 35000037 | B36: TECNICO CALCULISTA CEC | C36: MES | D36: 6614.97 | E36: 5750.64 | F36: -0.1306627241
A37: 35000038 | B37: DESENHISTA TECNICO (CADISTA) CEC | C37: MES | D37: 4915.41 | E37: 4296.68 | F37: -0.1258755628
A38: 35000039 | B38: ALMOXARIFE CEC | C38: H | D38: 28.24 | E38: 24.81 | F38: -0.1214589235
A39: 35000040 | B39: AUXILIAR DE ALMOXARIFE CEC | C39: H | D39: 22.72 | E39: 20.06 | F39: -0.1170774648
A40: 35000041 | B40: OFICIAL CEC | C40: H | D40: 21.72 | E40: 19.26 | F40: -0.1132596685
A41: 35000042 | B41: NIVELADOR CEC | C41: H | D41: 28.24 | E41: 24.81 | F41: -0.1214589235
A42: 35000043 | B42: AUXILIAR DE OFICIAL CEC | C42: H | D42: 17.39 | E42: 15.52 | F42: -0.107533065
A43: 35000044 | B43: SERVENTE CEC | C43: H | D43: 15.55 | E43: 13.94 | F43: -0.1035369775
A44: 35000045 | B44: TOPOGRAFO CEC | C44: H | D44: 37.98 | E44: 33.18 | F44: -0.1263823065
A45: 35000046 | B45: AUXILIAR DE TOPOGRAFIA CEC | C45: H | D45: 22.72 | E45: 20.06 | F45: -0.1170774648
A46: 35000047 | B46: AUXILIAR DE OPERADOR - MAQ PESADAS CEC | C46: H | D46: 17.66 | E46: 15.73 | F46: -0.1092865232
A47: 35000048 | B47: MOTORISTA CEC | C47: H | D47: 23.14 | E47: 20.45 | F47: -0.1162489196
A48: 35000049 | B48: OPERADOR DE MAQUINAS PESADAS CEC | C48: H | D48: 25.1 | E48: 22.13 | F48: -0.1183266932
A49: 35000050 | B49: SONDADOR I - COPASA | C49: H | D49: 17.18 | E49: 14.84 | F49: -0.1362048894
A50: 35000051 | B50: SONDADOR II - COPASA | C50: H | D50: 21.35 | E50: 18.45 | F50: -0.1358313817
A51: 35000052 | B51: ACO CA-50 A OU B | C51: TO | D51: 6383.41 | E51: 6383.41 | F51: 0
A52: 35000053 | B52: ACO CA-60 A OU B | C52: TO | D52: 6383.41 | E52: 6383.41 | F52: 0
A53: 35000056 | B53: VEU DE POLIESTER 75 G/M2 | C53: M2 | D53: 3.25 | E53: 3.25 | F53: 0
A54: 35000059 | B54: LIMITADOR JUNTA TARUCEL - JUNTA 1x1CM | C54: M | D54: 0.32 | E54: 0.32 | F54: 0
A55: 35000060 | B55: LIMITADOR JUNTA TARUCEL - JUNTA 2x2CM | C55: M | D55: 0.82 | E55: 0.82 | F55: 0
A56: 35000062 | B56: ACELERADOR-IMPERMEABILIZANTE | C56: KG | D56: 9.76 | E56: 9.76 | F56: 0
A57: 35000063 | B57: RESINA POLIURETANO-MC 2300 NV OU SIMILAR | C57: L | D57: 110.5 | E57: 110.5 | F57: 0
A58: 35000064 | B58: RESINA POLIURETANO MC 2033 OU SIMILAR | C58: L | D58: 132 | E58: 132 | F58: 0
A59: 35000065 | B59: XYPEX CONCENTRADO OU SIMILAR | C59: KG | D59: 17.5 | E59: 17.5 | F59: 0
A60: 35000066 | B60: XYPEX MODIFICADO OU SIMILAR | C60: KG | D60: 16.2 | E60: 16.2 | F60: 0
A61: 35000067 | B61: XYPEX PATCH'N PLUG OU SIMILAR | C61: KG | D61: 9 | E61: 9 | F61: 0
A62: 35000068 | B62: ADESIVO EPOXICO MCDUR 1300 TX OU SIMILAR | C62: KG | D62: 21.6 | E62: 21.6 | F62: 0
A63: 35000069 | B63: SOLVENTE REINIGUNGSMITTEL U OU SIMILAR | C63: L | D63: 41.6 | E63: 41.6 | F63: 0
A64: 35000070 | B64: BEXIGA BORRACHA- BLOQUEADOR FLUXO Ø100MM | C64: UN | D64: 1850 | E64: 1850 | F64: 0
A65: 35000071 | B65: SIKA I | C65: L | D65: 5.24 | E65: 5.24 | F65: 0
A66: 35000072 | B66: SIKA CHAPISCO PLUS | C66: KG | D66: 7.84 | E66: 7.84 | F66: 0
A67: 35000073 | B67: SIKA TOP 122 - BICOMPONENTE A E B | C67: KG | D67: 9.46 | E67: 9.46 | F67: =E67/D67-1 -> 0
A68: 35000074 | B68: SIKALIT - ADITIVO IMPERMEABILIZANTE | C68: KG | D68: 16.36 | E68: 16.36 | F68: 0
A69: 35000075 | B69: SIKADUR 32 | C69: KG | D69: 91.93 | E69: 91.93 | F69: 0
A70: 35000076 | B70: ADESIVO EPOXI SIKADUR 31 | C70: KG | D70: 84.98 | E70: 84.98 | F70: 0
A71: 35000077 | B71: SIKAGROUT - 250 | C71: KG | D71: 1.36 | E71: 1.36 | F71: 0
A72: 35000078 | B72: SIKAFLEX 1A - CARTUCHO DE 310 ML | C72: UN | D72: 69.9 | E72: 69.9 | F72: 0
A73: 35000079 | B73: SIKA PRIMER 1 - LATA COM 320 ML | C73: UN | D73: 74.32 | E73: 74.32 | F73: 0
A74: 35000080 | B74: IMPERMEABILIZANTE TIPO HEYDI - K11 | C74: KG | D74: 2.9 | E74: 2.9 | F74: 0
A75: 35000081 | B75: IMPERMEABILIZANTE TIPO HEYDI - KZ | C75: KG | D75: 16.89 | E75: 16.89 | F75: 0
A76: 35000082 | B76: SIKA TOP 107 | C76: KG | D76: 7.71 | E76: 7.71 | F76: 0
A77: 35000083 | B77: SIKA TOP 108 ARMATEC | C77: KG | D77: 21.41 | E77: 21.41 | F77: 0
A78: 35000084 | B78: DESMOLDANTE PARA FORMAS | C78: L | D78: 9.02 | E78: 9.02 | F78: 0
A79: 35000085 | B79: CONCRETO - FCK 10 MPA - USINADO | C79: M3 | D79: 234.83 | E79: 234.83 | F79: 0
A80: 35000086 | B80: CONCRETO - FCK-15 MPA - USINADO | C80: M3 | D80: 254.8 | E80: 254.8 | F80: 0
A81: 35000087 | B81: CONCRETO - FCK - 20MPA - USINADO | C81: M3 | D81: 266.03 | E81: 266.03 | F81: 0
A82: 35000088 | B82: CONCRETO - FCK -25 MPA - USINADO | C82: M3 | D82: 279.33 | E82: 279.33 | F82: 0
A83: 35000089 | B83: CONCRETO-FCK-30MPA - USINADO/ADITIVO | C83: M3 | D83: 290.46 | E83: 290.46 | F83: 0
A84: 35000090 | B84: CONCRETO-FCK-35MPA - USINADO/ADITIVO | C84: M3 | D84: 297.46 | E84: 297.46 | F84: 0
A85: 35000091 | B85: CONCRETO-FCK-40MPA - USINADO/ADITIVO | C85: M3 | D85: 327.62 | E85: 327.62 | F85: 0
A86: 35000092 | B86: ARAME DE AMARRACAO GABIAO-Ø=2,2MM. | C86: KG | D86: 19.54 | E86: 19.54 | F86: 0
A87: 35000093 | B87: GABIAO-MALHA 8X10 GALV ALT=0,50M | C87: M3 | D87: 336.19 | E87: 336.19 | F87: 0
A88: 35000094 | B88: GABIAO-MALHA 8X10 GALV ALT=1,00M | C88: M3 | D88: 244.69 | E88: 244.69 | F88: 0
A89: 35000095 | B89: COLCHAO RENO-MALHA 6X 8 GPVC-E=0,30M | C89: M2 | D89: 139.72 | E89: 139.72 | F89: 0
A90: 35000096 | B90: GABIAO TIPO SACO-MALHA 8X10 REC. C/ PVC | C90: M3 | D90: 318.61 | E90: 318.61 | F90: 0
A91: 35000097 | B91: CANALETA DE CONCRETO- MEIA CANA,Ø300MM | C91: M | D91: 31.96 | E91: 31.96 | F91: 0
A92: 35000098 | B92: CANALETA DE CONCRETO- MEIA CANA,Ø400MM | C92: M | D92: 40.46 | E92: 40.46 | F92: 0
A93: 35000099 | B93: CANALETA DE CONCRETO- MEIA CANA,Ø500MM | C93: M | D93: 44.11 | E93: 44.11 | F93: 0
A94: 35000100 | B94: CANALETA DE CONCRETO- MEIA CANA,Ø600MM | C94: M | D94: 58.84 | E94: 58.84 | F94: 0
A95: 35000101 | B95: CORDEL DETONANTE NP-10 | C95: M | D95: 1.23 | E95: 1.23 | F95: 0
A96: 35000102 | B96: DINAMITE-ENCARTUCHADO, Ø 1" A 1.1/2" | C96: KG | D96: 9.25 | E96: 9.25 | F96: 0
A97: 35000103 | B97: ESPOLETA SIMPLES NR. 8 | C97: UN | D97: 3.25 | E97: 3.25 | F97: 0
A98: 35000104 | B98: ESTOPIM SIMPLES | C98: M | D98: 4.21 | E98: 4.21 | F98: 0
A99: 35000105 | B99: RETARDO P/CORDEL-NP-05/10-ESPERA 25/50MS | C99: UN | D99: 16.46 | E99: 16.46 | F99: 0
A100: 35000107 | B100: CANGA DE MINERIO DE FERRO | C100: TO | D100: 23.9 | E100: 23.9 | F100: 0
A101: 35000108 | B101: ESCORIA DE ALTO FORNO | C101: TO | D101: 77.49 | E101: 77.49 | F101: 0
A102: 35000109 | B102: BICA CORRIDA | C102: TO | D102: 27.55 | E102: 27.55 | F102: 0
A103: 35000110 | B103: BRITA GRADUADA | C103: TO | D103: 62.08 | E103: 62.08 | F103: 0
A104: 35000111 | B104: EMULSAO ASFALTICA RR-1C | C104: KG | D104: 2.53 | E104: 2.53 | F104: 0
A105: 35000112 | B105: EMULSAO ASFALTICA RR-2C | C105: KG | D105: 2.67 | E105: 2.67 | F105: 0
A106: 35000113 | B106: EMULSAO ASFALTICA CM-30 | C106: KG | D106: 4.98 | E106: 4.98 | F106: 0
A107: 35000114 | B107: MEIO FIO DE CONCRETO-12X16,7X35X80CM | C107: UN | D107: 16.33 | E107: 16.33 | F107: 0
A108: 35000115 | B108: CALCARIO - MOSAICO - CALCADA PORTUGUESA | C108: KG | D108: 0.39 | E108: 0.39 | F108: 0
A109: 35000116 | B109: PRE-MOLDADO CONCRETO-BLOQUETE-25X10CM. | C109: M2 | D109: 60 | E109: 60 | F109: 0
A110: 35000117 | B110: CONCRETO BETUMINOSO USINADO-CBUQ-FX-"C" | C110: TO | D110: 395 | E110: 395 | F110: 0
A111: 35000118 | B111: PARALELEPIPEDO | C111: UN | D111: 3.89 | E111: 3.89 | F111: 0
A112: 35000119 | B112: POLIEDRICO | C112: M3 | D112: 59.66 | E112: 59.66 | F112: 0
A113: 35000120 | B113: PRE-MOLDADO CONCRETO INTERTRAVADO-E=8CM | C113: M2 | D113: 34.12 | E113: 34.12 | F113: 0
A114: 35000121 | B114: GASOLINA TIPO A - COMUM | C114: L | D114: 4.71 | E114: 4.71 | F114: 0
A115: 35000122 | B115: OLEO DIESEL | C115: L | D115: 3.69 | E115: 3.69 | F115: 0
A116: 35000123 | B116: OLEO P/ FERRAMENTAS PNEUMATICAS-FP68 | C116: L | D116: 9.87 | E116: 9.87 | F116: 0
A117: 35000124 | B117: GRAXA LUBRAX GMA - 2 | C117: KG | D117: 24.87 | E117: 24.87 | F117: 0
A118: 35000125 | B118: GRAMA EM PLACAS | C118: M2 | D118: 7.5 | E118: 7.5 | F118: 0
A119: 35000126 | B119: TERRA VEGETAL | C119: M3 | D119: 61.76 | E119: 61.76 | F119: 0
A120: 35000127 | B120: MOURAO - P-COPASA 126 / L = 2,20+/-0,05M | C120: UN | D120: 38.39 | E120: 38.39 | F120: 0
A121: 35000128 | B121: MOURAO MADEIRA -11/13 CM - ALT =2,20M. | C121: UN | D121: 14.47 | E121: 14.47 | F121: 0
A122: 35000129 | B122: MOURAO ESCORA-P-COPASA126/L=2,50+/-0,05M | C122: UN | D122: 34.71 | E122: 34.71 | F122: 0
A123: 35000130 | B123: MOURAO CONC. P-COPASA126 /L=2,80+/-0,06M | C123: UN | D123: 37.08 | E123: 37.08 | F123: 0
A124: 35000131 | B124: PLACA DE IDENTIFICACAO DE OBRA | C124: M2 | D124: 230.9 | E124: 230.9 | F124: 0
A125: 35000132 | B125: CONE PARA SINALIZACAO - P-COPASA - 065/- | C125: UN | D125: 28.01 | E125: 28.01 | F125: 0
A126: 35000133 | B126: PLACA "DISTANCIA DE OBRA"-P-COPASA 066/- | C126: UN | D126: 84.14 | E126: 84.14 | F126: 0
A127: 35000134 | B127: CAVALETE DUPLA FACE - CONFORME MIVC | C127: UN | D127: 380.65 | E127: 380.65 | F127: 0
A128: 35000135 | B128: TRIPE PARA BANDEIROLAS - P-COPASA -102/- | C128: UN | D128: 250 | E128: 250 | F128: 0
A129: 35000136 | B129: GRADE MODULAR SINALIZACAO-P-COPASA 177/- | C129: UN | D129: 290 | E129: 290 | F129: 0
A130: 35000137 | B130: FITA ZEBRADA AMARELO E PRETA L = 75MM | C130: UN | D130: 9.47 | E130: 9.47 | F130: 0
A131: 35000140 | B131: ELETRODO P/ACOS, ILMENITICO Ø = 4MM | C131: KG | D131: 19.27 | E131: 19.27 | F131: =E131/D131-1 -> 0
A132: 35000141 | B132: ACETILENO | C132: KG | D132: 32.13 | E132: 32.13 | F132: 0
A133: 35000142 | B133: OXIGENIO | C133: M3 | D133: 8.22 | E133: 8.22 | F133: 0
A134: 35000143 | B134: MANILHA CERAMICA CL B/C DN100 | C134: M | D134: 9.9 | E134: 9.9 | F134: 0
A135: 35000144 | B135: MANILHA CERAMICA CL B/C DN200 | C135: M | D135: 23.2 | E135: 23.2 | F135: 0
A136: 35000145 | B136: SELIM CERAMICO CL C - 90 GR DN150X100 | C136: UN | D136: 51.95 | E136: 51.95 | F136: 0
A137: 35000146 | B137: SELIM CERAMICO CL C - 90 GR DN200X100 | C137: UN | D137: 51.95 | E137: 51.95 | F137: 0
A138: 35000147 | B138: SELA CERAMICA P.RETA DN200X210X135MM | C138: UN | D138: 26 | E138: 26 | F138: 0
A139: 35000148 | B139: TUBO CERAMICO DRENO PB DE100MM | C139: M | D139: 10.44 | E139: 10.44 | F139: 0
A140: 35000149 | B140: TUBO CERAMICO DRENO PB DE150MM | C140: M | D140: 15.98 | E140: 15.98 | F140: 0
A141: 35000150 | B141: TUBO CERAMICO DRENO PB DE200MM | C141: M | D141: 24.86 | E141: 24.86 | F141: 0
A142: 35000151 | B142: TUBO CONCRETO ARM PA1 PB JR DN1000 | C142: M | D142: 251.28 | E142: 251.28 | F142: 0
A143: 35000152 | B143: TUBO CONCRETO SIMPLES PB JR PS-1 DN600 | C143: M | D143: 91.3 | E143: 91.3 | F143: 0
A144: 35000153 | B144: TAMPA LAMINADA FV C/ALCAS-1020X1020X5MM | C144: UN | D144: 1498.96 | E144: 1498.96 | F144: 0
A145: 35000154 | B145: COTOVELO ADAP P/PEAD FG (KTL) D1/2"x20MM | C145: UN | D145: 30.88 | E145: 30.88 | F145: 0
A146: 35000155 | B146: UNIAO POLIPROPILENO (PEAD) D20MMx1/2" | C146: UN | D146: 1.56 | E146: 1.56 | F146: 0
A147: 35000156 | B147: TUBO POLIETILENO (PEAD) D20MM - PRETO | C147: M | D147: 2.99 | E147: 2.99 | F147: 0
A148: 35000157 | B148: TUBO POLIETILENO (PEAD) D20MM-AZUL GR3 | C148: M | D148: 3.22 | E148: 3.22 | F148: 0
A149: 35000158 | B149: ADESIVO PARA PVC RIGIDO | C149: KG | D149: 34.15 | E149: 34.15 | F149: 0
A150: 35000159 | B150: PASTA LUBRIFICANTE | C150: KG | D150: 26 | E150: 26 | F150: 0
A151: 35000160 | B151: SOLUCAO LIMPADORA P/ PVC RIGIDO | C151: L | D151: 39.73 | E151: 39.73 | F151: 0
A152: 35000161 | B152: ANEL BORRACHA TOROIDAL-AJE-DN50 DE60MM | C152: UN | D152: 1.18 | E152: 1.18 | F152: 0
A153: 35000162 | B153: ANEL BORRACHA TOROIDAL-AJE-DN75 DE85MM | C153: UN | D153: 1.77 | E153: 1.77 | F153: 0
A154: 35000163 | B154: ANEL BORRACHA TOROIDAL-AJE-DN100 DE110MM | C154: UN | D154: 2.23 | E154: 2.23 | F154: 0
A155: 35000164 | B155: ADAPTADOR PVC PBA BFF DN100x100 DE110MM | C155: UN | D155: 22.65 | E155: 22.65 | F155: 0
A156: 35000165 | B156: CURVA 90 GR RL PVC PBA JE DN75 DE85 MM | C156: UN | D156: 27.79 | E156: 27.79 | F156: 0
A157: 35000166 | B157: CURVA 90 GR RL PVC PBA JE DN100 DE110 MM | C157: UN | D157: 56.22 | E157: 56.22 | F157: 0
A158: 35000167 | B158: CANALETA RETA TUBO PVC PB DN 100. | C158: UN | D158: 14.07 | E158: 14.07 | F158: 0
A159: 35000168 | B159: TE 90 GR PVC BBB JE DN50 DE60MM | C159: UN | D159: 18.72 | E159: 18.72 | F159: 0
A160: 35000169 | B160: TUBO PVC PBA CL15 DN50 DE60MM | C160: M | D160: 10.68 | E160: 10.68 | F160: 0
A161: 35000170 | B161: TUBO PVC PBA CL15 DN75 DE85MM | C161: M | D161: 23.72 | E161: 23.72 | F161: 0
A162: 35000171 | B162: TUBO PVC PBA CL15 DN100 DE110MM | C162: M | D162: 36.03 | E162: 36.03 | F162: 0
A163: 35000172 | B163: TUBO PVC PBA CL20 DN50 DE 60MM | C163: M | D163: 13.13 | E163: 13.13 | F163: 0
A164: 35000173 | B164: TUBO PVC PBA CL20 DN75 DE 85MM | C164: M | D164: 29.94 | E164: 29.94 | F164: 0
A165: 35000174 | B165: TUBO PVC PBA CL20 DN100 DE110MM | C165: M | D165: 45.44 | E165: 45.44 | F165: 0
A166: 35000175 | B166: TUBO PVC RIG. DEFOFO PBA JE DN150 | C166: M | D166: 70.18 | E166: 70.18 | F166: 0
A167: 35000176 | B167: AGENTE ESPUMANTE DRILLFOAN OU SIMILAR | C167: L | D167: 18.07 | E167: 18.07 | F167: 0
A168: 35000177 | B168: AREIA SELECIONADA - TIPO PEROLA | C168: KG | D168: 1.02 | E168: 1.02 | F168: 0
A169: 35000178 | B169: HEXAMETAFOSFATO DE SODIO 69% DE P2O5 | C169: KG | D169: 23.04 | E169: 23.04 | F169: 0
A170: 35000179 | B170: BENTONITA ATIVADA | C170: KG | D170: 1.15 | E170: 1.15 | F170: 0
A171: 35000180 | B171: REGISTRO GAVETA, FoFo-RCFV16, DN 50 | C171: UN | D171: 463.95 | E171: 463.95 | F171: 0
A172: 35000181 | B172: REGISTRO S. METRICA CHATA RCFV16 DN 75 | C172: UN | D172: 656.17 | E172: 656.17 | F172: 0
A173: 35000182 | B173: REGISTRO S. METRICA CHATA RCFV16 DN 150 | C173: UN | D173: 1734.31 | E173: 1734.31 | F173: 0
A174: 35000183 | B174: VALVULA RETENCAO FoFo VRPUS16 - DN 150 | C174: UN | D174: 1471.09 | E174: 1471.09 | F174: 0
A175: 35000184 | B175: VENTOSA SIMPLES FOFO C/F 10/16/25 DN 50 | C175: UN | D175: 187.86 | E175: 187.86 | F175: 0
A176: 35000185 | B176: VENTOSA SIMPLES FOFO C/ROSCA PN25 DN1" | C176: UN | D176: 352.95 | E176: 352.95 | F176: 0
A177: 35000186 | B177: VENTOSA SIMPL FOFO C/ROSCA-PN25 DN1.1/2" | C177: UN | D177: 187.86 | E177: 187.86 | F177: 0
A178: 35000187 | B178: CURVA 45º FoFo JE - C45JGS - DN150 | C178: UN | D178: 151.26 | E178: 151.26 | F178: 0
A179: 35000188 | B179: CURVA 90º FoFo FF-C90FF10/16-DN 100 | C179: UN | D179: 193.76 | E179: 193.76 | F179: 0
A180: 35000189 | B180: CURVA 90º FoFo FF-C90FF10/16-DN 150 | C180: UN | D180: 372.53 | E180: 372.53 | F180: 0
A181: 35000190 | B181: EXTREMIDADE FoFo-EPFAV10/16-DN 100 | C181: UN | D181: 293.35 | E181: 293.35 | F181: 0
A182: 35000191 | B182: TE 90º FoFo-TFF10/16-DN 150x100 | C182: UN | D182: 553.34 | E182: 553.34 | F182: 0
A183: 35000192 | B183: VALVULA RET BR PH 150 PSI R BSP D=1.1/2" | C183: UN | D183: 138.19 | E183: 138.19 | F183: 0
A184: 35000193 | B184: VALVULA RET BR PH 150 PSI R BSP D=2" | C184: UN | D184: 208.38 | E184: 208.38 | F184: 0
A185: 35000194 | B185: VALVULA RET BR PH 150 PSI R BSP D=2.1/2" | C185: UN | D185: 343.62 | E185: 343.62 | F185: 0
A186: 35000195 | B186: VALVULA RET BR PH 150 PSI R BSP D=3" | C186: UN | D186: 416.82 | E186: 416.82 | F186: 0
A187: 35000196 | B187: VALVULA RET BR PH 150 PSI R BSP D=4" | C187: UN | D187: 737.35 | E187: 737.35 | F187: 0
A188: 35000197 | B188: TUBO FoFo-TFP10/16-DN 150 L = 3,00M | C188: UN | D188: 1497.9 | E188: 1497.9 | F188: 0
A189: 35000198 | B189: CURVA 45º FoFo FF-C45FF10/16-DN 150 | C189: UN | D189: 413.31 | E189: 413.31 | F189: 0
A190: 35000199 | B190: FLANGE AVULSO FoFo-FA10/16-DN 150 | C190: UN | D190: 140 | E190: 140 | F190: 0
A191: 35000200 | B191: PLACA REDUCAO FoFo FF-PR10/16-DN 100x50 | C191: UN | D191: 160.23 | E191: 160.23 | F191: 0
A192: 35000201 | B192: PARAFUSO P/ JUNTA MECANICA-PJM-DN18x90 | C192: UN | D192: 4.34 | E192: 4.34 | F192: 0
A193: 35000202 | B193: PARAFUSO C/PORCAS P/ FLANGES-PPF DN16x80 | C193: UN | D193: 3.26 | E193: 3.26 | F193: 0
A194: 35000203 | B194: ANEL PREM. CONC. P-104/_-DN 600x320MM. | C194: UN | D194: 71.23 | E194: 71.23 | F194: 0
A195: 35000204 | B195: ANEL PREM. CONC. P-104/_-DN 1000x320MM. | C195: UN | D195: 109.49 | E195: 109.49 | F195: =E195/D195-1 -> 0
A196: 35000205 | B196: ANEL PREM. CONC. P-104/_-DN 1200x320MM. | C196: UN | D196: 150.41 | E196: 150.41 | F196: 0
A197: 35000206 | B197: LAJE RED. CA P-105/_ DE (1300x600x120)MM | C197: UN | D197: 214.95 | E197: 214.95 | F197: 0
A198: 35000207 | B198: LAJE RED. CA P-105/_ DE (1500x600x120)MM | C198: UN | D198: 250.87 | E198: 250.87 | F198: 0
A199: 35000208 | B199: TAMPAO T- 5 FOFO P/PL PADRAO 030/- | C199: UN | D199: 44.57 | E199: 44.57 | F199: 0
A200: 35000209 | B200: TAMPAO T-22 FOFO P/CX PAS. PADRAO 032/- | C200: UN | D200: 88.38 | E200: 88.38 | F200: 0
... 925 more rows

Sheet COPASA SUDESTE 01_2021
A1: CÓD | B1: DESCRIÇÃO | C1: UNID | D1: VR ONERADO | E1: VR DESONERADO | F1: DIF
A2: 35000000 | B2: SERVENTE AGUA - COPASA | C2: H | D2: 15.55 | E2: 13.43 | F2: =E2/D2-1 -> -0.1363344051
A3: 35000001 | B3: SERVENTE ESGOTO - COPASA | C3: H | D3: 15.55 | E3: 13.43 | F3: =E3/D3-1 -> -0.1363344051
A4: 35000002 | B4: SERVICO AUXILIAR OPERACIONAL - COPASA | C4: H | D4: 15.55 | E4: 13.43 | F4: -0.1363344051
A5: 35000003 | B5: AUXILIAR DE LABORATORIO - COPASA | C5: H | D5: 15.86 | E5: 13.7 | F5: -0.1361916772
A6: 35000004 | B6: AUXILIAR DE ESCRITORIO CEC | C6: H | D6: 19.31 | E6: 17.12 | F6: -0.1134127395
A7: 35000005 | B7: AUXILIAR APOIO ADMINISTRATIVO - COPASA | C7: H | D7: 21.35 | E7: 18.45 | F7: -0.1358313817
A8: 35000006 | B8: ATENDENTE COMERCIAL - COPASA | C8: H | D8: 26.02 | E8: 22.48 | F8: -0.1360491929
A9: 35000007 | B9: BIOLOGO - COPASA | C9: H | D9: 70.38 | E9: 60.8 | F9: -0.1361182154
A10: 35000008 | B10: TECNICO ORCAMENTISTA CEC | C10: H | D10: 34.74 | E10: 30.39 | F10: -0.1252158895
A11: 35000009 | B11: LEITURISTA - COPASA | C11: H | D11: 21.35 | E11: 18.45 | F11: -0.1358313817
A12: 35000010 | B12: ENCARREGADO MANUTENCAO AGUA II - COPASA | C12: H | D12: 21.35 | E12: 18.45 | F12: -0.1358313817
A13: 35000011 | B13: ENCARREGADO MANUTENCAO ESGOTO I - COPASA | C13: H | D13: 21.35 | E13: 18.45 | F13: -0.1358313817
A14: 35000012 | B14: TECNICO DE LABORATORIO - COPASA | C14: H | D14: 40.23 | E14: 34.75 | F14: -0.1362167537
A15: 35000013 | B15: TECNICO DE LABORATORIO CEC | C15: H | D15: 34.76 | E15: 30.42 | F15: -0.1248561565
A16: 35000014 | B16: TECNICO DE SEGURANCA DO TRABALHO CEC | C16: H | D16: 34.76 | E16: 30.42 | F16: -0.1248561565
A17: 35000015 | B17: PROGRAMACAO PROCES. DADOS - COPASA | C17: H | D17: 40.23 | E17: 34.75 | F17: -0.1362167537
A18: 35000016 | B18: ENCARREGADO DE AREAS CEC | C18: H | D18: 25.85 | E18: 22.82 | F18: -0.1172147002
A19: 35000017 | B19: ENCARREGADO GERAL CEC | C19: H | D19: 34.76 | E19: 30.42 | F19: -0.1248561565
A20: 35000018 | B20: CONSULTOR | C20: H | D20: 330 | E20: 330 | F20: 0
A21: 35000019 | B21: ENGENHEIRO NÍVEL I FAIXA I CEC | C21: MES | D21: 17248.7 | E21: 14914.56 | F21: -0.135322662
A22: 35000021 | B22: ENGENHEIRO NÍVEL II FAIXA I CEC | C22: MES | D22: 19423.28 | E22: 16785.45 | F22: -0.1358076494
A23: 35000022 | B23: ENGENHEIRO NÍVEL IV FAIXA I CEC | C23: MES | D23: 24660.03 | E23: 21290.87 | F23: -0.1366243269
A24: 35000023 | B24: ENGENHEIRO NÍVEL III FAIXA I CEC | C24: MES | D24: 21881.4 | E24: 18900.29 | F24: -0.1362394545
A25: 35000024 | B25: ENGENHEIRO NÍVEL II FAIXA II CEC | C25: MES | D25: 20209.41 | E25: 17461.8 | F25: -0.1359569626
A26: 35000025 | B26: HIDROGEOLOGO CEC | C26: MES | D26: 16561.81 | E26: 14322.98 | F26: -0.1351802732
A27: 35000026 | B27: PROJETISTA CEC | C27: MES | D27: 12218.27 | E27: 10586.03 | F27: -0.1335901073
A28: 35000027 | B28: SUPERVISOR TECNICO CEC | C28: MES | D28: 9021.53 | E28: 7827.03 | F28: -0.1324054789
A29: 35000028 | B29: AUXILIAR DE PROGRAMACAO CEC | C29: MES | D29: 4915.41 | E29: 4296.68 | F29: -0.1258755628
A30: 35000029 | B30: ALMOXARIFE CEC | C30: MES | D30: 4919.8 | E30: 4301.08 | F30: -0.1257612098
A31: 35000030 | B31: AUXILIAR DE ALMOXARIFE CEC | C31: MES | D31: 3956.01 | E31: 3476.57 | F31: -0.121192818
A32: 35000032 | B32: TOPOGRAFO CEC | C32: MES | D32: 6619.37 | E32: 5755.04 | F32: -0.1305758705
A33: 35000033 | B33: TECNICO CADASTRISTA CEC | C33: MES | D33: 6614.97 | E33: 5750.64 | F33: -0.1306627241
A34: 35000034 | B34: NIVELADOR CEC | C34: MES | D34: 4919.8 | E34: 4301.08 | F34: -0.1257612098
A35: 35000035 | B35: AUXILIAR DE TOPOGRAFIA CEC | C35: MES | D35: 3956.01 | E35: 3476.57 | F35: -0.121192818
A36: 35000037 | B36: TECNICO CALCULISTA CEC | C36: MES | D36: 6614.97 | E36: 5750.64 | F36: -0.1306627241
A37: 35000038 | B37: DESENHISTA TECNICO (CADISTA) CEC | C37: MES | D37: 4915.41 | E37: 4296.68 | F37: -0.1258755628
A38: 35000039 | B38: ALMOXARIFE CEC | C38: H | D38: 28.24 | E38: 24.81 | F38: -0.1214589235
A39: 35000040 | B39: AUXILIAR DE ALMOXARIFE CEC | C39: H | D39: 22.72 | E39: 20.06 | F39: -0.1170774648
A40: 35000041 | B40: OFICIAL CEC | C40: H | D40: 21.72 | E40: 19.26 | F40: -0.1132596685
A41: 35000042 | B41: NIVELADOR CEC | C41: H | D41: 28.24 | E41: 24.81 | F41: -0.1214589235
A42: 35000043 | B42: AUXILIAR DE OFICIAL CEC | C42: H | D42: 17.39 | E42: 15.52 | F42: -0.107533065
A43: 35000044 | B43: SERVENTE CEC | C43: H | D43: 15.55 | E43: 13.94 | F43: -0.1035369775
A44: 35000045 | B44: TOPOGRAFO CEC | C44: H | D44: 37.98 | E44: 33.18 | F44: -0.1263823065
A45: 35000046 | B45: AUXILIAR DE TOPOGRAFIA CEC | C45: H | D45: 22.72 | E45: 20.06 | F45: -0.1170774648
A46: 35000047 | B46: AUXILIAR DE OPERADOR - MAQ PESADAS CEC | C46: H | D46: 17.66 | E46: 15.73 | F46: -0.1092865232
A47: 35000048 | B47: MOTORISTA CEC | C47: H | D47: 23.14 | E47: 20.45 | F47: -0.1162489196
A48: 35000049 | B48: OPERADOR DE MAQUINAS PESADAS CEC | C48: H | D48: 25.1 | E48: 22.13 | F48: -0.1183266932
A49: 35000050 | B49: SONDADOR I - COPASA | C49: H | D49: 17.18 | E49: 14.84 | F49: -0.1362048894
A50: 35000051 | B50: SONDADOR II - COPASA | C50: H | D50: 21.35 | E50: 18.45 | F50: -0.1358313817
A51: 35000052 | B51: ACO CA-50 A OU B | C51: TO | D51: 6383.41 | E51: 6383.41 | F51: 0
A52: 35000053 | B52: ACO CA-60 A OU B | C52: TO | D52: 6383.41 | E52: 6383.41 | F52: 0
A53: 35000056 | B53: VEU DE POLIESTER 75 G/M2 | C53: M2 | D53: 3.25 | E53: 3.25 | F53: 0
A54: 35000059 | B54: LIMITADOR JUNTA TARUCEL - JUNTA 1x1CM | C54: M | D54: 0.32 | E54: 0.32 | F54: 0
A55: 35000060 | B55: LIMITADOR JUNTA TARUCEL - JUNTA 2x2CM | C55: M | D55: 0.82 | E55: 0.82 | F55: 0
A56: 35000062 | B56: ACELERADOR-IMPERMEABILIZANTE | C56: KG | D56: 9.76 | E56: 9.76 | F56: 0
A57: 35000063 | B57: RESINA POLIURETANO-MC 2300 NV OU SIMILAR | C57: L | D57: 110.5 | E57: 110.5 | F57: 0
A58: 35000064 | B58: RESINA POLIURETANO MC 2033 OU SIMILAR | C58: L | D58: 132 | E58: 132 | F58: 0
A59: 35000065 | B59: XYPEX CONCENTRADO OU SIMILAR | C59: KG | D59: 17.5 | E59: 17.5 | F59: 0
A60: 35000066 | B60: XYPEX MODIFICADO OU SIMILAR | C60: KG | D60: 16.2 | E60: 16.2 | F60: 0
A61: 35000067 | B61: XYPEX PATCH'N PLUG OU SIMILAR | C61: KG | D61: 9 | E61: 9 | F61: 0
A62: 35000068 | B62: ADESIVO EPOXICO MCDUR 1300 TX OU SIMILAR | C62: KG | D62: 21.6 | E62: 21.6 | F62: 0
A63: 35000069 | B63: SOLVENTE REINIGUNGSMITTEL U OU SIMILAR | C63: L | D63: 41.6 | E63: 41.6 | F63: 0
A64: 35000070 | B64: BEXIGA BORRACHA- BLOQUEADOR FLUXO Ø100MM | C64: UN | D64: 1850 | E64: 1850 | F64: 0
A65: 35000071 | B65: SIKA I | C65: L | D65: 5.24 | E65: 5.24 | F65: 0
A66: 35000072 | B66: SIKA CHAPISCO PLUS | C66: KG | D66: 7.84 | E66: 7.84 | F66: 0
A67: 35000073 | B67: SIKA TOP 122 - BICOMPONENTE A E B | C67: KG | D67: 9.46 | E67: 9.46 | F67: =E67/D67-1 -> 0
A68: 35000074 | B68: SIKALIT - ADITIVO IMPERMEABILIZANTE | C68: KG | D68: 16.36 | E68: 16.36 | F68: 0
A69: 35000075 | B69: SIKADUR 32 | C69: KG | D69: 91.93 | E69: 91.93 | F69: 0
A70: 35000076 | B70: ADESIVO EPOXI SIKADUR 31 | C70: KG | D70: 84.98 | E70: 84.98 | F70: 0
A71: 35000077 | B71: SIKAGROUT - 250 | C71: KG | D71: 1.36 | E71: 1.36 | F71: 0
A72: 35000078 | B72: SIKAFLEX 1A - CARTUCHO DE 310 ML | C72: UN | D72: 69.9 | E72: 69.9 | F72: 0
A73: 35000079 | B73: SIKA PRIMER 1 - LATA COM 320 ML | C73: UN | D73: 74.32 | E73: 74.32 | F73: 0
A74: 35000080 | B74: IMPERMEABILIZANTE TIPO HEYDI - K11 | C74: KG | D74: 2.9 | E74: 2.9 | F74: 0
A75: 35000081 | B75: IMPERMEABILIZANTE TIPO HEYDI - KZ | C75: KG | D75: 16.89 | E75: 16.89 | F75: 0
A76: 35000082 | B76: SIKA TOP 107 | C76: KG | D76: 7.71 | E76: 7.71 | F76: 0
A77: 35000083 | B77: SIKA TOP 108 ARMATEC | C77: KG | D77: 21.41 | E77: 21.41 | F77: 0
A78: 35000084 | B78: DESMOLDANTE PARA FORMAS | C78: L | D78: 9.02 | E78: 9.02 | F78: 0
A79: 35000085 | B79: CONCRETO - FCK 10 MPA - USINADO | C79: M3 | D79: 264.82 | E79: 264.82 | F79: 0
A80: 35000086 | B80: CONCRETO - FCK-15 MPA - USINADO | C80: M3 | D80: 287.34 | E80: 287.34 | F80: 0
A81: 35000087 | B81: CONCRETO - FCK - 20MPA - USINADO | C81: M3 | D81: 300.01 | E81: 300.01 | F81: 0
A82: 35000088 | B82: CONCRETO - FCK -25 MPA - USINADO | C82: M3 | D82: 315 | E82: 315 | F82: 0
A83: 35000089 | B83: CONCRETO-FCK-30MPA - USINADO/ADITIVO | C83: M3 | D83: 290.46 | E83: 290.46 | F83: 0
A84: 35000090 | B84: CONCRETO-FCK-35MPA - USINADO/ADITIVO | C84: M3 | D84: 297.46 | E84: 297.46 | F84: 0
A85: 35000091 | B85: CONCRETO-FCK-40MPA - USINADO/ADITIVO | C85: M3 | D85: 327.62 | E85: 327.62 | F85: 0
A86: 35000092 | B86: ARAME DE AMARRACAO GABIAO-Ø=2,2MM. | C86: KG | D86: 19.54 | E86: 19.54 | F86: 0
A87: 35000093 | B87: GABIAO-MALHA 8X10 GALV ALT=0,50M | C87: M3 | D87: 336.19 | E87: 336.19 | F87: 0
A88: 35000094 | B88: GABIAO-MALHA 8X10 GALV ALT=1,00M | C88: M3 | D88: 244.69 | E88: 244.69 | F88: 0
A89: 35000095 | B89: COLCHAO RENO-MALHA 6X 8 GPVC-E=0,30M | C89: M2 | D89: 139.72 | E89: 139.72 | F89: 0
A90: 35000096 | B90: GABIAO TIPO SACO-MALHA 8X10 REC. C/ PVC | C90: M3 | D90: 318.61 | E90: 318.61 | F90: 0
A91: 35000097 | B91: CANALETA DE CONCRETO- MEIA CANA,Ø300MM | C91: M | D91: 31.96 | E91: 31.96 | F91: 0
A92: 35000098 | B92: CANALETA DE CONCRETO- MEIA CANA,Ø400MM | C92: M | D92: 40.46 | E92: 40.46 | F92: 0
A93: 35000099 | B93: CANALETA DE CONCRETO- MEIA CANA,Ø500MM | C93: M | D93: 44.11 | E93: 44.11 | F93: 0
A94: 35000100 | B94: CANALETA DE CONCRETO- MEIA CANA,Ø600MM | C94: M | D94: 58.84 | E94: 58.84 | F94: 0
A95: 35000101 | B95: CORDEL DETONANTE NP-10 | C95: M | D95: 1.23 | E95: 1.23 | F95: 0
A96: 35000102 | B96: DINAMITE-ENCARTUCHADO, Ø 1" A 1.1/2" | C96: KG | D96: 9.25 | E96: 9.25 | F96: 0
A97: 35000103 | B97: ESPOLETA SIMPLES NR. 8 | C97: UN | D97: 3.25 | E97: 3.25 | F97: 0
A98: 35000104 | B98: ESTOPIM SIMPLES | C98: M | D98: 4.21 | E98: 4.21 | F98: 0
A99: 35000105 | B99: RETARDO P/CORDEL-NP-05/10-ESPERA 25/50MS | C99: UN | D99: 16.46 | E99: 16.46 | F99: 0
A100: 35000107 | B100: CANGA DE MINERIO DE FERRO | C100: TO | D100: 23.9 | E100: 23.9 | F100: 0
A101: 35000108 | B101: ESCORIA DE ALTO FORNO | C101: TO | D101: 77.49 | E101: 77.49 | F101: 0
A102: 35000109 | B102: BICA CORRIDA | C102: TO | D102: 27.55 | E102: 27.55 | F102: 0
A103: 35000110 | B103: BRITA GRADUADA | C103: TO | D103: 62.08 | E103: 62.08 | F103: 0
A104: 35000111 | B104: EMULSAO ASFALTICA RR-1C | C104: KG | D104: 2.53 | E104: 2.53 | F104: 0
A105: 35000112 | B105: EMULSAO ASFALTICA RR-2C | C105: KG | D105: 2.67 | E105: 2.67 | F105: 0
A106: 35000113 | B106: EMULSAO ASFALTICA CM-30 | C106: KG | D106: 4.98 | E106: 4.98 | F106: 0
A107: 35000114 | B107: MEIO FIO DE CONCRETO-12X16,7X35X80CM | C107: UN | D107: 16.33 | E107: 16.33 | F107: 0
A108: 35000115 | B108: CALCARIO - MOSAICO - CALCADA PORTUGUESA | C108: KG | D108: 0.39 | E108: 0.39 | F108: 0
A109: 35000116 | B109: PRE-MOLDADO CONCRETO-BLOQUETE-25X10CM. | C109: M2 | D109: 60 | E109: 60 | F109: 0
A110: 35000117 | B110: CONCRETO BETUMINOSO USINADO-CBUQ-FX-"C" | C110: TO | D110: 350.83 | E110: 350.83 | F110: 0
A111: 35000118 | B111: PARALELEPIPEDO | C111: UN | D111: 3.89 | E111: 3.89 | F111: 0
A112: 35000119 | B112: POLIEDRICO | C112: M3 | D112: 59.66 | E112: 59.66 | F112: 0
A113: 35000120 | B113: PRE-MOLDADO CONCRETO INTERTRAVADO-E=8CM | C113: M2 | D113: 34.12 | E113: 34.12 | F113: 0
A114: 35000121 | B114: GASOLINA TIPO A - COMUM | C114: L | D114: 4.68 | E114: 4.68 | F114: 0
A115: 35000122 | B115: OLEO DIESEL | C115: L | D115: 3.7 | E115: 3.7 | F115: 0
A116: 35000123 | B116: OLEO P/ FERRAMENTAS PNEUMATICAS-FP68 | C116: L | D116: 9.87 | E116: 9.87 | F116: 0
A117: 35000124 | B117: GRAXA LUBRAX GMA - 2 | C117: KG | D117: 24.87 | E117: 24.87 | F117: 0
A118: 35000125 | B118: GRAMA EM PLACAS | C118: M2 | D118: 7.61 | E118: 7.61 | F118: 0
A119: 35000126 | B119: TERRA VEGETAL | C119: M3 | D119: 61.76 | E119: 61.76 | F119: 0
A120: 35000127 | B120: MOURAO - P-COPASA 126 / L = 2,20+/-0,05M | C120: UN | D120: 38.39 | E120: 38.39 | F120: 0
A121: 35000128 | B121: MOURAO MADEIRA -11/13 CM - ALT =2,20M. | C121: UN | D121: 14.47 | E121: 14.47 | F121: 0
A122: 35000129 | B122: MOURAO ESCORA-P-COPASA126/L=2,50+/-0,05M | C122: UN | D122: 34.71 | E122: 34.71 | F122: 0
A123: 35000130 | B123: MOURAO CONC. P-COPASA126 /L=2,80+/-0,06M | C123: UN | D123: 37.08 | E123: 37.08 | F123: 0
A124: 35000131 | B124: PLACA DE IDENTIFICACAO DE OBRA | C124: M2 | D124: 230.9 | E124: 230.9 | F124: 0
A125: 35000132 | B125: CONE PARA SINALIZACAO - P-COPASA - 065/- | C125: UN | D125: 28.01 | E125: 28.01 | F125: 0
A126: 35000133 | B126: PLACA "DISTANCIA DE OBRA"-P-COPASA 066/- | C126: UN | D126: 84.14 | E126: 84.14 | F126: 0
A127: 35000134 | B127: CAVALETE DUPLA FACE - CONFORME MIVC | C127: UN | D127: 380.65 | E127: 380.65 | F127: 0
A128: 35000135 | B128: TRIPE PARA BANDEIROLAS - P-COPASA -102/- | C128: UN | D128: 250 | E128: 250 | F128: 0
A129: 35000136 | B129: GRADE MODULAR SINALIZACAO-P-COPASA 177/- | C129: UN | D129: 290 | E129: 290 | F129: 0
A130: 35000137 | B130: FITA ZEBRADA AMARELO E PRETA L = 75MM | C130: UN | D130: 9.47 | E130: 9.47 | F130: 0
A131: 35000140 | B131: ELETRODO P/ACOS, ILMENITICO Ø = 4MM | C131: KG | D131: 19.27 | E131: 19.27 | F131: =E131/D131-1 -> 0
A132: 35000141 | B132: ACETILENO | C132: KG | D132: 32.13 | E132: 32.13 | F132: 0
A133: 35000142 | B133: OXIGENIO | C133: M3 | D133: 8.22 | E133: 8.22 | F133: 0
A134: 35000143 | B134: MANILHA CERAMICA CL B/C DN100 | C134: M | D134: 9.9 | E134: 9.9 | F134: 0
A135: 35000144 | B135: MANILHA CERAMICA CL B/C DN200 | C135: M | D135: 23.2 | E135: 23.2 | F135: 0
A136: 35000145 | B136: SELIM CERAMICO CL C - 90 GR DN150X100 | C136: UN | D136: 51.95 | E136: 51.95 | F136: 0
A137: 35000146 | B137: SELIM CERAMICO CL C - 90 GR DN200X100 | C137: UN | D137: 51.95 | E137: 51.95 | F137: 0
A138: 35000147 | B138: SELA CERAMICA P.RETA DN200X210X135MM | C138: UN | D138: 26 | E138: 26 | F138: 0
A139: 35000148 | B139: TUBO CERAMICO DRENO PB DE100MM | C139: M | D139: 10.44 | E139: 10.44 | F139: 0
A140: 35000149 | B140: TUBO CERAMICO DRENO PB DE150MM | C140: M | D140: 15.98 | E140: 15.98 | F140: 0
A141: 35000150 | B141: TUBO CERAMICO DRENO PB DE200MM | C141: M | D141: 24.86 | E141: 24.86 | F141: 0
A142: 35000151 | B142: TUBO CONCRETO ARM PA1 PB JR DN1000 | C142: M | D142: 251.28 | E142: 251.28 | F142: 0
A143: 35000152 | B143: TUBO CONCRETO SIMPLES PB JR PS-1 DN600 | C143: M | D143: 91.3 | E143: 91.3 | F143: 0
A144: 35000153 | B144: TAMPA LAMINADA FV C/ALCAS-1020X1020X5MM | C144: UN | D144: 1498.96 | E144: 1498.96 | F144: 0
A145: 35000154 | B145: COTOVELO ADAP P/PEAD FG (KTL) D1/2"x20MM | C145: UN | D145: 30.88 | E145: 30.88 | F145: 0
A146: 35000155 | B146: UNIAO POLIPROPILENO (PEAD) D20MMx1/2" | C146: UN | D146: 1.56 | E146: 1.56 | F146: 0
A147: 35000156 | B147: TUBO POLIETILENO (PEAD) D20MM - PRETO | C147: M | D147: 2.99 | E147: 2.99 | F147: 0
A148: 35000157 | B148: TUBO POLIETILENO (PEAD) D20MM-AZUL GR3 | C148: M | D148: 3.22 | E148: 3.22 | F148: 0
A149: 35000158 | B149: ADESIVO PARA PVC RIGIDO | C149: KG | D149: 34.15 | E149: 34.15 | F149: 0
A150: 35000159 | B150: PASTA LUBRIFICANTE | C150: KG | D150: 26 | E150: 26 | F150: 0
A151: 35000160 | B151: SOLUCAO LIMPADORA P/ PVC RIGIDO | C151: L | D151: 39.73 | E151: 39.73 | F151: 0
A152: 35000161 | B152: ANEL BORRACHA TOROIDAL-AJE-DN50 DE60MM | C152: UN | D152: 1.18 | E152: 1.18 | F152: 0
A153: 35000162 | B153: ANEL BORRACHA TOROIDAL-AJE-DN75 DE85MM | C153: UN | D153: 1.77 | E153: 1.77 | F153: 0
A154: 35000163 | B154: ANEL BORRACHA TOROIDAL-AJE-DN100 DE110MM | C154: UN | D154: 2.23 | E154: 2.23 | F154: 0
A155: 35000164 | B155: ADAPTADOR PVC PBA BFF DN100x100 DE110MM | C155: UN | D155: 22.65 | E155: 22.65 | F155: 0
A156: 35000165 | B156: CURVA 90 GR RL PVC PBA JE DN75 DE85 MM | C156: UN | D156: 27.79 | E156: 27.79 | F156: 0
A157: 35000166 | B157: CURVA 90 GR RL PVC PBA JE DN100 DE110 MM | C157: UN | D157: 56.22 | E157: 56.22 | F157: 0
A158: 35000167 | B158: CANALETA RETA TUBO PVC PB DN 100. | C158: UN | D158: 14.07 | E158: 14.07 | F158: 0
A159: 35000168 | B159: TE 90 GR PVC BBB JE DN50 DE60MM | C159: UN | D159: 18.72 | E159: 18.72 | F159: 0
A160: 35000169 | B160: TUBO PVC PBA CL15 DN50 DE60MM | C160: M | D160: 10.68 | E160: 10.68 | F160: 0
A161: 35000170 | B161: TUBO PVC PBA CL15 DN75 DE85MM | C161: M | D161: 23.72 | E161: 23.72 | F161: 0
A162: 35000171 | B162: TUBO PVC PBA CL15 DN100 DE110MM | C162: M | D162: 36.03 | E162: 36.03 | F162: 0
A163: 35000172 | B163: TUBO PVC PBA CL20 DN50 DE 60MM | C163: M | D163: 13.13 | E163: 13.13 | F163: 0
A164: 35000173 | B164: TUBO PVC PBA CL20 DN75 DE 85MM | C164: M | D164: 29.94 | E164: 29.94 | F164: 0
A165: 35000174 | B165: TUBO PVC PBA CL20 DN100 DE110MM | C165: M | D165: 45.44 | E165: 45.44 | F165: 0
A166: 35000175 | B166: TUBO PVC RIG. DEFOFO PBA JE DN150 | C166: M | D166: 70.18 | E166: 70.18 | F166: 0
A167: 35000176 | B167: AGENTE ESPUMANTE DRILLFOAN OU SIMILAR | C167: L | D167: 18.07 | E167: 18.07 | F167: 0
A168: 35000177 | B168: AREIA SELECIONADA - TIPO PEROLA | C168: KG | D168: 1.02 | E168: 1.02 | F168: 0
A169: 35000178 | B169: HEXAMETAFOSFATO DE SODIO 69% DE P2O5 | C169: KG | D169: 23.04 | E169: 23.04 | F169: 0
A170: 35000179 | B170: BENTONITA ATIVADA | C170: KG | D170: 1.15 | E170: 1.15 | F170: 0
A171: 35000180 | B171: REGISTRO GAVETA, FoFo-RCFV16, DN 50 | C171: UN | D171: 463.95 | E171: 463.95 | F171: 0
A172: 35000181 | B172: REGISTRO S. METRICA CHATA RCFV16 DN 75 | C172: UN | D172: 656.17 | E172: 656.17 | F172: 0
A173: 35000182 | B173: REGISTRO S. METRICA CHATA RCFV16 DN 150 | C173: UN | D173: 1734.31 | E173: 1734.31 | F173: 0
A174: 35000183 | B174: VALVULA RETENCAO FoFo VRPUS16 - DN 150 | C174: UN | D174: 1471.09 | E174: 1471.09 | F174: 0
A175: 35000184 | B175: VENTOSA SIMPLES FOFO C/F 10/16/25 DN 50 | C175: UN | D175: 187.86 | E175: 187.86 | F175: 0
A176: 35000185 | B176: VENTOSA SIMPLES FOFO C/ROSCA PN25 DN1" | C176: UN | D176: 352.95 | E176: 352.95 | F176: 0
A177: 35000186 | B177: VENTOSA SIMPL FOFO C/ROSCA-PN25 DN1.1/2" | C177: UN | D177: 187.86 | E177: 187.86 | F177: 0
A178: 35000187 | B178: CURVA 45º FoFo JE - C45JGS - DN150 | C178: UN | D178: 151.26 | E178: 151.26 | F178: 0
A179: 35000188 | B179: CURVA 90º FoFo FF-C90FF10/16-DN 100 | C179: UN | D179: 193.76 | E179: 193.76 | F179: 0
A180: 35000189 | B180: CURVA 90º FoFo FF-C90FF10/16-DN 150 | C180: UN | D180: 372.53 | E180: 372.53 | F180: 0
A181: 35000190 | B181: EXTREMIDADE FoFo-EPFAV10/16-DN 100 | C181: UN | D181: 293.35 | E181: 293.35 | F181: 0
A182: 35000191 | B182: TE 90º FoFo-TFF10/16-DN 150x100 | C182: UN | D182: 553.34 | E182: 553.34 | F182: 0
A183: 35000192 | B183: VALVULA RET BR PH 150 PSI R BSP D=1.1/2" | C183: UN | D183: 138.19 | E183: 138.19 | F183: 0
A184: 35000193 | B184: VALVULA RET BR PH 150 PSI R BSP D=2" | C184: UN | D184: 208.38 | E184: 208.38 | F184: 0
A185: 35000194 | B185: VALVULA RET BR PH 150 PSI R BSP D=2.1/2" | C185: UN | D185: 343.62 | E185: 343.62 | F185: 0
A186: 35000195 | B186: VALVULA RET BR PH 150 PSI R BSP D=3" | C186: UN | D186: 416.82 | E186: 416.82 | F186: 0
A187: 35000196 | B187: VALVULA RET BR PH 150 PSI R BSP D=4" | C187: UN | D187: 737.35 | E187: 737.35 | F187: 0
A188: 35000197 | B188: TUBO FoFo-TFP10/16-DN 150 L = 3,00M | C188: UN | D188: 1497.9 | E188: 1497.9 | F188: 0
A189: 35000198 | B189: CURVA 45º FoFo FF-C45FF10/16-DN 150 | C189: UN | D189: 413.31 | E189: 413.31 | F189: 0
A190: 35000199 | B190: FLANGE AVULSO FoFo-FA10/16-DN 150 | C190: UN | D190: 140 | E190: 140 | F190: 0
A191: 35000200 | B191: PLACA REDUCAO FoFo FF-PR10/16-DN 100x50 | C191: UN | D191: 160.23 | E191: 160.23 | F191: 0
A192: 35000201 | B192: PARAFUSO P/ JUNTA MECANICA-PJM-DN18x90 | C192: UN | D192: 4.34 | E192: 4.34 | F192: 0
A193: 35000202 | B193: PARAFUSO C/PORCAS P/ FLANGES-PPF DN16x80 | C193: UN | D193: 3.26 | E193: 3.26 | F193: 0
A194: 35000203 | B194: ANEL PREM. CONC. P-104/_-DN 600x320MM. | C194: UN | D194: 71.23 | E194: 71.23 | F194: 0
A195: 35000204 | B195: ANEL PREM. CONC. P-104/_-DN 1000x320MM. | C195: UN | D195: 109.49 | E195: 109.49 | F195: =E195/D195-1 -> 0
A196: 35000205 | B196: ANEL PREM. CONC. P-104/_-DN 1200x320MM. | C196: UN | D196: 150.41 | E196: 150.41 | F196: 0
A197: 35000206 | B197: LAJE RED. CA P-105/_ DE (1300x600x120)MM | C197: UN | D197: 214.95 | E197: 214.95 | F197: 0
A198: 35000207 | B198: LAJE RED. CA P-105/_ DE (1500x600x120)MM | C198: UN | D198: 250.87 | E198: 250.87 | F198: 0
A199: 35000208 | B199: TAMPAO T- 5 FOFO P/PL PADRAO 030/- | C199: UN | D199: 44.57 | E199: 44.57 | F199: 0
A200: 35000209 | B200: TAMPAO T-22 FOFO P/CX PAS. PADRAO 032/- | C200: UN | D200: 88.38 | E200: 88.38 | F200: 0
... 925 more rows

Sheet COPASA SUL 01_2021
A1: CÓD | B1: DESCRIÇÃO | C1: UNID | D1: VR ONERADO | E1: VR DESONERADO | F1: DIF
A2: 35000000 | B2: SERVENTE AGUA - COPASA | C2: H | D2: 15.55 | E2: 13.43 | F2: =E2/D2-1 -> -0.1363344051
A3: 35000001 | B3: SERVENTE ESGOTO - COPASA | C3: H | D3: 15.55 | E3: 13.43 | F3: =E3/D3-1 -> -0.1363344051
A4: 35000002 | B4: SERVICO AUXILIAR OPERACIONAL - COPASA | C4: H | D4: 15.55 | E4: 13.43 | F4: -0.1363344051
A5: 35000003 | B5: AUXILIAR DE LABORATORIO - COPASA | C5: H | D5: 15.86 | E5: 13.7 | F5: -0.1361916772
A6: 35000004 | B6: AUXILIAR DE ESCRITORIO CEC | C6: H | D6: 19.31 | E6: 17.12 | F6: -0.1134127395
A7: 35000005 | B7: AUXILIAR APOIO ADMINISTRATIVO - COPASA | C7: H | D7: 21.35 | E7: 18.45 | F7: -0.1358313817
A8: 35000006 | B8: ATENDENTE COMERCIAL - COPASA | C8: H | D8: 26.02 | E8: 22.48 | F8: -0.1360491929
A9: 35000007 | B9: BIOLOGO - COPASA | C9: H | D9: 70.38 | E9: 60.8 | F9: -0.1361182154
A10: 35000008 | B10: TECNICO ORCAMENTISTA CEC | C10: H | D10: 34.74 | E10: 30.39 | F10: -0.1252158895
A11: 35000009 | B11: LEITURISTA - COPASA | C11: H | D11: 21.35 | E11: 18.45 | F11: -0.1358313817
A12: 35000010 | B12: ENCARREGADO MANUTENCAO AGUA II - COPASA | C12: H | D12: 21.35 | E12: 18.45 | F12: -0.1358313817
A13: 35000011 | B13: ENCARREGADO MANUTENCAO ESGOTO I - COPASA | C13: H | D13: 21.35 | E13: 18.45 | F13: -0.1358313817
A14: 35000012 | B14: TECNICO DE LABORATORIO - COPASA | C14: H | D14: 40.23 | E14: 34.75 | F14: -0.1362167537
A15: 35000013 | B15: TECNICO DE LABORATORIO CEC | C15: H | D15: 34.76 | E15: 30.42 | F15: -0.1248561565
A16: 35000014 | B16: TECNICO DE SEGURANCA DO TRABALHO CEC | C16: H | D16: 34.76 | E16: 30.42 | F16: -0.1248561565
A17: 35000015 | B17: PROGRAMACAO PROCES. DADOS - COPASA | C17: H | D17: 40.23 | E17: 34.75 | F17: -0.1362167537
A18: 35000016 | B18: ENCARREGADO DE AREAS CEC | C18: H | D18: 25.85 | E18: 22.82 | F18: -0.1172147002
A19: 35000017 | B19: ENCARREGADO GERAL CEC | C19: H | D19: 34.76 | E19: 30.42 | F19: -0.1248561565
A20: 35000018 | B20: CONSULTOR | C20: H | D20: 330 | E20: 330 | F20: 0
A21: 35000019 | B21: ENGENHEIRO NÍVEL I FAIXA I CEC | C21: MES | D21: 17248.7 | E21: 14914.56 | F21: -0.135322662
A22: 35000021 | B22: ENGENHEIRO NÍVEL II FAIXA I CEC | C22: MES | D22: 19423.28 | E22: 16785.45 | F22: -0.1358076494
A23: 35000022 | B23: ENGENHEIRO NÍVEL IV FAIXA I CEC | C23: MES | D23: 24660.03 | E23: 21290.87 | F23: -0.1366243269
A24: 35000023 | B24: ENGENHEIRO NÍVEL III FAIXA I CEC | C24: MES | D24: 21881.4 | E24: 18900.29 | F24: -0.1362394545
A25: 35000024 | B25: ENGENHEIRO NÍVEL II FAIXA II CEC | C25: MES | D25: 20209.41 | E25: 17461.8 | F25: -0.1359569626
A26: 35000025 | B26: HIDROGEOLOGO CEC | C26: MES | D26: 16561.81 | E26: 14322.98 | F26: -0.1351802732
A27: 35000026 | B27: PROJETISTA CEC | C27: MES | D27: 12218.27 | E27: 10586.03 | F27: -0.1335901073
A28: 35000027 | B28: SUPERVISOR TECNICO CEC | C28: MES | D28: 9021.53 | E28: 7827.03 | F28: -0.1324054789
A29: 35000028 | B29: AUXILIAR DE PROGRAMACAO CEC | C29: MES | D29: 4915.41 | E29: 4296.68 | F29: -0.1258755628
A30: 35000029 | B30: ALMOXARIFE CEC | C30: MES | D30: 4919.8 | E30: 4301.08 | F30: -0.1257612098
A31: 35000030 | B31: AUXILIAR DE ALMOXARIFE CEC | C31: MES | D31: 3956.01 | E31: 3476.57 | F31: -0.121192818
A32: 35000032 | B32: TOPOGRAFO CEC | C32: MES | D32: 6619.37 | E32: 5755.04 | F32: -0.1305758705
A33: 35000033 | B33: TECNICO CADASTRISTA CEC | C33: MES | D33: 6614.97 | E33: 5750.64 | F33: -0.1306627241
A34: 35000034 | B34: NIVELADOR CEC | C34: MES | D34: 4919.8 | E34: 4301.08 | F34: -0.1257612098
A35: 35000035 | B35: AUXILIAR DE TOPOGRAFIA CEC | C35: MES | D35: 3956.01 | E35: 3476.57 | F35: -0.121192818
A36: 35000037 | B36: TECNICO CALCULISTA CEC | C36: MES | D36: 6614.97 | E36: 5750.64 | F36: -0.1306627241
A37: 35000038 | B37: DESENHISTA TECNICO (CADISTA) CEC | C37: MES | D37: 4915.41 | E37: 4296.68 | F37: -0.1258755628
A38: 35000039 | B38: ALMOXARIFE CEC | C38: H | D38: 28.24 | E38: 24.81 | F38: -0.1214589235
A39: 35000040 | B39: AUXILIAR DE ALMOXARIFE CEC | C39: H | D39: 22.72 | E39: 20.06 | F39: -0.1170774648
A40: 35000041 | B40: OFICIAL CEC | C40: H | D40: 21.72 | E40: 19.26 | F40: -0.1132596685
A41: 35000042 | B41: NIVELADOR CEC | C41: H | D41: 28.24 | E41: 24.81 | F41: -0.1214589235
A42: 35000043 | B42: AUXILIAR DE OFICIAL CEC | C42: H | D42: 17.39 | E42: 15.52 | F42: -0.107533065
A43: 35000044 | B43: SERVENTE CEC | C43: H | D43: 15.55 | E43: 13.94 | F43: -0.1035369775
A44: 35000045 | B44: TOPOGRAFO CEC | C44: H | D44: 37.98 | E44: 33.18 | F44: -0.1263823065
A45: 35000046 | B45: AUXILIAR DE TOPOGRAFIA CEC | C45: H | D45: 22.72 | E45: 20.06 | F45: -0.1170774648
A46: 35000047 | B46: AUXILIAR DE OPERADOR - MAQ PESADAS CEC | C46: H | D46: 17.66 | E46: 15.73 | F46: -0.1092865232
A47: 35000048 | B47: MOTORISTA CEC | C47: H | D47: 23.14 | E47: 20.45 | F47: -0.1162489196
A48: 35000049 | B48: OPERADOR DE MAQUINAS PESADAS CEC | C48: H | D48: 25.1 | E48: 22.13 | F48: -0.1183266932
A49: 35000050 | B49: SONDADOR I - COPASA | C49: H | D49: 17.18 | E49: 14.84 | F49: -0.1362048894
A50: 35000051 | B50: SONDADOR II - COPASA | C50: H | D50: 21.35 | E50: 18.45 | F50: -0.1358313817
A51: 35000052 | B51: ACO CA-50 A OU B | C51: TO | D51: 6066.51 | E51: 6066.51 | F51: 0
A52: 35000053 | B52: ACO CA-60 A OU B | C52: TO | D52: 6183.75 | E52: 6183.75 | F52: 0
A53: 35000056 | B53: VEU DE POLIESTER 75 G/M2 | C53: M2 | D53: 3.25 | E53: 3.25 | F53: 0
A54: 35000059 | B54: LIMITADOR JUNTA TARUCEL - JUNTA 1x1CM | C54: M | D54: 0.32 | E54: 0.32 | F54: 0
A55: 35000060 | B55: LIMITADOR JUNTA TARUCEL - JUNTA 2x2CM | C55: M | D55: 0.82 | E55: 0.82 | F55: 0
A56: 35000062 | B56: ACELERADOR-IMPERMEABILIZANTE | C56: KG | D56: 9.76 | E56: 9.76 | F56: 0
A57: 35000063 | B57: RESINA POLIURETANO-MC 2300 NV OU SIMILAR | C57: L | D57: 110.5 | E57: 110.5 | F57: 0
A58: 35000064 | B58: RESINA POLIURETANO MC 2033 OU SIMILAR | C58: L | D58: 132 | E58: 132 | F58: 0
A59: 35000065 | B59: XYPEX CONCENTRADO OU SIMILAR | C59: KG | D59: 17.5 | E59: 17.5 | F59: 0
A60: 35000066 | B60: XYPEX MODIFICADO OU SIMILAR | C60: KG | D60: 16.2 | E60: 16.2 | F60: 0
A61: 35000067 | B61: XYPEX PATCH'N PLUG OU SIMILAR | C61: KG | D61: 9 | E61: 9 | F61: 0
A62: 35000068 | B62: ADESIVO EPOXICO MCDUR 1300 TX OU SIMILAR | C62: KG | D62: 21.6 | E62: 21.6 | F62: 0
A63: 35000069 | B63: SOLVENTE REINIGUNGSMITTEL U OU SIMILAR | C63: L | D63: 41.6 | E63: 41.6 | F63: 0
A64: 35000070 | B64: BEXIGA BORRACHA- BLOQUEADOR FLUXO Ø100MM | C64: UN | D64: 1850 | E64: 1850 | F64: 0
A65: 35000071 | B65: SIKA I | C65: L | D65: 5.24 | E65: 5.24 | F65: 0
A66: 35000072 | B66: SIKA CHAPISCO PLUS | C66: KG | D66: 7.84 | E66: 7.84 | F66: 0
A67: 35000073 | B67: SIKA TOP 122 - BICOMPONENTE A E B | C67: KG | D67: 9.46 | E67: 9.46 | F67: =E67/D67-1 -> 0
A68: 35000074 | B68: SIKALIT - ADITIVO IMPERMEABILIZANTE | C68: KG | D68: 16.36 | E68: 16.36 | F68: 0
A69: 35000075 | B69: SIKADUR 32 | C69: KG | D69: 91.93 | E69: 91.93 | F69: 0
A70: 35000076 | B70: ADESIVO EPOXI SIKADUR 31 | C70: KG | D70: 84.98 | E70: 84.98 | F70: 0
A71: 35000077 | B71: SIKAGROUT - 250 | C71: KG | D71: 1.36 | E71: 1.36 | F71: 0
A72: 35000078 | B72: SIKAFLEX 1A - CARTUCHO DE 310 ML | C72: UN | D72: 69.9 | E72: 69.9 | F72: 0
A73: 35000079 | B73: SIKA PRIMER 1 - LATA COM 320 ML | C73: UN | D73: 74.32 | E73: 74.32 | F73: 0
A74: 35000080 | B74: IMPERMEABILIZANTE TIPO HEYDI - K11 | C74: KG | D74: 2.9 | E74: 2.9 | F74: 0
A75: 35000081 | B75: IMPERMEABILIZANTE TIPO HEYDI - KZ | C75: KG | D75: 16.89 | E75: 16.89 | F75: 0
A76: 35000082 | B76: SIKA TOP 107 | C76: KG | D76: 7.71 | E76: 7.71 | F76: 0
A77: 35000083 | B77: SIKA TOP 108 ARMATEC | C77: KG | D77: 21.41 | E77: 21.41 | F77: 0
A78: 35000084 | B78: DESMOLDANTE PARA FORMAS | C78: L | D78: 9.02 | E78: 9.02 | F78: 0
A79: 35000085 | B79: CONCRETO - FCK 10 MPA - USINADO | C79: M3 | D79: 239.6 | E79: 239.6 | F79: 0
A80: 35000086 | B80: CONCRETO - FCK-15 MPA - USINADO | C80: M3 | D80: 259.98 | E80: 259.98 | F80: 0
A81: 35000087 | B81: CONCRETO - FCK - 20MPA - USINADO | C81: M3 | D81: 271.43 | E81: 271.43 | F81: 0
A82: 35000088 | B82: CONCRETO - FCK -25 MPA - USINADO | C82: M3 | D82: 285 | E82: 285 | F82: 0
A83: 35000089 | B83: CONCRETO-FCK-30MPA - USINADO/ADITIVO | C83: M3 | D83: 290.46 | E83: 290.46 | F83: 0
A84: 35000090 | B84: CONCRETO-FCK-35MPA - USINADO/ADITIVO | C84: M3 | D84: 297.46 | E84: 297.46 | F84: 0
A85: 35000091 | B85: CONCRETO-FCK-40MPA - USINADO/ADITIVO | C85: M3 | D85: 327.62 | E85: 327.62 | F85: 0
A86: 35000092 | B86: ARAME DE AMARRACAO GABIAO-Ø=2,2MM. | C86: KG | D86: 19.54 | E86: 19.54 | F86: 0
A87: 35000093 | B87: GABIAO-MALHA 8X10 GALV ALT=0,50M | C87: M3 | D87: 336.19 | E87: 336.19 | F87: 0
A88: 35000094 | B88: GABIAO-MALHA 8X10 GALV ALT=1,00M | C88: M3 | D88: 244.69 | E88: 244.69 | F88: 0
A89: 35000095 | B89: COLCHAO RENO-MALHA 6X 8 GPVC-E=0,30M | C89: M2 | D89: 139.72 | E89: 139.72 | F89: 0
A90: 35000096 | B90: GABIAO TIPO SACO-MALHA 8X10 REC. C/ PVC | C90: M3 | D90: 318.61 | E90: 318.61 | F90: 0
A91: 35000097 | B91: CANALETA DE CONCRETO- MEIA CANA,Ø300MM | C91: M | D91: 31.96 | E91: 31.96 | F91: 0
A92: 35000098 | B92: CANALETA DE CONCRETO- MEIA CANA,Ø400MM | C92: M | D92: 40.46 | E92: 40.46 | F92: 0
A93: 35000099 | B93: CANALETA DE CONCRETO- MEIA CANA,Ø500MM | C93: M | D93: 44.11 | E93: 44.11 | F93: 0
A94: 35000100 | B94: CANALETA DE CONCRETO- MEIA CANA,Ø600MM | C94: M | D94: 58.84 | E94: 58.84 | F94: 0
A95: 35000101 | B95: CORDEL DETONANTE NP-10 | C95: M | D95: 1.23 | E95: 1.23 | F95: 0
A96: 35000102 | B96: DINAMITE-ENCARTUCHADO, Ø 1" A 1.1/2" | C96: KG | D96: 9.25 | E96: 9.25 | F96: 0
A97: 35000103 | B97: ESPOLETA SIMPLES NR. 8 | C97: UN | D97: 3.25 | E97: 3.25 | F97: 0
A98: 35000104 | B98: ESTOPIM SIMPLES | C98: M | D98: 4.21 | E98: 4.21 | F98: 0
A99: 35000105 | B99: RETARDO P/CORDEL-NP-05/10-ESPERA 25/50MS | C99: UN | D99: 16.46 | E99: 16.46 | F99: 0
A100: 35000107 | B100: CANGA DE MINERIO DE FERRO | C100: TO | D100: 23.9 | E100: 23.9 | F100: 0
A101: 35000108 | B101: ESCORIA DE ALTO FORNO | C101: TO | D101: 77.49 | E101: 77.49 | F101: 0
A102: 35000109 | B102: BICA CORRIDA | C102: TO | D102: 27.55 | E102: 27.55 | F102: 0
A103: 35000110 | B103: BRITA GRADUADA | C103: TO | D103: 62.08 | E103: 62.08 | F103: 0
A104: 35000111 | B104: EMULSAO ASFALTICA RR-1C | C104: KG | D104: 2.53 | E104: 2.53 | F104: 0
A105: 35000112 | B105: EMULSAO ASFALTICA RR-2C | C105: KG | D105: 2.67 | E105: 2.67 | F105: 0
A106: 35000113 | B106: EMULSAO ASFALTICA CM-30 | C106: KG | D106: 4.98 | E106: 4.98 | F106: 0
A107: 35000114 | B107: MEIO FIO DE CONCRETO-12X16,7X35X80CM | C107: UN | D107: 16.33 | E107: 16.33 | F107: 0
A108: 35000115 | B108: CALCARIO - MOSAICO - CALCADA PORTUGUESA | C108: KG | D108: 0.39 | E108: 0.39 | F108: 0
A109: 35000116 | B109: PRE-MOLDADO CONCRETO-BLOQUETE-25X10CM. | C109: M2 | D109: 60 | E109: 60 | F109: 0
A110: 35000117 | B110: CONCRETO BETUMINOSO USINADO-CBUQ-FX-"C" | C110: TO | D110: 350.83 | E110: 350.83 | F110: 0
A111: 35000118 | B111: PARALELEPIPEDO | C111: UN | D111: 3.89 | E111: 3.89 | F111: 0
A112: 35000119 | B112: POLIEDRICO | C112: M3 | D112: 59.66 | E112: 59.66 | F112: 0
A113: 35000120 | B113: PRE-MOLDADO CONCRETO INTERTRAVADO-E=8CM | C113: M2 | D113: 34.12 | E113: 34.12 | F113: 0
A114: 35000121 | B114: GASOLINA TIPO A - COMUM | C114: L | D114: 4.66 | E114: 4.66 | F114: 0
A115: 35000122 | B115: OLEO DIESEL | C115: L | D115: 3.73 | E115: 3.73 | F115: 0
A116: 35000123 | B116: OLEO P/ FERRAMENTAS PNEUMATICAS-FP68 | C116: L | D116: 9.87 | E116: 9.87 | F116: 0
A117: 35000124 | B117: GRAXA LUBRAX GMA - 2 | C117: KG | D117: 24.87 | E117: 24.87 | F117: 0
A118: 35000125 | B118: GRAMA EM PLACAS | C118: M2 | D118: 7.61 | E118: 7.61 | F118: 0
A119: 35000126 | B119: TERRA VEGETAL | C119: M3 | D119: 61.76 | E119: 61.76 | F119: 0
A120: 35000127 | B120: MOURAO - P-COPASA 126 / L = 2,20+/-0,05M | C120: UN | D120: 38.39 | E120: 38.39 | F120: 0
A121: 35000128 | B121: MOURAO MADEIRA -11/13 CM - ALT =2,20M. | C121: UN | D121: 14.47 | E121: 14.47 | F121: 0
A122: 35000129 | B122: MOURAO ESCORA-P-COPASA126/L=2,50+/-0,05M | C122: UN | D122: 34.71 | E122: 34.71 | F122: 0
A123: 35000130 | B123: MOURAO CONC. P-COPASA126 /L=2,80+/-0,06M | C123: UN | D123: 37.08 | E123: 37.08 | F123: 0
A124: 35000131 | B124: PLACA DE IDENTIFICACAO DE OBRA | C124: M2 | D124: 230.9 | E124: 230.9 | F124: 0
A125: 35000132 | B125: CONE PARA SINALIZACAO - P-COPASA - 065/- | C125: UN | D125: 28.01 | E125: 28.01 | F125: 0
A126: 35000133 | B126: PLACA "DISTANCIA DE OBRA"-P-COPASA 066/- | C126: UN | D126: 84.14 | E126: 84.14 | F126: 0
A127: 35000134 | B127: CAVALETE DUPLA FACE - CONFORME MIVC | C127: UN | D127: 380.65 | E127: 380.65 | F127: 0
A128: 35000135 | B128: TRIPE PARA BANDEIROLAS - P-COPASA -102/- | C128: UN | D128: 250 | E128: 250 | F128: 0
A129: 35000136 | B129: GRADE MODULAR SINALIZACAO-P-COPASA 177/- | C129: UN | D129: 290 | E129: 290 | F129: 0
A130: 35000137 | B130: FITA ZEBRADA AMARELO E PRETA L = 75MM | C130: UN | D130: 9.47 | E130: 9.47 | F130: 0
A131: 35000140 | B131: ELETRODO P/ACOS, ILMENITICO Ø = 4MM | C131: KG | D131: 19.27 | E131: 19.27 | F131: =E131/D131-1 -> 0
A132: 35000141 | B132: ACETILENO | C132: KG | D132: 32.13 | E132: 32.13 | F132: 0
A133: 35000142 | B133: OXIGENIO | C133: M3 | D133: 8.22 | E133: 8.22 | F133: 0
A134: 35000143 | B134: MANILHA CERAMICA CL B/C DN100 | C134: M | D134: 9.9 | E134: 9.9 | F134: 0
A135: 35000144 | B135: MANILHA CERAMICA CL B/C DN200 | C135: M | D135: 23.2 | E135: 23.2 | F135: 0
A136: 35000145 | B136: SELIM CERAMICO CL C - 90 GR DN150X100 | C136: UN | D136: 51.95 | E136: 51.95 | F136: 0
A137: 35000146 | B137: SELIM CERAMICO CL C - 90 GR DN200X100 | C137: UN | D137: 51.95 | E137: 51.95 | F137: 0
A138: 35000147 | B138: SELA CERAMICA P.RETA DN200X210X135MM | C138: UN | D138: 26 | E138: 26 | F138: 0
A139: 35000148 | B139: TUBO CERAMICO DRENO PB DE100MM | C139: M | D139: 10.44 | E139: 10.44 | F139: 0
A140: 35000149 | B140: TUBO CERAMICO DRENO PB DE150MM | C140: M | D140: 15.98 | E140: 15.98 | F140: 0
A141: 35000150 | B141: TUBO CERAMICO DRENO PB DE200MM | C141: M | D141: 24.86 | E141: 24.86 | F141: 0
A142: 35000151 | B142: TUBO CONCRETO ARM PA1 PB JR DN1000 | C142: M | D142: 251.28 | E142: 251.28 | F142: 0
A143: 35000152 | B143: TUBO CONCRETO SIMPLES PB JR PS-1 DN600 | C143: M | D143: 91.3 | E143: 91.3 | F143: 0
A144: 35000153 | B144: TAMPA LAMINADA FV C/ALCAS-1020X1020X5MM | C144: UN | D144: 1498.96 | E144: 1498.96 | F144: 0
A145: 35000154 | B145: COTOVELO ADAP P/PEAD FG (KTL) D1/2"x20MM | C145: UN | D145: 30.88 | E145: 30.88 | F145: 0
A146: 35000155 | B146: UNIAO POLIPROPILENO (PEAD) D20MMx1/2" | C146: UN | D146: 1.56 | E146: 1.56 | F146: 0
A147: 35000156 | B147: TUBO POLIETILENO (PEAD) D20MM - PRETO | C147: M | D147: 2.99 | E147: 2.99 | F147: 0
A148: 35000157 | B148: TUBO POLIETILENO (PEAD) D20MM-AZUL GR3 | C148: M | D148: 3.22 | E148: 3.22 | F148: 0
A149: 35000158 | B149: ADESIVO PARA PVC RIGIDO | C149: KG | D149: 34.15 | E149: 34.15 | F149: 0
A150: 35000159 | B150: PASTA LUBRIFICANTE | C150: KG | D150: 26 | E150: 26 | F150: 0
A151: 35000160 | B151: SOLUCAO LIMPADORA P/ PVC RIGIDO | C151: L | D151: 39.73 | E151: 39.73 | F151: 0
A152: 35000161 | B152: ANEL BORRACHA TOROIDAL-AJE-DN50 DE60MM | C152: UN | D152: 1.18 | E152: 1.18 | F152: 0
A153: 35000162 | B153: ANEL BORRACHA TOROIDAL-AJE-DN75 DE85MM | C153: UN | D153: 1.77 | E153: 1.77 | F153: 0
A154: 35000163 | B154: ANEL BORRACHA TOROIDAL-AJE-DN100 DE110MM | C154: UN | D154: 2.23 | E154: 2.23 | F154: 0
A155: 35000164 | B155: ADAPTADOR PVC PBA BFF DN100x100 DE110MM | C155: UN | D155: 22.65 | E155: 22.65 | F155: 0
A156: 35000165 | B156: CURVA 90 GR RL PVC PBA JE DN75 DE85 MM | C156: UN | D156: 27.79 | E156: 27.79 | F156: 0
A157: 35000166 | B157: CURVA 90 GR RL PVC PBA JE DN100 DE110 MM | C157: UN | D157: 56.22 | E157: 56.22 | F157: 0
A158: 35000167 | B158: CANALETA RETA TUBO PVC PB DN 100. | C158: UN | D158: 14.07 | E158: 14.07 | F158: 0
A159: 35000168 | B159: TE 90 GR PVC BBB JE DN50 DE60MM | C159: UN | D159: 18.72 | E159: 18.72 | F159: 0
A160: 35000169 | B160: TUBO PVC PBA CL15 DN50 DE60MM | C160: M | D160: 10.68 | E160: 10.68 | F160: 0
A161: 35000170 | B161: TUBO PVC PBA CL15 DN75 DE85MM | C161: M | D161: 23.72 | E161: 23.72 | F161: 0
A162: 35000171 | B162: TUBO PVC PBA CL15 DN100 DE110MM | C162: M | D162: 36.03 | E162: 36.03 | F162: 0
A163: 35000172 | B163: TUBO PVC PBA CL20 DN50 DE 60MM | C163: M | D163: 13.13 | E163: 13.13 | F163: 0
A164: 35000173 | B164: TUBO PVC PBA CL20 DN75 DE 85MM | C164: M | D164: 29.94 | E164: 29.94 | F164: 0
A165: 35000174 | B165: TUBO PVC PBA CL20 DN100 DE110MM | C165: M | D165: 45.44 | E165: 45.44 | F165: 0
A166: 35000175 | B166: TUBO PVC RIG. DEFOFO PBA JE DN150 | C166: M | D166: 70.18 | E166: 70.18 | F166: 0
A167: 35000176 | B167: AGENTE ESPUMANTE DRILLFOAN OU SIMILAR | C167: L | D167: 18.07 | E167: 18.07 | F167: 0
A168: 35000177 | B168: AREIA SELECIONADA - TIPO PEROLA | C168: KG | D168: 1.02 | E168: 1.02 | F168: 0
A169: 35000178 | B169: HEXAMETAFOSFATO DE SODIO 69% DE P2O5 | C169: KG | D169: 23.04 | E169: 23.04 | F169: 0
A170: 35000179 | B170: BENTONITA ATIVADA | C170: KG | D170: 1.15 | E170: 1.15 | F170: 0
A171: 35000180 | B171: REGISTRO GAVETA, FoFo-RCFV16, DN 50 | C171: UN | D171: 463.95 | E171: 463.95 | F171: 0
A172: 35000181 | B172: REGISTRO S. METRICA CHATA RCFV16 DN 75 | C172: UN | D172: 656.17 | E172: 656.17 | F172: 0
A173: 35000182 | B173: REGISTRO S. METRICA CHATA RCFV16 DN 150 | C173: UN | D173: 1734.31 | E173: 1734.31 | F173: 0
A174: 35000183 | B174: VALVULA RETENCAO FoFo VRPUS16 - DN 150 | C174: UN | D174: 1471.09 | E174: 1471.09 | F174: 0
A175: 35000184 | B175: VENTOSA SIMPLES FOFO C/F 10/16/25 DN 50 | C175: UN | D175: 187.86 | E175: 187.86 | F175: 0
A176: 35000185 | B176: VENTOSA SIMPLES FOFO C/ROSCA PN25 DN1" | C176: UN | D176: 352.95 | E176: 352.95 | F176: 0
A177: 35000186 | B177: VENTOSA SIMPL FOFO C/ROSCA-PN25 DN1.1/2" | C177: UN | D177: 187.86 | E177: 187.86 | F177: 0
A178: 35000187 | B178: CURVA 45º FoFo JE - C45JGS - DN150 | C178: UN | D178: 151.26 | E178: 151.26 | F178: 0
A179: 35000188 | B179: CURVA 90º FoFo FF-C90FF10/16-DN 100 | C179: UN | D179: 193.76 | E179: 193.76 | F179: 0
A180: 35000189 | B180: CURVA 90º FoFo FF-C90FF10/16-DN 150 | C180: UN | D180: 372.53 | E180: 372.53 | F180: 0
A181: 35000190 | B181: EXTREMIDADE FoFo-EPFAV10/16-DN 100 | C181: UN | D181: 293.35 | E181: 293.35 | F181: 0
A182: 35000191 | B182: TE 90º FoFo-TFF10/16-DN 150x100 | C182: UN | D182: 553.34 | E182: 553.34 | F182: 0
A183: 35000192 | B183: VALVULA RET BR PH 150 PSI R BSP D=1.1/2" | C183: UN | D183: 138.19 | E183: 138.19 | F183: 0
A184: 35000193 | B184: VALVULA RET BR PH 150 PSI R BSP D=2" | C184: UN | D184: 208.38 | E184: 208.38 | F184: 0
A185: 35000194 | B185: VALVULA RET BR PH 150 PSI R BSP D=2.1/2" | C185: UN | D185: 343.62 | E185: 343.62 | F185: 0
A186: 35000195 | B186: VALVULA RET BR PH 150 PSI R BSP D=3" | C186: UN | D186: 416.82 | E186: 416.82 | F186: 0
A187: 35000196 | B187: VALVULA RET BR PH 150 PSI R BSP D=4" | C187: UN | D187: 737.35 | E187: 737.35 | F187: 0
A188: 35000197 | B188: TUBO FoFo-TFP10/16-DN 150 L = 3,00M | C188: UN | D188: 1497.9 | E188: 1497.9 | F188: 0
A189: 35000198 | B189: CURVA 45º FoFo FF-C45FF10/16-DN 150 | C189: UN | D189: 413.31 | E189: 413.31 | F189: 0
A190: 35000199 | B190: FLANGE AVULSO FoFo-FA10/16-DN 150 | C190: UN | D190: 140 | E190: 140 | F190: 0
A191: 35000200 | B191: PLACA REDUCAO FoFo FF-PR10/16-DN 100x50 | C191: UN | D191: 160.23 | E191: 160.23 | F191: 0
A192: 35000201 | B192: PARAFUSO P/ JUNTA MECANICA-PJM-DN18x90 | C192: UN | D192: 4.34 | E192: 4.34 | F192: 0
A193: 35000202 | B193: PARAFUSO C/PORCAS P/ FLANGES-PPF DN16x80 | C193: UN | D193: 3.26 | E193: 3.26 | F193: 0
A194: 35000203 | B194: ANEL PREM. CONC. P-104/_-DN 600x320MM. | C194: UN | D194: 71.23 | E194: 71.23 | F194: 0
A195: 35000204 | B195: ANEL PREM. CONC. P-104/_-DN 1000x320MM. | C195: UN | D195: 109.49 | E195: 109.49 | F195: =E195/D195-1 -> 0
A196: 35000205 | B196: ANEL PREM. CONC. P-104/_-DN 1200x320MM. | C196: UN | D196: 150.41 | E196: 150.41 | F196: 0
A197: 35000206 | B197: LAJE RED. CA P-105/_ DE (1300x600x120)MM | C197: UN | D197: 214.95 | E197: 214.95 | F197: 0
A198: 35000207 | B198: LAJE RED. CA P-105/_ DE (1500x600x120)MM | C198: UN | D198: 250.87 | E198: 250.87 | F198: 0
A199: 35000208 | B199: TAMPAO T- 5 FOFO P/PL PADRAO 030/- | C199: UN | D199: 44.57 | E199: 44.57 | F199: 0
A200: 35000209 | B200: TAMPAO T-22 FOFO P/CX PAS. PADRAO 032/- | C200: UN | D200: 88.38 | E200: 88.38 | F200: 0
... 925 more rows

Sheet COPASA CENTRO 12_2020
A1: CÓD | B1: DESCRIÇÃO | C1: UNID | D1: VR ONERADO | E1: VR DESONERADO | F1: DIF
A2: 35000000 | B2: SERVENTE AGUA - COPASA | C2: H | D2: 15.33 | E2: 13.24 | F2: =E2/D2-1 -> -0.1363339856
A3: 35000001 | B3: SERVENTE ESGOTO - COPASA | C3: H | D3: 15.33 | E3: 13.24 | F3: -0.1363339856
A4: 35000002 | B4: SERVICO AUXILIAR OPERACIONAL - COPASA | C4: H | D4: 15.33 | E4: 13.24 | F4: -0.1363339856
A5: 35000003 | B5: AUXILIAR DE LABORATORIO - COPASA | C5: H | D5: 15.64 | E5: 13.51 | F5: -0.1361892583
A6: 35000004 | B6: AUXILIAR DE ESCRITORIO CEC | C6: H | D6: 18.42 | E6: 16.26 | F6: -0.1172638436
A7: 35000005 | B7: AUXILIAR APOIO ADMINISTRATIVO - COPASA | C7: H | D7: 21.04 | E7: 18.18 | F7: -0.1359315589
A8: 35000006 | B8: ATENDENTE COMERCIAL - COPASA | C8: H | D8: 25.66 | E8: 22.16 | F8: -0.1363990647
A9: 35000007 | B9: BIOLOGO - COPASA | C9: H | D9: 69.38 | E9: 59.93 | F9: -0.1362063995
A10: 35000008 | B10: TECNICO ORCAMENTISTA CEC | C10: H | D10: 33.63 | E10: 29.34 | F10: -0.1275646744
A11: 35000009 | B11: LEITURISTA - COPASA | C11: H | D11: 21.04 | E11: 18.18 | F11: -0.1359315589
A12: 35000010 | B12: ENCARREGADO MANUTENCAO AGUA II - COPASA | C12: H | D12: 21.04 | E12: 18.18 | F12: -0.1359315589
A13: 35000011 | B13: ENCARREGADO MANUTENCAO ESGOTO I - COPASA | C13: H | D13: 21.04 | E13: 18.18 | F13: -0.1359315589
A14: 35000012 | B14: TECNICO DE LABORATORIO - COPASA | C14: H | D14: 39.66 | E14: 34.26 | F14: -0.1361573374
A15: 35000013 | B15: TECNICO DE LABORATORIO CEC | C15: H | D15: 33.65 | E15: 29.37 | F15: -0.127191679
A16: 35000014 | B16: TECNICO DE SEGURANCA DO TRABALHO CEC | C16: H | D16: 33.65 | E16: 29.37 | F16: -0.127191679
A17: 35000015 | B17: PROGRAMACAO PROCES. DADOS - COPASA | C17: H | D17: 39.66 | E17: 34.26 | F17: -0.1361573374
A18: 35000016 | B18: ENCARREGADO DE AREAS CEC | C18: H | D18: 25.67 | E18: 22.58 | F18: -0.1203739774
A19: 35000017 | B19: ENCARREGADO GERAL CEC | C19: H | D19: 33.65 | E19: 29.37 | F19: -0.127191679
A20: 35000018 | B20: CONSULTOR | C20: H | D20: 313.5 | E20: 313.5 | F20: 0
A21: 35000019 | B21: ENGENHEIRO NÍVEL I FAIXA I CEC | C21: MES | D21: 16409.87 | E21: 14192.28 | F21: -0.1351375727
A22: 35000021 | B22: ENGENHEIRO NÍVEL II FAIXA I CEC | C22: MES | D22: 18475.72 | E22: 15969.63 | F22: -0.1356423457
A23: 35000022 | B23: ENGENHEIRO NÍVEL IV FAIXA I CEC | C23: MES | D23: 23450.63 | E23: 20249.78 | F23: -0.1364931347
A24: 35000023 | B24: ENGENHEIRO NÍVEL III FAIXA I CEC | C24: MES | D24: 20810.93 | E24: 17978.72 | F24: -0.1360924284
A25: 35000024 | B25: ENGENHEIRO NÍVEL II FAIXA II CEC | C25: MES | D25: 19222.55 | E25: 16612.16 | F25: -0.1357983202
A26: 35000025 | B26: HIDROGEOLOGO CEC | C26: MES | D26: 16330.4 | E26: 14123.32 | F26: -0.1351516191
A27: 35000026 | B27: PROJETISTA CEC | C27: MES | D27: 12048.41 | E27: 10439.32 | F27: -0.1335520621
A28: 35000027 | B28: SUPERVISOR TECNICO CEC | C28: MES | D28: 8783.58 | E28: 7603.23 | F28: -0.1343814253
A29: 35000028 | B29: AUXILIAR DE PROGRAMACAO CEC | C29: MES | D29: 4732.83 | E29: 4122.9 | F29: -0.1288721547
A30: 35000029 | B30: ALMOXARIFE CEC | C30: MES | D30: 4737.1 | E30: 4127.18 | F30: -0.128753879
A31: 35000030 | B31: AUXILIAR DE ALMOXARIFE CEC | C31: MES | D31: 3786.97 | E31: 3314.35 | F31: -0.1248016224
A32: 35000032 | B32: TOPOGRAFO CEC | C32: MES | D32: 6412.6 | E32: 5560.54 | F32: -0.1328727817
A33: 35000033 | B33: TECNICO CADASTRISTA CEC | C33: MES | D33: 6408.32 | E33: 5556.26 | F33: -0.132961525
A34: 35000034 | B34: NIVELADOR CEC | C34: MES | D34: 4737.1 | E34: 4127.18 | F34: -0.128753879
A35: 35000035 | B35: AUXILIAR DE TOPOGRAFIA CEC | C35: MES | D35: 3786.97 | E35: 3314.35 | F35: -0.1248016224
A36: 35000037 | B36: TECNICO CALCULISTA CEC | C36: MES | D36: 6408.32 | E36: 5556.26 | F36: -0.132961525
A37: 35000038 | B37: DESENHISTA TECNICO (CADISTA) CEC | C37: MES | D37: 4732.83 | E37: 4122.9 | F37: -0.1288721547
A38: 35000039 | B38: ALMOXARIFE CEC | C38: H | D38: 27.22 | E38: 23.83 | F38: -0.1245407788
A39: 35000040 | B39: AUXILIAR DE ALMOXARIFE CEC | C39: H | D39: 21.77 | E39: 19.15 | F39: -0.1203491043
A40: 35000041 | B40: OFICIAL CEC | C40: H | D40: 21.46 | E40: 18.94 | F40: -0.1174277726
A41: 35000042 | B41: NIVELADOR CEC | C41: H | D41: 27.22 | E41: 23.83 | F41: -0.1245407788
A42: 35000043 | B42: AUXILIAR DE OFICIAL CEC | C42: H | D42: 17.04 | E42: 15.14 | F42: -0.1115023474
A43: 35000044 | B43: SERVENTE CEC | C43: H | D43: 15.17 | E43: 13.52 | F43: -0.1087673039
A44: 35000045 | B44: TOPOGRAFO CEC | C44: H | D44: 36.82 | E44: 32.09 | F44: -0.128462792
A45: 35000046 | B45: AUXILIAR DE TOPOGRAFIA CEC | C45: H | D45: 21.77 | E45: 19.15 | F45: -0.1203491043
A46: 35000047 | B46: AUXILIAR DE OPERADOR - MAQ PESADAS CEC | C46: H | D46: 16.77 | E46: 14.88 | F46: -0.1127012522
A47: 35000048 | B47: MOTORISTA CEC | C47: H | D47: 22.14 | E47: 19.5 | F47: -0.1192411924
A48: 35000049 | B48: OPERADOR DE MAQUINAS PESADAS CEC | C48: H | D48: 24.06 | E48: 21.15 | F48: -0.1209476309
A49: 35000050 | B49: SONDADOR I - COPASA | C49: H | D49: 16.93 | E49: 14.62 | F49: -0.1364441819
A50: 35000051 | B50: SONDADOR II - COPASA | C50: H | D50: 21.04 | E50: 18.18 | F50: -0.1359315589
A51: 35000052 | B51: ACO CA-50 A OU B | C51: TO | D51: 5194.43 | E51: 5194.43 | F51: 0
A52: 35000053 | B52: ACO CA-60 A OU B | C52: TO | D52: 5292.34 | E52: 5292.34 | F52: 0
A53: 35000056 | B53: VEU DE POLIESTER 75 G/M2 | C53: M2 | D53: 2.99 | E53: 2.99 | F53: 0
A54: 35000059 | B54: LIMITADOR JUNTA TARUCEL - JUNTA 1x1CM | C54: M | D54: 0.32 | E54: 0.32 | F54: 0
A55: 35000060 | B55: LIMITADOR JUNTA TARUCEL - JUNTA 2x2CM | C55: M | D55: 0.82 | E55: 0.82 | F55: 0
A56: 35000062 | B56: ACELERADOR-IMPERMEABILIZANTE | C56: KG | D56: 8.99 | E56: 8.99 | F56: 0
A57: 35000063 | B57: RESINA POLIURETANO-MC 2300 NV OU SIMILAR | C57: L | D57: 113.96 | E57: 113.96 | F57: 0
A58: 35000064 | B58: RESINA POLIURETANO MC 2033 OU SIMILAR | C58: L | D58: 136.13 | E58: 136.13 | F58: 0
A59: 35000065 | B59: XYPEX CONCENTRADO OU SIMILAR | C59: KG | D59: 18.05 | E59: 18.05 | F59: 0
A60: 35000066 | B60: XYPEX MODIFICADO OU SIMILAR | C60: KG | D60: 16.71 | E60: 16.71 | F60: 0
A61: 35000067 | B61: XYPEX PATCH'N PLUG OU SIMILAR | C61: KG | D61: 9.28 | E61: 9.28 | F61: 0
A62: 35000068 | B62: ADESIVO EPOXICO MCDUR 1300 TX OU SIMILAR | C62: KG | D62: 22.28 | E62: 22.28 | F62: 0
A63: 35000069 | B63: SOLVENTE REINIGUNGSMITTEL U OU SIMILAR | C63: L | D63: 43 | E63: 43 | F63: 0
A64: 35000070 | B64: BEXIGA BORRACHA- BLOQUEADOR FLUXO Ø100MM | C64: UN | D64: 1850 | E64: 1850 | F64: 0
A65: 35000071 | B65: SIKA I | C65: L | D65: 5.03 | E65: 5.03 | F65: 0
A66: 35000072 | B66: SIKA CHAPISCO PLUS | C66: KG | D66: 8.04 | E66: 8.04 | F66: =E66/D66-1 -> 0
A67: 35000073 | B67: SIKA TOP 122 - BICOMPONENTE A E B | C67: KG | D67: 8.92 | E67: 8.92 | F67: 0
A68: 35000074 | B68: SIKALIT - ADITIVO IMPERMEABILIZANTE | C68: KG | D68: 15.07 | E68: 15.07 | F68: 0
A69: 35000075 | B69: SIKADUR 32 | C69: KG | D69: 90.74 | E69: 90.74 | F69: 0
A70: 35000076 | B70: ADESIVO EPOXI SIKADUR 31 | C70: KG | D70: 83.87 | E70: 83.87 | F70: 0
A71: 35000077 | B71: SIKAGROUT - 250 | C71: KG | D71: 1.25 | E71: 1.25 | F71: 0
A72: 35000078 | B72: SIKAFLEX 1A - CARTUCHO DE 310 ML | C72: UN | D72: 63.3 | E72: 63.3 | F72: 0
A73: 35000079 | B73: SIKA PRIMER 1 - LATA COM 320 ML | C73: UN | D73: 75.25 | E73: 75.25 | F73: 0
A74: 35000080 | B74: IMPERMEABILIZANTE TIPO HEYDI - K11 | C74: KG | D74: 2.67 | E74: 2.67 | F74: 0
A75: 35000081 | B75: IMPERMEABILIZANTE TIPO HEYDI - KZ | C75: KG | D75: 15.56 | E75: 15.56 | F75: 0
A76: 35000082 | B76: SIKA TOP 107 | C76: KG | D76: 6.76 | E76: 6.76 | F76: 0
A77: 35000083 | B77: SIKA TOP 108 ARMATEC | C77: KG | D77: 22.32 | E77: 22.32 | F77: 0
A78: 35000084 | B78: DESMOLDANTE PARA FORMAS | C78: L | D78: 8.31 | E78: 8.31 | F78: 0
A79: 35000085 | B79: CONCRETO - FCK 10 MPA - USINADO | C79: M3 | D79: 234.83 | E79: 234.83 | F79: 0
A80: 35000086 | B80: CONCRETO - FCK-15 MPA - USINADO | C80: M3 | D80: 254.8 | E80: 254.8 | F80: 0
A81: 35000087 | B81: CONCRETO - FCK - 20MPA - USINADO | C81: M3 | D81: 266.03 | E81: 266.03 | F81: 0
A82: 35000088 | B82: CONCRETO - FCK -25 MPA - USINADO | C82: M3 | D82: 279.33 | E82: 279.33 | F82: 0
A83: 35000089 | B83: CONCRETO-FCK-30MPA - USINADO/ADITIVO | C83: M3 | D83: 287.37 | E83: 287.37 | F83: 0
A84: 35000090 | B84: CONCRETO-FCK-35MPA - USINADO/ADITIVO | C84: M3 | D84: 294.3 | E84: 294.3 | F84: 0
A85: 35000091 | B85: CONCRETO-FCK-40MPA - USINADO/ADITIVO | C85: M3 | D85: 324.14 | E85: 324.14 | F85: 0
A86: 35000092 | B86: ARAME DE AMARRACAO GABIAO-Ø=2,2MM. | C86: KG | D86: 18.61 | E86: 18.61 | F86: 0
A87: 35000093 | B87: GABIAO-MALHA 8X10 GALV ALT=0,50M | C87: M3 | D87: 282.51 | E87: 282.51 | F87: 0
A88: 35000094 | B88: GABIAO-MALHA 8X10 GALV ALT=1,00M | C88: M3 | D88: 206.2 | E88: 206.2 | F88: 0
A89: 35000095 | B89: COLCHAO RENO-MALHA 6X 8 GPVC-E=0,30M | C89: M2 | D89: 122.01 | E89: 122.01 | F89: 0
A90: 35000096 | B90: GABIAO TIPO SACO-MALHA 8X10 REC. C/ PVC | C90: M3 | D90: 267.09 | E90: 267.09 | F90: 0
A91: 35000097 | B91: CANALETA DE CONCRETO- MEIA CANA,Ø300MM | C91: M | D91: 29.44 | E91: 29.44 | F91: 0
A92: 35000098 | B92: CANALETA DE CONCRETO- MEIA CANA,Ø400MM | C92: M | D92: 37.27 | E92: 37.27 | F92: 0
A93: 35000099 | B93: CANALETA DE CONCRETO- MEIA CANA,Ø500MM | C93: M | D93: 40.63 | E93: 40.63 | F93: 0
A94: 35000100 | B94: CANALETA DE CONCRETO- MEIA CANA,Ø600MM | C94: M | D94: 54.2 | E94: 54.2 | F94: 0
A95: 35000101 | B95: CORDEL DETONANTE NP-10 | C95: M | D95: 1.2 | E95: 1.2 | F95: 0
A96: 35000102 | B96: DINAMITE-ENCARTUCHADO, Ø 1" A 1.1/2" | C96: KG | D96: 9.95 | E96: 9.95 | F96: 0
A97: 35000103 | B97: ESPOLETA SIMPLES NR. 8 | C97: UN | D97: 2.99 | E97: 2.99 | F97: 0
A98: 35000104 | B98: ESTOPIM SIMPLES | C98: M | D98: 4.31 | E98: 4.31 | F98: 0
A99: 35000105 | B99: RETARDO P/CORDEL-NP-05/10-ESPERA 25/50MS | C99: UN | D99: 15.16 | E99: 15.16 | F99: 0
A100: 35000107 | B100: CANGA DE MINERIO DE FERRO | C100: TO | D100: 16.9 | E100: 16.9 | F100: 0
A101: 35000108 | B101: ESCORIA DE ALTO FORNO | C101: TO | D101: 71.38 | E101: 71.38 | F101: 0
A102: 35000109 | B102: BICA CORRIDA | C102: TO | D102: 24.95 | E102: 24.95 | F102: 0
A103: 35000110 | B103: BRITA GRADUADA | C103: TO | D103: 59.48 | E103: 59.48 | F103: 0
A104: 35000111 | B104: EMULSAO ASFALTICA RR-1C | C104: KG | D104: 2.53 | E104: 2.53 | F104: 0
A105: 35000112 | B105: EMULSAO ASFALTICA RR-2C | C105: KG | D105: 2.67 | E105: 2.67 | F105: 0
A106: 35000113 | B106: EMULSAO ASFALTICA CM-30 | C106: KG | D106: 4.98 | E106: 4.98 | F106: 0
A107: 35000114 | B107: MEIO FIO DE CONCRETO-12X16,7X35X80CM | C107: UN | D107: 15.04 | E107: 15.04 | F107: 0
A108: 35000115 | B108: CALCARIO - MOSAICO - CALCADA PORTUGUESA | C108: KG | D108: 0.36 | E108: 0.36 | F108: 0
A109: 35000116 | B109: PRE-MOLDADO CONCRETO-BLOQUETE-25X10CM. | C109: M2 | D109: 52 | E109: 52 | F109: 0
A110: 35000117 | B110: CONCRETO BETUMINOSO USINADO-CBUQ-FX-"C" | C110: TO | D110: 314.58 | E110: 314.58 | F110: 0
A111: 35000118 | B111: PARALELEPIPEDO | C111: UN | D111: 3.2 | E111: 3.2 | F111: 0
A112: 35000119 | B112: POLIEDRICO | C112: M3 | D112: 56.84 | E112: 56.84 | F112: 0
A113: 35000120 | B113: PRE-MOLDADO CONCRETO INTERTRAVADO-E=8CM | C113: M2 | D113: 34.1 | E113: 34.1 | F113: 0
A114: 35000121 | B114: GASOLINA TIPO A - COMUM | C114: L | D114: 4.47 | E114: 4.47 | F114: 0
A115: 35000122 | B115: OLEO DIESEL | C115: L | D115: 3.67 | E115: 3.67 | F115: 0
A116: 35000123 | B116: OLEO P/ FERRAMENTAS PNEUMATICAS-FP68 | C116: L | D116: 9.09 | E116: 9.09 | F116: 0
A117: 35000124 | B117: GRAXA LUBRAX GMA - 2 | C117: KG | D117: 22.91 | E117: 22.91 | F117: 0
A118: 35000125 | B118: GRAMA EM PLACAS | C118: M2 | D118: 6.75 | E118: 6.75 | F118: 0
A119: 35000126 | B119: TERRA VEGETAL | C119: M3 | D119: 56.89 | E119: 56.89 | F119: 0
A120: 35000127 | B120: MOURAO - P-COPASA 126 / L = 2,20+/-0,05M | C120: UN | D120: 35.36 | E120: 35.36 | F120: 0
A121: 35000128 | B121: MOURAO MADEIRA -11/13 CM - ALT =2,20M. | C121: UN | D121: 13.33 | E121: 13.33 | F121: 0
A122: 35000129 | B122: MOURAO ESCORA-P-COPASA126/L=2,50+/-0,05M | C122: UN | D122: 31.97 | E122: 31.97 | F122: 0
A123: 35000130 | B123: MOURAO CONC. P-COPASA126 /L=2,80+/-0,06M | C123: UN | D123: 34.16 | E123: 34.16 | F123: 0
A124: 35000131 | B124: PLACA DE IDENTIFICACAO DE OBRA | C124: M2 | D124: 212.69 | E124: 212.69 | F124: 0
A125: 35000132 | B125: CONE PARA SINALIZACAO - P-COPASA - 065/- | C125: UN | D125: 28.1 | E125: 28.1 | F125: 0
A126: 35000133 | B126: PLACA "DISTANCIA DE OBRA"-P-COPASA 066/- | C126: UN | D126: 77.5 | E126: 77.5 | F126: 0
A127: 35000134 | B127: CAVALETE DUPLA FACE - CONFORME MIVC | C127: UN | D127: 350.63 | E127: 350.63 | F127: 0
A128: 35000135 | B128: TRIPE PARA BANDEIROLAS - P-COPASA -102/- | C128: UN | D128: 156.61 | E128: 156.61 | F128: 0
A129: 35000136 | B129: GRADE MODULAR SINALIZACAO-P-COPASA 177/- | C129: UN | D129: 340.32 | E129: 340.32 | F129: 0
A130: 35000137 | B130: FITA ZEBRADA AMARELO E PRETA L = 75MM | C130: UN | D130: 8.72 | E130: 8.72 | F130: =E130/D130-1 -> 0
A131: 35000140 | B131: ELETRODO P/ACOS, ILMENITICO Ø = 4MM | C131: KG | D131: 17.75 | E131: 17.75 | F131: 0
A132: 35000141 | B132: ACETILENO | C132: KG | D132: 29.6 | E132: 29.6 | F132: 0
A133: 35000142 | B133: OXIGENIO | C133: M3 | D133: 7.57 | E133: 7.57 | F133: 0
A134: 35000143 | B134: MANILHA CERAMICA CL B/C DN100 | C134: M | D134: 9.9 | E134: 9.9 | F134: 0
A135: 35000144 | B135: MANILHA CERAMICA CL B/C DN200 | C135: M | D135: 21.85 | E135: 21.85 | F135: 0
A136: 35000145 | B136: SELIM CERAMICO CL C - 90 GR DN150X100 | C136: UN | D136: 50.62 | E136: 50.62 | F136: 0
A137: 35000146 | B137: SELIM CERAMICO CL C - 90 GR DN200X100 | C137: UN | D137: 50.62 | E137: 50.62 | F137: 0
A138: 35000147 | B138: SELA CERAMICA P.RETA DN200X210X135MM | C138: UN | D138: 26 | E138: 26 | F138: 0
A139: 35000148 | B139: TUBO CERAMICO DRENO PB DE100MM | C139: M | D139: 9.67 | E139: 9.67 | F139: 0
A140: 35000149 | B140: TUBO CERAMICO DRENO PB DE150MM | C140: M | D140: 14.73 | E140: 14.73 | F140: 0
A141: 35000150 | B141: TUBO CERAMICO DRENO PB DE200MM | C141: M | D141: 23.27 | E141: 23.27 | F141: 0
A142: 35000151 | B142: TUBO CONCRETO ARM PA1 PB JR DN1000 | C142: M | D142: 231.46 | E142: 231.46 | F142: 0
A143: 35000152 | B143: TUBO CONCRETO SIMPLES PB JR PS-1 DN600 | C143: M | D143: 76 | E143: 76 | F143: 0
A144: 35000153 | B144: TAMPA LAMINADA FV C/ALCAS-1020X1020X5MM | C144: UN | D144: 1380.75 | E144: 1380.75 | F144: 0
A145: 35000154 | B145: COTOVELO ADAP P/PEAD FG (KTL) D1/2"x20MM | C145: UN | D145: 30.09 | E145: 30.09 | F145: 0
A146: 35000155 | B146: UNIAO POLIPROPILENO (PEAD) D20MMx1/2" | C146: UN | D146: 1.56 | E146: 1.56 | F146: 0
A147: 35000156 | B147: TUBO POLIETILENO (PEAD) D20MM - PRETO | C147: M | D147: 2.68 | E147: 2.68 | F147: 0
A148: 35000157 | B148: TUBO POLIETILENO (PEAD) D20MM-AZUL GR3 | C148: M | D148: 2.85 | E148: 2.85 | F148: 0
A149: 35000158 | B149: ADESIVO PARA PVC RIGIDO | C149: KG | D149: 31.46 | E149: 31.46 | F149: 0
A150: 35000159 | B150: PASTA LUBRIFICANTE | C150: KG | D150: 20.38 | E150: 20.38 | F150: 0
A151: 35000160 | B151: SOLUCAO LIMPADORA P/ PVC RIGIDO | C151: L | D151: 36.6 | E151: 36.6 | F151: 0
A152: 35000161 | B152: ANEL BORRACHA TOROIDAL-AJE-DN50 DE60MM | C152: UN | D152: 1.09 | E152: 1.09 | F152: 0
A153: 35000162 | B153: ANEL BORRACHA TOROIDAL-AJE-DN75 DE85MM | C153: UN | D153: 1.63 | E153: 1.63 | F153: 0
A154: 35000163 | B154: ANEL BORRACHA TOROIDAL-AJE-DN100 DE110MM | C154: UN | D154: 2.05 | E154: 2.05 | F154: 0
A155: 35000164 | B155: ADAPTADOR PVC PBA BFF DN100x100 DE110MM | C155: UN | D155: 21.29 | E155: 21.29 | F155: 0
A156: 35000165 | B156: CURVA 90 GR RL PVC PBA JE DN75 DE85 MM | C156: UN | D156: 26.12 | E156: 26.12 | F156: 0
A157: 35000166 | B157: CURVA 90 GR RL PVC PBA JE DN100 DE110 MM | C157: UN | D157: 52.83 | E157: 52.83 | F157: 0
A158: 35000167 | B158: CANALETA RETA TUBO PVC PB DN 100. | C158: UN | D158: 14.07 | E158: 14.07 | F158: 0
A159: 35000168 | B159: TE 90 GR PVC BBB JE DN50 DE60MM | C159: UN | D159: 17.59 | E159: 17.59 | F159: 0
A160: 35000169 | B160: TUBO PVC PBA CL15 DN50 DE60MM | C160: M | D160: 6.12 | E160: 6.12 | F160: 0
A161: 35000170 | B161: TUBO PVC PBA CL15 DN75 DE85MM | C161: M | D161: 13.68 | E161: 13.68 | F161: 0
A162: 35000171 | B162: TUBO PVC PBA CL15 DN100 DE110MM | C162: M | D162: 20.78 | E162: 20.78 | F162: 0
A163: 35000172 | B163: TUBO PVC PBA CL20 DN50 DE 60MM | C163: M | D163: 7.42 | E163: 7.42 | F163: 0
A164: 35000173 | B164: TUBO PVC PBA CL20 DN75 DE 85MM | C164: M | D164: 17.27 | E164: 17.27 | F164: 0
A165: 35000174 | B165: TUBO PVC PBA CL20 DN100 DE110MM | C165: M | D165: 26.21 | E165: 26.21 | F165: 0
A166: 35000175 | B166: TUBO PVC RIG. DEFOFO PBA JE DN150 | C166: M | D166: 40.64 | E166: 40.64 | F166: 0
A167: 35000176 | B167: AGENTE ESPUMANTE DRILLFOAN OU SIMILAR | C167: L | D167: 26.53 | E167: 26.53 | F167: 0
A168: 35000177 | B168: AREIA SELECIONADA - TIPO PEROLA | C168: KG | D168: 1.1 | E168: 1.1 | F168: 0
A169: 35000178 | B169: HEXAMETAFOSFATO DE SODIO 69% DE P2O5 | C169: KG | D169: 18 | E169: 18 | F169: 0
A170: 35000179 | B170: BENTONITA ATIVADA | C170: KG | D170: 1.06 | E170: 1.06 | F170: 0
A171: 35000180 | B171: REGISTRO GAVETA, FoFo-RCFV16, DN 50 | C171: UN | D171: 434.11 | E171: 434.11 | F171: 0
A172: 35000181 | B172: REGISTRO S. METRICA CHATA RCFV16 DN 75 | C172: UN | D172: 604.42 | E172: 604.42 | F172: 0
A173: 35000182 | B173: REGISTRO S. METRICA CHATA RCFV16 DN 150 | C173: UN | D173: 1597.54 | E173: 1597.54 | F173: 0
A174: 35000183 | B174: VALVULA RETENCAO FoFo VRPUS16 - DN 150 | C174: UN | D174: 1433.31 | E174: 1433.31 | F174: 0
A175: 35000184 | B175: VENTOSA SIMPLES FOFO C/F 10/16/25 DN 50 | C175: UN | D175: 183.04 | E175: 183.04 | F175: 0
A176: 35000185 | B176: VENTOSA SIMPLES FOFO C/ROSCA PN25 DN1" | C176: UN | D176: 325.12 | E176: 325.12 | F176: 0
A177: 35000186 | B177: VENTOSA SIMPL FOFO C/ROSCA-PN25 DN1.1/2" | C177: UN | D177: 183.04 | E177: 183.04 | F177: 0
A178: 35000187 | B178: CURVA 45º FoFo JE - C45JGS - DN150 | C178: UN | D178: 155.77 | E178: 155.77 | F178: 0
A179: 35000188 | B179: CURVA 90º FoFo FF-C90FF10/16-DN 100 | C179: UN | D179: 188.78 | E179: 188.78 | F179: 0
A180: 35000189 | B180: CURVA 90º FoFo FF-C90FF10/16-DN 150 | C180: UN | D180: 339.84 | E180: 339.84 | F180: 0
A181: 35000190 | B181: EXTREMIDADE FoFo-EPFAV10/16-DN 100 | C181: UN | D181: 285.82 | E181: 285.82 | F181: 0
A182: 35000191 | B182: TE 90º FoFo-TFF10/16-DN 150x100 | C182: UN | D182: 539.13 | E182: 539.13 | F182: 0
A183: 35000192 | B183: VALVULA RET BR PH 150 PSI R BSP D=1.1/2" | C183: UN | D183: 127.29 | E183: 127.29 | F183: 0
A184: 35000193 | B184: VALVULA RET BR PH 150 PSI R BSP D=2" | C184: UN | D184: 191.95 | E184: 191.95 | F184: 0
A185: 35000194 | B185: VALVULA RET BR PH 150 PSI R BSP D=2.1/2" | C185: UN | D185: 316.52 | E185: 316.52 | F185: 0
A186: 35000195 | B186: VALVULA RET BR PH 150 PSI R BSP D=3" | C186: UN | D186: 383.95 | E186: 383.95 | F186: 0
A187: 35000196 | B187: VALVULA RET BR PH 150 PSI R BSP D=4" | C187: UN | D187: 679.2 | E187: 679.2 | F187: 0
A188: 35000197 | B188: TUBO FoFo-TFP10/16-DN 150 L = 3,00M | C188: UN | D188: 1379.77 | E188: 1379.77 | F188: 0
A189: 35000198 | B189: CURVA 45º FoFo FF-C45FF10/16-DN 150 | C189: UN | D189: 402.7 | E189: 402.7 | F189: 0
A190: 35000199 | B190: FLANGE AVULSO FoFo-FA10/16-DN 150 | C190: UN | D190: 126.33 | E190: 126.33 | F190: 0
A191: 35000200 | B191: PLACA REDUCAO FoFo FF-PR10/16-DN 100x50 | C191: UN | D191: 147.59 | E191: 147.59 | F191: 0
A192: 35000201 | B192: PARAFUSO P/ JUNTA MECANICA-PJM-DN18x90 | C192: UN | D192: 4 | E192: 4 | F192: 0
A193: 35000202 | B193: PARAFUSO C/PORCAS P/ FLANGES-PPF DN16x80 | C193: UN | D193: 3 | E193: 3 | F193: 0
A194: 35000203 | B194: ANEL PREM. CONC. P-104/_-DN 600x320MM. | C194: UN | D194: 75.62 | E194: 75.62 | F194: =E194/D194-1 -> 0
A195: 35000204 | B195: ANEL PREM. CONC. P-104/_-DN 1000x320MM. | C195: UN | D195: 120.9 | E195: 120.9 | F195: 0
A196: 35000205 | B196: ANEL PREM. CONC. P-104/_-DN 1200x320MM. | C196: UN | D196: 138.55 | E196: 138.55 | F196: 0
A197: 35000206 | B197: LAJE RED. CA P-105/_ DE (1300x600x120)MM | C197: UN | D197: 198 | E197: 198 | F197: 0
A198: 35000207 | B198: LAJE RED. CA P-105/_ DE (1500x600x120)MM | C198: UN | D198: 231.09 | E198: 231.09 | F198: 0
A199: 35000208 | B199: TAMPAO T- 5 FOFO P/PL PADRAO 030/- | C199: UN | D199: 43.43 | E199: 43.43 | F199: 0
A200: 35000209 | B200: TAMPAO T-22 FOFO P/CX PAS. PADRAO 032/- | C200: UN | D200: 88.38 | E200: 88.38 | F200: 0
... 925 more rows

Sheet COPASA NORDESTE 12_2020
A1: CÓD | B1: DESCRIÇÃO | C1: UNID | D1: VR ONERADO | E1: VR DESONERADO | F1: DIF
A2: 35000000 | B2: SERVENTE AGUA - COPASA | C2: H | D2: 15.33 | E2: 13.24 | F2: =E2/D2-1 -> -0.1363339856
A3: 35000001 | B3: SERVENTE ESGOTO - COPASA | C3: H | D3: 15.33 | E3: 13.24 | F3: =E3/D3-1 -> -0.1363339856
A4: 35000002 | B4: SERVICO AUXILIAR OPERACIONAL - COPASA | C4: H | D4: 15.33 | E4: 13.24 | F4: -0.1363339856
A5: 35000003 | B5: AUXILIAR DE LABORATORIO - COPASA | C5: H | D5: 15.64 | E5: 13.51 | F5: -0.1361892583
A6: 35000004 | B6: AUXILIAR DE ESCRITORIO CEC | C6: H | D6: 18.42 | E6: 16.26 | F6: -0.1172638436
A7: 35000005 | B7: AUXILIAR APOIO ADMINISTRATIVO - COPASA | C7: H | D7: 21.04 | E7: 18.18 | F7: -0.1359315589
A8: 35000006 | B8: ATENDENTE COMERCIAL - COPASA | C8: H | D8: 25.66 | E8: 22.16 | F8: -0.1363990647
A9: 35000007 | B9: BIOLOGO - COPASA | C9: H | D9: 69.38 | E9: 59.93 | F9: -0.1362063995
A10: 35000008 | B10: TECNICO ORCAMENTISTA CEC | C10: H | D10: 33.63 | E10: 29.34 | F10: -0.1275646744
A11: 35000009 | B11: LEITURISTA - COPASA | C11: H | D11: 21.04 | E11: 18.18 | F11: -0.1359315589
A12: 35000010 | B12: ENCARREGADO MANUTENCAO AGUA II - COPASA | C12: H | D12: 21.04 | E12: 18.18 | F12: -0.1359315589
A13: 35000011 | B13: ENCARREGADO MANUTENCAO ESGOTO I - COPASA | C13: H | D13: 21.04 | E13: 18.18 | F13: -0.1359315589
A14: 35000012 | B14: TECNICO DE LABORATORIO - COPASA | C14: H | D14: 39.66 | E14: 34.26 | F14: -0.1361573374
A15: 35000013 | B15: TECNICO DE LABORATORIO CEC | C15: H | D15: 33.65 | E15: 29.37 | F15: -0.127191679
A16: 35000014 | B16: TECNICO DE SEGURANCA DO TRABALHO CEC | C16: H | D16: 33.65 | E16: 29.37 | F16: -0.127191679
A17: 35000015 | B17: PROGRAMACAO PROCES. DADOS - COPASA | C17: H | D17: 39.66 | E17: 34.26 | F17: -0.1361573374
A18: 35000016 | B18: ENCARREGADO DE AREAS CEC | C18: H | D18: 24.81 | E18: 21.84 | F18: -0.1197097944
A19: 35000017 | B19: ENCARREGADO GERAL CEC | C19: H | D19: 33.65 | E19: 29.37 | F19: -0.127191679
A20: 35000018 | B20: CONSULTOR | C20: H | D20: 313.5 | E20: 313.5 | F20: 0
A21: 35000019 | B21: ENGENHEIRO NÍVEL I FAIXA I CEC | C21: MES | D21: 16409.87 | E21: 14192.28 | F21: -0.1351375727
A22: 35000021 | B22: ENGENHEIRO NÍVEL II FAIXA I CEC | C22: MES | D22: 18475.72 | E22: 15969.63 | F22: -0.1356423457
A23: 35000022 | B23: ENGENHEIRO NÍVEL IV FAIXA I CEC | C23: MES | D23: 23450.63 | E23: 20249.78 | F23: -0.1364931347
A24: 35000023 | B24: ENGENHEIRO NÍVEL III FAIXA I CEC | C24: MES | D24: 20810.93 | E24: 17978.72 | F24: -0.1360924284
A25: 35000024 | B25: ENGENHEIRO NÍVEL II FAIXA II CEC | C25: MES | D25: 19222.55 | E25: 16612.16 | F25: -0.1357983202
A26: 35000025 | B26: HIDROGEOLOGO CEC | C26: MES | D26: 16330.4 | E26: 14123.32 | F26: -0.1351516191
A27: 35000026 | B27: PROJETISTA CEC | C27: MES | D27: 12048.41 | E27: 10439.32 | F27: -0.1335520621
A28: 35000027 | B28: SUPERVISOR TECNICO CEC | C28: MES | D28: 8783.58 | E28: 7603.23 | F28: -0.1343814253
A29: 35000028 | B29: AUXILIAR DE PROGRAMACAO CEC | C29: MES | D29: 4732.83 | E29: 4122.9 | F29: -0.1288721547
A30: 35000029 | B30: ALMOXARIFE CEC | C30: MES | D30: 4737.1 | E30: 4127.18 | F30: -0.128753879
A31: 35000030 | B31: AUXILIAR DE ALMOXARIFE CEC | C31: MES | D31: 3786.97 | E31: 3314.35 | F31: -0.1248016224
A32: 35000032 | B32: TOPOGRAFO CEC | C32: MES | D32: 6412.6 | E32: 5560.54 | F32: -0.1328727817
A33: 35000033 | B33: TECNICO CADASTRISTA CEC | C33: MES | D33: 6408.32 | E33: 5556.26 | F33: -0.132961525
A34: 35000034 | B34: NIVELADOR CEC | C34: MES | D34: 4737.1 | E34: 4127.18 | F34: -0.128753879
A35: 35000035 | B35: AUXILIAR DE TOPOGRAFIA CEC | C35: MES | D35: 3786.97 | E35: 3314.35 | F35: -0.1248016224
A36: 35000037 | B36: TECNICO CALCULISTA CEC | C36: MES | D36: 6408.32 | E36: 5556.26 | F36: -0.132961525
A37: 35000038 | B37: DESENHISTA TECNICO (CADISTA) CEC | C37: MES | D37: 4732.83 | E37: 4122.9 | F37: -0.1288721547
A38: 35000039 | B38: ALMOXARIFE CEC | C38: H | D38: 27.22 | E38: 23.83 | F38: -0.1245407788
A39: 35000040 | B39: AUXILIAR DE ALMOXARIFE CEC | C39: H | D39: 21.77 | E39: 19.15 | F39: -0.1203491043
A40: 35000041 | B40: OFICIAL CEC | C40: H | D40: 20.76 | E40: 18.35 | F40: -0.116088632
A41: 35000042 | B41: NIVELADOR CEC | C41: H | D41: 27.22 | E41: 23.83 | F41: -0.1245407788
A42: 35000043 | B42: AUXILIAR DE OFICIAL CEC | C42: H | D42: 16.51 | E42: 14.69 | F42: -0.1102362205
A43: 35000044 | B43: SERVENTE CEC | C43: H | D43: 14.71 | E43: 13.13 | F43: -0.1074099252
A44: 35000045 | B44: TOPOGRAFO CEC | C44: H | D44: 36.82 | E44: 32.09 | F44: -0.128462792
A45: 35000046 | B45: AUXILIAR DE TOPOGRAFIA CEC | C45: H | D45: 21.77 | E45: 19.15 | F45: -0.1203491043
A46: 35000047 | B46: AUXILIAR DE OPERADOR - MAQ PESADAS CEC | C46: H | D46: 16.77 | E46: 14.88 | F46: -0.1127012522
A47: 35000048 | B47: MOTORISTA CEC | C47: H | D47: 22.14 | E47: 19.5 | F47: -0.1192411924
A48: 35000049 | B48: OPERADOR DE MAQUINAS PESADAS CEC | C48: H | D48: 24.06 | E48: 21.15 | F48: -0.1209476309
A49: 35000050 | B49: SONDADOR I - COPASA | C49: H | D49: 16.93 | E49: 14.62 | F49: -0.1364441819
A50: 35000051 | B50: SONDADOR II - COPASA | C50: H | D50: 21.04 | E50: 18.18 | F50: -0.1359315589
A51: 35000052 | B51: ACO CA-50 A OU B | C51: TO | D51: 5880 | E51: 5880 | F51: 0
A52: 35000053 | B52: ACO CA-60 A OU B | C52: TO | D52: 5880 | E52: 5880 | F52: 0
A53: 35000056 | B53: VEU DE POLIESTER 75 G/M2 | C53: M2 | D53: 2.99 | E53: 2.99 | F53: 0
A54: 35000059 | B54: LIMITADOR JUNTA TARUCEL - JUNTA 1x1CM | C54: M | D54: 0.32 | E54: 0.32 | F54: 0
A55: 35000060 | B55: LIMITADOR JUNTA TARUCEL - JUNTA 2x2CM | C55: M | D55: 0.82 | E55: 0.82 | F55: 0
A56: 35000062 | B56: ACELERADOR-IMPERMEABILIZANTE | C56: KG | D56: 8.99 | E56: 8.99 | F56: 0
A57: 35000063 | B57: RESINA POLIURETANO-MC 2300 NV OU SIMILAR | C57: L | D57: 113.96 | E57: 113.96 | F57: 0
A58: 35000064 | B58: RESINA POLIURETANO MC 2033 OU SIMILAR | C58: L | D58: 136.13 | E58: 136.13 | F58: 0
A59: 35000065 | B59: XYPEX CONCENTRADO OU SIMILAR | C59: KG | D59: 18.05 | E59: 18.05 | F59: 0
A60: 35000066 | B60: XYPEX MODIFICADO OU SIMILAR | C60: KG | D60: 16.71 | E60: 16.71 | F60: 0
A61: 35000067 | B61: XYPEX PATCH'N PLUG OU SIMILAR | C61: KG | D61: 9.28 | E61: 9.28 | F61: 0
A62: 35000068 | B62: ADESIVO EPOXICO MCDUR 1300 TX OU SIMILAR | C62: KG | D62: 22.28 | E62: 22.28 | F62: 0
A63: 35000069 | B63: SOLVENTE REINIGUNGSMITTEL U OU SIMILAR | C63: L | D63: 43 | E63: 43 | F63: 0
A64: 35000070 | B64: BEXIGA BORRACHA- BLOQUEADOR FLUXO Ø100MM | C64: UN | D64: 1850 | E64: 1850 | F64: 0
A65: 35000071 | B65: SIKA I | C65: L | D65: 5.03 | E65: 5.03 | F65: 0
A66: 35000072 | B66: SIKA CHAPISCO PLUS | C66: KG | D66: 8.04 | E66: 8.04 | F66: =E66/D66-1 -> 0
A67: 35000073 | B67: SIKA TOP 122 - BICOMPONENTE A E B | C67: KG | D67: 8.92 | E67: 8.92 | F67: 0
A68: 35000074 | B68: SIKALIT - ADITIVO IMPERMEABILIZANTE | C68: KG | D68: 15.07 | E68: 15.07 | F68: 0
A69: 35000075 | B69: SIKADUR 32 | C69: KG | D69: 90.74 | E69: 90.74 | F69: 0
A70: 35000076 | B70: ADESIVO EPOXI SIKADUR 31 | C70: KG | D70: 83.87 | E70: 83.87 | F70: 0
A71: 35000077 | B71: SIKAGROUT - 250 | C71: KG | D71: 1.25 | E71: 1.25 | F71: 0
A72: 35000078 | B72: SIKAFLEX 1A - CARTUCHO DE 310 ML | C72: UN | D72: 63.3 | E72: 63.3 | F72: 0
A73: 35000079 | B73: SIKA PRIMER 1 - LATA COM 320 ML | C73: UN | D73: 75.25 | E73: 75.25 | F73: 0
A74: 35000080 | B74: IMPERMEABILIZANTE TIPO HEYDI - K11 | C74: KG | D74: 2.67 | E74: 2.67 | F74: 0
A75: 35000081 | B75: IMPERMEABILIZANTE TIPO HEYDI - KZ | C75: KG | D75: 15.56 | E75: 15.56 | F75: 0
A76: 35000082 | B76: SIKA TOP 107 | C76: KG | D76: 6.76 | E76: 6.76 | F76: 0
A77: 35000083 | B77: SIKA TOP 108 ARMATEC | C77: KG | D77: 22.32 | E77: 22.32 | F77: 0
A78: 35000084 | B78: DESMOLDANTE PARA FORMAS | C78: L | D78: 8.31 | E78: 8.31 | F78: 0
A79: 35000085 | B79: CONCRETO - FCK 10 MPA - USINADO | C79: M3 | D79: 219.3 | E79: 219.3 | F79: 0
A80: 35000086 | B80: CONCRETO - FCK-15 MPA - USINADO | C80: M3 | D80: 234.29 | E80: 234.29 | F80: 0
A81: 35000087 | B81: CONCRETO - FCK - 20MPA - USINADO | C81: M3 | D81: 244.51 | E81: 244.51 | F81: 0
A82: 35000088 | B82: CONCRETO - FCK -25 MPA - USINADO | C82: M3 | D82: 255.49 | E82: 255.49 | F82: 0
A83: 35000089 | B83: CONCRETO-FCK-30MPA - USINADO/ADITIVO | C83: M3 | D83: 287.37 | E83: 287.37 | F83: 0
A84: 35000090 | B84: CONCRETO-FCK-35MPA - USINADO/ADITIVO | C84: M3 | D84: 294.3 | E84: 294.3 | F84: 0
A85: 35000091 | B85: CONCRETO-FCK-40MPA - USINADO/ADITIVO | C85: M3 | D85: 324.14 | E85: 324.14 | F85: 0
A86: 35000092 | B86: ARAME DE AMARRACAO GABIAO-Ø=2,2MM. | C86: KG | D86: 18.61 | E86: 18.61 | F86: 0
A87: 35000093 | B87: GABIAO-MALHA 8X10 GALV ALT=0,50M | C87: M3 | D87: 282.51 | E87: 282.51 | F87: 0
A88: 35000094 | B88: GABIAO-MALHA 8X10 GALV ALT=1,00M | C88: M3 | D88: 206.2 | E88: 206.2 | F88: 0
A89: 35000095 | B89: COLCHAO RENO-MALHA 6X 8 GPVC-E=0,30M | C89: M2 | D89: 122.01 | E89: 122.01 | F89: 0
A90: 35000096 | B90: GABIAO TIPO SACO-MALHA 8X10 REC. C/ PVC | C90: M3 | D90: 267.09 | E90: 267.09 | F90: 0
A91: 35000097 | B91: CANALETA DE CONCRETO- MEIA CANA,Ø300MM | C91: M | D91: 29.44 | E91: 29.44 | F91: 0
A92: 35000098 | B92: CANALETA DE CONCRETO- MEIA CANA,Ø400MM | C92: M | D92: 37.27 | E92: 37.27 | F92: 0
A93: 35000099 | B93: CANALETA DE CONCRETO- MEIA CANA,Ø500MM | C93: M | D93: 40.63 | E93: 40.63 | F93: 0
A94: 35000100 | B94: CANALETA DE CONCRETO- MEIA CANA,Ø600MM | C94: M | D94: 54.2 | E94: 54.2 | F94: 0
A95: 35000101 | B95: CORDEL DETONANTE NP-10 | C95: M | D95: 1.2 | E95: 1.2 | F95: 0
A96: 35000102 | B96: DINAMITE-ENCARTUCHADO, Ø 1" A 1.1/2" | C96: KG | D96: 9.95 | E96: 9.95 | F96: 0
A97: 35000103 | B97: ESPOLETA SIMPLES NR. 8 | C97: UN | D97: 2.99 | E97: 2.99 | F97: 0
A98: 35000104 | B98: ESTOPIM SIMPLES | C98: M | D98: 4.31 | E98: 4.31 | F98: 0
A99: 35000105 | B99: RETARDO P/CORDEL-NP-05/10-ESPERA 25/50MS | C99: UN | D99: 15.16 | E99: 15.16 | F99: 0
A100: 35000107 | B100: CANGA DE MINERIO DE FERRO | C100: TO | D100: 16.9 | E100: 16.9 | F100: 0
A101: 35000108 | B101: ESCORIA DE ALTO FORNO | C101: TO | D101: 71.38 | E101: 71.38 | F101: 0
A102: 35000109 | B102: BICA CORRIDA | C102: TO | D102: 25.38 | E102: 25.38 | F102: 0
A103: 35000110 | B103: BRITA GRADUADA | C103: TO | D103: 59.48 | E103: 59.48 | F103: 0
A104: 35000111 | B104: EMULSAO ASFALTICA RR-1C | C104: KG | D104: 2.53 | E104: 2.53 | F104: 0
A105: 35000112 | B105: EMULSAO ASFALTICA RR-2C | C105: KG | D105: 2.67 | E105: 2.67 | F105: 0
A106: 35000113 | B106: EMULSAO ASFALTICA CM-30 | C106: KG | D106: 4.98 | E106: 4.98 | F106: 0
A107: 35000114 | B107: MEIO FIO DE CONCRETO-12X16,7X35X80CM | C107: UN | D107: 15.04 | E107: 15.04 | F107: 0
A108: 35000115 | B108: CALCARIO - MOSAICO - CALCADA PORTUGUESA | C108: KG | D108: 0.36 | E108: 0.36 | F108: 0
A109: 35000116 | B109: PRE-MOLDADO CONCRETO-BLOQUETE-25X10CM. | C109: M2 | D109: 52 | E109: 52 | F109: 0
A110: 35000117 | B110: CONCRETO BETUMINOSO USINADO-CBUQ-FX-"C" | C110: TO | D110: 314.58 | E110: 314.58 | F110: 0
A111: 35000118 | B111: PARALELEPIPEDO | C111: UN | D111: 3.2 | E111: 3.2 | F111: 0
A112: 35000119 | B112: POLIEDRICO | C112: M3 | D112: 56.84 | E112: 56.84 | F112: 0
A113: 35000120 | B113: PRE-MOLDADO CONCRETO INTERTRAVADO-E=8CM | C113: M2 | D113: 34.1 | E113: 34.1 | F113: 0
A114: 35000121 | B114: GASOLINA TIPO A - COMUM | C114: L | D114: 4.69 | E114: 4.69 | F114: 0
A115: 35000122 | B115: OLEO DIESEL | C115: L | D115: 3.79 | E115: 3.79 | F115: 0
A116: 35000123 | B116: OLEO P/ FERRAMENTAS PNEUMATICAS-FP68 | C116: L | D116: 9.09 | E116: 9.09 | F116: 0
A117: 35000124 | B117: GRAXA LUBRAX GMA - 2 | C117: KG | D117: 22.91 | E117: 22.91 | F117: 0
A118: 35000125 | B118: GRAMA EM PLACAS | C118: M2 | D118: 10.23 | E118: 10.23 | F118: 0
A119: 35000126 | B119: TERRA VEGETAL | C119: M3 | D119: 56.89 | E119: 56.89 | F119: 0
A120: 35000127 | B120: MOURAO - P-COPASA 126 / L = 2,20+/-0,05M | C120: UN | D120: 35.36 | E120: 35.36 | F120: 0
A121: 35000128 | B121: MOURAO MADEIRA -11/13 CM - ALT =2,20M. | C121: UN | D121: 13.33 | E121: 13.33 | F121: 0
A122: 35000129 | B122: MOURAO ESCORA-P-COPASA126/L=2,50+/-0,05M | C122: UN | D122: 31.97 | E122: 31.97 | F122: 0
A123: 35000130 | B123: MOURAO CONC. P-COPASA126 /L=2,80+/-0,06M | C123: UN | D123: 34.16 | E123: 34.16 | F123: 0
A124: 35000131 | B124: PLACA DE IDENTIFICACAO DE OBRA | C124: M2 | D124: 212.69 | E124: 212.69 | F124: 0
A125: 35000132 | B125: CONE PARA SINALIZACAO - P-COPASA - 065/- | C125: UN | D125: 28.1 | E125: 28.1 | F125: 0
A126: 35000133 | B126: PLACA "DISTANCIA DE OBRA"-P-COPASA 066/- | C126: UN | D126: 77.5 | E126: 77.5 | F126: 0
A127: 35000134 | B127: CAVALETE DUPLA FACE - CONFORME MIVC | C127: UN | D127: 350.63 | E127: 350.63 | F127: 0
A128: 35000135 | B128: TRIPE PARA BANDEIROLAS - P-COPASA -102/- | C128: UN | D128: 156.61 | E128: 156.61 | F128: 0
A129: 35000136 | B129: GRADE MODULAR SINALIZACAO-P-COPASA 177/- | C129: UN | D129: 340.32 | E129: 340.32 | F129: 0
A130: 35000137 | B130: FITA ZEBRADA AMARELO E PRETA L = 75MM | C130: UN | D130: 8.72 | E130: 8.72 | F130: =E130/D130-1 -> 0
A131: 35000140 | B131: ELETRODO P/ACOS, ILMENITICO Ø = 4MM | C131: KG | D131: 17.75 | E131: 17.75 | F131: 0
A132: 35000141 | B132: ACETILENO | C132: KG | D132: 29.6 | E132: 29.6 | F132: 0
A133: 35000142 | B133: OXIGENIO | C133: M3 | D133: 7.57 | E133: 7.57 | F133: 0
A134: 35000143 | B134: MANILHA CERAMICA CL B/C DN100 | C134: M | D134: 9.9 | E134: 9.9 | F134: 0
A135: 35000144 | B135: MANILHA CERAMICA CL B/C DN200 | C135: M | D135: 21.85 | E135: 21.85 | F135: 0
A136: 35000145 | B136: SELIM CERAMICO CL C - 90 GR DN150X100 | C136: UN | D136: 50.62 | E136: 50.62 | F136: 0
A137: 35000146 | B137: SELIM CERAMICO CL C - 90 GR DN200X100 | C137: UN | D137: 50.62 | E137: 50.62 | F137: 0
A138: 35000147 | B138: SELA CERAMICA P.RETA DN200X210X135MM | C138: UN | D138: 26 | E138: 26 | F138: 0
A139: 35000148 | B139: TUBO CERAMICO DRENO PB DE100MM | C139: M | D139: 9.67 | E139: 9.67 | F139: 0
A140: 35000149 | B140: TUBO CERAMICO DRENO PB DE150MM | C140: M | D140: 14.73 | E140: 14.73 | F140: 0
A141: 35000150 | B141: TUBO CERAMICO DRENO PB DE200MM | C141: M | D141: 23.27 | E141: 23.27 | F141: 0
A142: 35000151 | B142: TUBO CONCRETO ARM PA1 PB JR DN1000 | C142: M | D142: 231.46 | E142: 231.46 | F142: 0
A143: 35000152 | B143: TUBO CONCRETO SIMPLES PB JR PS-1 DN600 | C143: M | D143: 76 | E143: 76 | F143: 0
A144: 35000153 | B144: TAMPA LAMINADA FV C/ALCAS-1020X1020X5MM | C144: UN | D144: 1380.75 | E144: 1380.75 | F144: 0
A145: 35000154 | B145: COTOVELO ADAP P/PEAD FG (KTL) D1/2"x20MM | C145: UN | D145: 30.09 | E145: 30.09 | F145: 0
A146: 35000155 | B146: UNIAO POLIPROPILENO (PEAD) D20MMx1/2" | C146: UN | D146: 1.56 | E146: 1.56 | F146: 0
A147: 35000156 | B147: TUBO POLIETILENO (PEAD) D20MM - PRETO | C147: M | D147: 2.68 | E147: 2.68 | F147: 0
A148: 35000157 | B148: TUBO POLIETILENO (PEAD) D20MM-AZUL GR3 | C148: M | D148: 2.85 | E148: 2.85 | F148: 0
A149: 35000158 | B149: ADESIVO PARA PVC RIGIDO | C149: KG | D149: 31.46 | E149: 31.46 | F149: 0
A150: 35000159 | B150: PASTA LUBRIFICANTE | C150: KG | D150: 20.38 | E150: 20.38 | F150: 0
A151: 35000160 | B151: SOLUCAO LIMPADORA P/ PVC RIGIDO | C151: L | D151: 36.6 | E151: 36.6 | F151: 0
A152: 35000161 | B152: ANEL BORRACHA TOROIDAL-AJE-DN50 DE60MM | C152: UN | D152: 1.09 | E152: 1.09 | F152: 0
A153: 35000162 | B153: ANEL BORRACHA TOROIDAL-AJE-DN75 DE85MM | C153: UN | D153: 1.63 | E153: 1.63 | F153: 0
A154: 35000163 | B154: ANEL BORRACHA TOROIDAL-AJE-DN100 DE110MM | C154: UN | D154: 2.05 | E154: 2.05 | F154: 0
A155: 35000164 | B155: ADAPTADOR PVC PBA BFF DN100x100 DE110MM | C155: UN | D155: 21.29 | E155: 21.29 | F155: 0
A156: 35000165 | B156: CURVA 90 GR RL PVC PBA JE DN75 DE85 MM | C156: UN | D156: 26.12 | E156: 26.12 | F156: 0
A157: 35000166 | B157: CURVA 90 GR RL PVC PBA JE DN100 DE110 MM | C157: UN | D157: 52.83 | E157: 52.83 | F157: 0
A158: 35000167 | B158: CANALETA RETA TUBO PVC PB DN 100. | C158: UN | D158: 14.07 | E158: 14.07 | F158: 0
A159: 35000168 | B159: TE 90 GR PVC BBB JE DN50 DE60MM | C159: UN | D159: 17.59 | E159: 17.59 | F159: 0
A160: 35000169 | B160: TUBO PVC PBA CL15 DN50 DE60MM | C160: M | D160: 6.12 | E160: 6.12 | F160: 0
A161: 35000170 | B161: TUBO PVC PBA CL15 DN75 DE85MM | C161: M | D161: 13.68 | E161: 13.68 | F161: 0
A162: 35000171 | B162: TUBO PVC PBA CL15 DN100 DE110MM | C162: M | D162: 20.78 | E162: 20.78 | F162: 0
A163: 35000172 | B163: TUBO PVC PBA CL20 DN50 DE 60MM | C163: M | D163: 7.42 | E163: 7.42 | F163: 0
A164: 35000173 | B164: TUBO PVC PBA CL20 DN75 DE 85MM | C164: M | D164: 17.27 | E164: 17.27 | F164: 0
A165: 35000174 | B165: TUBO PVC PBA CL20 DN100 DE110MM | C165: M | D165: 26.21 | E165: 26.21 | F165: 0
A166: 35000175 | B166: TUBO PVC RIG. DEFOFO PBA JE DN150 | C166: M | D166: 40.64 | E166: 40.64 | F166: 0
A167: 35000176 | B167: AGENTE ESPUMANTE DRILLFOAN OU SIMILAR | C167: L | D167: 26.53 | E167: 26.53 | F167: 0
A168: 35000177 | B168: AREIA SELECIONADA - TIPO PEROLA | C168: KG | D168: 1.1 | E168: 1.1 | F168: 0
A169: 35000178 | B169: HEXAMETAFOSFATO DE SODIO 69% DE P2O5 | C169: KG | D169: 18 | E169: 18 | F169: 0
A170: 35000179 | B170: BENTONITA ATIVADA | C170: KG | D170: 1.06 | E170: 1.06 | F170: 0
A171: 35000180 | B171: REGISTRO GAVETA, FoFo-RCFV16, DN 50 | C171: UN | D171: 434.11 | E171: 434.11 | F171: 0
A172: 35000181 | B172: REGISTRO S. METRICA CHATA RCFV16 DN 75 | C172: UN | D172: 604.42 | E172: 604.42 | F172: 0
A173: 35000182 | B173: REGISTRO S. METRICA CHATA RCFV16 DN 150 | C173: UN | D173: 1597.54 | E173: 1597.54 | F173: 0
A174: 35000183 | B174: VALVULA RETENCAO FoFo VRPUS16 - DN 150 | C174: UN | D174: 1433.31 | E174: 1433.31 | F174: 0
A175: 35000184 | B175: VENTOSA SIMPLES FOFO C/F 10/16/25 DN 50 | C175: UN | D175: 183.04 | E175: 183.04 | F175: 0
A176: 35000185 | B176: VENTOSA SIMPLES FOFO C/ROSCA PN25 DN1" | C176: UN | D176: 325.12 | E176: 325.12 | F176: 0
A177: 35000186 | B177: VENTOSA SIMPL FOFO C/ROSCA-PN25 DN1.1/2" | C177: UN | D177: 183.04 | E177: 183.04 | F177: 0
A178: 35000187 | B178: CURVA 45º FoFo JE - C45JGS - DN150 | C178: UN | D178: 155.77 | E178: 155.77 | F178: 0
A179: 35000188 | B179: CURVA 90º FoFo FF-C90FF10/16-DN 100 | C179: UN | D179: 188.78 | E179: 188.78 | F179: 0
A180: 35000189 | B180: CURVA 90º FoFo FF-C90FF10/16-DN 150 | C180: UN | D180: 339.84 | E180: 339.84 | F180: 0
A181: 35000190 | B181: EXTREMIDADE FoFo-EPFAV10/16-DN 100 | C181: UN | D181: 285.82 | E181: 285.82 | F181: 0
A182: 35000191 | B182: TE 90º FoFo-TFF10/16-DN 150x100 | C182: UN | D182: 539.13 | E182: 539.13 | F182: 0
A183: 35000192 | B183: VALVULA RET BR PH 150 PSI R BSP D=1.1/2" | C183: UN | D183: 127.29 | E183: 127.29 | F183: 0
A184: 35000193 | B184: VALVULA RET BR PH 150 PSI R BSP D=2" | C184: UN | D184: 191.95 | E184: 191.95 | F184: 0
A185: 35000194 | B185: VALVULA RET BR PH 150 PSI R BSP D=2.1/2" | C185: UN | D185: 316.52 | E185: 316.52 | F185: 0
A186: 35000195 | B186: VALVULA RET BR PH 150 PSI R BSP D=3" | C186: UN | D186: 383.95 | E186: 383.95 | F186: 0
A187: 35000196 | B187: VALVULA RET BR PH 150 PSI R BSP D=4" | C187: UN | D187: 679.2 | E187: 679.2 | F187: 0
A188: 35000197 | B188: TUBO FoFo-TFP10/16-DN 150 L = 3,00M | C188: UN | D188: 1379.77 | E188: 1379.77 | F188: 0
A189: 35000198 | B189: CURVA 45º FoFo FF-C45FF10/16-DN 150 | C189: UN | D189: 402.7 | E189: 402.7 | F189: 0
A190: 35000199 | B190: FLANGE AVULSO FoFo-FA10/16-DN 150 | C190: UN | D190: 126.33 | E190: 126.33 | F190: 0
A191: 35000200 | B191: PLACA REDUCAO FoFo FF-PR10/16-DN 100x50 | C191: UN | D191: 147.59 | E191: 147.59 | F191: 0
A192: 35000201 | B192: PARAFUSO P/ JUNTA MECANICA-PJM-DN18x90 | C192: UN | D192: 4 | E192: 4 | F192: 0
A193: 35000202 | B193: PARAFUSO C/PORCAS P/ FLANGES-PPF DN16x80 | C193: UN | D193: 3 | E193: 3 | F193: 0
A194: 35000203 | B194: ANEL PREM. CONC. P-104/_-DN 600x320MM. | C194: UN | D194: 75.62 | E194: 75.62 | F194: =E194/D194-1 -> 0
A195: 35000204 | B195: ANEL PREM. CONC. P-104/_-DN 1000x320MM. | C195: UN | D195: 120.9 | E195: 120.9 | F195: 0
A196: 35000205 | B196: ANEL PREM. CONC. P-104/_-DN 1200x320MM. | C196: UN | D196: 138.55 | E196: 138.55 | F196: 0
A197: 35000206 | B197: LAJE RED. CA P-105/_ DE (1300x600x120)MM | C197: UN | D197: 198 | E197: 198 | F197: 0
A198: 35000207 | B198: LAJE RED. CA P-105/_ DE (1500x600x120)MM | C198: UN | D198: 231.09 | E198: 231.09 | F198: 0
A199: 35000208 | B199: TAMPAO T- 5 FOFO P/PL PADRAO 030/- | C199: UN | D199: 43.43 | E199: 43.43 | F199: 0
A200: 35000209 | B200: TAMPAO T-22 FOFO P/CX PAS. PADRAO 032/- | C200: UN | D200: 88.38 | E200: 88.38 | F200: 0
... 925 more rows

Sheet COPASA NORTE 12_2020
A1: CÓD | B1: DESCRIÇÃO | C1: UNID | D1: VR ONERADO | E1: VR DESONERADO | F1: DIF
A2: 35000000 | B2: SERVENTE AGUA - COPASA | C2: H | D2: 15.33 | E2: 13.24 | F2: =E2/D2-1 -> -0.1363339856
A3: 35000001 | B3: SERVENTE ESGOTO - COPASA | C3: H | D3: 15.33 | E3: 13.24 | F3: -0.1363339856
A4: 35000002 | B4: SERVICO AUXILIAR OPERACIONAL - COPASA | C4: H | D4: 15.33 | E4: 13.24 | F4: -0.1363339856
A5: 35000003 | B5: AUXILIAR DE LABORATORIO - COPASA | C5: H | D5: 15.64 | E5: 13.51 | F5: -0.1361892583
A6: 35000004 | B6: AUXILIAR DE ESCRITORIO CEC | C6: H | D6: 18.42 | E6: 16.26 | F6: -0.1172638436
A7: 35000005 | B7: AUXILIAR APOIO ADMINISTRATIVO - COPASA | C7: H | D7: 21.04 | E7: 18.18 | F7: -0.1359315589
A8: 35000006 | B8: ATENDENTE COMERCIAL - COPASA | C8: H | D8: 25.66 | E8: 22.16 | F8: -0.1363990647
A9: 35000007 | B9: BIOLOGO - COPASA | C9: H | D9: 69.38 | E9: 59.93 | F9: -0.1362063995
A10: 35000008 | B10: TECNICO ORCAMENTISTA CEC | C10: H | D10: 33.63 | E10: 29.34 | F10: -0.1275646744
A11: 35000009 | B11: LEITURISTA - COPASA | C11: H | D11: 21.04 | E11: 18.18 | F11: -0.1359315589
A12: 35000010 | B12: ENCARREGADO MANUTENCAO AGUA II - COPASA | C12: H | D12: 21.04 | E12: 18.18 | F12: -0.1359315589
A13: 35000011 | B13: ENCARREGADO MANUTENCAO ESGOTO I - COPASA | C13: H | D13: 21.04 | E13: 18.18 | F13: -0.1359315589
A14: 35000012 | B14: TECNICO DE LABORATORIO - COPASA | C14: H | D14: 39.66 | E14: 34.26 | F14: -0.1361573374
A15: 35000013 | B15: TECNICO DE LABORATORIO CEC | C15: H | D15: 33.65 | E15: 29.37 | F15: -0.127191679
A16: 35000014 | B16: TECNICO DE SEGURANCA DO TRABALHO CEC | C16: H | D16: 33.65 | E16: 29.37 | F16: -0.127191679
A17: 35000015 | B17: PROGRAMACAO PROCES. DADOS - COPASA | C17: H | D17: 39.66 | E17: 34.26 | F17: -0.1361573374
A18: 35000016 | B18: ENCARREGADO DE AREAS CEC | C18: H | D18: 24.81 | E18: 21.84 | F18: -0.1197097944
A19: 35000017 | B19: ENCARREGADO GERAL CEC | C19: H | D19: 33.65 | E19: 29.37 | F19: -0.127191679
A20: 35000018 | B20: CONSULTOR | C20: H | D20: 313.5 | E20: 313.5 | F20: 0
A21: 35000019 | B21: ENGENHEIRO NÍVEL I FAIXA I CEC | C21: MES | D21: 16409.87 | E21: 14192.28 | F21: -0.1351375727
A22: 35000021 | B22: ENGENHEIRO NÍVEL II FAIXA I CEC | C22: MES | D22: 18475.72 | E22: 15969.63 | F22: -0.1356423457
A23: 35000022 | B23: ENGENHEIRO NÍVEL IV FAIXA I CEC | C23: MES | D23: 23450.63 | E23: 20249.78 | F23: -0.1364931347
A24: 35000023 | B24: ENGENHEIRO NÍVEL III FAIXA I CEC | C24: MES | D24: 20810.93 | E24: 17978.72 | F24: -0.1360924284
A25: 35000024 | B25: ENGENHEIRO NÍVEL II FAIXA II CEC | C25: MES | D25: 19222.55 | E25: 16612.16 | F25: -0.1357983202
A26: 35000025 | B26: HIDROGEOLOGO CEC | C26: MES | D26: 16330.4 | E26: 14123.32 | F26: -0.1351516191
A27: 35000026 | B27: PROJETISTA CEC | C27: MES | D27: 12048.41 | E27: 10439.32 | F27: -0.1335520621
A28: 35000027 | B28: SUPERVISOR TECNICO CEC | C28: MES | D28: 8783.58 | E28: 7603.23 | F28: -0.1343814253
A29: 35000028 | B29: AUXILIAR DE PROGRAMACAO CEC | C29: MES | D29: 4732.83 | E29: 4122.9 | F29: -0.1288721547
A30: 35000029 | B30: ALMOXARIFE CEC | C30: MES | D30: 4737.1 | E30: 4127.18 | F30: -0.128753879
A31: 35000030 | B31: AUXILIAR DE ALMOXARIFE CEC | C31: MES | D31: 3786.97 | E31: 3314.35 | F31: -0.1248016224
A32: 35000032 | B32: TOPOGRAFO CEC | C32: MES | D32: 6412.6 | E32: 5560.54 | F32: -0.1328727817
A33: 35000033 | B33: TECNICO CADASTRISTA CEC | C33: MES | D33: 6408.32 | E33: 5556.26 | F33: -0.132961525
A34: 35000034 | B34: NIVELADOR CEC | C34: MES | D34: 4737.1 | E34: 4127.18 | F34: -0.128753879
A35: 35000035 | B35: AUXILIAR DE TOPOGRAFIA CEC | C35: MES | D35: 3786.97 | E35: 3314.35 | F35: -0.1248016224
A36: 35000037 | B36: TECNICO CALCULISTA CEC | C36: MES | D36: 6408.32 | E36: 5556.26 | F36: -0.132961525
A37: 35000038 | B37: DESENHISTA TECNICO (CADISTA) CEC | C37: MES | D37: 4732.83 | E37: 4122.9 | F37: -0.1288721547
A38: 35000039 | B38: ALMOXARIFE CEC | C38: H | D38: 27.22 | E38: 23.83 | F38: -0.1245407788
A39: 35000040 | B39: AUXILIAR DE ALMOXARIFE CEC | C39: H | D39: 21.77 | E39: 19.15 | F39: -0.1203491043
A40: 35000041 | B40: OFICIAL CEC | C40: H | D40: 20.76 | E40: 18.35 | F40: -0.116088632
A41: 35000042 | B41: NIVELADOR CEC | C41: H | D41: 27.22 | E41: 23.83 | F41: -0.1245407788
A42: 35000043 | B42: AUXILIAR DE OFICIAL CEC | C42: H | D42: 16.51 | E42: 14.69 | F42: -0.1102362205
A43: 35000044 | B43: SERVENTE CEC | C43: H | D43: 14.71 | E43: 13.13 | F43: -0.1074099252
A44: 35000045 | B44: TOPOGRAFO CEC | C44: H | D44: 36.82 | E44: 32.09 | F44: -0.128462792
A45: 35000046 | B45: AUXILIAR DE TOPOGRAFIA CEC | C45: H | D45: 21.77 | E45: 19.15 | F45: -0.1203491043
A46: 35000047 | B46: AUXILIAR DE OPERADOR - MAQ PESADAS CEC | C46: H | D46: 16.77 | E46: 14.88 | F46: -0.1127012522
A47: 35000048 | B47: MOTORISTA CEC | C47: H | D47: 22.14 | E47: 19.5 | F47: -0.1192411924
A48: 35000049 | B48: OPERADOR DE MAQUINAS PESADAS CEC | C48: H | D48: 24.06 | E48: 21.15 | F48: -0.1209476309
A49: 35000050 | B49: SONDADOR I - COPASA | C49: H | D49: 16.93 | E49: 14.62 | F49: -0.1364441819
A50: 35000051 | B50: SONDADOR II - COPASA | C50: H | D50: 21.04 | E50: 18.18 | F50: -0.1359315589
A51: 35000052 | B51: ACO CA-50 A OU B | C51: TO | D51: 5418.55 | E51: 5418.55 | F51: 0
A52: 35000053 | B52: ACO CA-60 A OU B | C52: TO | D52: 5526.55 | E52: 5526.55 | F52: 0
A53: 35000056 | B53: VEU DE POLIESTER 75 G/M2 | C53: M2 | D53: 2.99 | E53: 2.99 | F53: 0
A54: 35000059 | B54: LIMITADOR JUNTA TARUCEL - JUNTA 1x1CM | C54: M | D54: 0.32 | E54: 0.32 | F54: 0
A55: 35000060 | B55: LIMITADOR JUNTA TARUCEL - JUNTA 2x2CM | C55: M | D55: 0.82 | E55: 0.82 | F55: 0
A56: 35000062 | B56: ACELERADOR-IMPERMEABILIZANTE | C56: KG | D56: 8.99 | E56: 8.99 | F56: 0
A57: 35000063 | B57: RESINA POLIURETANO-MC 2300 NV OU SIMILAR | C57: L | D57: 113.96 | E57: 113.96 | F57: 0
A58: 35000064 | B58: RESINA POLIURETANO MC 2033 OU SIMILAR | C58: L | D58: 136.13 | E58: 136.13 | F58: 0
A59: 35000065 | B59: XYPEX CONCENTRADO OU SIMILAR | C59: KG | D59: 18.05 | E59: 18.05 | F59: 0
A60: 35000066 | B60: XYPEX MODIFICADO OU SIMILAR | C60: KG | D60: 16.71 | E60: 16.71 | F60: 0
A61: 35000067 | B61: XYPEX PATCH'N PLUG OU SIMILAR | C61: KG | D61: 9.28 | E61: 9.28 | F61: 0
A62: 35000068 | B62: ADESIVO EPOXICO MCDUR 1300 TX OU SIMILAR | C62: KG | D62: 22.28 | E62: 22.28 | F62: 0
A63: 35000069 | B63: SOLVENTE REINIGUNGSMITTEL U OU SIMILAR | C63: L | D63: 43 | E63: 43 | F63: 0
A64: 35000070 | B64: BEXIGA BORRACHA- BLOQUEADOR FLUXO Ø100MM | C64: UN | D64: 1850 | E64: 1850 | F64: 0
A65: 35000071 | B65: SIKA I | C65: L | D65: 5.03 | E65: 5.03 | F65: 0
A66: 35000072 | B66: SIKA CHAPISCO PLUS | C66: KG | D66: 8.04 | E66: 8.04 | F66: =E66/D66-1 -> 0
A67: 35000073 | B67: SIKA TOP 122 - BICOMPONENTE A E B | C67: KG | D67: 8.92 | E67: 8.92 | F67: 0
A68: 35000074 | B68: SIKALIT - ADITIVO IMPERMEABILIZANTE | C68: KG | D68: 15.07 | E68: 15.07 | F68: 0
A69: 35000075 | B69: SIKADUR 32 | C69: KG | D69: 90.74 | E69: 90.74 | F69: 0
A70: 35000076 | B70: ADESIVO EPOXI SIKADUR 31 | C70: KG | D70: 83.87 | E70: 83.87 | F70: 0
A71: 35000077 | B71: SIKAGROUT - 250 | C71: KG | D71: 1.25 | E71: 1.25 | F71: 0
A72: 35000078 | B72: SIKAFLEX 1A - CARTUCHO DE 310 ML | C72: UN | D72: 63.3 | E72: 63.3 | F72: 0
A73: 35000079 | B73: SIKA PRIMER 1 - LATA COM 320 ML | C73: UN | D73: 75.25 | E73: 75.25 | F73: 0
A74: 35000080 | B74: IMPERMEABILIZANTE TIPO HEYDI - K11 | C74: KG | D74: 2.67 | E74: 2.67 | F74: 0
A75: 35000081 | B75: IMPERMEABILIZANTE TIPO HEYDI - KZ | C75: KG | D75: 15.56 | E75: 15.56 | F75: 0
A76: 35000082 | B76: SIKA TOP 107 | C76: KG | D76: 6.76 | E76: 6.76 | F76: 0
A77: 35000083 | B77: SIKA TOP 108 ARMATEC | C77: KG | D77: 22.32 | E77: 22.32 | F77: 0
A78: 35000084 | B78: DESMOLDANTE PARA FORMAS | C78: L | D78: 8.31 | E78: 8.31 | F78: 0
A79: 35000085 | B79: CONCRETO - FCK 10 MPA - USINADO | C79: M3 | D79: 235.4 | E79: 235.4 | F79: 0
A80: 35000086 | B80: CONCRETO - FCK-15 MPA - USINADO | C80: M3 | D80: 255.42 | E80: 255.42 | F80: 0
A81: 35000087 | B81: CONCRETO - FCK - 20MPA - USINADO | C81: M3 | D81: 266.67 | E81: 266.67 | F81: 0
A82: 35000088 | B82: CONCRETO - FCK -25 MPA - USINADO | C82: M3 | D82: 280 | E82: 280 | F82: 0
A83: 35000089 | B83: CONCRETO-FCK-30MPA - USINADO/ADITIVO | C83: M3 | D83: 287.37 | E83: 287.37 | F83: 0
A84: 35000090 | B84: CONCRETO-FCK-35MPA - USINADO/ADITIVO | C84: M3 | D84: 294.3 | E84: 294.3 | F84: 0
A85: 35000091 | B85: CONCRETO-FCK-40MPA - USINADO/ADITIVO | C85: M3 | D85: 324.14 | E85: 324.14 | F85: 0
A86: 35000092 | B86: ARAME DE AMARRACAO GABIAO-Ø=2,2MM. | C86: KG | D86: 18.61 | E86: 18.61 | F86: 0
A87: 35000093 | B87: GABIAO-MALHA 8X10 GALV ALT=0,50M | C87: M3 | D87: 282.51 | E87: 282.51 | F87: 0
A88: 35000094 | B88: GABIAO-MALHA 8X10 GALV ALT=1,00M | C88: M3 | D88: 206.2 | E88: 206.2 | F88: 0
A89: 35000095 | B89: COLCHAO RENO-MALHA 6X 8 GPVC-E=0,30M | C89: M2 | D89: 122.01 | E89: 122.01 | F89: 0
A90: 35000096 | B90: GABIAO TIPO SACO-MALHA 8X10 REC. C/ PVC | C90: M3 | D90: 267.09 | E90: 267.09 | F90: 0
A91: 35000097 | B91: CANALETA DE CONCRETO- MEIA CANA,Ø300MM | C91: M | D91: 29.44 | E91: 29.44 | F91: 0
A92: 35000098 | B92: CANALETA DE CONCRETO- MEIA CANA,Ø400MM | C92: M | D92: 37.27 | E92: 37.27 | F92: 0
A93: 35000099 | B93: CANALETA DE CONCRETO- MEIA CANA,Ø500MM | C93: M | D93: 40.63 | E93: 40.63 | F93: 0
A94: 35000100 | B94: CANALETA DE CONCRETO- MEIA CANA,Ø600MM | C94: M | D94: 54.2 | E94: 54.2 | F94: 0
A95: 35000101 | B95: CORDEL DETONANTE NP-10 | C95: M | D95: 1.2 | E95: 1.2 | F95: 0
A96: 35000102 | B96: DINAMITE-ENCARTUCHADO, Ø 1" A 1.1/2" | C96: KG | D96: 9.95 | E96: 9.95 | F96: 0
A97: 35000103 | B97: ESPOLETA SIMPLES NR. 8 | C97: UN | D97: 2.99 | E97: 2.99 | F97: 0
A98: 35000104 | B98: ESTOPIM SIMPLES | C98: M | D98: 4.31 | E98: 4.31 | F98: 0
A99: 35000105 | B99: RETARDO P/CORDEL-NP-05/10-ESPERA 25/50MS | C99: UN | D99: 15.16 | E99: 15.16 | F99: 0
A100: 35000107 | B100: CANGA DE MINERIO DE FERRO | C100: TO | D100: 16.9 | E100: 16.9 | F100: 0
A101: 35000108 | B101: ESCORIA DE ALTO FORNO | C101: TO | D101: 71.38 | E101: 71.38 | F101: 0
A102: 35000109 | B102: BICA CORRIDA | C102: TO | D102: 25.38 | E102: 25.38 | F102: 0
A103: 35000110 | B103: BRITA GRADUADA | C103: TO | D103: 59.48 | E103: 59.48 | F103: 0
A104: 35000111 | B104: EMULSAO ASFALTICA RR-1C | C104: KG | D104: 2.53 | E104: 2.53 | F104: 0
A105: 35000112 | B105: EMULSAO ASFALTICA RR-2C | C105: KG | D105: 2.67 | E105: 2.67 | F105: 0
A106: 35000113 | B106: EMULSAO ASFALTICA CM-30 | C106: KG | D106: 4.98 | E106: 4.98 | F106: 0
A107: 35000114 | B107: MEIO FIO DE CONCRETO-12X16,7X35X80CM | C107: UN | D107: 15.04 | E107: 15.04 | F107: 0
A108: 35000115 | B108: CALCARIO - MOSAICO - CALCADA PORTUGUESA | C108: KG | D108: 0.36 | E108: 0.36 | F108: 0
A109: 35000116 | B109: PRE-MOLDADO CONCRETO-BLOQUETE-25X10CM. | C109: M2 | D109: 52 | E109: 52 | F109: 0
A110: 35000117 | B110: CONCRETO BETUMINOSO USINADO-CBUQ-FX-"C" | C110: TO | D110: 320 | E110: 320 | F110: 0
A111: 35000118 | B111: PARALELEPIPEDO | C111: UN | D111: 3.2 | E111: 3.2 | F111: 0
A112: 35000119 | B112: POLIEDRICO | C112: M3 | D112: 56.84 | E112: 56.84 | F112: 0
A113: 35000120 | B113: PRE-MOLDADO CONCRETO INTERTRAVADO-E=8CM | C113: M2 | D113: 34.1 | E113: 34.1 | F113: 0
A114: 35000121 | B114: GASOLINA TIPO A - COMUM | C114: L | D114: 4.74 | E114: 4.74 | F114: 0
A115: 35000122 | B115: OLEO DIESEL | C115: L | D115: 3.6 | E115: 3.6 | F115: 0
A116: 35000123 | B116: OLEO P/ FERRAMENTAS PNEUMATICAS-FP68 | C116: L | D116: 9.09 | E116: 9.09 | F116: 0
A117: 35000124 | B117: GRAXA LUBRAX GMA - 2 | C117: KG | D117: 22.91 | E117: 22.91 | F117: 0
A118: 35000125 | B118: GRAMA EM PLACAS | C118: M2 | D118: 7.12 | E118: 7.12 | F118: 0
A119: 35000126 | B119: TERRA VEGETAL | C119: M3 | D119: 56.89 | E119: 56.89 | F119: 0
A120: 35000127 | B120: MOURAO - P-COPASA 126 / L = 2,20+/-0,05M | C120: UN | D120: 35.36 | E120: 35.36 | F120: 0
A121: 35000128 | B121: MOURAO MADEIRA -11/13 CM - ALT =2,20M. | C121: UN | D121: 13.33 | E121: 13.33 | F121: 0
A122: 35000129 | B122: MOURAO ESCORA-P-COPASA126/L=2,50+/-0,05M | C122: UN | D122: 31.97 | E122: 31.97 | F122: 0
A123: 35000130 | B123: MOURAO CONC. P-COPASA126 /L=2,80+/-0,06M | C123: UN | D123: 34.16 | E123: 34.16 | F123: 0
A124: 35000131 | B124: PLACA DE IDENTIFICACAO DE OBRA | C124: M2 | D124: 212.69 | E124: 212.69 | F124: 0
A125: 35000132 | B125: CONE PARA SINALIZACAO - P-COPASA - 065/- | C125: UN | D125: 28.1 | E125: 28.1 | F125: 0
A126: 35000133 | B126: PLACA "DISTANCIA DE OBRA"-P-COPASA 066/- | C126: UN | D126: 77.5 | E126: 77.5 | F126: 0
A127: 35000134 | B127: CAVALETE DUPLA FACE - CONFORME MIVC | C127: UN | D127: 350.63 | E127: 350.63 | F127: 0
A128: 35000135 | B128: TRIPE PARA BANDEIROLAS - P-COPASA -102/- | C128: UN | D128: 156.61 | E128: 156.61 | F128: 0
A129: 35000136 | B129: GRADE MODULAR SINALIZACAO-P-COPASA 177/- | C129: UN | D129: 340.32 | E129: 340.32 | F129: 0
A130: 35000137 | B130: FITA ZEBRADA AMARELO E PRETA L = 75MM | C130: UN | D130: 8.72 | E130: 8.72 | F130: =E130/D130-1 -> 0
A131: 35000140 | B131: ELETRODO P/ACOS, ILMENITICO Ø = 4MM | C131: KG | D131: 17.75 | E131: 17.75 | F131: 0
A132: 35000141 | B132: ACETILENO | C132: KG | D132: 29.6 | E132: 29.6 | F132: 0
A133: 35000142 | B133: OXIGENIO | C133: M3 | D133: 7.57 | E133: 7.57 | F133: 0
A134: 35000143 | B134: MANILHA CERAMICA CL B/C DN100 | C134: M | D134: 9.9 | E134: 9.9 | F134: 0
A135: 35000144 | B135: MANILHA CERAMICA CL B/C DN200 | C135: M | D135: 21.85 | E135: 21.85 | F135: 0
A136: 35000145 | B136: SELIM CERAMICO CL C - 90 GR DN150X100 | C136: UN | D136: 50.62 | E136: 50.62 | F136: 0
A137: 35000146 | B137: SELIM CERAMICO CL C - 90 GR DN200X100 | C137: UN | D137: 50.62 | E137: 50.62 | F137: 0
A138: 35000147 | B138: SELA CERAMICA P.RETA DN200X210X135MM | C138: UN | D138: 26 | E138: 26 | F138: 0
A139: 35000148 | B139: TUBO CERAMICO DRENO PB DE100MM | C139: M | D139: 9.67 | E139: 9.67 | F139: 0
A140: 35000149 | B140: TUBO CERAMICO DRENO PB DE150MM | C140: M | D140: 14.73 | E140: 14.73 | F140: 0
A141: 35000150 | B141: TUBO CERAMICO DRENO PB DE200MM | C141: M | D141: 23.27 | E141: 23.27 | F141: 0
A142: 35000151 | B142: TUBO CONCRETO ARM PA1 PB JR DN1000 | C142: M | D142: 231.46 | E142: 231.46 | F142: 0
A143: 35000152 | B143: TUBO CONCRETO SIMPLES PB JR PS-1 DN600 | C143: M | D143: 76 | E143: 76 | F143: 0
A144: 35000153 | B144: TAMPA LAMINADA FV C/ALCAS-1020X1020X5MM | C144: UN | D144: 1380.75 | E144: 1380.75 | F144: 0
A145: 35000154 | B145: COTOVELO ADAP P/PEAD FG (KTL) D1/2"x20MM | C145: UN | D145: 30.09 | E145: 30.09 | F145: 0
A146: 35000155 | B146: UNIAO POLIPROPILENO (PEAD) D20MMx1/2" | C146: UN | D146: 1.56 | E146: 1.56 | F146: 0
A147: 35000156 | B147: TUBO POLIETILENO (PEAD) D20MM - PRETO | C147: M | D147: 2.68 | E147: 2.68 | F147: 0
A148: 35000157 | B148: TUBO POLIETILENO (PEAD) D20MM-AZUL GR3 | C148: M | D148: 2.85 | E148: 2.85 | F148: 0
A149: 35000158 | B149: ADESIVO PARA PVC RIGIDO | C149: KG | D149: 31.46 | E149: 31.46 | F149: 0
A150: 35000159 | B150: PASTA LUBRIFICANTE | C150: KG | D150: 20.38 | E150: 20.38 | F150: 0
A151: 35000160 | B151: SOLUCAO LIMPADORA P/ PVC RIGIDO | C151: L | D151: 36.6 | E151: 36.6 | F151: 0
A152: 35000161 | B152: ANEL BORRACHA TOROIDAL-AJE-DN50 DE60MM | C152: UN | D152: 1.09 | E152: 1.09 | F152: 0
A153: 35000162 | B153: ANEL BORRACHA TOROIDAL-AJE-DN75 DE85MM | C153: UN | D153: 1.63 | E153: 1.63 | F153: 0
A154: 35000163 | B154: ANEL BORRACHA TOROIDAL-AJE-DN100 DE110MM | C154: UN | D154: 2.05 | E154: 2.05 | F154: 0
A155: 35000164 | B155: ADAPTADOR PVC PBA BFF DN100x100 DE110MM | C155: UN | D155: 21.29 | E155: 21.29 | F155: 0
A156: 35000165 | B156: CURVA 90 GR RL PVC PBA JE DN75 DE85 MM | C156: UN | D156: 26.12 | E156: 26.12 | F156: 0
A157: 35000166 | B157: CURVA 90 GR RL PVC PBA JE DN100 DE110 MM | C157: UN | D157: 52.83 | E157: 52.83 | F157: 0
A158: 35000167 | B158: CANALETA RETA TUBO PVC PB DN 100. | C158: UN | D158: 14.07 | E158: 14.07 | F158: 0
A159: 35000168 | B159: TE 90 GR PVC BBB JE DN50 DE60MM | C159: UN | D159: 17.59 | E159: 17.59 | F159: 0
A160: 35000169 | B160: TUBO PVC PBA CL15 DN50 DE60MM | C160: M | D160: 6.12 | E160: 6.12 | F160: 0
A161: 35000170 | B161: TUBO PVC PBA CL15 DN75 DE85MM | C161: M | D161: 13.68 | E161: 13.68 | F161: 0
A162: 35000171 | B162: TUBO PVC PBA CL15 DN100 DE110MM | C162: M | D162: 20.78 | E162: 20.78 | F162: 0
A163: 35000172 | B163: TUBO PVC PBA CL20 DN50 DE 60MM | C163: M | D163: 7.42 | E163: 7.42 | F163: 0
A164: 35000173 | B164: TUBO PVC PBA CL20 DN75 DE 85MM | C164: M | D164: 17.27 | E164: 17.27 | F164: 0
A165: 35000174 | B165: TUBO PVC PBA CL20 DN100 DE110MM | C165: M | D165: 26.21 | E165: 26.21 | F165: 0
A166: 35000175 | B166: TUBO PVC RIG. DEFOFO PBA JE DN150 | C166: M | D166: 40.64 | E166: 40.64 | F166: 0
A167: 35000176 | B167: AGENTE ESPUMANTE DRILLFOAN OU SIMILAR | C167: L | D167: 26.53 | E167: 26.53 | F167: 0
A168: 35000177 | B168: AREIA SELECIONADA - TIPO PEROLA | C168: KG | D168: 1.1 | E168: 1.1 | F168: 0
A169: 35000178 | B169: HEXAMETAFOSFATO DE SODIO 69% DE P2O5 | C169: KG | D169: 18 | E169: 18 | F169: 0
A170: 35000179 | B170: BENTONITA ATIVADA | C170: KG | D170: 1.06 | E170: 1.06 | F170: 0
A171: 35000180 | B171: REGISTRO GAVETA, FoFo-RCFV16, DN 50 | C171: UN | D171: 434.11 | E171: 434.11 | F171: 0
A172: 35000181 | B172: REGISTRO S. METRICA CHATA RCFV16 DN 75 | C172: UN | D172: 604.42 | E172: 604.42 | F172: 0
A173: 35000182 | B173: REGISTRO S. METRICA CHATA RCFV16 DN 150 | C173: UN | D173: 1597.54 | E173: 1597.54 | F173: 0
A174: 35000183 | B174: VALVULA RETENCAO FoFo VRPUS16 - DN 150 | C174: UN | D174: 1433.31 | E174: 1433.31 | F174: 0
A175: 35000184 | B175: VENTOSA SIMPLES FOFO C/F 10/16/25 DN 50 | C175: UN | D175: 183.04 | E175: 183.04 | F175: 0
A176: 35000185 | B176: VENTOSA SIMPLES FOFO C/ROSCA PN25 DN1" | C176: UN | D176: 325.12 | E176: 325.12 | F176: 0
A177: 35000186 | B177: VENTOSA SIMPL FOFO C/ROSCA-PN25 DN1.1/2" | C177: UN | D177: 183.04 | E177: 183.04 | F177: 0
A178: 35000187 | B178: CURVA 45º FoFo JE - C45JGS - DN150 | C178: UN | D178: 155.77 | E178: 155.77 | F178: 0
A179: 35000188 | B179: CURVA 90º FoFo FF-C90FF10/16-DN 100 | C179: UN | D179: 188.78 | E179: 188.78 | F179: 0
A180: 35000189 | B180: CURVA 90º FoFo FF-C90FF10/16-DN 150 | C180: UN | D180: 339.84 | E180: 339.84 | F180: 0
A181: 35000190 | B181: EXTREMIDADE FoFo-EPFAV10/16-DN 100 | C181: UN | D181: 285.82 | E181: 285.82 | F181: 0
A182: 35000191 | B182: TE 90º FoFo-TFF10/16-DN 150x100 | C182: UN | D182: 539.13 | E182: 539.13 | F182: 0
A183: 35000192 | B183: VALVULA RET BR PH 150 PSI R BSP D=1.1/2" | C183: UN | D183: 127.29 | E183: 127.29 | F183: 0
A184: 35000193 | B184: VALVULA RET BR PH 150 PSI R BSP D=2" | C184: UN | D184: 191.95 | E184: 191.95 | F184: 0
A185: 35000194 | B185: VALVULA RET BR PH 150 PSI R BSP D=2.1/2" | C185: UN | D185: 316.52 | E185: 316.52 | F185: 0
A186: 35000195 | B186: VALVULA RET BR PH 150 PSI R BSP D=3" | C186: UN | D186: 383.95 | E186: 383.95 | F186: 0
A187: 35000196 | B187: VALVULA RET BR PH 150 PSI R BSP D=4" | C187: UN | D187: 679.2 | E187: 679.2 | F187: 0
A188: 35000197 | B188: TUBO FoFo-TFP10/16-DN 150 L = 3,00M | C188: UN | D188: 1379.77 | E188: 1379.77 | F188: 0
A189: 35000198 | B189: CURVA 45º FoFo FF-C45FF10/16-DN 150 | C189: UN | D189: 402.7 | E189: 402.7 | F189: 0
A190: 35000199 | B190: FLANGE AVULSO FoFo-FA10/16-DN 150 | C190: UN | D190: 126.33 | E190: 126.33 | F190: 0
A191: 35000200 | B191: PLACA REDUCAO FoFo FF-PR10/16-DN 100x50 | C191: UN | D191: 147.59 | E191: 147.59 | F191: 0
A192: 35000201 | B192: PARAFUSO P/ JUNTA MECANICA-PJM-DN18x90 | C192: UN | D192: 4 | E192: 4 | F192: 0
A193: 35000202 | B193: PARAFUSO C/PORCAS P/ FLANGES-PPF DN16x80 | C193: UN | D193: 3 | E193: 3 | F193: 0
A194: 35000203 | B194: ANEL PREM. CONC. P-104/_-DN 600x320MM. | C194: UN | D194: 75.62 | E194: 75.62 | F194: =E194/D194-1 -> 0
A195: 35000204 | B195: ANEL PREM. CONC. P-104/_-DN 1000x320MM. | C195: UN | D195: 120.9 | E195: 120.9 | F195: 0
A196: 35000205 | B196: ANEL PREM. CONC. P-104/_-DN 1200x320MM. | C196: UN | D196: 138.55 | E196: 138.55 | F196: 0
A197: 35000206 | B197: LAJE RED. CA P-105/_ DE (1300x600x120)MM | C197: UN | D197: 198 | E197: 198 | F197: 0
A198: 35000207 | B198: LAJE RED. CA P-105/_ DE (1500x600x120)MM | C198: UN | D198: 231.09 | E198: 231.09 | F198: 0
A199: 35000208 | B199: TAMPAO T- 5 FOFO P/PL PADRAO 030/- | C199: UN | D199: 43.43 | E199: 43.43 | F199: 0
A200: 35000209 | B200: TAMPAO T-22 FOFO P/CX PAS. PADRAO 032/- | C200: UN | D200: 88.38 | E200: 88.38 | F200: 0
... 925 more rows

Sheet COPASA OESTE 12_2020
A1: CÓD | B1: DESCRIÇÃO | C1: UNID | D1: VR ONERADO | E1: VR DESONERADO | F1: DIF
A2: 35000000 | B2: SERVENTE AGUA - COPASA | C2: H | D2: 15.33 | E2: 13.24 | F2: =E2/D2-1 -> -0.1363339856
A3: 35000001 | B3: SERVENTE ESGOTO - COPASA | C3: H | D3: 15.33 | E3: 13.24 | F3: -0.1363339856
A4: 35000002 | B4: SERVICO AUXILIAR OPERACIONAL - COPASA | C4: H | D4: 15.33 | E4: 13.24 | F4: -0.1363339856
A5: 35000003 | B5: AUXILIAR DE LABORATORIO - COPASA | C5: H | D5: 15.64 | E5: 13.51 | F5: -0.1361892583
A6: 35000004 | B6: AUXILIAR DE ESCRITORIO CEC | C6: H | D6: 18.42 | E6: 16.26 | F6: -0.1172638436
A7: 35000005 | B7: AUXILIAR APOIO ADMINISTRATIVO - COPASA | C7: H | D7: 21.04 | E7: 18.18 | F7: -0.1359315589
A8: 35000006 | B8: ATENDENTE COMERCIAL - COPASA | C8: H | D8: 25.66 | E8: 22.16 | F8: -0.1363990647
A9: 35000007 | B9: BIOLOGO - COPASA | C9: H | D9: 69.38 | E9: 59.93 | F9: -0.1362063995
A10: 35000008 | B10: TECNICO ORCAMENTISTA CEC | C10: H | D10: 33.63 | E10: 29.34 | F10: -0.1275646744
A11: 35000009 | B11: LEITURISTA - COPASA | C11: H | D11: 21.04 | E11: 18.18 | F11: -0.1359315589
A12: 35000010 | B12: ENCARREGADO MANUTENCAO AGUA II - COPASA | C12: H | D12: 21.04 | E12: 18.18 | F12: -0.1359315589
A13: 35000011 | B13: ENCARREGADO MANUTENCAO ESGOTO I - COPASA | C13: H | D13: 21.04 | E13: 18.18 | F13: -0.1359315589
A14: 35000012 | B14: TECNICO DE LABORATORIO - COPASA | C14: H | D14: 39.66 | E14: 34.26 | F14: -0.1361573374
A15: 35000013 | B15: TECNICO DE LABORATORIO CEC | C15: H | D15: 33.65 | E15: 29.37 | F15: -0.127191679
A16: 35000014 | B16: TECNICO DE SEGURANCA DO TRABALHO CEC | C16: H | D16: 33.65 | E16: 29.37 | F16: -0.127191679
A17: 35000015 | B17: PROGRAMACAO PROCES. DADOS - COPASA | C17: H | D17: 39.66 | E17: 34.26 | F17: -0.1361573374
A18: 35000016 | B18: ENCARREGADO DE AREAS CEC | C18: H | D18: 24.81 | E18: 21.84 | F18: -0.1197097944
A19: 35000017 | B19: ENCARREGADO GERAL CEC | C19: H | D19: 33.65 | E19: 29.37 | F19: -0.127191679
A20: 35000018 | B20: CONSULTOR | C20: H | D20: 313.5 | E20: 313.5 | F20: 0
A21: 35000019 | B21: ENGENHEIRO NÍVEL I FAIXA I CEC | C21: MES | D21: 16409.87 | E21: 14192.28 | F21: -0.1351375727
A22: 35000021 | B22: ENGENHEIRO NÍVEL II FAIXA I CEC | C22: MES | D22: 18475.72 | E22: 15969.63 | F22: -0.1356423457
A23: 35000022 | B23: ENGENHEIRO NÍVEL IV FAIXA I CEC | C23: MES | D23: 23450.63 | E23: 20249.78 | F23: -0.1364931347
A24: 35000023 | B24: ENGENHEIRO NÍVEL III FAIXA I CEC | C24: MES | D24: 20810.93 | E24: 17978.72 | F24: -0.1360924284
A25: 35000024 | B25: ENGENHEIRO NÍVEL II FAIXA II CEC | C25: MES | D25: 19222.55 | E25: 16612.16 | F25: -0.1357983202
A26: 35000025 | B26: HIDROGEOLOGO CEC | C26: MES | D26: 16330.4 | E26: 14123.32 | F26: -0.1351516191
A27: 35000026 | B27: PROJETISTA CEC | C27: MES | D27: 12048.41 | E27: 10439.32 | F27: -0.1335520621
A28: 35000027 | B28: SUPERVISOR TECNICO CEC | C28: MES | D28: 8783.58 | E28: 7603.23 | F28: -0.1343814253
A29: 35000028 | B29: AUXILIAR DE PROGRAMACAO CEC | C29: MES | D29: 4732.83 | E29: 4122.9 | F29: -0.1288721547
A30: 35000029 | B30: ALMOXARIFE CEC | C30: MES | D30: 4737.1 | E30: 4127.18 | F30: -0.128753879
A31: 35000030 | B31: AUXILIAR DE ALMOXARIFE CEC | C31: MES | D31: 3786.97 | E31: 3314.35 | F31: -0.1248016224
A32: 35000032 | B32: TOPOGRAFO CEC | C32: MES | D32: 6412.6 | E32: 5560.54 | F32: -0.1328727817
A33: 35000033 | B33: TECNICO CADASTRISTA CEC | C33: MES | D33: 6408.32 | E33: 5556.26 | F33: -0.132961525
A34: 35000034 | B34: NIVELADOR CEC | C34: MES | D34: 4737.1 | E34: 4127.18 | F34: -0.128753879
A35: 35000035 | B35: AUXILIAR DE TOPOGRAFIA CEC | C35: MES | D35: 3786.97 | E35: 3314.35 | F35: -0.1248016224
A36: 35000037 | B36: TECNICO CALCULISTA CEC | C36: MES | D36: 6408.32 | E36: 5556.26 | F36: -0.132961525
A37: 35000038 | B37: DESENHISTA TECNICO (CADISTA) CEC | C37: MES | D37: 4732.83 | E37: 4122.9 | F37: -0.1288721547
A38: 35000039 | B38: ALMOXARIFE CEC | C38: H | D38: 27.22 | E38: 23.83 | F38: -0.1245407788
A39: 35000040 | B39: AUXILIAR DE ALMOXARIFE CEC | C39: H | D39: 21.77 | E39: 19.15 | F39: -0.1203491043
A40: 35000041 | B40: OFICIAL CEC | C40: H | D40: 20.76 | E40: 18.35 | F40: -0.116088632
A41: 35000042 | B41: NIVELADOR CEC | C41: H | D41: 27.22 | E41: 23.83 | F41: -0.1245407788
A42: 35000043 | B42: AUXILIAR DE OFICIAL CEC | C42: H | D42: 16.51 | E42: 14.69 | F42: -0.1102362205
A43: 35000044 | B43: SERVENTE CEC | C43: H | D43: 14.71 | E43: 13.13 | F43: -0.1074099252
A44: 35000045 | B44: TOPOGRAFO CEC | C44: H | D44: 36.82 | E44: 32.09 | F44: -0.128462792
A45: 35000046 | B45: AUXILIAR DE TOPOGRAFIA CEC | C45: H | D45: 21.77 | E45: 19.15 | F45: -0.1203491043
A46: 35000047 | B46: AUXILIAR DE OPERADOR - MAQ PESADAS CEC | C46: H | D46: 16.77 | E46: 14.88 | F46: -0.1127012522
A47: 35000048 | B47: MOTORISTA CEC | C47: H | D47: 22.14 | E47: 19.5 | F47: -0.1192411924
A48: 35000049 | B48: OPERADOR DE MAQUINAS PESADAS CEC | C48: H | D48: 24.06 | E48: 21.15 | F48: -0.1209476309
A49: 35000050 | B49: SONDADOR I - COPASA | C49: H | D49: 16.93 | E49: 14.62 | F49: -0.1364441819
A50: 35000051 | B50: SONDADOR II - COPASA | C50: H | D50: 21.04 | E50: 18.18 | F50: -0.1359315589
A51: 35000052 | B51: ACO CA-50 A OU B | C51: TO | D51: 5880 | E51: 5880 | F51: 0
A52: 35000053 | B52: ACO CA-60 A OU B | C52: TO | D52: 5880 | E52: 5880 | F52: 0
A53: 35000056 | B53: VEU DE POLIESTER 75 G/M2 | C53: M2 | D53: 2.99 | E53: 2.99 | F53: 0
A54: 35000059 | B54: LIMITADOR JUNTA TARUCEL - JUNTA 1x1CM | C54: M | D54: 0.32 | E54: 0.32 | F54: 0
A55: 35000060 | B55: LIMITADOR JUNTA TARUCEL - JUNTA 2x2CM | C55: M | D55: 0.82 | E55: 0.82 | F55: 0
A56: 35000062 | B56: ACELERADOR-IMPERMEABILIZANTE | C56: KG | D56: 8.99 | E56: 8.99 | F56: 0
A57: 35000063 | B57: RESINA POLIURETANO-MC 2300 NV OU SIMILAR | C57: L | D57: 113.96 | E57: 113.96 | F57: 0
A58: 35000064 | B58: RESINA POLIURETANO MC 2033 OU SIMILAR | C58: L | D58: 136.13 | E58: 136.13 | F58: 0
A59: 35000065 | B59: XYPEX CONCENTRADO OU SIMILAR | C59: KG | D59: 18.05 | E59: 18.05 | F59: 0
A60: 35000066 | B60: XYPEX MODIFICADO OU SIMILAR | C60: KG | D60: 16.71 | E60: 16.71 | F60: 0
A61: 35000067 | B61: XYPEX PATCH'N PLUG OU SIMILAR | C61: KG | D61: 9.28 | E61: 9.28 | F61: 0
A62: 35000068 | B62: ADESIVO EPOXICO MCDUR 1300 TX OU SIMILAR | C62: KG | D62: 22.28 | E62: 22.28 | F62: 0
A63: 35000069 | B63: SOLVENTE REINIGUNGSMITTEL U OU SIMILAR | C63: L | D63: 43 | E63: 43 | F63: 0
A64: 35000070 | B64: BEXIGA BORRACHA- BLOQUEADOR FLUXO Ø100MM | C64: UN | D64: 1850 | E64: 1850 | F64: 0
A65: 35000071 | B65: SIKA I | C65: L | D65: 5.03 | E65: 5.03 | F65: 0
A66: 35000072 | B66: SIKA CHAPISCO PLUS | C66: KG | D66: 8.04 | E66: 8.04 | F66: =E66/D66-1 -> 0
A67: 35000073 | B67: SIKA TOP 122 - BICOMPONENTE A E B | C67: KG | D67: 8.92 | E67: 8.92 | F67: 0
A68: 35000074 | B68: SIKALIT - ADITIVO IMPERMEABILIZANTE | C68: KG | D68: 15.07 | E68: 15.07 | F68: 0
A69: 35000075 | B69: SIKADUR 32 | C69: KG | D69: 90.74 | E69: 90.74 | F69: 0
A70: 35000076 | B70: ADESIVO EPOXI SIKADUR 31 | C70: KG | D70: 83.87 | E70: 83.87 | F70: 0
A71: 35000077 | B71: SIKAGROUT - 250 | C71: KG | D71: 1.25 | E71: 1.25 | F71: 0
A72: 35000078 | B72: SIKAFLEX 1A - CARTUCHO DE 310 ML | C72: UN | D72: 63.3 | E72: 63.3 | F72: 0
A73: 35000079 | B73: SIKA PRIMER 1 - LATA COM 320 ML | C73: UN | D73: 75.25 | E73: 75.25 | F73: 0
A74: 35000080 | B74: IMPERMEABILIZANTE TIPO HEYDI - K11 | C74: KG | D74: 2.67 | E74: 2.67 | F74: 0
A75: 35000081 | B75: IMPERMEABILIZANTE TIPO HEYDI - KZ | C75: KG | D75: 15.56 | E75: 15.56 | F75: 0
A76: 35000082 | B76: SIKA TOP 107 | C76: KG | D76: 6.76 | E76: 6.76 | F76: 0
A77: 35000083 | B77: SIKA TOP 108 ARMATEC | C77: KG | D77: 22.32 | E77: 22.32 | F77: 0
A78: 35000084 | B78: DESMOLDANTE PARA FORMAS | C78: L | D78: 8.31 | E78: 8.31 | F78: 0
A79: 35000085 | B79: CONCRETO - FCK 10 MPA - USINADO | C79: M3 | D79: 234.83 | E79: 234.83 | F79: 0
A80: 35000086 | B80: CONCRETO - FCK-15 MPA - USINADO | C80: M3 | D80: 254.8 | E80: 254.8 | F80: 0
A81: 35000087 | B81: CONCRETO - FCK - 20MPA - USINADO | C81: M3 | D81: 266.03 | E81: 266.03 | F81: 0
A82: 35000088 | B82: CONCRETO - FCK -25 MPA - USINADO | C82: M3 | D82: 279.33 | E82: 279.33 | F82: 0
A83: 35000089 | B83: CONCRETO-FCK-30MPA - USINADO/ADITIVO | C83: M3 | D83: 287.37 | E83: 287.37 | F83: 0
A84: 35000090 | B84: CONCRETO-FCK-35MPA - USINADO/ADITIVO | C84: M3 | D84: 294.3 | E84: 294.3 | F84: 0
A85: 35000091 | B85: CONCRETO-FCK-40MPA - USINADO/ADITIVO | C85: M3 | D85: 324.14 | E85: 324.14 | F85: 0
A86: 35000092 | B86: ARAME DE AMARRACAO GABIAO-Ø=2,2MM. | C86: KG | D86: 18.61 | E86: 18.61 | F86: 0
A87: 35000093 | B87: GABIAO-MALHA 8X10 GALV ALT=0,50M | C87: M3 | D87: 282.51 | E87: 282.51 | F87: 0
A88: 35000094 | B88: GABIAO-MALHA 8X10 GALV ALT=1,00M | C88: M3 | D88: 206.2 | E88: 206.2 | F88: 0
A89: 35000095 | B89: COLCHAO RENO-MALHA 6X 8 GPVC-E=0,30M | C89: M2 | D89: 122.01 | E89: 122.01 | F89: 0
A90: 35000096 | B90: GABIAO TIPO SACO-MALHA 8X10 REC. C/ PVC | C90: M3 | D90: 267.09 | E90: 267.09 | F90: 0
A91: 35000097 | B91: CANALETA DE CONCRETO- MEIA CANA,Ø300MM | C91: M | D91: 29.44 | E91: 29.44 | F91: 0
A92: 35000098 | B92: CANALETA DE CONCRETO- MEIA CANA,Ø400MM | C92: M | D92: 37.27 | E92: 37.27 | F92: 0
A93: 35000099 | B93: CANALETA DE CONCRETO- MEIA CANA,Ø500MM | C93: M | D93: 40.63 | E93: 40.63 | F93: 0
A94: 35000100 | B94: CANALETA DE CONCRETO- MEIA CANA,Ø600MM | C94: M | D94: 54.2 | E94: 54.2 | F94: 0
A95: 35000101 | B95: CORDEL DETONANTE NP-10 | C95: M | D95: 1.2 | E95: 1.2 | F95: 0
A96: 35000102 | B96: DINAMITE-ENCARTUCHADO, Ø 1" A 1.1/2" | C96: KG | D96: 9.95 | E96: 9.95 | F96: 0
A97: 35000103 | B97: ESPOLETA SIMPLES NR. 8 | C97: UN | D97: 2.99 | E97: 2.99 | F97: 0
A98: 35000104 | B98: ESTOPIM SIMPLES | C98: M | D98: 4.31 | E98: 4.31 | F98: 0
A99: 35000105 | B99: RETARDO P/CORDEL-NP-05/10-ESPERA 25/50MS | C99: UN | D99: 15.16 | E99: 15.16 | F99: 0
A100: 35000107 | B100: CANGA DE MINERIO DE FERRO | C100: TO | D100: 16.9 | E100: 16.9 | F100: 0
A101: 35000108 | B101: ESCORIA DE ALTO FORNO | C101: TO | D101: 71.38 | E101: 71.38 | F101: 0
A102: 35000109 | B102: BICA CORRIDA | C102: TO | D102: 25.38 | E102: 25.38 | F102: 0
A103: 35000110 | B103: BRITA GRADUADA | C103: TO | D103: 59.48 | E103: 59.48 | F103: 0
A104: 35000111 | B104: EMULSAO ASFALTICA RR-1C | C104: KG | D104: 2.53 | E104: 2.53 | F104: 0
A105: 35000112 | B105: EMULSAO ASFALTICA RR-2C | C105: KG | D105: 2.67 | E105: 2.67 | F105: 0
A106: 35000113 | B106: EMULSAO ASFALTICA CM-30 | C106: KG | D106: 4.98 | E106: 4.98 | F106: 0
A107: 35000114 | B107: MEIO FIO DE CONCRETO-12X16,7X35X80CM | C107: UN | D107: 15.04 | E107: 15.04 | F107: 0
A108: 35000115 | B108: CALCARIO - MOSAICO - CALCADA PORTUGUESA | C108: KG | D108: 0.36 | E108: 0.36 | F108: 0
A109: 35000116 | B109: PRE-MOLDADO CONCRETO-BLOQUETE-25X10CM. | C109: M2 | D109: 52 | E109: 52 | F109: 0
A110: 35000117 | B110: CONCRETO BETUMINOSO USINADO-CBUQ-FX-"C" | C110: TO | D110: 395 | E110: 395 | F110: 0
A111: 35000118 | B111: PARALELEPIPEDO | C111: UN | D111: 3.2 | E111: 3.2 | F111: 0
A112: 35000119 | B112: POLIEDRICO | C112: M3 | D112: 56.84 | E112: 56.84 | F112: 0
A113: 35000120 | B113: PRE-MOLDADO CONCRETO INTERTRAVADO-E=8CM | C113: M2 | D113: 34.1 | E113: 34.1 | F113: 0
A114: 35000121 | B114: GASOLINA TIPO A - COMUM | C114: L | D114: 4.71 | E114: 4.71 | F114: 0
A115: 35000122 | B115: OLEO DIESEL | C115: L | D115: 3.69 | E115: 3.69 | F115: 0
A116: 35000123 | B116: OLEO P/ FERRAMENTAS PNEUMATICAS-FP68 | C116: L | D116: 9.09 | E116: 9.09 | F116: 0
A117: 35000124 | B117: GRAXA LUBRAX GMA - 2 | C117: KG | D117: 22.91 | E117: 22.91 | F117: 0
A118: 35000125 | B118: GRAMA EM PLACAS | C118: M2 | D118: 7.38 | E118: 7.38 | F118: 0
A119: 35000126 | B119: TERRA VEGETAL | C119: M3 | D119: 56.89 | E119: 56.89 | F119: 0
A120: 35000127 | B120: MOURAO - P-COPASA 126 / L = 2,20+/-0,05M | C120: UN | D120: 35.36 | E120: 35.36 | F120: 0
A121: 35000128 | B121: MOURAO MADEIRA -11/13 CM - ALT =2,20M. | C121: UN | D121: 13.33 | E121: 13.33 | F121: 0
A122: 35000129 | B122: MOURAO ESCORA-P-COPASA126/L=2,50+/-0,05M | C122: UN | D122: 31.97 | E122: 31.97 | F122: 0
A123: 35000130 | B123: MOURAO CONC. P-COPASA126 /L=2,80+/-0,06M | C123: UN | D123: 34.16 | E123: 34.16 | F123: 0
A124: 35000131 | B124: PLACA DE IDENTIFICACAO DE OBRA | C124: M2 | D124: 212.69 | E124: 212.69 | F124: 0
A125: 35000132 | B125: CONE PARA SINALIZACAO - P-COPASA - 065/- | C125: UN | D125: 28.1 | E125: 28.1 | F125: 0
A126: 35000133 | B126: PLACA "DISTANCIA DE OBRA"-P-COPASA 066/- | C126: UN | D126: 77.5 | E126: 77.5 | F126: 0
A127: 35000134 | B127: CAVALETE DUPLA FACE - CONFORME MIVC | C127: UN | D127: 350.63 | E127: 350.63 | F127: 0
A128: 35000135 | B128: TRIPE PARA BANDEIROLAS - P-COPASA -102/- | C128: UN | D128: 156.61 | E128: 156.61 | F128: 0
A129: 35000136 | B129: GRADE MODULAR SINALIZACAO-P-COPASA 177/- | C129: UN | D129: 340.32 | E129: 340.32 | F129: 0
A130: 35000137 | B130: FITA ZEBRADA AMARELO E PRETA L = 75MM | C130: UN | D130: 8.72 | E130: 8.72 | F130: =E130/D130-1 -> 0
A131: 35000140 | B131: ELETRODO P/ACOS, ILMENITICO Ø = 4MM | C131: KG | D131: 17.75 | E131: 17.75 | F131: 0
A132: 35000141 | B132: ACETILENO | C132: KG | D132: 29.6 | E132: 29.6 | F132: 0
A133: 35000142 | B133: OXIGENIO | C133: M3 | D133: 7.57 | E133: 7.57 | F133: 0
A134: 35000143 | B134: MANILHA CERAMICA CL B/C DN100 | C134: M | D134: 9.9 | E134: 9.9 | F134: 0
A135: 35000144 | B135: MANILHA CERAMICA CL B/C DN200 | C135: M | D135: 21.85 | E135: 21.85 | F135: 0
A136: 35000145 | B136: SELIM CERAMICO CL C - 90 GR DN150X100 | C136: UN | D136: 50.62 | E136: 50.62 | F136: 0
A137: 35000146 | B137: SELIM CERAMICO CL C - 90 GR DN200X100 | C137: UN | D137: 50.62 | E137: 50.62 | F137: 0
A138: 35000147 | B138: SELA CERAMICA P.RETA DN200X210X135MM | C138: UN | D138: 26 | E138: 26 | F138: 0
A139: 35000148 | B139: TUBO CERAMICO DRENO PB DE100MM | C139: M | D139: 9.67 | E139: 9.67 | F139: 0
A140: 35000149 | B140: TUBO CERAMICO DRENO PB DE150MM | C140: M | D140: 14.73 | E140: 14.73 | F140: 0
A141: 35000150 | B141: TUBO CERAMICO DRENO PB DE200MM | C141: M | D141: 23.27 | E141: 23.27 | F141: 0
A142: 35000151 | B142: TUBO CONCRETO ARM PA1 PB JR DN1000 | C142: M | D142: 231.46 | E142: 231.46 | F142: 0
A143: 35000152 | B143: TUBO CONCRETO SIMPLES PB JR PS-1 DN600 | C143: M | D143: 76 | E143: 76 | F143: 0
A144: 35000153 | B144: TAMPA LAMINADA FV C/ALCAS-1020X1020X5MM | C144: UN | D144: 1380.75 | E144: 1380.75 | F144: 0
A145: 35000154 | B145: COTOVELO ADAP P/PEAD FG (KTL) D1/2"x20MM | C145: UN | D145: 30.09 | E145: 30.09 | F145: 0
A146: 35000155 | B146: UNIAO POLIPROPILENO (PEAD) D20MMx1/2" | C146: UN | D146: 1.56 | E146: 1.56 | F146: 0
A147: 35000156 | B147: TUBO POLIETILENO (PEAD) D20MM - PRETO | C147: M | D147: 2.68 | E147: 2.68 | F147: 0
A148: 35000157 | B148: TUBO POLIETILENO (PEAD) D20MM-AZUL GR3 | C148: M | D148: 2.85 | E148: 2.85 | F148: 0
A149: 35000158 | B149: ADESIVO PARA PVC RIGIDO | C149: KG | D149: 31.46 | E149: 31.46 | F149: 0
A150: 35000159 | B150: PASTA LUBRIFICANTE | C150: KG | D150: 20.38 | E150: 20.38 | F150: 0
A151: 35000160 | B151: SOLUCAO LIMPADORA P/ PVC RIGIDO | C151: L | D151: 36.6 | E151: 36.6 | F151: 0
A152: 35000161 | B152: ANEL BORRACHA TOROIDAL-AJE-DN50 DE60MM | C152: UN | D152: 1.09 | E152: 1.09 | F152: 0
A153: 35000162 | B153: ANEL BORRACHA TOROIDAL-AJE-DN75 DE85MM | C153: UN | D153: 1.63 | E153: 1.63 | F153: 0
A154: 35000163 | B154: ANEL BORRACHA TOROIDAL-AJE-DN100 DE110MM | C154: UN | D154: 2.05 | E154: 2.05 | F154: 0
A155: 35000164 | B155: ADAPTADOR PVC PBA BFF DN100x100 DE110MM | C155: UN | D155: 21.29 | E155: 21.29 | F155: 0
A156: 35000165 | B156: CURVA 90 GR RL PVC PBA JE DN75 DE85 MM | C156: UN | D156: 26.12 | E156: 26.12 | F156: 0
A157: 35000166 | B157: CURVA 90 GR RL PVC PBA JE DN100 DE110 MM | C157: UN | D157: 52.83 | E157: 52.83 | F157: 0
A158: 35000167 | B158: CANALETA RETA TUBO PVC PB DN 100. | C158: UN | D158: 14.07 | E158: 14.07 | F158: 0
A159: 35000168 | B159: TE 90 GR PVC BBB JE DN50 DE60MM | C159: UN | D159: 17.59 | E159: 17.59 | F159: 0
A160: 35000169 | B160: TUBO PVC PBA CL15 DN50 DE60MM | C160: M | D160: 6.12 | E160: 6.12 | F160: 0
A161: 35000170 | B161: TUBO PVC PBA CL15 DN75 DE85MM | C161: M | D161: 13.68 | E161: 13.68 | F161: 0
A162: 35000171 | B162: TUBO PVC PBA CL15 DN100 DE110MM | C162: M | D162: 20.78 | E162: 20.78 | F162: 0
A163: 35000172 | B163: TUBO PVC PBA CL20 DN50 DE 60MM | C163: M | D163: 7.42 | E163: 7.42 | F163: 0
A164: 35000173 | B164: TUBO PVC PBA CL20 DN75 DE 85MM | C164: M | D164: 17.27 | E164: 17.27 | F164: 0
A165: 35000174 | B165: TUBO PVC PBA CL20 DN100 DE110MM | C165: M | D165: 26.21 | E165: 26.21 | F165: 0
A166: 35000175 | B166: TUBO PVC RIG. DEFOFO PBA JE DN150 | C166: M | D166: 40.64 | E166: 40.64 | F166: 0
A167: 35000176 | B167: AGENTE ESPUMANTE DRILLFOAN OU SIMILAR | C167: L | D167: 26.53 | E167: 26.53 | F167: 0
A168: 35000177 | B168: AREIA SELECIONADA - TIPO PEROLA | C168: KG | D168: 1.1 | E168: 1.1 | F168: 0
A169: 35000178 | B169: HEXAMETAFOSFATO DE SODIO 69% DE P2O5 | C169: KG | D169: 18 | E169: 18 | F169: 0
A170: 35000179 | B170: BENTONITA ATIVADA | C170: KG | D170: 1.06 | E170: 1.06 | F170: 0
A171: 35000180 | B171: REGISTRO GAVETA, FoFo-RCFV16, DN 50 | C171: UN | D171: 434.11 | E171: 434.11 | F171: 0
A172: 35000181 | B172: REGISTRO S. METRICA CHATA RCFV16 DN 75 | C172: UN | D172: 604.42 | E172: 604.42 | F172: 0
A173: 35000182 | B173: REGISTRO S. METRICA CHATA RCFV16 DN 150 | C173: UN | D173: 1597.54 | E173: 1597.54 | F173: 0
A174: 35000183 | B174: VALVULA RETENCAO FoFo VRPUS16 - DN 150 | C174: UN | D174: 1433.31 | E174: 1433.31 | F174: 0
A175: 35000184 | B175: VENTOSA SIMPLES FOFO C/F 10/16/25 DN 50 | C175: UN | D175: 183.04 | E175: 183.04 | F175: 0
A176: 35000185 | B176: VENTOSA SIMPLES FOFO C/ROSCA PN25 DN1" | C176: UN | D176: 325.12 | E176: 325.12 | F176: 0
A177: 35000186 | B177: VENTOSA SIMPL FOFO C/ROSCA-PN25 DN1.1/2" | C177: UN | D177: 183.04 | E177: 183.04 | F177: 0
A178: 35000187 | B178: CURVA 45º FoFo JE - C45JGS - DN150 | C178: UN | D178: 155.77 | E178: 155.77 | F178: 0
A179: 35000188 | B179: CURVA 90º FoFo FF-C90FF10/16-DN 100 | C179: UN | D179: 188.78 | E179: 188.78 | F179: 0
A180: 35000189 | B180: CURVA 90º FoFo FF-C90FF10/16-DN 150 | C180: UN | D180: 339.84 | E180: 339.84 | F180: 0
A181: 35000190 | B181: EXTREMIDADE FoFo-EPFAV10/16-DN 100 | C181: UN | D181: 285.82 | E181: 285.82 | F181: 0
A182: 35000191 | B182: TE 90º FoFo-TFF10/16-DN 150x100 | C182: UN | D182: 539.13 | E182: 539.13 | F182: 0
A183: 35000192 | B183: VALVULA RET BR PH 150 PSI R BSP D=1.1/2" | C183: UN | D183: 127.29 | E183: 127.29 | F183: 0
A184: 35000193 | B184: VALVULA RET BR PH 150 PSI R BSP D=2" | C184: UN | D184: 191.95 | E184: 191.95 | F184: 0
A185: 35000194 | B185: VALVULA RET BR PH 150 PSI R BSP D=2.1/2" | C185: UN | D185: 316.52 | E185: 316.52 | F185: 0
A186: 35000195 | B186: VALVULA RET BR PH 150 PSI R BSP D=3" | C186: UN | D186: 383.95 | E186: 383.95 | F186: 0
A187: 35000196 | B187: VALVULA RET BR PH 150 PSI R BSP D=4" | C187: UN | D187: 679.2 | E187: 679.2 | F187: 0
A188: 35000197 | B188: TUBO FoFo-TFP10/16-DN 150 L = 3,00M | C188: UN | D188: 1379.77 | E188: 1379.77 | F188: 0
A189: 35000198 | B189: CURVA 45º FoFo FF-C45FF10/16-DN 150 | C189: UN | D189: 402.7 | E189: 402.7 | F189: 0
A190: 35000199 | B190: FLANGE AVULSO FoFo-FA10/16-DN 150 | C190: UN | D190: 126.33 | E190: 126.33 | F190: 0
A191: 35000200 | B191: PLACA REDUCAO FoFo FF-PR10/16-DN 100x50 | C191: UN | D191: 147.59 | E191: 147.59 | F191: 0
A192: 35000201 | B192: PARAFUSO P/ JUNTA MECANICA-PJM-DN18x90 | C192: UN | D192: 4 | E192: 4 | F192: 0
A193: 35000202 | B193: PARAFUSO C/PORCAS P/ FLANGES-PPF DN16x80 | C193: UN | D193: 3 | E193: 3 | F193: 0
A194: 35000203 | B194: ANEL PREM. CONC. P-104/_-DN 600x320MM. | C194: UN | D194: 75.62 | E194: 75.62 | F194: =E194/D194-1 -> 0
A195: 35000204 | B195: ANEL PREM. CONC. P-104/_-DN 1000x320MM. | C195: UN | D195: 120.9 | E195: 120.9 | F195: 0
A196: 35000205 | B196: ANEL PREM. CONC. P-104/_-DN 1200x320MM. | C196: UN | D196: 138.55 | E196: 138.55 | F196: 0
A197: 35000206 | B197: LAJE RED. CA P-105/_ DE (1300x600x120)MM | C197: UN | D197: 198 | E197: 198 | F197: 0
A198: 35000207 | B198: LAJE RED. CA P-105/_ DE (1500x600x120)MM | C198: UN | D198: 231.09 | E198: 231.09 | F198: 0
A199: 35000208 | B199: TAMPAO T- 5 FOFO P/PL PADRAO 030/- | C199: UN | D199: 43.43 | E199: 43.43 | F199: 0
A200: 35000209 | B200: TAMPAO T-22 FOFO P/CX PAS. PADRAO 032/- | C200: UN | D200: 88.38 | E200: 88.38 | F200: 0
... 925 more rows

Sheet COPASA SUDESTE 12_2020
A1: CÓD | B1: DESCRIÇÃO | C1: UNID | D1: VR ONERADO | E1: VR DESONERADO | F1: DIF
A2: 35000000 | B2: SERVENTE AGUA - COPASA | C2: H | D2: 15.33 | E2: 13.24 | F2: =E2/D2-1 -> -0.1363339856
A3: 35000001 | B3: SERVENTE ESGOTO - COPASA | C3: H | D3: 15.33 | E3: 13.24 | F3: -0.1363339856
A4: 35000002 | B4: SERVICO AUXILIAR OPERACIONAL - COPASA | C4: H | D4: 15.33 | E4: 13.24 | F4: -0.1363339856
A5: 35000003 | B5: AUXILIAR DE LABORATORIO - COPASA | C5: H | D5: 15.64 | E5: 13.51 | F5: -0.1361892583
A6: 35000004 | B6: AUXILIAR DE ESCRITORIO CEC | C6: H | D6: 18.42 | E6: 16.26 | F6: -0.1172638436
A7: 35000005 | B7: AUXILIAR APOIO ADMINISTRATIVO - COPASA | C7: H | D7: 21.04 | E7: 18.18 | F7: -0.1359315589
A8: 35000006 | B8: ATENDENTE COMERCIAL - COPASA | C8: H | D8: 25.66 | E8: 22.16 | F8: -0.1363990647
A9: 35000007 | B9: BIOLOGO - COPASA | C9: H | D9: 69.38 | E9: 59.93 | F9: -0.1362063995
A10: 35000008 | B10: TECNICO ORCAMENTISTA CEC | C10: H | D10: 33.63 | E10: 29.34 | F10: -0.1275646744
A11: 35000009 | B11: LEITURISTA - COPASA | C11: H | D11: 21.04 | E11: 18.18 | F11: -0.1359315589
A12: 35000010 | B12: ENCARREGADO MANUTENCAO AGUA II - COPASA | C12: H | D12: 21.04 | E12: 18.18 | F12: -0.1359315589
A13: 35000011 | B13: ENCARREGADO MANUTENCAO ESGOTO I - COPASA | C13: H | D13: 21.04 | E13: 18.18 | F13: -0.1359315589
A14: 35000012 | B14: TECNICO DE LABORATORIO - COPASA | C14: H | D14: 39.66 | E14: 34.26 | F14: -0.1361573374
A15: 35000013 | B15: TECNICO DE LABORATORIO CEC | C15: H | D15: 33.65 | E15: 29.37 | F15: -0.127191679
A16: 35000014 | B16: TECNICO DE SEGURANCA DO TRABALHO CEC | C16: H | D16: 33.65 | E16: 29.37 | F16: -0.127191679
A17: 35000015 | B17: PROGRAMACAO PROCES. DADOS - COPASA | C17: H | D17: 39.66 | E17: 34.26 | F17: -0.1361573374
A18: 35000016 | B18: ENCARREGADO DE AREAS CEC | C18: H | D18: 24.81 | E18: 21.84 | F18: -0.1197097944
A19: 35000017 | B19: ENCARREGADO GERAL CEC | C19: H | D19: 33.65 | E19: 29.37 | F19: -0.127191679
A20: 35000018 | B20: CONSULTOR | C20: H | D20: 313.5 | E20: 313.5 | F20: 0
A21: 35000019 | B21: ENGENHEIRO NÍVEL I FAIXA I CEC | C21: MES | D21: 16409.87 | E21: 14192.28 | F21: -0.1351375727
A22: 35000021 | B22: ENGENHEIRO NÍVEL II FAIXA I CEC | C22: MES | D22: 18475.72 | E22: 15969.63 | F22: -0.1356423457
A23: 35000022 | B23: ENGENHEIRO NÍVEL IV FAIXA I CEC | C23: MES | D23: 23450.63 | E23: 20249.78 | F23: -0.1364931347
A24: 35000023 | B24: ENGENHEIRO NÍVEL III FAIXA I CEC | C24: MES | D24: 20810.93 | E24: 17978.72 | F24: -0.1360924284
A25: 35000024 | B25: ENGENHEIRO NÍVEL II FAIXA II CEC | C25: MES | D25: 19222.55 | E25: 16612.16 | F25: -0.1357983202
A26: 35000025 | B26: HIDROGEOLOGO CEC | C26: MES | D26: 16330.4 | E26: 14123.32 | F26: -0.1351516191
A27: 35000026 | B27: PROJETISTA CEC | C27: MES | D27: 12048.41 | E27: 10439.32 | F27: -0.1335520621
A28: 35000027 | B28: SUPERVISOR TECNICO CEC | C28: MES | D28: 8783.58 | E28: 7603.23 | F28: -0.1343814253
A29: 35000028 | B29: AUXILIAR DE PROGRAMACAO CEC | C29: MES | D29: 4732.83 | E29: 4122.9 | F29: -0.1288721547
A30: 35000029 | B30: ALMOXARIFE CEC | C30: MES | D30: 4737.1 | E30: 4127.18 | F30: -0.128753879
A31: 35000030 | B31: AUXILIAR DE ALMOXARIFE CEC | C31: MES | D31: 3786.97 | E31: 3314.35 | F31: -0.1248016224
A32: 35000032 | B32: TOPOGRAFO CEC | C32: MES | D32: 6412.6 | E32: 5560.54 | F32: -0.1328727817
A33: 35000033 | B33: TECNICO CADASTRISTA CEC | C33: MES | D33: 6408.32 | E33: 5556.26 | F33: -0.132961525
A34: 35000034 | B34: NIVELADOR CEC | C34: MES | D34: 4737.1 | E34: 4127.18 | F34: -0.128753879
A35: 35000035 | B35: AUXILIAR DE TOPOGRAFIA CEC | C35: MES | D35: 3786.97 | E35: 3314.35 | F35: -0.1248016224
A36: 35000037 | B36: TECNICO CALCULISTA CEC | C36: MES | D36: 6408.32 | E36: 5556.26 | F36: -0.132961525
A37: 35000038 | B37: DESENHISTA TECNICO (CADISTA) CEC | C37: MES | D37: 4732.83 | E37: 4122.9 | F37: -0.1288721547
A38: 35000039 | B38: ALMOXARIFE CEC | C38: H | D38: 27.22 | E38: 23.83 | F38: -0.1245407788
A39: 35000040 | B39: AUXILIAR DE ALMOXARIFE CEC | C39: H | D39: 21.77 | E39: 19.15 | F39: -0.1203491043
A40: 35000041 | B40: OFICIAL CEC | C40: H | D40: 20.76 | E40: 18.35 | F40: -0.116088632
A41: 35000042 | B41: NIVELADOR CEC | C41: H | D41: 27.22 | E41: 23.83 | F41: -0.1245407788
A42: 35000043 | B42: AUXILIAR DE OFICIAL CEC | C42: H | D42: 16.51 | E42: 14.69 | F42: -0.1102362205
A43: 35000044 | B43: SERVENTE CEC | C43: H | D43: 14.71 | E43: 13.13 | F43: -0.1074099252
A44: 35000045 | B44: TOPOGRAFO CEC | C44: H | D44: 36.82 | E44: 32.09 | F44: -0.128462792
A45: 35000046 | B45: AUXILIAR DE TOPOGRAFIA CEC | C45: H | D45: 21.77 | E45: 19.15 | F45: -0.1203491043
A46: 35000047 | B46: AUXILIAR DE OPERADOR - MAQ PESADAS CEC | C46: H | D46: 16.77 | E46: 14.88 | F46: -0.1127012522
A47: 35000048 | B47: MOTORISTA CEC | C47: H | D47: 22.14 | E47: 19.5 | F47: -0.1192411924
A48: 35000049 | B48: OPERADOR DE MAQUINAS PESADAS CEC | C48: H | D48: 24.06 | E48: 21.15 | F48: -0.1209476309
A49: 35000050 | B49: SONDADOR I - COPASA | C49: H | D49: 16.93 | E49: 14.62 | F49: -0.1364441819
A50: 35000051 | B50: SONDADOR II - COPASA | C50: H | D50: 21.04 | E50: 18.18 | F50: -0.1359315589
A51: 35000052 | B51: ACO CA-50 A OU B | C51: TO | D51: 5880 | E51: 5880 | F51: 0
A52: 35000053 | B52: ACO CA-60 A OU B | C52: TO | D52: 5880 | E52: 5880 | F52: 0
A53: 35000056 | B53: VEU DE POLIESTER 75 G/M2 | C53: M2 | D53: 2.99 | E53: 2.99 | F53: 0
A54: 35000059 | B54: LIMITADOR JUNTA TARUCEL - JUNTA 1x1CM | C54: M | D54: 0.32 | E54: 0.32 | F54: 0
A55: 35000060 | B55: LIMITADOR JUNTA TARUCEL - JUNTA 2x2CM | C55: M | D55: 0.82 | E55: 0.82 | F55: 0
A56: 35000062 | B56: ACELERADOR-IMPERMEABILIZANTE | C56: KG | D56: 8.99 | E56: 8.99 | F56: 0
A57: 35000063 | B57: RESINA POLIURETANO-MC 2300 NV OU SIMILAR | C57: L | D57: 113.96 | E57: 113.96 | F57: 0
A58: 35000064 | B58: RESINA POLIURETANO MC 2033 OU SIMILAR | C58: L | D58: 136.13 | E58: 136.13 | F58: 0
A59: 35000065 | B59: XYPEX CONCENTRADO OU SIMILAR | C59: KG | D59: 18.05 | E59: 18.05 | F59: 0
A60: 35000066 | B60: XYPEX MODIFICADO OU SIMILAR | C60: KG | D60: 16.71 | E60: 16.71 | F60: 0
A61: 35000067 | B61: XYPEX PATCH'N PLUG OU SIMILAR | C61: KG | D61: 9.28 | E61: 9.28 | F61: 0
A62: 35000068 | B62: ADESIVO EPOXICO MCDUR 1300 TX OU SIMILAR | C62: KG | D62: 22.28 | E62: 22.28 | F62: 0
A63: 35000069 | B63: SOLVENTE REINIGUNGSMITTEL U OU SIMILAR | C63: L | D63: 43 | E63: 43 | F63: 0
A64: 35000070 | B64: BEXIGA BORRACHA- BLOQUEADOR FLUXO Ø100MM | C64: UN | D64: 1850 | E64: 1850 | F64: 0
A65: 35000071 | B65: SIKA I | C65: L | D65: 5.03 | E65: 5.03 | F65: 0
A66: 35000072 | B66: SIKA CHAPISCO PLUS | C66: KG | D66: 8.04 | E66: 8.04 | F66: =E66/D66-1 -> 0
A67: 35000073 | B67: SIKA TOP 122 - BICOMPONENTE A E B | C67: KG | D67: 8.92 | E67: 8.92 | F67: 0
A68: 35000074 | B68: SIKALIT - ADITIVO IMPERMEABILIZANTE | C68: KG | D68: 15.07 | E68: 15.07 | F68: 0
A69: 35000075 | B69: SIKADUR 32 | C69: KG | D69: 90.74 | E69: 90.74 | F69: 0
A70: 35000076 | B70: ADESIVO EPOXI SIKADUR 31 | C70: KG | D70: 83.87 | E70: 83.87 | F70: 0
A71: 35000077 | B71: SIKAGROUT - 250 | C71: KG | D71: 1.25 | E71: 1.25 | F71: 0
A72: 35000078 | B72: SIKAFLEX 1A - CARTUCHO DE 310 ML | C72: UN | D72: 63.3 | E72: 63.3 | F72: 0
A73: 35000079 | B73: SIKA PRIMER 1 - LATA COM 320 ML | C73: UN | D73: 75.25 | E73: 75.25 | F73: 0
A74: 35000080 | B74: IMPERMEABILIZANTE TIPO HEYDI - K11 | C74: KG | D74: 2.67 | E74: 2.67 | F74: 0
A75: 35000081 | B75: IMPERMEABILIZANTE TIPO HEYDI - KZ | C75: KG | D75: 15.56 | E75: 15.56 | F75: 0
A76: 35000082 | B76: SIKA TOP 107 | C76: KG | D76: 6.76 | E76: 6.76 | F76: 0
A77: 35000083 | B77: SIKA TOP 108 ARMATEC | C77: KG | D77: 22.32 | E77: 22.32 | F77: 0
A78: 35000084 | B78: DESMOLDANTE PARA FORMAS | C78: L | D78: 8.31 | E78: 8.31 | F78: 0
A79: 35000085 | B79: CONCRETO - FCK 10 MPA - USINADO | C79: M3 | D79: 264.82 | E79: 264.82 | F79: 0
A80: 35000086 | B80: CONCRETO - FCK-15 MPA - USINADO | C80: M3 | D80: 287.34 | E80: 287.34 | F80: 0
A81: 35000087 | B81: CONCRETO - FCK - 20MPA - USINADO | C81: M3 | D81: 300.01 | E81: 300.01 | F81: 0
A82: 35000088 | B82: CONCRETO - FCK -25 MPA - USINADO | C82: M3 | D82: 315 | E82: 315 | F82: 0
A83: 35000089 | B83: CONCRETO-FCK-30MPA - USINADO/ADITIVO | C83: M3 | D83: 287.37 | E83: 287.37 | F83: 0
A84: 35000090 | B84: CONCRETO-FCK-35MPA - USINADO/ADITIVO | C84: M3 | D84: 294.3 | E84: 294.3 | F84: 0
A85: 35000091 | B85: CONCRETO-FCK-40MPA - USINADO/ADITIVO | C85: M3 | D85: 324.14 | E85: 324.14 | F85: 0
A86: 35000092 | B86: ARAME DE AMARRACAO GABIAO-Ø=2,2MM. | C86: KG | D86: 18.61 | E86: 18.61 | F86: 0
A87: 35000093 | B87: GABIAO-MALHA 8X10 GALV ALT=0,50M | C87: M3 | D87: 282.51 | E87: 282.51 | F87: 0
A88: 35000094 | B88: GABIAO-MALHA 8X10 GALV ALT=1,00M | C88: M3 | D88: 206.2 | E88: 206.2 | F88: 0
A89: 35000095 | B89: COLCHAO RENO-MALHA 6X 8 GPVC-E=0,30M | C89: M2 | D89: 122.01 | E89: 122.01 | F89: 0
A90: 35000096 | B90: GABIAO TIPO SACO-MALHA 8X10 REC. C/ PVC | C90: M3 | D90: 267.09 | E90: 267.09 | F90: 0
A91: 35000097 | B91: CANALETA DE CONCRETO- MEIA CANA,Ø300MM | C91: M | D91: 29.44 | E91: 29.44 | F91: 0
A92: 35000098 | B92: CANALETA DE CONCRETO- MEIA CANA,Ø400MM | C92: M | D92: 37.27 | E92: 37.27 | F92: 0
A93: 35000099 | B93: CANALETA DE CONCRETO- MEIA CANA,Ø500MM | C93: M | D93: 40.63 | E93: 40.63 | F93: 0
A94: 35000100 | B94: CANALETA DE CONCRETO- MEIA CANA,Ø600MM | C94: M | D94: 54.2 | E94: 54.2 | F94: 0
A95: 35000101 | B95: CORDEL DETONANTE NP-10 | C95: M | D95: 1.2 | E95: 1.2 | F95: 0
A96: 35000102 | B96: DINAMITE-ENCARTUCHADO, Ø 1" A 1.1/2" | C96: KG | D96: 9.95 | E96: 9.95 | F96: 0
A97: 35000103 | B97: ESPOLETA SIMPLES NR. 8 | C97: UN | D97: 2.99 | E97: 2.99 | F97: 0
A98: 35000104 | B98: ESTOPIM SIMPLES | C98: M | D98: 4.31 | E98: 4.31 | F98: 0
A99: 35000105 | B99: RETARDO P/CORDEL-NP-05/10-ESPERA 25/50MS | C99: UN | D99: 15.16 | E99: 15.16 | F99: 0
A100: 35000107 | B100: CANGA DE MINERIO DE FERRO | C100: TO | D100: 16.9 | E100: 16.9 | F100: 0
A101: 35000108 | B101: ESCORIA DE ALTO FORNO | C101: TO | D101: 71.38 | E101: 71.38 | F101: 0
A102: 35000109 | B102: BICA CORRIDA | C102: TO | D102: 25.38 | E102: 25.38 | F102: 0
A103: 35000110 | B103: BRITA GRADUADA | C103: TO | D103: 59.48 | E103: 59.48 | F103: 0
A104: 35000111 | B104: EMULSAO ASFALTICA RR-1C | C104: KG | D104: 2.53 | E104: 2.53 | F104: 0
A105: 35000112 | B105: EMULSAO ASFALTICA RR-2C | C105: KG | D105: 2.67 | E105: 2.67 | F105: 0
A106: 35000113 | B106: EMULSAO ASFALTICA CM-30 | C106: KG | D106: 4.98 | E106: 4.98 | F106: 0
A107: 35000114 | B107: MEIO FIO DE CONCRETO-12X16,7X35X80CM | C107: UN | D107: 15.04 | E107: 15.04 | F107: 0
A108: 35000115 | B108: CALCARIO - MOSAICO - CALCADA PORTUGUESA | C108: KG | D108: 0.36 | E108: 0.36 | F108: 0
A109: 35000116 | B109: PRE-MOLDADO CONCRETO-BLOQUETE-25X10CM. | C109: M2 | D109: 52 | E109: 52 | F109: 0
A110: 35000117 | B110: CONCRETO BETUMINOSO USINADO-CBUQ-FX-"C" | C110: TO | D110: 350.83 | E110: 350.83 | F110: 0
A111: 35000118 | B111: PARALELEPIPEDO | C111: UN | D111: 3.2 | E111: 3.2 | F111: 0
A112: 35000119 | B112: POLIEDRICO | C112: M3 | D112: 56.84 | E112: 56.84 | F112: 0
A113: 35000120 | B113: PRE-MOLDADO CONCRETO INTERTRAVADO-E=8CM | C113: M2 | D113: 34.1 | E113: 34.1 | F113: 0
A114: 35000121 | B114: GASOLINA TIPO A - COMUM | C114: L | D114: 4.68 | E114: 4.68 | F114: 0
A115: 35000122 | B115: OLEO DIESEL | C115: L | D115: 3.7 | E115: 3.7 | F115: 0
A116: 35000123 | B116: OLEO P/ FERRAMENTAS PNEUMATICAS-FP68 | C116: L | D116: 9.09 | E116: 9.09 | F116: 0
A117: 35000124 | B117: GRAXA LUBRAX GMA - 2 | C117: KG | D117: 22.91 | E117: 22.91 | F117: 0
A118: 35000125 | B118: GRAMA EM PLACAS | C118: M2 | D118: 7.01 | E118: 7.01 | F118: 0
A119: 35000126 | B119: TERRA VEGETAL | C119: M3 | D119: 56.89 | E119: 56.89 | F119: 0
A120: 35000127 | B120: MOURAO - P-COPASA 126 / L = 2,20+/-0,05M | C120: UN | D120: 35.36 | E120: 35.36 | F120: 0
A121: 35000128 | B121: MOURAO MADEIRA -11/13 CM - ALT =2,20M. | C121: UN | D121: 13.33 | E121: 13.33 | F121: 0
A122: 35000129 | B122: MOURAO ESCORA-P-COPASA126/L=2,50+/-0,05M | C122: UN | D122: 31.97 | E122: 31.97 | F122: 0
A123: 35000130 | B123: MOURAO CONC. P-COPASA126 /L=2,80+/-0,06M | C123: UN | D123: 34.16 | E123: 34.16 | F123: 0
A124: 35000131 | B124: PLACA DE IDENTIFICACAO DE OBRA | C124: M2 | D124: 212.69 | E124: 212.69 | F124: 0
A125: 35000132 | B125: CONE PARA SINALIZACAO - P-COPASA - 065/- | C125: UN | D125: 28.1 | E125: 28.1 | F125: 0
A126: 35000133 | B126: PLACA "DISTANCIA DE OBRA"-P-COPASA 066/- | C126: UN | D126: 77.5 | E126: 77.5 | F126: 0
A127: 35000134 | B127: CAVALETE DUPLA FACE - CONFORME MIVC | C127: UN | D127: 350.63 | E127: 350.63 | F127: 0
A128: 35000135 | B128: TRIPE PARA BANDEIROLAS - P-COPASA -102/- | C128: UN | D128: 156.61 | E128: 156.61 | F128: 0
A129: 35000136 | B129: GRADE MODULAR SINALIZACAO-P-COPASA 177/- | C129: UN | D129: 340.32 | E129: 340.32 | F129: 0
A130: 35000137 | B130: FITA ZEBRADA AMARELO E PRETA L = 75MM | C130: UN | D130: 8.72 | E130: 8.72 | F130: =E130/D130-1 -> 0
A131: 35000140 | B131: ELETRODO P/ACOS, ILMENITICO Ø = 4MM | C131: KG | D131: 17.75 | E131: 17.75 | F131: 0
A132: 35000141 | B132: ACETILENO | C132: KG | D132: 29.6 | E132: 29.6 | F132: 0
A133: 35000142 | B133: OXIGENIO | C133: M3 | D133: 7.57 | E133: 7.57 | F133: 0
A134: 35000143 | B134: MANILHA CERAMICA CL B/C DN100 | C134: M | D134: 9.9 | E134: 9.9 | F134: 0
A135: 35000144 | B135: MANILHA CERAMICA CL B/C DN200 | C135: M | D135: 21.85 | E135: 21.85 | F135: 0
A136: 35000145 | B136: SELIM CERAMICO CL C - 90 GR DN150X100 | C136: UN | D136: 50.62 | E136: 50.62 | F136: 0
A137: 35000146 | B137: SELIM CERAMICO CL C - 90 GR DN200X100 | C137: UN | D137: 50.62 | E137: 50.62 | F137: 0
A138: 35000147 | B138: SELA CERAMICA P.RETA DN200X210X135MM | C138: UN | D138: 26 | E138: 26 | F138: 0
A139: 35000148 | B139: TUBO CERAMICO DRENO PB DE100MM | C139: M | D139: 9.67 | E139: 9.67 | F139: 0
A140: 35000149 | B140: TUBO CERAMICO DRENO PB DE150MM | C140: M | D140: 14.73 | E140: 14.73 | F140: 0
A141: 35000150 | B141: TUBO CERAMICO DRENO PB DE200MM | C141: M | D141: 23.27 | E141: 23.27 | F141: 0
A142: 35000151 | B142: TUBO CONCRETO ARM PA1 PB JR DN1000 | C142: M | D142: 231.46 | E142: 231.46 | F142: 0
A143: 35000152 | B143: TUBO CONCRETO SIMPLES PB JR PS-1 DN600 | C143: M | D143: 76 | E143: 76 | F143: 0
A144: 35000153 | B144: TAMPA LAMINADA FV C/ALCAS-1020X1020X5MM | C144: UN | D144: 1380.75 | E144: 1380.75 | F144: 0
A145: 35000154 | B145: COTOVELO ADAP P/PEAD FG (KTL) D1/2"x20MM | C145: UN | D145: 30.09 | E145: 30.09 | F145: 0
A146: 35000155 | B146: UNIAO POLIPROPILENO (PEAD) D20MMx1/2" | C146: UN | D146: 1.56 | E146: 1.56 | F146: 0
A147: 35000156 | B147: TUBO POLIETILENO (PEAD) D20MM - PRETO | C147: M | D147: 2.68 | E147: 2.68 | F147: 0
A148: 35000157 | B148: TUBO POLIETILENO (PEAD) D20MM-AZUL GR3 | C148: M | D148: 2.85 | E148: 2.85 | F148: 0
A149: 35000158 | B149: ADESIVO PARA PVC RIGIDO | C149: KG | D149: 31.46 | E149: 31.46 | F149: 0
A150: 35000159 | B150: PASTA LUBRIFICANTE | C150: KG | D150: 20.38 | E150: 20.38 | F150: 0
A151: 35000160 | B151: SOLUCAO LIMPADORA P/ PVC RIGIDO | C151: L | D151: 36.6 | E151: 36.6 | F151: 0
A152: 35000161 | B152: ANEL BORRACHA TOROIDAL-AJE-DN50 DE60MM | C152: UN | D152: 1.09 | E152: 1.09 | F152: 0
A153: 35000162 | B153: ANEL BORRACHA TOROIDAL-AJE-DN75 DE85MM | C153: UN | D153: 1.63 | E153: 1.63 | F153: 0
A154: 35000163 | B154: ANEL BORRACHA TOROIDAL-AJE-DN100 DE110MM | C154: UN | D154: 2.05 | E154: 2.05 | F154: 0
A155: 35000164 | B155: ADAPTADOR PVC PBA BFF DN100x100 DE110MM | C155: UN | D155: 21.29 | E155: 21.29 | F155: 0
A156: 35000165 | B156: CURVA 90 GR RL PVC PBA JE DN75 DE85 MM | C156: UN | D156: 26.12 | E156: 26.12 | F156: 0
A157: 35000166 | B157: CURVA 90 GR RL PVC PBA JE DN100 DE110 MM | C157: UN | D157: 52.83 | E157: 52.83 | F157: 0
A158: 35000167 | B158: CANALETA RETA TUBO PVC PB DN 100. | C158: UN | D158: 14.07 | E158: 14.07 | F158: 0
A159: 35000168 | B159: TE 90 GR PVC BBB JE DN50 DE60MM | C159: UN | D159: 17.59 | E159: 17.59 | F159: 0
A160: 35000169 | B160: TUBO PVC PBA CL15 DN50 DE60MM | C160: M | D160: 6.12 | E160: 6.12 | F160: 0
A161: 35000170 | B161: TUBO PVC PBA CL15 DN75 DE85MM | C161: M | D161: 13.68 | E161: 13.68 | F161: 0
A162: 35000171 | B162: TUBO PVC PBA CL15 DN100 DE110MM | C162: M | D162: 20.78 | E162: 20.78 | F162: 0
A163: 35000172 | B163: TUBO PVC PBA CL20 DN50 DE 60MM | C163: M | D163: 7.42 | E163: 7.42 | F163: 0
A164: 35000173 | B164: TUBO PVC PBA CL20 DN75 DE 85MM | C164: M | D164: 17.27 | E164: 17.27 | F164: 0
A165: 35000174 | B165: TUBO PVC PBA CL20 DN100 DE110MM | C165: M | D165: 26.21 | E165: 26.21 | F165: 0
A166: 35000175 | B166: TUBO PVC RIG. DEFOFO PBA JE DN150 | C166: M | D166: 40.64 | E166: 40.64 | F166: 0
A167: 35000176 | B167: AGENTE ESPUMANTE DRILLFOAN OU SIMILAR | C167: L | D167: 26.53 | E167: 26.53 | F167: 0
A168: 35000177 | B168: AREIA SELECIONADA - TIPO PEROLA | C168: KG | D168: 1.1 | E168: 1.1 | F168: 0
A169: 35000178 | B169: HEXAMETAFOSFATO DE SODIO 69% DE P2O5 | C169: KG | D169: 18 | E169: 18 | F169: 0
A170: 35000179 | B170: BENTONITA ATIVADA | C170: KG | D170: 1.06 | E170: 1.06 | F170: 0
A171: 35000180 | B171: REGISTRO GAVETA, FoFo-RCFV16, DN 50 | C171: UN | D171: 434.11 | E171: 434.11 | F171: 0
A172: 35000181 | B172: REGISTRO S. METRICA CHATA RCFV16 DN 75 | C172: UN | D172: 604.42 | E172: 604.42 | F172: 0
A173: 35000182 | B173: REGISTRO S. METRICA CHATA RCFV16 DN 150 | C173: UN | D173: 1597.54 | E173: 1597.54 | F173: 0
A174: 35000183 | B174: VALVULA RETENCAO FoFo VRPUS16 - DN 150 | C174: UN | D174: 1433.31 | E174: 1433.31 | F174: 0
A175: 35000184 | B175: VENTOSA SIMPLES FOFO C/F 10/16/25 DN 50 | C175: UN | D175: 183.04 | E175: 183.04 | F175: 0
A176: 35000185 | B176: VENTOSA SIMPLES FOFO C/ROSCA PN25 DN1" | C176: UN | D176: 325.12 | E176: 325.12 | F176: 0
A177: 35000186 | B177: VENTOSA SIMPL FOFO C/ROSCA-PN25 DN1.1/2" | C177: UN | D177: 183.04 | E177: 183.04 | F177: 0
A178: 35000187 | B178: CURVA 45º FoFo JE - C45JGS - DN150 | C178: UN | D178: 155.77 | E178: 155.77 | F178: 0
A179: 35000188 | B179: CURVA 90º FoFo FF-C90FF10/16-DN 100 | C179: UN | D179: 188.78 | E179: 188.78 | F179: 0
A180: 35000189 | B180: CURVA 90º FoFo FF-C90FF10/16-DN 150 | C180: UN | D180: 339.84 | E180: 339.84 | F180: 0
A181: 35000190 | B181: EXTREMIDADE FoFo-EPFAV10/16-DN 100 | C181: UN | D181: 285.82 | E181: 285.82 | F181: 0
A182: 35000191 | B182: TE 90º FoFo-TFF10/16-DN 150x100 | C182: UN | D182: 539.13 | E182: 539.13 | F182: 0
A183: 35000192 | B183: VALVULA RET BR PH 150 PSI R BSP D=1.1/2" | C183: UN | D183: 127.29 | E183: 127.29 | F183: 0
A184: 35000193 | B184: VALVULA RET BR PH 150 PSI R BSP D=2" | C184: UN | D184: 191.95 | E184: 191.95 | F184: 0
A185: 35000194 | B185: VALVULA RET BR PH 150 PSI R BSP D=2.1/2" | C185: UN | D185: 316.52 | E185: 316.52 | F185: 0
A186: 35000195 | B186: VALVULA RET BR PH 150 PSI R BSP D=3" | C186: UN | D186: 383.95 | E186: 383.95 | F186: 0
A187: 35000196 | B187: VALVULA RET BR PH 150 PSI R BSP D=4" | C187: UN | D187: 679.2 | E187: 679.2 | F187: 0
A188: 35000197 | B188: TUBO FoFo-TFP10/16-DN 150 L = 3,00M | C188: UN | D188: 1379.77 | E188: 1379.77 | F188: 0
A189: 35000198 | B189: CURVA 45º FoFo FF-C45FF10/16-DN 150 | C189: UN | D189: 402.7 | E189: 402.7 | F189: 0
A190: 35000199 | B190: FLANGE AVULSO FoFo-FA10/16-DN 150 | C190: UN | D190: 126.33 | E190: 126.33 | F190: 0
A191: 35000200 | B191: PLACA REDUCAO FoFo FF-PR10/16-DN 100x50 | C191: UN | D191: 147.59 | E191: 147.59 | F191: 0
A192: 35000201 | B192: PARAFUSO P/ JUNTA MECANICA-PJM-DN18x90 | C192: UN | D192: 4 | E192: 4 | F192: 0
A193: 35000202 | B193: PARAFUSO C/PORCAS P/ FLANGES-PPF DN16x80 | C193: UN | D193: 3 | E193: 3 | F193: 0
A194: 35000203 | B194: ANEL PREM. CONC. P-104/_-DN 600x320MM. | C194: UN | D194: 75.62 | E194: 75.62 | F194: =E194/D194-1 -> 0
A195: 35000204 | B195: ANEL PREM. CONC. P-104/_-DN 1000x320MM. | C195: UN | D195: 120.9 | E195: 120.9 | F195: 0
A196: 35000205 | B196: ANEL PREM. CONC. P-104/_-DN 1200x320MM. | C196: UN | D196: 138.55 | E196: 138.55 | F196: 0
A197: 35000206 | B197: LAJE RED. CA P-105/_ DE (1300x600x120)MM | C197: UN | D197: 198 | E197: 198 | F197: 0
A198: 35000207 | B198: LAJE RED. CA P-105/_ DE (1500x600x120)MM | C198: UN | D198: 231.09 | E198: 231.09 | F198: 0
A199: 35000208 | B199: TAMPAO T- 5 FOFO P/PL PADRAO 030/- | C199: UN | D199: 43.43 | E199: 43.43 | F199: 0
A200: 35000209 | B200: TAMPAO T-22 FOFO P/CX PAS. PADRAO 032/- | C200: UN | D200: 88.38 | E200: 88.38 | F200: 0
... 925 more rows

Sheet COPASA SUL 12_2020
A1: CÓD | B1: DESCRIÇÃO | C1: UNID | D1: VR ONERADO | E1: VR DESONERADO | F1: DIF
A2: 35000000 | B2: SERVENTE AGUA - COPASA | C2: H | D2: 15.33 | E2: 13.24 | F2: =E2/D2-1 -> -0.1363339856
A3: 35000001 | B3: SERVENTE ESGOTO - COPASA | C3: H | D3: 15.33 | E3: 13.24 | F3: -0.1363339856
A4: 35000002 | B4: SERVICO AUXILIAR OPERACIONAL - COPASA | C4: H | D4: 15.33 | E4: 13.24 | F4: -0.1363339856
A5: 35000003 | B5: AUXILIAR DE LABORATORIO - COPASA | C5: H | D5: 15.64 | E5: 13.51 | F5: -0.1361892583
A6: 35000004 | B6: AUXILIAR DE ESCRITORIO CEC | C6: H | D6: 18.42 | E6: 16.26 | F6: -0.1172638436
A7: 35000005 | B7: AUXILIAR APOIO ADMINISTRATIVO - COPASA | C7: H | D7: 21.04 | E7: 18.18 | F7: -0.1359315589
A8: 35000006 | B8: ATENDENTE COMERCIAL - COPASA | C8: H | D8: 25.66 | E8: 22.16 | F8: -0.1363990647
A9: 35000007 | B9: BIOLOGO - COPASA | C9: H | D9: 69.38 | E9: 59.93 | F9: -0.1362063995
A10: 35000008 | B10: TECNICO ORCAMENTISTA CEC | C10: H | D10: 33.63 | E10: 29.34 | F10: -0.1275646744
A11: 35000009 | B11: LEITURISTA - COPASA | C11: H | D11: 21.04 | E11: 18.18 | F11: -0.1359315589
A12: 35000010 | B12: ENCARREGADO MANUTENCAO AGUA II - COPASA | C12: H | D12: 21.04 | E12: 18.18 | F12: -0.1359315589
A13: 35000011 | B13: ENCARREGADO MANUTENCAO ESGOTO I - COPASA | C13: H | D13: 21.04 | E13: 18.18 | F13: -0.1359315589
A14: 35000012 | B14: TECNICO DE LABORATORIO - COPASA | C14: H | D14: 39.66 | E14: 34.26 | F14: -0.1361573374
A15: 35000013 | B15: TECNICO DE LABORATORIO CEC | C15: H | D15: 33.65 | E15: 29.37 | F15: -0.127191679
A16: 35000014 | B16: TECNICO DE SEGURANCA DO TRABALHO CEC | C16: H | D16: 33.65 | E16: 29.37 | F16: -0.127191679
A17: 35000015 | B17: PROGRAMACAO PROCES. DADOS - COPASA | C17: H | D17: 39.66 | E17: 34.26 | F17: -0.1361573374
A18: 35000016 | B18: ENCARREGADO DE AREAS CEC | C18: H | D18: 24.81 | E18: 21.84 | F18: -0.1197097944
A19: 35000017 | B19: ENCARREGADO GERAL CEC | C19: H | D19: 33.65 | E19: 29.37 | F19: -0.127191679
A20: 35000018 | B20: CONSULTOR | C20: H | D20: 313.5 | E20: 313.5 | F20: 0
A21: 35000019 | B21: ENGENHEIRO NÍVEL I FAIXA I CEC | C21: MES | D21: 16409.87 | E21: 14192.28 | F21: -0.1351375727
A22: 35000021 | B22: ENGENHEIRO NÍVEL II FAIXA I CEC | C22: MES | D22: 18475.72 | E22: 15969.63 | F22: -0.1356423457
A23: 35000022 | B23: ENGENHEIRO NÍVEL IV FAIXA I CEC | C23: MES | D23: 23450.63 | E23: 20249.78 | F23: -0.1364931347
A24: 35000023 | B24: ENGENHEIRO NÍVEL III FAIXA I CEC | C24: MES | D24: 20810.93 | E24: 17978.72 | F24: -0.1360924284
A25: 35000024 | B25: ENGENHEIRO NÍVEL II FAIXA II CEC | C25: MES | D25: 19222.55 | E25: 16612.16 | F25: -0.1357983202
A26: 35000025 | B26: HIDROGEOLOGO CEC | C26: MES | D26: 16330.4 | E26: 14123.32 | F26: -0.1351516191
A27: 35000026 | B27: PROJETISTA CEC | C27: MES | D27: 12048.41 | E27: 10439.32 | F27: -0.1335520621
A28: 35000027 | B28: SUPERVISOR TECNICO CEC | C28: MES | D28: 8783.58 | E28: 7603.23 | F28: -0.1343814253
A29: 35000028 | B29: AUXILIAR DE PROGRAMACAO CEC | C29: MES | D29: 4732.83 | E29: 4122.9 | F29: -0.1288721547
A30: 35000029 | B30: ALMOXARIFE CEC | C30: MES | D30: 4737.1 | E30: 4127.18 | F30: -0.128753879
A31: 35000030 | B31: AUXILIAR DE ALMOXARIFE CEC | C31: MES | D31: 3786.97 | E31: 3314.35 | F31: -0.1248016224
A32: 35000032 | B32: TOPOGRAFO CEC | C32: MES | D32: 6412.6 | E32: 5560.54 | F32: -0.1328727817
A33: 35000033 | B33: TECNICO CADASTRISTA CEC | C33: MES | D33: 6408.32 | E33: 5556.26 | F33: -0.132961525
A34: 35000034 | B34: NIVELADOR CEC | C34: MES | D34: 4737.1 | E34: 4127.18 | F34: -0.128753879
A35: 35000035 | B35: AUXILIAR DE TOPOGRAFIA CEC | C35: MES | D35: 3786.97 | E35: 3314.35 | F35: -0.1248016224
A36: 35000037 | B36: TECNICO CALCULISTA CEC | C36: MES | D36: 6408.32 | E36: 5556.26 | F36: -0.132961525
A37: 35000038 | B37: DESENHISTA TECNICO (CADISTA) CEC | C37: MES | D37: 4732.83 | E37: 4122.9 | F37: -0.1288721547
A38: 35000039 | B38: ALMOXARIFE CEC | C38: H | D38: 27.22 | E38: 23.83 | F38: -0.1245407788
A39: 35000040 | B39: AUXILIAR DE ALMOXARIFE CEC | C39: H | D39: 21.77 | E39: 19.15 | F39: -0.1203491043
A40: 35000041 | B40: OFICIAL CEC | C40: H | D40: 20.76 | E40: 18.35 | F40: -0.116088632
A41: 35000042 | B41: NIVELADOR CEC | C41: H | D41: 27.22 | E41: 23.83 | F41: -0.1245407788
A42: 35000043 | B42: AUXILIAR DE OFICIAL CEC | C42: H | D42: 16.51 | E42: 14.69 | F42: -0.1102362205
A43: 35000044 | B43: SERVENTE CEC | C43: H | D43: 14.71 | E43: 13.13 | F43: -0.1074099252
A44: 35000045 | B44: TOPOGRAFO CEC | C44: H | D44: 36.82 | E44: 32.09 | F44: -0.128462792
A45: 35000046 | B45: AUXILIAR DE TOPOGRAFIA CEC | C45: H | D45: 21.77 | E45: 19.15 | F45: -0.1203491043
A46: 35000047 | B46: AUXILIAR DE OPERADOR - MAQ PESADAS CEC | C46: H | D46: 16.77 | E46: 14.88 | F46: -0.1127012522
A47: 35000048 | B47: MOTORISTA CEC | C47: H | D47: 22.14 | E47: 19.5 | F47: -0.1192411924
A48: 35000049 | B48: OPERADOR DE MAQUINAS PESADAS CEC | C48: H | D48: 24.06 | E48: 21.15 | F48: -0.1209476309
A49: 35000050 | B49: SONDADOR I - COPASA | C49: H | D49: 16.93 | E49: 14.62 | F49: -0.1364441819
A50: 35000051 | B50: SONDADOR II - COPASA | C50: H | D50: 21.04 | E50: 18.18 | F50: -0.1359315589
A51: 35000052 | B51: ACO CA-50 A OU B | C51: TO | D51: 5588.09 | E51: 5588.09 | F51: 0
A52: 35000053 | B52: ACO CA-60 A OU B | C52: TO | D52: 5696.09 | E52: 5696.09 | F52: 0
A53: 35000056 | B53: VEU DE POLIESTER 75 G/M2 | C53: M2 | D53: 2.99 | E53: 2.99 | F53: 0
A54: 35000059 | B54: LIMITADOR JUNTA TARUCEL - JUNTA 1x1CM | C54: M | D54: 0.32 | E54: 0.32 | F54: 0
A55: 35000060 | B55: LIMITADOR JUNTA TARUCEL - JUNTA 2x2CM | C55: M | D55: 0.82 | E55: 0.82 | F55: 0
A56: 35000062 | B56: ACELERADOR-IMPERMEABILIZANTE | C56: KG | D56: 8.99 | E56: 8.99 | F56: 0
A57: 35000063 | B57: RESINA POLIURETANO-MC 2300 NV OU SIMILAR | C57: L | D57: 113.96 | E57: 113.96 | F57: 0
A58: 35000064 | B58: RESINA POLIURETANO MC 2033 OU SIMILAR | C58: L | D58: 136.13 | E58: 136.13 | F58: 0
A59: 35000065 | B59: XYPEX CONCENTRADO OU SIMILAR | C59: KG | D59: 18.05 | E59: 18.05 | F59: 0
A60: 35000066 | B60: XYPEX MODIFICADO OU SIMILAR | C60: KG | D60: 16.71 | E60: 16.71 | F60: 0
A61: 35000067 | B61: XYPEX PATCH'N PLUG OU SIMILAR | C61: KG | D61: 9.28 | E61: 9.28 | F61: 0
A62: 35000068 | B62: ADESIVO EPOXICO MCDUR 1300 TX OU SIMILAR | C62: KG | D62: 22.28 | E62: 22.28 | F62: 0
A63: 35000069 | B63: SOLVENTE REINIGUNGSMITTEL U OU SIMILAR | C63: L | D63: 43 | E63: 43 | F63: 0
A64: 35000070 | B64: BEXIGA BORRACHA- BLOQUEADOR FLUXO Ø100MM | C64: UN | D64: 1850 | E64: 1850 | F64: 0
A65: 35000071 | B65: SIKA I | C65: L | D65: 5.03 | E65: 5.03 | F65: 0
A66: 35000072 | B66: SIKA CHAPISCO PLUS | C66: KG | D66: 8.04 | E66: 8.04 | F66: =E66/D66-1 -> 0
A67: 35000073 | B67: SIKA TOP 122 - BICOMPONENTE A E B | C67: KG | D67: 8.92 | E67: 8.92 | F67: 0
A68: 35000074 | B68: SIKALIT - ADITIVO IMPERMEABILIZANTE | C68: KG | D68: 15.07 | E68: 15.07 | F68: 0
A69: 35000075 | B69: SIKADUR 32 | C69: KG | D69: 90.74 | E69: 90.74 | F69: 0
A70: 35000076 | B70: ADESIVO EPOXI SIKADUR 31 | C70: KG | D70: 83.87 | E70: 83.87 | F70: 0
A71: 35000077 | B71: SIKAGROUT - 250 | C71: KG | D71: 1.25 | E71: 1.25 | F71: 0
A72: 35000078 | B72: SIKAFLEX 1A - CARTUCHO DE 310 ML | C72: UN | D72: 63.3 | E72: 63.3 | F72: 0
A73: 35000079 | B73: SIKA PRIMER 1 - LATA COM 320 ML | C73: UN | D73: 75.25 | E73: 75.25 | F73: 0
A74: 35000080 | B74: IMPERMEABILIZANTE TIPO HEYDI - K11 | C74: KG | D74: 2.67 | E74: 2.67 | F74: 0
A75: 35000081 | B75: IMPERMEABILIZANTE TIPO HEYDI - KZ | C75: KG | D75: 15.56 | E75: 15.56 | F75: 0
A76: 35000082 | B76: SIKA TOP 107 | C76: KG | D76: 6.76 | E76: 6.76 | F76: 0
A77: 35000083 | B77: SIKA TOP 108 ARMATEC | C77: KG | D77: 22.32 | E77: 22.32 | F77: 0
A78: 35000084 | B78: DESMOLDANTE PARA FORMAS | C78: L | D78: 8.31 | E78: 8.31 | F78: 0
A79: 35000085 | B79: CONCRETO - FCK 10 MPA - USINADO | C79: M3 | D79: 239.6 | E79: 239.6 | F79: 0
A80: 35000086 | B80: CONCRETO - FCK-15 MPA - USINADO | C80: M3 | D80: 259.98 | E80: 259.98 | F80: 0
A81: 35000087 | B81: CONCRETO - FCK - 20MPA - USINADO | C81: M3 | D81: 271.43 | E81: 271.43 | F81: 0
A82: 35000088 | B82: CONCRETO - FCK -25 MPA - USINADO | C82: M3 | D82: 285 | E82: 285 | F82: 0
A83: 35000089 | B83: CONCRETO-FCK-30MPA - USINADO/ADITIVO | C83: M3 | D83: 287.37 | E83: 287.37 | F83: 0
A84: 35000090 | B84: CONCRETO-FCK-35MPA - USINADO/ADITIVO | C84: M3 | D84: 294.3 | E84: 294.3 | F84: 0
A85: 35000091 | B85: CONCRETO-FCK-40MPA - USINADO/ADITIVO | C85: M3 | D85: 324.14 | E85: 324.14 | F85: 0
A86: 35000092 | B86: ARAME DE AMARRACAO GABIAO-Ø=2,2MM. | C86: KG | D86: 18.61 | E86: 18.61 | F86: 0
A87: 35000093 | B87: GABIAO-MALHA 8X10 GALV ALT=0,50M | C87: M3 | D87: 282.51 | E87: 282.51 | F87: 0
A88: 35000094 | B88: GABIAO-MALHA 8X10 GALV ALT=1,00M | C88: M3 | D88: 206.2 | E88: 206.2 | F88: 0
A89: 35000095 | B89: COLCHAO RENO-MALHA 6X 8 GPVC-E=0,30M | C89: M2 | D89: 122.01 | E89: 122.01 | F89: 0
A90: 35000096 | B90: GABIAO TIPO SACO-MALHA 8X10 REC. C/ PVC | C90: M3 | D90: 267.09 | E90: 267.09 | F90: 0
A91: 35000097 | B91: CANALETA DE CONCRETO- MEIA CANA,Ø300MM | C91: M | D91: 29.44 | E91: 29.44 | F91: 0
A92: 35000098 | B92: CANALETA DE CONCRETO- MEIA CANA,Ø400MM | C92: M | D92: 37.27 | E92: 37.27 | F92: 0
A93: 35000099 | B93: CANALETA DE CONCRETO- MEIA CANA,Ø500MM | C93: M | D93: 40.63 | E93: 40.63 | F93: 0
A94: 35000100 | B94: CANALETA DE CONCRETO- MEIA CANA,Ø600MM | C94: M | D94: 54.2 | E94: 54.2 | F94: 0
A95: 35000101 | B95: CORDEL DETONANTE NP-10 | C95: M | D95: 1.2 | E95: 1.2 | F95: 0
A96: 35000102 | B96: DINAMITE-ENCARTUCHADO, Ø 1" A 1.1/2" | C96: KG | D96: 9.95 | E96: 9.95 | F96: 0
A97: 35000103 | B97: ESPOLETA SIMPLES NR. 8 | C97: UN | D97: 2.99 | E97: 2.99 | F97: 0
A98: 35000104 | B98: ESTOPIM SIMPLES | C98: M | D98: 4.31 | E98: 4.31 | F98: 0
A99: 35000105 | B99: RETARDO P/CORDEL-NP-05/10-ESPERA 25/50MS | C99: UN | D99: 15.16 | E99: 15.16 | F99: 0
A100: 35000107 | B100: CANGA DE MINERIO DE FERRO | C100: TO | D100: 16.9 | E100: 16.9 | F100: 0
A101: 35000108 | B101: ESCORIA DE ALTO FORNO | C101: TO | D101: 71.38 | E101: 71.38 | F101: 0
A102: 35000109 | B102: BICA CORRIDA | C102: TO | D102: 25.38 | E102: 25.38 | F102: 0
A103: 35000110 | B103: BRITA GRADUADA | C103: TO | D103: 59.48 | E103: 59.48 | F103: 0
A104: 35000111 | B104: EMULSAO ASFALTICA RR-1C | C104: KG | D104: 2.53 | E104: 2.53 | F104: 0
A105: 35000112 | B105: EMULSAO ASFALTICA RR-2C | C105: KG | D105: 2.67 | E105: 2.67 | F105: 0
A106: 35000113 | B106: EMULSAO ASFALTICA CM-30 | C106: KG | D106: 4.98 | E106: 4.98 | F106: 0
A107: 35000114 | B107: MEIO FIO DE CONCRETO-12X16,7X35X80CM | C107: UN | D107: 15.04 | E107: 15.04 | F107: 0
A108: 35000115 | B108: CALCARIO - MOSAICO - CALCADA PORTUGUESA | C108: KG | D108: 0.36 | E108: 0.36 | F108: 0
A109: 35000116 | B109: PRE-MOLDADO CONCRETO-BLOQUETE-25X10CM. | C109: M2 | D109: 52 | E109: 52 | F109: 0
A110: 35000117 | B110: CONCRETO BETUMINOSO USINADO-CBUQ-FX-"C" | C110: TO | D110: 350.83 | E110: 350.83 | F110: 0
A111: 35000118 | B111: PARALELEPIPEDO | C111: UN | D111: 3.2 | E111: 3.2 | F111: 0
A112: 35000119 | B112: POLIEDRICO | C112: M3 | D112: 56.84 | E112: 56.84 | F112: 0
A113: 35000120 | B113: PRE-MOLDADO CONCRETO INTERTRAVADO-E=8CM | C113: M2 | D113: 34.1 | E113: 34.1 | F113: 0
A114: 35000121 | B114: GASOLINA TIPO A - COMUM | C114: L | D114: 4.66 | E114: 4.66 | F114: 0
A115: 35000122 | B115: OLEO DIESEL | C115: L | D115: 3.73 | E115: 3.73 | F115: 0
A116: 35000123 | B116: OLEO P/ FERRAMENTAS PNEUMATICAS-FP68 | C116: L | D116: 9.09 | E116: 9.09 | F116: 0
A117: 35000124 | B117: GRAXA LUBRAX GMA - 2 | C117: KG | D117: 22.91 | E117: 22.91 | F117: 0
A118: 35000125 | B118: GRAMA EM PLACAS | C118: M2 | D118: 7.01 | E118: 7.01 | F118: 0
A119: 35000126 | B119: TERRA VEGETAL | C119: M3 | D119: 56.89 | E119: 56.89 | F119: 0
A120: 35000127 | B120: MOURAO - P-COPASA 126 / L = 2,20+/-0,05M | C120: UN | D120: 35.36 | E120: 35.36 | F120: 0
A121: 35000128 | B121: MOURAO MADEIRA -11/13 CM - ALT =2,20M. | C121: UN | D121: 13.33 | E121: 13.33 | F121: 0
A122: 35000129 | B122: MOURAO ESCORA-P-COPASA126/L=2,50+/-0,05M | C122: UN | D122: 31.97 | E122: 31.97 | F122: 0
A123: 35000130 | B123: MOURAO CONC. P-COPASA126 /L=2,80+/-0,06M | C123: UN | D123: 34.16 | E123: 34.16 | F123: 0
A124: 35000131 | B124: PLACA DE IDENTIFICACAO DE OBRA | C124: M2 | D124: 212.69 | E124: 212.69 | F124: 0
A125: 35000132 | B125: CONE PARA SINALIZACAO - P-COPASA - 065/- | C125: UN | D125: 28.1 | E125: 28.1 | F125: 0
A126: 35000133 | B126: PLACA "DISTANCIA DE OBRA"-P-COPASA 066/- | C126: UN | D126: 77.5 | E126: 77.5 | F126: 0
A127: 35000134 | B127: CAVALETE DUPLA FACE - CONFORME MIVC | C127: UN | D127: 350.63 | E127: 350.63 | F127: 0
A128: 35000135 | B128: TRIPE PARA BANDEIROLAS - P-COPASA -102/- | C128: UN | D128: 156.61 | E128: 156.61 | F128: 0
A129: 35000136 | B129: GRADE MODULAR SINALIZACAO-P-COPASA 177/- | C129: UN | D129: 340.32 | E129: 340.32 | F129: 0
A130: 35000137 | B130: FITA ZEBRADA AMARELO E PRETA L = 75MM | C130: UN | D130: 8.72 | E130: 8.72 | F130: =E130/D130-1 -> 0
A131: 35000140 | B131: ELETRODO P/ACOS, ILMENITICO Ø = 4MM | C131: KG | D131: 17.75 | E131: 17.75 | F131: 0
A132: 35000141 | B132: ACETILENO | C132: KG | D132: 29.6 | E132: 29.6 | F132: 0
A133: 35000142 | B133: OXIGENIO | C133: M3 | D133: 7.57 | E133: 7.57 | F133: 0
A134: 35000143 | B134: MANILHA CERAMICA CL B/C DN100 | C134: M | D134: 9.9 | E134: 9.9 | F134: 0
A135: 35000144 | B135: MANILHA CERAMICA CL B/C DN200 | C135: M | D135: 21.85 | E135: 21.85 | F135: 0
A136: 35000145 | B136: SELIM CERAMICO CL C - 90 GR DN150X100 | C136: UN | D136: 50.62 | E136: 50.62 | F136: 0
A137: 35000146 | B137: SELIM CERAMICO CL C - 90 GR DN200X100 | C137: UN | D137: 50.62 | E137: 50.62 | F137: 0
A138: 35000147 | B138: SELA CERAMICA P.RETA DN200X210X135MM | C138: UN | D138: 26 | E138: 26 | F138: 0
A139: 35000148 | B139: TUBO CERAMICO DRENO PB DE100MM | C139: M | D139: 9.67 | E139: 9.67 | F139: 0
A140: 35000149 | B140: TUBO CERAMICO DRENO PB DE150MM | C140: M | D140: 14.73 | E140: 14.73 | F140: 0
A141: 35000150 | B141: TUBO CERAMICO DRENO PB DE200MM | C141: M | D141: 23.27 | E141: 23.27 | F141: 0
A142: 35000151 | B142: TUBO CONCRETO ARM PA1 PB JR DN1000 | C142: M | D142: 231.46 | E142: 231.46 | F142: 0
A143: 35000152 | B143: TUBO CONCRETO SIMPLES PB JR PS-1 DN600 | C143: M | D143: 76 | E143: 76 | F143: 0
A144: 35000153 | B144: TAMPA LAMINADA FV C/ALCAS-1020X1020X5MM | C144: UN | D144: 1380.75 | E144: 1380.75 | F144: 0
A145: 35000154 | B145: COTOVELO ADAP P/PEAD FG (KTL) D1/2"x20MM | C145: UN | D145: 30.09 | E145: 30.09 | F145: 0
A146: 35000155 | B146: UNIAO POLIPROPILENO (PEAD) D20MMx1/2" | C146: UN | D146: 1.56 | E146: 1.56 | F146: 0
A147: 35000156 | B147: TUBO POLIETILENO (PEAD) D20MM - PRETO | C147: M | D147: 2.68 | E147: 2.68 | F147: 0
A148: 35000157 | B148: TUBO POLIETILENO (PEAD) D20MM-AZUL GR3 | C148: M | D148: 2.85 | E148: 2.85 | F148: 0
A149: 35000158 | B149: ADESIVO PARA PVC RIGIDO | C149: KG | D149: 31.46 | E149: 31.46 | F149: 0
A150: 35000159 | B150: PASTA LUBRIFICANTE | C150: KG | D150: 20.38 | E150: 20.38 | F150: 0
A151: 35000160 | B151: SOLUCAO LIMPADORA P/ PVC RIGIDO | C151: L | D151: 36.6 | E151: 36.6 | F151: 0
A152: 35000161 | B152: ANEL BORRACHA TOROIDAL-AJE-DN50 DE60MM | C152: UN | D152: 1.09 | E152: 1.09 | F152: 0
A153: 35000162 | B153: ANEL BORRACHA TOROIDAL-AJE-DN75 DE85MM | C153: UN | D153: 1.63 | E153: 1.63 | F153: 0
A154: 35000163 | B154: ANEL BORRACHA TOROIDAL-AJE-DN100 DE110MM | C154: UN | D154: 2.05 | E154: 2.05 | F154: 0
A155: 35000164 | B155: ADAPTADOR PVC PBA BFF DN100x100 DE110MM | C155: UN | D155: 21.29 | E155: 21.29 | F155: 0
A156: 35000165 | B156: CURVA 90 GR RL PVC PBA JE DN75 DE85 MM | C156: UN | D156: 26.12 | E156: 26.12 | F156: 0
A157: 35000166 | B157: CURVA 90 GR RL PVC PBA JE DN100 DE110 MM | C157: UN | D157: 52.83 | E157: 52.83 | F157: 0
A158: 35000167 | B158: CANALETA RETA TUBO PVC PB DN 100. | C158: UN | D158: 14.07 | E158: 14.07 | F158: 0
A159: 35000168 | B159: TE 90 GR PVC BBB JE DN50 DE60MM | C159: UN | D159: 17.59 | E159: 17.59 | F159: 0
A160: 35000169 | B160: TUBO PVC PBA CL15 DN50 DE60MM | C160: M | D160: 6.12 | E160: 6.12 | F160: 0
A161: 35000170 | B161: TUBO PVC PBA CL15 DN75 DE85MM | C161: M | D161: 13.68 | E161: 13.68 | F161: 0
A162: 35000171 | B162: TUBO PVC PBA CL15 DN100 DE110MM | C162: M | D162: 20.78 | E162: 20.78 | F162: 0
A163: 35000172 | B163: TUBO PVC PBA CL20 DN50 DE 60MM | C163: M | D163: 7.42 | E163: 7.42 | F163: 0
A164: 35000173 | B164: TUBO PVC PBA CL20 DN75 DE 85MM | C164: M | D164: 17.27 | E164: 17.27 | F164: 0
A165: 35000174 | B165: TUBO PVC PBA CL20 DN100 DE110MM | C165: M | D165: 26.21 | E165: 26.21 | F165: 0
A166: 35000175 | B166: TUBO PVC RIG. DEFOFO PBA JE DN150 | C166: M | D166: 40.64 | E166: 40.64 | F166: 0
A167: 35000176 | B167: AGENTE ESPUMANTE DRILLFOAN OU SIMILAR | C167: L | D167: 26.53 | E167: 26.53 | F167: 0
A168: 35000177 | B168: AREIA SELECIONADA - TIPO PEROLA | C168: KG | D168: 1.1 | E168: 1.1 | F168: 0
A169: 35000178 | B169: HEXAMETAFOSFATO DE SODIO 69% DE P2O5 | C169: KG | D169: 18 | E169: 18 | F169: 0
A170: 35000179 | B170: BENTONITA ATIVADA | C170: KG | D170: 1.06 | E170: 1.06 | F170: 0
A171: 35000180 | B171: REGISTRO GAVETA, FoFo-RCFV16, DN 50 | C171: UN | D171: 434.11 | E171: 434.11 | F171: 0
A172: 35000181 | B172: REGISTRO S. METRICA CHATA RCFV16 DN 75 | C172: UN | D172: 604.42 | E172: 604.42 | F172: 0
A173: 35000182 | B173: REGISTRO S. METRICA CHATA RCFV16 DN 150 | C173: UN | D173: 1597.54 | E173: 1597.54 | F173: 0
A174: 35000183 | B174: VALVULA RETENCAO FoFo VRPUS16 - DN 150 | C174: UN | D174: 1433.31 | E174: 1433.31 | F174: 0
A175: 35000184 | B175: VENTOSA SIMPLES FOFO C/F 10/16/25 DN 50 | C175: UN | D175: 183.04 | E175: 183.04 | F175: 0
A176: 35000185 | B176: VENTOSA SIMPLES FOFO C/ROSCA PN25 DN1" | C176: UN | D176: 325.12 | E176: 325.12 | F176: 0
A177: 35000186 | B177: VENTOSA SIMPL FOFO C/ROSCA-PN25 DN1.1/2" | C177: UN | D177: 183.04 | E177: 183.04 | F177: 0
A178: 35000187 | B178: CURVA 45º FoFo JE - C45JGS - DN150 | C178: UN | D178: 155.77 | E178: 155.77 | F178: 0
A179: 35000188 | B179: CURVA 90º FoFo FF-C90FF10/16-DN 100 | C179: UN | D179: 188.78 | E179: 188.78 | F179: 0
A180: 35000189 | B180: CURVA 90º FoFo FF-C90FF10/16-DN 150 | C180: UN | D180: 339.84 | E180: 339.84 | F180: 0
A181: 35000190 | B181: EXTREMIDADE FoFo-EPFAV10/16-DN 100 | C181: UN | D181: 285.82 | E181: 285.82 | F181: 0
A182: 35000191 | B182: TE 90º FoFo-TFF10/16-DN 150x100 | C182: UN | D182: 539.13 | E182: 539.13 | F182: 0
A183: 35000192 | B183: VALVULA RET BR PH 150 PSI R BSP D=1.1/2" | C183: UN | D183: 127.29 | E183: 127.29 | F183: 0
A184: 35000193 | B184: VALVULA RET BR PH 150 PSI R BSP D=2" | C184: UN | D184: 191.95 | E184: 191.95 | F184: 0
A185: 35000194 | B185: VALVULA RET BR PH 150 PSI R BSP D=2.1/2" | C185: UN | D185: 316.52 | E185: 316.52 | F185: 0
A186: 35000195 | B186: VALVULA RET BR PH 150 PSI R BSP D=3" | C186: UN | D186: 383.95 | E186: 383.95 | F186: 0
A187: 35000196 | B187: VALVULA RET BR PH 150 PSI R BSP D=4" | C187: UN | D187: 679.2 | E187: 679.2 | F187: 0
A188: 35000197 | B188: TUBO FoFo-TFP10/16-DN 150 L = 3,00M | C188: UN | D188: 1379.77 | E188: 1379.77 | F188: 0
A189: 35000198 | B189: CURVA 45º FoFo FF-C45FF10/16-DN 150 | C189: UN | D189: 402.7 | E189: 402.7 | F189: 0
A190: 35000199 | B190: FLANGE AVULSO FoFo-FA10/16-DN 150 | C190: UN | D190: 126.33 | E190: 126.33 | F190: 0
A191: 35000200 | B191: PLACA REDUCAO FoFo FF-PR10/16-DN 100x50 | C191: UN | D191: 147.59 | E191: 147.59 | F191: 0
A192: 35000201 | B192: PARAFUSO P/ JUNTA MECANICA-PJM-DN18x90 | C192: UN | D192: 4 | E192: 4 | F192: 0
A193: 35000202 | B193: PARAFUSO C/PORCAS P/ FLANGES-PPF DN16x80 | C193: UN | D193: 3 | E193: 3 | F193: 0
A194: 35000203 | B194: ANEL PREM. CONC. P-104/_-DN 600x320MM. | C194: UN | D194: 75.62 | E194: 75.62 | F194: =E194/D194-1 -> 0
A195: 35000204 | B195: ANEL PREM. CONC. P-104/_-DN 1000x320MM. | C195: UN | D195: 120.9 | E195: 120.9 | F195: 0
A196: 35000205 | B196: ANEL PREM. CONC. P-104/_-DN 1200x320MM. | C196: UN | D196: 138.55 | E196: 138.55 | F196: 0
A197: 35000206 | B197: LAJE RED. CA P-105/_ DE (1300x600x120)MM | C197: UN | D197: 198 | E197: 198 | F197: 0
A198: 35000207 | B198: LAJE RED. CA P-105/_ DE (1500x600x120)MM | C198: UN | D198: 231.09 | E198: 231.09 | F198: 0
A199: 35000208 | B199: TAMPAO T- 5 FOFO P/PL PADRAO 030/- | C199: UN | D199: 43.43 | E199: 43.43 | F199: 0
A200: 35000209 | B200: TAMPAO T-22 FOFO P/CX PAS. PADRAO 032/- | C200: UN | D200: 88.38 | E200: 88.38 | F200: 0
... 925 more rows

Sheet COPASA CENTRO 11_2020
A1: CÓD | B1: DESCRIÇÃO | C1: UNID | D1: VR ONERADO | E1: VR DESONERADO | F1: DIF
A2: 35000000 | B2: SERVENTE AGUA - COPASA | C2: H | D2: 15.33 | E2: 13.24 | F2: =E2/D2-1 -> -0.1363339856
A3: 35000001 | B3: SERVENTE ESGOTO - COPASA | C3: H | D3: 15.33 | E3: 13.24 | F3: -0.1363339856
A4: 35000002 | B4: SERVICO AUXILIAR OPERACIONAL - COPASA | C4: H | D4: 15.33 | E4: 13.24 | F4: -0.1363339856
A5: 35000003 | B5: AUXILIAR DE LABORATORIO - COPASA | C5: H | D5: 15.64 | E5: 13.51 | F5: -0.1361892583
A6: 35000004 | B6: AUXILIAR DE ESCRITORIO CEC | C6: H | D6: 18.42 | E6: 16.26 | F6: -0.1172638436
A7: 35000005 | B7: AUXILIAR APOIO ADMINISTRATIVO - COPASA | C7: H | D7: 21.04 | E7: 18.18 | F7: -0.1359315589
A8: 35000006 | B8: ATENDENTE COMERCIAL - COPASA | C8: H | D8: 25.66 | E8: 22.16 | F8: -0.1363990647
A9: 35000007 | B9: BIOLOGO - COPASA | C9: H | D9: 69.38 | E9: 59.93 | F9: -0.1362063995
A10: 35000008 | B10: TECNICO ORCAMENTISTA CEC | C10: H | D10: 33.63 | E10: 29.34 | F10: -0.1275646744
A11: 35000009 | B11: LEITURISTA - COPASA | C11: H | D11: 21.04 | E11: 18.18 | F11: -0.1359315589
A12: 35000010 | B12: ENCARREGADO MANUTENCAO AGUA II - COPASA | C12: H | D12: 21.04 | E12: 18.18 | F12: -0.1359315589
A13: 35000011 | B13: ENCARREGADO MANUTENCAO ESGOTO I - COPASA | C13: H | D13: 21.04 | E13: 18.18 | F13: -0.1359315589
A14: 35000012 | B14: TECNICO DE LABORATORIO - COPASA | C14: H | D14: 39.66 | E14: 34.26 | F14: -0.1361573374
A15: 35000013 | B15: TECNICO DE LABORATORIO CEC | C15: H | D15: 33.65 | E15: 29.37 | F15: -0.127191679
A16: 35000014 | B16: TECNICO DE SEGURANCA DO TRABALHO CEC | C16: H | D16: 33.65 | E16: 29.37 | F16: -0.127191679
A17: 35000015 | B17: PROGRAMACAO PROCES. DADOS - COPASA | C17: H | D17: 39.66 | E17: 34.26 | F17: -0.1361573374
A18: 35000016 | B18: ENCARREGADO DE AREAS CEC | C18: H | D18: 25.67 | E18: 22.58 | F18: -0.1203739774
A19: 35000017 | B19: ENCARREGADO GERAL CEC | C19: H | D19: 33.65 | E19: 29.37 | F19: -0.127191679
A20: 35000018 | B20: CONSULTOR | C20: H | D20: 313.5 | E20: 313.5 | F20: 0
A21: 35000019 | B21: ENGENHEIRO NÍVEL I FAIXA I CEC | C21: MES | D21: 16409.87 | E21: 14192.28 | F21: -0.1351375727
A22: 35000021 | B22: ENGENHEIRO NÍVEL II FAIXA I CEC | C22: MES | D22: 18475.72 | E22: 15969.63 | F22: -0.1356423457
A23: 35000022 | B23: ENGENHEIRO NÍVEL IV FAIXA I CEC | C23: MES | D23: 23450.63 | E23: 20249.78 | F23: -0.1364931347
A24: 35000023 | B24: ENGENHEIRO NÍVEL III FAIXA I CEC | C24: MES | D24: 20810.93 | E24: 17978.72 | F24: -0.1360924284
A25: 35000024 | B25: ENGENHEIRO NÍVEL II FAIXA II CEC | C25: MES | D25: 19222.55 | E25: 16612.16 | F25: -0.1357983202
A26: 35000025 | B26: HIDROGEOLOGO CEC | C26: MES | D26: 16330.4 | E26: 14123.32 | F26: -0.1351516191
A27: 35000026 | B27: PROJETISTA CEC | C27: MES | D27: 12048.41 | E27: 10439.32 | F27: -0.1335520621
A28: 35000027 | B28: SUPERVISOR TECNICO CEC | C28: MES | D28: 8783.58 | E28: 7603.23 | F28: -0.1343814253
A29: 35000028 | B29: AUXILIAR DE PROGRAMACAO CEC | C29: MES | D29: 4732.83 | E29: 4122.9 | F29: -0.1288721547
A30: 35000029 | B30: ALMOXARIFE CEC | C30: MES | D30: 4737.1 | E30: 4127.18 | F30: -0.128753879
A31: 35000030 | B31: AUXILIAR DE ALMOXARIFE CEC | C31: MES | D31: 3786.97 | E31: 3314.35 | F31: -0.1248016224
A32: 35000032 | B32: TOPOGRAFO CEC | C32: MES | D32: 6412.6 | E32: 5560.54 | F32: -0.1328727817
A33: 35000033 | B33: TECNICO CADASTRISTA CEC | C33: MES | D33: 6408.32 | E33: 5556.26 | F33: -0.132961525
A34: 35000034 | B34: NIVELADOR CEC | C34: MES | D34: 4737.1 | E34: 4127.18 | F34: -0.128753879
A35: 35000035 | B35: AUXILIAR DE TOPOGRAFIA CEC | C35: MES | D35: 3786.97 | E35: 3314.35 | F35: -0.1248016224
A36: 35000037 | B36: TECNICO CALCULISTA CEC | C36: MES | D36: 6408.32 | E36: 5556.26 | F36: -0.132961525
A37: 35000038 | B37: DESENHISTA TECNICO (CADISTA) CEC | C37: MES | D37: 4732.83 | E37: 4122.9 | F37: -0.1288721547
A38: 35000039 | B38: ALMOXARIFE CEC | C38: H | D38: 27.22 | E38: 23.83 | F38: -0.1245407788
A39: 35000040 | B39: AUXILIAR DE ALMOXARIFE CEC | C39: H | D39: 21.77 | E39: 19.15 | F39: -0.1203491043
A40: 35000041 | B40: OFICIAL CEC | C40: H | D40: 21.46 | E40: 18.94 | F40: -0.1174277726
A41: 35000042 | B41: NIVELADOR CEC | C41: H | D41: 27.22 | E41: 23.83 | F41: -0.1245407788
A42: 35000043 | B42: AUXILIAR DE OFICIAL CEC | C42: H | D42: 17.04 | E42: 15.14 | F42: -0.1115023474
A43: 35000044 | B43: SERVENTE CEC | C43: H | D43: 15.17 | E43: 13.52 | F43: -0.1087673039
A44: 35000045 | B44: TOPOGRAFO CEC | C44: H | D44: 36.82 | E44: 32.09 | F44: -0.128462792
A45: 35000046 | B45: AUXILIAR DE TOPOGRAFIA CEC | C45: H | D45: 21.77 | E45: 19.15 | F45: -0.1203491043
A46: 35000047 | B46: AUXILIAR DE OPERADOR - MAQ PESADAS CEC | C46: H | D46: 16.77 | E46: 14.88 | F46: -0.1127012522
A47: 35000048 | B47: MOTORISTA CEC | C47: H | D47: 22.14 | E47: 19.5 | F47: -0.1192411924
A48: 35000049 | B48: OPERADOR DE MAQUINAS PESADAS CEC | C48: H | D48: 24.06 | E48: 21.15 | F48: -0.1209476309
A49: 35000050 | B49: SONDADOR I - COPASA | C49: H | D49: 16.93 | E49: 14.62 | F49: -0.1364441819
A50: 35000051 | B50: SONDADOR II - COPASA | C50: H | D50: 21.04 | E50: 18.18 | F50: -0.1359315589
A51: 35000052 | B51: ACO CA-50 A OU B | C51: TO | D51: 4210.16 | E51: 4210.16 | F51: 0
A52: 35000053 | B52: ACO CA-60 A OU B | C52: TO | D52: 4159.71 | E52: 4159.71 | F52: 0
A53: 35000056 | B53: VEU DE POLIESTER 75 G/M2 | C53: M2 | D53: 2.99 | E53: 2.99 | F53: 0
A54: 35000059 | B54: LIMITADOR JUNTA TARUCEL - JUNTA 1x1CM | C54: M | D54: 0.32 | E54: 0.32 | F54: 0
A55: 35000060 | B55: LIMITADOR JUNTA TARUCEL - JUNTA 2x2CM | C55: M | D55: 0.82 | E55: 0.82 | F55: 0
A56: 35000062 | B56: ACELERADOR-IMPERMEABILIZANTE | C56: KG | D56: 8.99 | E56: 8.99 | F56: 0
A57: 35000063 | B57: RESINA POLIURETANO-MC 2300 NV OU SIMILAR | C57: L | D57: 113.96 | E57: 113.96 | F57: 0
A58: 35000064 | B58: RESINA POLIURETANO MC 2033 OU SIMILAR | C58: L | D58: 136.13 | E58: 136.13 | F58: 0
A59: 35000065 | B59: XYPEX CONCENTRADO OU SIMILAR | C59: KG | D59: 18.05 | E59: 18.05 | F59: 0
A60: 35000066 | B60: XYPEX MODIFICADO OU SIMILAR | C60: KG | D60: 16.71 | E60: 16.71 | F60: 0
A61: 35000067 | B61: XYPEX PATCH'N PLUG OU SIMILAR | C61: KG | D61: 9.28 | E61: 9.28 | F61: 0
A62: 35000068 | B62: ADESIVO EPOXICO MCDUR 1300 TX OU SIMILAR | C62: KG | D62: 22.28 | E62: 22.28 | F62: 0
A63: 35000069 | B63: SOLVENTE REINIGUNGSMITTEL U OU SIMILAR | C63: L | D63: 43 | E63: 43 | F63: 0
A64: 35000070 | B64: BEXIGA BORRACHA- BLOQUEADOR FLUXO Ø100MM | C64: UN | D64: 1850 | E64: 1850 | F64: 0
A65: 35000071 | B65: SIKA I | C65: L | D65: 5.03 | E65: 5.03 | F65: 0
A66: 35000072 | B66: SIKA CHAPISCO PLUS | C66: KG | D66: 8.04 | E66: 8.04 | F66: =E66/D66-1 -> 0
A67: 35000073 | B67: SIKA TOP 122 - BICOMPONENTE A E B | C67: KG | D67: 8.92 | E67: 8.92 | F67: 0
A68: 35000074 | B68: SIKALIT - ADITIVO IMPERMEABILIZANTE | C68: KG | D68: 15.07 | E68: 15.07 | F68: 0
A69: 35000075 | B69: SIKADUR 32 | C69: KG | D69: 90.74 | E69: 90.74 | F69: 0
A70: 35000076 | B70: ADESIVO EPOXI SIKADUR 31 | C70: KG | D70: 83.87 | E70: 83.87 | F70: 0
A71: 35000077 | B71: SIKAGROUT - 250 | C71: KG | D71: 1.25 | E71: 1.25 | F71: 0
A72: 35000078 | B72: SIKAFLEX 1A - CARTUCHO DE 310 ML | C72: UN | D72: 63.3 | E72: 63.3 | F72: 0
A73: 35000079 | B73: SIKA PRIMER 1 - LATA COM 320 ML | C73: UN | D73: 75.25 | E73: 75.25 | F73: 0
A74: 35000080 | B74: IMPERMEABILIZANTE TIPO HEYDI - K11 | C74: KG | D74: 2.67 | E74: 2.67 | F74: 0
A75: 35000081 | B75: IMPERMEABILIZANTE TIPO HEYDI - KZ | C75: KG | D75: 15.56 | E75: 15.56 | F75: 0
A76: 35000082 | B76: SIKA TOP 107 | C76: KG | D76: 6.76 | E76: 6.76 | F76: 0
A77: 35000083 | B77: SIKA TOP 108 ARMATEC | C77: KG | D77: 22.32 | E77: 22.32 | F77: 0
A78: 35000084 | B78: DESMOLDANTE PARA FORMAS | C78: L | D78: 8.31 | E78: 8.31 | F78: 0
A79: 35000085 | B79: CONCRETO - FCK 10 MPA - USINADO | C79: M3 | D79: 228.88 | E79: 228.88 | F79: 0
A80: 35000086 | B80: CONCRETO - FCK-15 MPA - USINADO | C80: M3 | D80: 248.35 | E80: 248.35 | F80: 0
A81: 35000087 | B81: CONCRETO - FCK - 20MPA - USINADO | C81: M3 | D81: 259.29 | E81: 259.29 | F81: 0
A82: 35000088 | B82: CONCRETO - FCK -25 MPA - USINADO | C82: M3 | D82: 272.26 | E82: 272.26 | F82: 0
A83: 35000089 | B83: CONCRETO-FCK-30MPA - USINADO/ADITIVO | C83: M3 | D83: 287.37 | E83: 287.37 | F83: 0
A84: 35000090 | B84: CONCRETO-FCK-35MPA - USINADO/ADITIVO | C84: M3 | D84: 294.3 | E84: 294.3 | F84: 0
A85: 35000091 | B85: CONCRETO-FCK-40MPA - USINADO/ADITIVO | C85: M3 | D85: 324.14 | E85: 324.14 | F85: 0
A86: 35000092 | B86: ARAME DE AMARRACAO GABIAO-Ø=2,2MM. | C86: KG | D86: 18.61 | E86: 18.61 | F86: 0
A87: 35000093 | B87: GABIAO-MALHA 8X10 GALV ALT=0,50M | C87: M3 | D87: 282.51 | E87: 282.51 | F87: 0
A88: 35000094 | B88: GABIAO-MALHA 8X10 GALV ALT=1,00M | C88: M3 | D88: 206.2 | E88: 206.2 | F88: 0
A89: 35000095 | B89: COLCHAO RENO-MALHA 6X 8 GPVC-E=0,30M | C89: M2 | D89: 122.01 | E89: 122.01 | F89: 0
A90: 35000096 | B90: GABIAO TIPO SACO-MALHA 8X10 REC. C/ PVC | C90: M3 | D90: 267.09 | E90: 267.09 | F90: 0
A91: 35000097 | B91: CANALETA DE CONCRETO- MEIA CANA,Ø300MM | C91: M | D91: 29.44 | E91: 29.44 | F91: 0
A92: 35000098 | B92: CANALETA DE CONCRETO- MEIA CANA,Ø400MM | C92: M | D92: 37.27 | E92: 37.27 | F92: 0
A93: 35000099 | B93: CANALETA DE CONCRETO- MEIA CANA,Ø500MM | C93: M | D93: 40.63 | E93: 40.63 | F93: 0
A94: 35000100 | B94: CANALETA DE CONCRETO- MEIA CANA,Ø600MM | C94: M | D94: 54.2 | E94: 54.2 | F94: 0
A95: 35000101 | B95: CORDEL DETONANTE NP-10 | C95: M | D95: 1.2 | E95: 1.2 | F95: 0
A96: 35000102 | B96: DINAMITE-ENCARTUCHADO, Ø 1" A 1.1/2" | C96: KG | D96: 9.95 | E96: 9.95 | F96: 0
A97: 35000103 | B97: ESPOLETA SIMPLES NR. 8 | C97: UN | D97: 2.99 | E97: 2.99 | F97: 0
A98: 35000104 | B98: ESTOPIM SIMPLES | C98: M | D98: 4.31 | E98: 4.31 | F98: 0
A99: 35000105 | B99: RETARDO P/CORDEL-NP-05/10-ESPERA 25/50MS | C99: UN | D99: 15.16 | E99: 15.16 | F99: 0
A100: 35000107 | B100: CANGA DE MINERIO DE FERRO | C100: TO | D100: 16.9 | E100: 16.9 | F100: 0
A101: 35000108 | B101: ESCORIA DE ALTO FORNO | C101: TO | D101: 71.38 | E101: 71.38 | F101: 0
A102: 35000109 | B102: BICA CORRIDA | C102: TO | D102: 20.95 | E102: 20.95 | F102: 0
A103: 35000110 | B103: BRITA GRADUADA | C103: TO | D103: 59.48 | E103: 59.48 | F103: 0
A104: 35000111 | B104: EMULSAO ASFALTICA RR-1C | C104: KG | D104: 2.16 | E104: 2.16 | F104: 0
A105: 35000112 | B105: EMULSAO ASFALTICA RR-2C | C105: KG | D105: 2.46 | E105: 2.46 | F105: 0
A106: 35000113 | B106: EMULSAO ASFALTICA CM-30 | C106: KG | D106: 5.35 | E106: 5.35 | F106: 0
A107: 35000114 | B107: MEIO FIO DE CONCRETO-12X16,7X35X80CM | C107: UN | D107: 15.04 | E107: 15.04 | F107: 0
A108: 35000115 | B108: CALCARIO - MOSAICO - CALCADA PORTUGUESA | C108: KG | D108: 0.36 | E108: 0.36 | F108: 0
A109: 35000116 | B109: PRE-MOLDADO CONCRETO-BLOQUETE-25X10CM. | C109: M2 | D109: 52 | E109: 52 | F109: 0
A110: 35000117 | B110: CONCRETO BETUMINOSO USINADO-CBUQ-FX-"C" | C110: TO | D110: 304.58 | E110: 304.58 | F110: 0
A111: 35000118 | B111: PARALELEPIPEDO | C111: UN | D111: 3.2 | E111: 3.2 | F111: 0
A112: 35000119 | B112: POLIEDRICO | C112: M3 | D112: 56.84 | E112: 56.84 | F112: 0
A113: 35000120 | B113: PRE-MOLDADO CONCRETO INTERTRAVADO-E=8CM | C113: M2 | D113: 34.1 | E113: 34.1 | F113: 0
A114: 35000121 | B114: GASOLINA TIPO A - COMUM | C114: L | D114: 4.47 | E114: 4.47 | F114: 0
A115: 35000122 | B115: OLEO DIESEL | C115: L | D115: 3.57 | E115: 3.57 | F115: 0
A116: 35000123 | B116: OLEO P/ FERRAMENTAS PNEUMATICAS-FP68 | C116: L | D116: 9.09 | E116: 9.09 | F116: 0
A117: 35000124 | B117: GRAXA LUBRAX GMA - 2 | C117: KG | D117: 22.91 | E117: 22.91 | F117: 0
A118: 35000125 | B118: GRAMA EM PLACAS | C118: M2 | D118: 6.96 | E118: 6.96 | F118: 0
A119: 35000126 | B119: TERRA VEGETAL | C119: M3 | D119: 56.89 | E119: 56.89 | F119: 0
A120: 35000127 | B120: MOURAO - P-COPASA 126 / L = 2,20+/-0,05M | C120: UN | D120: 35.36 | E120: 35.36 | F120: 0
A121: 35000128 | B121: MOURAO MADEIRA -11/13 CM - ALT =2,20M. | C121: UN | D121: 13.33 | E121: 13.33 | F121: 0
A122: 35000129 | B122: MOURAO ESCORA-P-COPASA126/L=2,50+/-0,05M | C122: UN | D122: 31.97 | E122: 31.97 | F122: 0
A123: 35000130 | B123: MOURAO CONC. P-COPASA126 /L=2,80+/-0,06M | C123: UN | D123: 34.16 | E123: 34.16 | F123: 0
A124: 35000131 | B124: PLACA DE IDENTIFICACAO DE OBRA | C124: M2 | D124: 212.69 | E124: 212.69 | F124: 0
A125: 35000132 | B125: CONE PARA SINALIZACAO - P-COPASA - 065/- | C125: UN | D125: 28.1 | E125: 28.1 | F125: 0
A126: 35000133 | B126: PLACA "DISTANCIA DE OBRA"-P-COPASA 066/- | C126: UN | D126: 77.5 | E126: 77.5 | F126: 0
A127: 35000134 | B127: CAVALETE DUPLA FACE - CONFORME MIVC | C127: UN | D127: 350.63 | E127: 350.63 | F127: 0
A128: 35000135 | B128: TRIPE PARA BANDEIROLAS - P-COPASA -102/- | C128: UN | D128: 156.61 | E128: 156.61 | F128: 0
A129: 35000136 | B129: GRADE MODULAR SINALIZACAO-P-COPASA 177/- | C129: UN | D129: 340.32 | E129: 340.32 | F129: 0
A130: 35000137 | B130: FITA ZEBRADA AMARELO E PRETA L = 75MM | C130: UN | D130: 8.72 | E130: 8.72 | F130: =E130/D130-1 -> 0
A131: 35000140 | B131: ELETRODO P/ACOS, ILMENITICO Ø = 4MM | C131: KG | D131: 17.75 | E131: 17.75 | F131: 0
A132: 35000141 | B132: ACETILENO | C132: KG | D132: 29.6 | E132: 29.6 | F132: 0
A133: 35000142 | B133: OXIGENIO | C133: M3 | D133: 7.57 | E133: 7.57 | F133: 0
A134: 35000143 | B134: MANILHA CERAMICA CL B/C DN100 | C134: M | D134: 9.9 | E134: 9.9 | F134: 0
A135: 35000144 | B135: MANILHA CERAMICA CL B/C DN200 | C135: M | D135: 21.85 | E135: 21.85 | F135: 0
A136: 35000145 | B136: SELIM CERAMICO CL C - 90 GR DN150X100 | C136: UN | D136: 24.63 | E136: 24.63 | F136: 0
A137: 35000146 | B137: SELIM CERAMICO CL C - 90 GR DN200X100 | C137: UN | D137: 47.77 | E137: 47.77 | F137: 0
A138: 35000147 | B138: SELA CERAMICA P.RETA DN200X210X135MM | C138: UN | D138: 26 | E138: 26 | F138: 0
A139: 35000148 | B139: TUBO CERAMICO DRENO PB DE100MM | C139: M | D139: 9.67 | E139: 9.67 | F139: 0
A140: 35000149 | B140: TUBO CERAMICO DRENO PB DE150MM | C140: M | D140: 14.73 | E140: 14.73 | F140: 0
A141: 35000150 | B141: TUBO CERAMICO DRENO PB DE200MM | C141: M | D141: 23.27 | E141: 23.27 | F141: 0
A142: 35000151 | B142: TUBO CONCRETO ARM PA1 PB JR DN1000 | C142: M | D142: 231.46 | E142: 231.46 | F142: 0
A143: 35000152 | B143: TUBO CONCRETO SIMPLES PB JR PS-1 DN600 | C143: M | D143: 76 | E143: 76 | F143: 0
A144: 35000153 | B144: TAMPA LAMINADA FV C/ALCAS-1020X1020X5MM | C144: UN | D144: 1380.75 | E144: 1380.75 | F144: 0
A145: 35000154 | B145: COTOVELO ADAP P/PEAD FG (KTL) D1/2"x20MM | C145: UN | D145: 22.71 | E145: 22.71 | F145: 0
A146: 35000155 | B146: UNIAO POLIPROPILENO (PEAD) D20MMx1/2" | C146: UN | D146: 1.56 | E146: 1.56 | F146: 0
A147: 35000156 | B147: TUBO POLIETILENO (PEAD) D20MM - PRETO | C147: M | D147: 2.68 | E147: 2.68 | F147: 0
A148: 35000157 | B148: TUBO POLIETILENO (PEAD) D20MM-AZUL GR3 | C148: M | D148: 2.85 | E148: 2.85 | F148: 0
A149: 35000158 | B149: ADESIVO PARA PVC RIGIDO | C149: KG | D149: 31.46 | E149: 31.46 | F149: 0
A150: 35000159 | B150: PASTA LUBRIFICANTE | C150: KG | D150: 20.38 | E150: 20.38 | F150: 0
A151: 35000160 | B151: SOLUCAO LIMPADORA P/ PVC RIGIDO | C151: L | D151: 36.6 | E151: 36.6 | F151: 0
A152: 35000161 | B152: ANEL BORRACHA TOROIDAL-AJE-DN50 DE60MM | C152: UN | D152: 1.09 | E152: 1.09 | F152: 0
A153: 35000162 | B153: ANEL BORRACHA TOROIDAL-AJE-DN75 DE85MM | C153: UN | D153: 1.63 | E153: 1.63 | F153: 0
A154: 35000163 | B154: ANEL BORRACHA TOROIDAL-AJE-DN100 DE110MM | C154: UN | D154: 2.05 | E154: 2.05 | F154: 0
A155: 35000164 | B155: ADAPTADOR PVC PBA BFF DN100x100 DE110MM | C155: UN | D155: 14.55 | E155: 14.55 | F155: 0
A156: 35000165 | B156: CURVA 90 GR RL PVC PBA JE DN75 DE85 MM | C156: UN | D156: 17.85 | E156: 17.85 | F156: 0
A157: 35000166 | B157: CURVA 90 GR RL PVC PBA JE DN100 DE110 MM | C157: UN | D157: 36.11 | E157: 36.11 | F157: 0
A158: 35000167 | B158: CANALETA RETA TUBO PVC PB DN 100. | C158: UN | D158: 14.07 | E158: 14.07 | F158: 0
A159: 35000168 | B159: TE 90 GR PVC BBB JE DN50 DE60MM | C159: UN | D159: 12.02 | E159: 12.02 | F159: 0
A160: 35000169 | B160: TUBO PVC PBA CL15 DN50 DE60MM | C160: M | D160: 6.12 | E160: 6.12 | F160: 0
A161: 35000170 | B161: TUBO PVC PBA CL15 DN75 DE85MM | C161: M | D161: 13.68 | E161: 13.68 | F161: 0
A162: 35000171 | B162: TUBO PVC PBA CL15 DN100 DE110MM | C162: M | D162: 20.78 | E162: 20.78 | F162: 0
A163: 35000172 | B163: TUBO PVC PBA CL20 DN50 DE 60MM | C163: M | D163: 7.42 | E163: 7.42 | F163: 0
A164: 35000173 | B164: TUBO PVC PBA CL20 DN75 DE 85MM | C164: M | D164: 17.27 | E164: 17.27 | F164: 0
A165: 35000174 | B165: TUBO PVC PBA CL20 DN100 DE110MM | C165: M | D165: 26.21 | E165: 26.21 | F165: 0
A166: 35000175 | B166: TUBO PVC RIG. DEFOFO PBA JE DN150 | C166: M | D166: 40.64 | E166: 40.64 | F166: 0
A167: 35000176 | B167: AGENTE ESPUMANTE DRILLFOAN OU SIMILAR | C167: L | D167: 26.53 | E167: 26.53 | F167: 0
A168: 35000177 | B168: AREIA SELECIONADA - TIPO PEROLA | C168: KG | D168: 1.1 | E168: 1.1 | F168: 0
A169: 35000178 | B169: HEXAMETAFOSFATO DE SODIO 69% DE P2O5 | C169: KG | D169: 18 | E169: 18 | F169: 0
A170: 35000179 | B170: BENTONITA ATIVADA | C170: KG | D170: 1.06 | E170: 1.06 | F170: 0
A171: 35000180 | B171: REGISTRO GAVETA, FoFo-RCFV16, DN 50 | C171: UN | D171: 434.11 | E171: 434.11 | F171: 0
A172: 35000181 | B172: REGISTRO S. METRICA CHATA RCFV16 DN 75 | C172: UN | D172: 604.42 | E172: 604.42 | F172: 0
A173: 35000182 | B173: REGISTRO S. METRICA CHATA RCFV16 DN 150 | C173: UN | D173: 1597.54 | E173: 1597.54 | F173: 0
A174: 35000183 | B174: VALVULA RETENCAO FoFo VRPUS16 - DN 150 | C174: UN | D174: 1382.46 | E174: 1382.46 | F174: 0
A175: 35000184 | B175: VENTOSA SIMPLES FOFO C/F 10/16/25 DN 50 | C175: UN | D175: 176.54 | E175: 176.54 | F175: 0
A176: 35000185 | B176: VENTOSA SIMPLES FOFO C/ROSCA PN25 DN1" | C176: UN | D176: 325.12 | E176: 325.12 | F176: 0
A177: 35000186 | B177: VENTOSA SIMPL FOFO C/ROSCA-PN25 DN1.1/2" | C177: UN | D177: 176.54 | E177: 176.54 | F177: 0
A178: 35000187 | B178: CURVA 45º FoFo JE - C45JGS - DN150 | C178: UN | D178: 150.24 | E178: 150.24 | F178: 0
A179: 35000188 | B179: CURVA 90º FoFo FF-C90FF10/16-DN 100 | C179: UN | D179: 182.08 | E179: 182.08 | F179: 0
A180: 35000189 | B180: CURVA 90º FoFo FF-C90FF10/16-DN 150 | C180: UN | D180: 339.84 | E180: 339.84 | F180: 0
A181: 35000190 | B181: EXTREMIDADE FoFo-EPFAV10/16-DN 100 | C181: UN | D181: 275.68 | E181: 275.68 | F181: 0
A182: 35000191 | B182: TE 90º FoFo-TFF10/16-DN 150x100 | C182: UN | D182: 534.11 | E182: 534.11 | F182: 0
A183: 35000192 | B183: VALVULA RET BR PH 150 PSI R BSP D=1.1/2" | C183: UN | D183: 127.29 | E183: 127.29 | F183: 0
A184: 35000193 | B184: VALVULA RET BR PH 150 PSI R BSP D=2" | C184: UN | D184: 191.95 | E184: 191.95 | F184: 0
A185: 35000194 | B185: VALVULA RET BR PH 150 PSI R BSP D=2.1/2" | C185: UN | D185: 316.52 | E185: 316.52 | F185: 0
A186: 35000195 | B186: VALVULA RET BR PH 150 PSI R BSP D=3" | C186: UN | D186: 383.95 | E186: 383.95 | F186: 0
A187: 35000196 | B187: VALVULA RET BR PH 150 PSI R BSP D=4" | C187: UN | D187: 679.2 | E187: 679.2 | F187: 0
A188: 35000197 | B188: TUBO FoFo-TFP10/16-DN 150 L = 3,00M | C188: UN | D188: 1379.77 | E188: 1379.77 | F188: 0
A189: 35000198 | B189: CURVA 45º FoFo FF-C45FF10/16-DN 150 | C189: UN | D189: 302.82 | E189: 302.82 | F189: 0
A190: 35000199 | B190: FLANGE AVULSO FoFo-FA10/16-DN 150 | C190: UN | D190: 126.33 | E190: 126.33 | F190: 0
A191: 35000200 | B191: PLACA REDUCAO FoFo FF-PR10/16-DN 100x50 | C191: UN | D191: 147.59 | E191: 147.59 | F191: 0
A192: 35000201 | B192: PARAFUSO P/ JUNTA MECANICA-PJM-DN18x90 | C192: UN | D192: 4 | E192: 4 | F192: 0
A193: 35000202 | B193: PARAFUSO C/PORCAS P/ FLANGES-PPF DN16x80 | C193: UN | D193: 3 | E193: 3 | F193: 0
A194: 35000203 | B194: ANEL PREM. CONC. P-104/_-DN 600x320MM. | C194: UN | D194: 72.63 | E194: 72.63 | F194: =E194/D194-1 -> 0
A195: 35000204 | B195: ANEL PREM. CONC. P-104/_-DN 1000x320MM. | C195: UN | D195: 111.03 | E195: 111.03 | F195: 0
A196: 35000205 | B196: ANEL PREM. CONC. P-104/_-DN 1200x320MM. | C196: UN | D196: 136.2 | E196: 136.2 | F196: 0
A197: 35000206 | B197: LAJE RED. CA P-105/_ DE (1300x600x120)MM | C197: UN | D197: 198 | E197: 198 | F197: 0
A198: 35000207 | B198: LAJE RED. CA P-105/_ DE (1500x600x120)MM | C198: UN | D198: 231.09 | E198: 231.09 | F198: 0
A199: 35000208 | B199: TAMPAO T- 5 FOFO P/PL PADRAO 030/- | C199: UN | D199: 41.89 | E199: 41.89 | F199: 0
A200: 35000209 | B200: TAMPAO T-22 FOFO P/CX PAS. PADRAO 032/- | C200: UN | D200: 88.38 | E200: 88.38 | F200: 0
... 925 more rows

Sheet COPASA NORDESTE 11_2020
A1: CÓD | B1: DESCRIÇÃO | C1: UNID | D1: VR ONERADO | E1: VR DESONERADO | F1: DIF
A2: 35000000 | B2: SERVENTE AGUA - COPASA | C2: H | D2: 15.33 | E2: 13.24 | F2: =E2/D2-1 -> -0.1363339856
A3: 35000001 | B3: SERVENTE ESGOTO - COPASA | C3: H | D3: 15.33 | E3: 13.24 | F3: -0.1363339856
A4: 35000002 | B4: SERVICO AUXILIAR OPERACIONAL - COPASA | C4: H | D4: 15.33 | E4: 13.24 | F4: -0.1363339856
A5: 35000003 | B5: AUXILIAR DE LABORATORIO - COPASA | C5: H | D5: 15.64 | E5: 13.51 | F5: -0.1361892583
A6: 35000004 | B6: AUXILIAR DE ESCRITORIO CEC | C6: H | D6: 18.42 | E6: 16.26 | F6: -0.1172638436
A7: 35000005 | B7: AUXILIAR APOIO ADMINISTRATIVO - COPASA | C7: H | D7: 21.04 | E7: 18.18 | F7: -0.1359315589
A8: 35000006 | B8: ATENDENTE COMERCIAL - COPASA | C8: H | D8: 25.66 | E8: 22.16 | F8: -0.1363990647
A9: 35000007 | B9: BIOLOGO - COPASA | C9: H | D9: 69.38 | E9: 59.93 | F9: -0.1362063995
A10: 35000008 | B10: TECNICO ORCAMENTISTA CEC | C10: H | D10: 33.63 | E10: 29.34 | F10: -0.1275646744
A11: 35000009 | B11: LEITURISTA - COPASA | C11: H | D11: 21.04 | E11: 18.18 | F11: -0.1359315589
A12: 35000010 | B12: ENCARREGADO MANUTENCAO AGUA II - COPASA | C12: H | D12: 21.04 | E12: 18.18 | F12: -0.1359315589
A13: 35000011 | B13: ENCARREGADO MANUTENCAO ESGOTO I - COPASA | C13: H | D13: 21.04 | E13: 18.18 | F13: -0.1359315589
A14: 35000012 | B14: TECNICO DE LABORATORIO - COPASA | C14: H | D14: 39.66 | E14: 34.26 | F14: -0.1361573374
A15: 35000013 | B15: TECNICO DE LABORATORIO CEC | C15: H | D15: 33.65 | E15: 29.37 | F15: -0.127191679
A16: 35000014 | B16: TECNICO DE SEGURANCA DO TRABALHO CEC | C16: H | D16: 33.65 | E16: 29.37 | F16: -0.127191679
A17: 35000015 | B17: PROGRAMACAO PROCES. DADOS - COPASA | C17: H | D17: 39.66 | E17: 34.26 | F17: -0.1361573374
A18: 35000016 | B18: ENCARREGADO DE AREAS CEC | C18: H | D18: 24.81 | E18: 21.84 | F18: -0.1197097944
A19: 35000017 | B19: ENCARREGADO GERAL CEC | C19: H | D19: 33.65 | E19: 29.37 | F19: -0.127191679
A20: 35000018 | B20: CONSULTOR | C20: H | D20: 313.5 | E20: 313.5 | F20: 0
A21: 35000019 | B21: ENGENHEIRO NÍVEL I FAIXA I CEC | C21: MES | D21: 16409.87 | E21: 14192.28 | F21: -0.1351375727
A22: 35000021 | B22: ENGENHEIRO NÍVEL II FAIXA I CEC | C22: MES | D22: 18475.72 | E22: 15969.63 | F22: -0.1356423457
A23: 35000022 | B23: ENGENHEIRO NÍVEL IV FAIXA I CEC | C23: MES | D23: 23450.63 | E23: 20249.78 | F23: -0.1364931347
A24: 35000023 | B24: ENGENHEIRO NÍVEL III FAIXA I CEC | C24: MES | D24: 20810.93 | E24: 17978.72 | F24: -0.1360924284
A25: 35000024 | B25: ENGENHEIRO NÍVEL II FAIXA II CEC | C25: MES | D25: 19222.55 | E25: 16612.16 | F25: -0.1357983202
A26: 35000025 | B26: HIDROGEOLOGO CEC | C26: MES | D26: 16330.4 | E26: 14123.32 | F26: -0.1351516191
A27: 35000026 | B27: PROJETISTA CEC | C27: MES | D27: 12048.41 | E27: 10439.32 | F27: -0.1335520621
A28: 35000027 | B28: SUPERVISOR TECNICO CEC | C28: MES | D28: 8783.58 | E28: 7603.23 | F28: -0.1343814253
A29: 35000028 | B29: AUXILIAR DE PROGRAMACAO CEC | C29: MES | D29: 4732.83 | E29: 4122.9 | F29: -0.1288721547
A30: 35000029 | B30: ALMOXARIFE CEC | C30: MES | D30: 4737.1 | E30: 4127.18 | F30: -0.128753879
A31: 35000030 | B31: AUXILIAR DE ALMOXARIFE CEC | C31: MES | D31: 3786.97 | E31: 3314.35 | F31: -0.1248016224
A32: 35000032 | B32: TOPOGRAFO CEC | C32: MES | D32: 6412.6 | E32: 5560.54 | F32: -0.1328727817
A33: 35000033 | B33: TECNICO CADASTRISTA CEC | C33: MES | D33: 6408.32 | E33: 5556.26 | F33: -0.132961525
A34: 35000034 | B34: NIVELADOR CEC | C34: MES | D34: 4737.1 | E34: 4127.18 | F34: -0.128753879
A35: 35000035 | B35: AUXILIAR DE TOPOGRAFIA CEC | C35: MES | D35: 3786.97 | E35: 3314.35 | F35: -0.1248016224
A36: 35000037 | B36: TECNICO CALCULISTA CEC | C36: MES | D36: 6408.32 | E36: 5556.26 | F36: -0.132961525
A37: 35000038 | B37: DESENHISTA TECNICO (CADISTA) CEC | C37: MES | D37: 4732.83 | E37: 4122.9 | F37: -0.1288721547
A38: 35000039 | B38: ALMOXARIFE CEC | C38: H | D38: 27.22 | E38: 23.83 | F38: -0.1245407788
A39: 35000040 | B39: AUXILIAR DE ALMOXARIFE CEC | C39: H | D39: 21.77 | E39: 19.15 | F39: -0.1203491043
A40: 35000041 | B40: OFICIAL CEC | C40: H | D40: 20.76 | E40: 18.35 | F40: -0.116088632
A41: 35000042 | B41: NIVELADOR CEC | C41: H | D41: 27.22 | E41: 23.83 | F41: -0.1245407788
A42: 35000043 | B42: AUXILIAR DE OFICIAL CEC | C42: H | D42: 16.51 | E42: 14.69 | F42: -0.1102362205
A43: 35000044 | B43: SERVENTE CEC | C43: H | D43: 14.71 | E43: 13.13 | F43: -0.1074099252
A44: 35000045 | B44: TOPOGRAFO CEC | C44: H | D44: 36.82 | E44: 32.09 | F44: -0.128462792
A45: 35000046 | B45: AUXILIAR DE TOPOGRAFIA CEC | C45: H | D45: 21.77 | E45: 19.15 | F45: -0.1203491043
A46: 35000047 | B46: AUXILIAR DE OPERADOR - MAQ PESADAS CEC | C46: H | D46: 16.77 | E46: 14.88 | F46: -0.1127012522
A47: 35000048 | B47: MOTORISTA CEC | C47: H | D47: 22.14 | E47: 19.5 | F47: -0.1192411924
A48: 35000049 | B48: OPERADOR DE MAQUINAS PESADAS CEC | C48: H | D48: 24.06 | E48: 21.15 | F48: -0.1209476309
A49: 35000050 | B49: SONDADOR I - COPASA | C49: H | D49: 16.93 | E49: 14.62 | F49: -0.1364441819
A50: 35000051 | B50: SONDADOR II - COPASA | C50: H | D50: 21.04 | E50: 18.18 | F50: -0.1359315589
A51: 35000052 | B51: ACO CA-50 A OU B | C51: TO | D51: 4672.36 | E51: 4672.36 | F51: 0
A52: 35000053 | B52: ACO CA-60 A OU B | C52: TO | D52: 4672.36 | E52: 4672.36 | F52: 0
A53: 35000056 | B53: VEU DE POLIESTER 75 G/M2 | C53: M2 | D53: 2.99 | E53: 2.99 | F53: 0
A54: 35000059 | B54: LIMITADOR JUNTA TARUCEL - JUNTA 1x1CM | C54: M | D54: 0.32 | E54: 0.32 | F54: 0
A55: 35000060 | B55: LIMITADOR JUNTA TARUCEL - JUNTA 2x2CM | C55: M | D55: 0.82 | E55: 0.82 | F55: 0
A56: 35000062 | B56: ACELERADOR-IMPERMEABILIZANTE | C56: KG | D56: 8.99 | E56: 8.99 | F56: 0
A57: 35000063 | B57: RESINA POLIURETANO-MC 2300 NV OU SIMILAR | C57: L | D57: 113.96 | E57: 113.96 | F57: 0
A58: 35000064 | B58: RESINA POLIURETANO MC 2033 OU SIMILAR | C58: L | D58: 136.13 | E58: 136.13 | F58: 0
A59: 35000065 | B59: XYPEX CONCENTRADO OU SIMILAR | C59: KG | D59: 18.05 | E59: 18.05 | F59: 0
A60: 35000066 | B60: XYPEX MODIFICADO OU SIMILAR | C60: KG | D60: 16.71 | E60: 16.71 | F60: 0
A61: 35000067 | B61: XYPEX PATCH'N PLUG OU SIMILAR | C61: KG | D61: 9.28 | E61: 9.28 | F61: 0
A62: 35000068 | B62: ADESIVO EPOXICO MCDUR 1300 TX OU SIMILAR | C62: KG | D62: 22.28 | E62: 22.28 | F62: 0
A63: 35000069 | B63: SOLVENTE REINIGUNGSMITTEL U OU SIMILAR | C63: L | D63: 43 | E63: 43 | F63: 0
A64: 35000070 | B64: BEXIGA BORRACHA- BLOQUEADOR FLUXO Ø100MM | C64: UN | D64: 1850 | E64: 1850 | F64: 0
A65: 35000071 | B65: SIKA I | C65: L | D65: 5.03 | E65: 5.03 | F65: 0
A66: 35000072 | B66: SIKA CHAPISCO PLUS | C66: KG | D66: 8.04 | E66: 8.04 | F66: =E66/D66-1 -> 0
A67: 35000073 | B67: SIKA TOP 122 - BICOMPONENTE A E B | C67: KG | D67: 8.92 | E67: 8.92 | F67: 0
A68: 35000074 | B68: SIKALIT - ADITIVO IMPERMEABILIZANTE | C68: KG | D68: 15.07 | E68: 15.07 | F68: 0
A69: 35000075 | B69: SIKADUR 32 | C69: KG | D69: 90.74 | E69: 90.74 | F69: 0
A70: 35000076 | B70: ADESIVO EPOXI SIKADUR 31 | C70: KG | D70: 83.87 | E70: 83.87 | F70: 0
A71: 35000077 | B71: SIKAGROUT - 250 | C71: KG | D71: 1.25 | E71: 1.25 | F71: 0
A72: 35000078 | B72: SIKAFLEX 1A - CARTUCHO DE 310 ML | C72: UN | D72: 63.3 | E72: 63.3 | F72: 0
A73: 35000079 | B73: SIKA PRIMER 1 - LATA COM 320 ML | C73: UN | D73: 75.25 | E73: 75.25 | F73: 0
A74: 35000080 | B74: IMPERMEABILIZANTE TIPO HEYDI - K11 | C74: KG | D74: 2.67 | E74: 2.67 | F74: 0
A75: 35000081 | B75: IMPERMEABILIZANTE TIPO HEYDI - KZ | C75: KG | D75: 15.56 | E75: 15.56 | F75: 0
A76: 35000082 | B76: SIKA TOP 107 | C76: KG | D76: 6.76 | E76: 6.76 | F76: 0
A77: 35000083 | B77: SIKA TOP 108 ARMATEC | C77: KG | D77: 22.32 | E77: 22.32 | F77: 0
A78: 35000084 | B78: DESMOLDANTE PARA FORMAS | C78: L | D78: 8.31 | E78: 8.31 | F78: 0
A79: 35000085 | B79: CONCRETO - FCK 10 MPA - USINADO | C79: M3 | D79: 219.28 | E79: 219.28 | F79: 0
A80: 35000086 | B80: CONCRETO - FCK-15 MPA - USINADO | C80: M3 | D80: 237.93 | E80: 237.93 | F80: 0
A81: 35000087 | B81: CONCRETO - FCK - 20MPA - USINADO | C81: M3 | D81: 248.42 | E81: 248.42 | F81: 0
A82: 35000088 | B82: CONCRETO - FCK -25 MPA - USINADO | C82: M3 | D82: 260.83 | E82: 260.83 | F82: 0
A83: 35000089 | B83: CONCRETO-FCK-30MPA - USINADO/ADITIVO | C83: M3 | D83: 287.37 | E83: 287.37 | F83: 0
A84: 35000090 | B84: CONCRETO-FCK-35MPA - USINADO/ADITIVO | C84: M3 | D84: 294.3 | E84: 294.3 | F84: 0
A85: 35000091 | B85: CONCRETO-FCK-40MPA - USINADO/ADITIVO | C85: M3 | D85: 324.14 | E85: 324.14 | F85: 0
A86: 35000092 | B86: ARAME DE AMARRACAO GABIAO-Ø=2,2MM. | C86: KG | D86: 18.61 | E86: 18.61 | F86: 0
A87: 35000093 | B87: GABIAO-MALHA 8X10 GALV ALT=0,50M | C87: M3 | D87: 282.51 | E87: 282.51 | F87: 0
A88: 35000094 | B88: GABIAO-MALHA 8X10 GALV ALT=1,00M | C88: M3 | D88: 206.2 | E88: 206.2 | F88: 0
A89: 35000095 | B89: COLCHAO RENO-MALHA 6X 8 GPVC-E=0,30M | C89: M2 | D89: 122.01 | E89: 122.01 | F89: 0
A90: 35000096 | B90: GABIAO TIPO SACO-MALHA 8X10 REC. C/ PVC | C90: M3 | D90: 267.09 | E90: 267.09 | F90: 0
A91: 35000097 | B91: CANALETA DE CONCRETO- MEIA CANA,Ø300MM | C91: M | D91: 29.44 | E91: 29.44 | F91: 0
A92: 35000098 | B92: CANALETA DE CONCRETO- MEIA CANA,Ø400MM | C92: M | D92: 37.27 | E92: 37.27 | F92: 0
A93: 35000099 | B93: CANALETA DE CONCRETO- MEIA CANA,Ø500MM | C93: M | D93: 40.63 | E93: 40.63 | F93: 0
A94: 35000100 | B94: CANALETA DE CONCRETO- MEIA CANA,Ø600MM | C94: M | D94: 54.2 | E94: 54.2 | F94: 0
A95: 35000101 | B95: CORDEL DETONANTE NP-10 | C95: M | D95: 1.2 | E95: 1.2 | F95: 0
A96: 35000102 | B96: DINAMITE-ENCARTUCHADO, Ø 1" A 1.1/2" | C96: KG | D96: 9.95 | E96: 9.95 | F96: 0
A97: 35000103 | B97: ESPOLETA SIMPLES NR. 8 | C97: UN | D97: 2.99 | E97: 2.99 | F97: 0
A98: 35000104 | B98: ESTOPIM SIMPLES | C98: M | D98: 4.31 | E98: 4.31 | F98: 0
A99: 35000105 | B99: RETARDO P/CORDEL-NP-05/10-ESPERA 25/50MS | C99: UN | D99: 15.16 | E99: 15.16 | F99: 0
A100: 35000107 | B100: CANGA DE MINERIO DE FERRO | C100: TO | D100: 16.9 | E100: 16.9 | F100: 0
A101: 35000108 | B101: ESCORIA DE ALTO FORNO | C101: TO | D101: 71.38 | E101: 71.38 | F101: 0
A102: 35000109 | B102: BICA CORRIDA | C102: TO | D102: 23.12 | E102: 23.12 | F102: 0
A103: 35000110 | B103: BRITA GRADUADA | C103: TO | D103: 59.48 | E103: 59.48 | F103: 0
A104: 35000111 | B104: EMULSAO ASFALTICA RR-1C | C104: KG | D104: 2.16 | E104: 2.16 | F104: 0
A105: 35000112 | B105: EMULSAO ASFALTICA RR-2C | C105: KG | D105: 2.46 | E105: 2.46 | F105: 0
A106: 35000113 | B106: EMULSAO ASFALTICA CM-30 | C106: KG | D106: 5.35 | E106: 5.35 | F106: 0
A107: 35000114 | B107: MEIO FIO DE CONCRETO-12X16,7X35X80CM | C107: UN | D107: 15.04 | E107: 15.04 | F107: 0
A108: 35000115 | B108: CALCARIO - MOSAICO - CALCADA PORTUGUESA | C108: KG | D108: 0.36 | E108: 0.36 | F108: 0
A109: 35000116 | B109: PRE-MOLDADO CONCRETO-BLOQUETE-25X10CM. | C109: M2 | D109: 52 | E109: 52 | F109: 0
A110: 35000117 | B110: CONCRETO BETUMINOSO USINADO-CBUQ-FX-"C" | C110: TO | D110: 304.58 | E110: 304.58 | F110: 0
A111: 35000118 | B111: PARALELEPIPEDO | C111: UN | D111: 3.2 | E111: 3.2 | F111: 0
A112: 35000119 | B112: POLIEDRICO | C112: M3 | D112: 56.84 | E112: 56.84 | F112: 0
A113: 35000120 | B113: PRE-MOLDADO CONCRETO INTERTRAVADO-E=8CM | C113: M2 | D113: 34.1 | E113: 34.1 | F113: 0
A114: 35000121 | B114: GASOLINA TIPO A - COMUM | C114: L | D114: 4.6 | E114: 4.6 | F114: 0
A115: 35000122 | B115: OLEO DIESEL | C115: L | D115: 3.62 | E115: 3.62 | F115: 0
A116: 35000123 | B116: OLEO P/ FERRAMENTAS PNEUMATICAS-FP68 | C116: L | D116: 9.09 | E116: 9.09 | F116: 0
A117: 35000124 | B117: GRAXA LUBRAX GMA - 2 | C117: KG | D117: 22.91 | E117: 22.91 | F117: 0
A118: 35000125 | B118: GRAMA EM PLACAS | C118: M2 | D118: 10.45 | E118: 10.45 | F118: 0
A119: 35000126 | B119: TERRA VEGETAL | C119: M3 | D119: 56.89 | E119: 56.89 | F119: 0
A120: 35000127 | B120: MOURAO - P-COPASA 126 / L = 2,20+/-0,05M | C120: UN | D120: 35.36 | E120: 35.36 | F120: 0
A121: 35000128 | B121: MOURAO MADEIRA -11/13 CM - ALT =2,20M. | C121: UN | D121: 13.33 | E121: 13.33 | F121: 0
A122: 35000129 | B122: MOURAO ESCORA-P-COPASA126/L=2,50+/-0,05M | C122: UN | D122: 31.97 | E122: 31.97 | F122: 0
A123: 35000130 | B123: MOURAO CONC. P-COPASA126 /L=2,80+/-0,06M | C123: UN | D123: 34.16 | E123: 34.16 | F123: 0
A124: 35000131 | B124: PLACA DE IDENTIFICACAO DE OBRA | C124: M2 | D124: 212.69 | E124: 212.69 | F124: 0
A125: 35000132 | B125: CONE PARA SINALIZACAO - P-COPASA - 065/- | C125: UN | D125: 28.1 | E125: 28.1 | F125: 0
A126: 35000133 | B126: PLACA "DISTANCIA DE OBRA"-P-COPASA 066/- | C126: UN | D126: 77.5 | E126: 77.5 | F126: 0
A127: 35000134 | B127: CAVALETE DUPLA FACE - CONFORME MIVC | C127: UN | D127: 350.63 | E127: 350.63 | F127: 0
A128: 35000135 | B128: TRIPE PARA BANDEIROLAS - P-COPASA -102/- | C128: UN | D128: 156.61 | E128: 156.61 | F128: 0
A129: 35000136 | B129: GRADE MODULAR SINALIZACAO-P-COPASA 177/- | C129: UN | D129: 340.32 | E129: 340.32 | F129: 0
A130: 35000137 | B130: FITA ZEBRADA AMARELO E PRETA L = 75MM | C130: UN | D130: 8.72 | E130: 8.72 | F130: =E130/D130-1 -> 0
A131: 35000140 | B131: ELETRODO P/ACOS, ILMENITICO Ø = 4MM | C131: KG | D131: 17.75 | E131: 17.75 | F131: 0
A132: 35000141 | B132: ACETILENO | C132: KG | D132: 29.6 | E132: 29.6 | F132: 0
A133: 35000142 | B133: OXIGENIO | C133: M3 | D133: 7.57 | E133: 7.57 | F133: 0
A134: 35000143 | B134: MANILHA CERAMICA CL B/C DN100 | C134: M | D134: 9.9 | E134: 9.9 | F134: 0
A135: 35000144 | B135: MANILHA CERAMICA CL B/C DN200 | C135: M | D135: 21.85 | E135: 21.85 | F135: 0
A136: 35000145 | B136: SELIM CERAMICO CL C - 90 GR DN150X100 | C136: UN | D136: 24.63 | E136: 24.63 | F136: 0
A137: 35000146 | B137: SELIM CERAMICO CL C - 90 GR DN200X100 | C137: UN | D137: 47.77 | E137: 47.77 | F137: 0
A138: 35000147 | B138: SELA CERAMICA P.RETA DN200X210X135MM | C138: UN | D138: 26 | E138: 26 | F138: 0
A139: 35000148 | B139: TUBO CERAMICO DRENO PB DE100MM | C139: M | D139: 9.67 | E139: 9.67 | F139: 0
A140: 35000149 | B140: TUBO CERAMICO DRENO PB DE150MM | C140: M | D140: 14.73 | E140: 14.73 | F140: 0
A141: 35000150 | B141: TUBO CERAMICO DRENO PB DE200MM | C141: M | D141: 23.27 | E141: 23.27 | F141: 0
A142: 35000151 | B142: TUBO CONCRETO ARM PA1 PB JR DN1000 | C142: M | D142: 231.46 | E142: 231.46 | F142: 0
A143: 35000152 | B143: TUBO CONCRETO SIMPLES PB JR PS-1 DN600 | C143: M | D143: 76 | E143: 76 | F143: 0
A144: 35000153 | B144: TAMPA LAMINADA FV C/ALCAS-1020X1020X5MM | C144: UN | D144: 1380.75 | E144: 1380.75 | F144: 0
A145: 35000154 | B145: COTOVELO ADAP P/PEAD FG (KTL) D1/2"x20MM | C145: UN | D145: 22.71 | E145: 22.71 | F145: 0
A146: 35000155 | B146: UNIAO POLIPROPILENO (PEAD) D20MMx1/2" | C146: UN | D146: 1.56 | E146: 1.56 | F146: 0
A147: 35000156 | B147: TUBO POLIETILENO (PEAD) D20MM - PRETO | C147: M | D147: 2.68 | E147: 2.68 | F147: 0
A148: 35000157 | B148: TUBO POLIETILENO (PEAD) D20MM-AZUL GR3 | C148: M | D148: 2.85 | E148: 2.85 | F148: 0
A149: 35000158 | B149: ADESIVO PARA PVC RIGIDO | C149: KG | D149: 31.46 | E149: 31.46 | F149: 0
A150: 35000159 | B150: PASTA LUBRIFICANTE | C150: KG | D150: 20.38 | E150: 20.38 | F150: 0
A151: 35000160 | B151: SOLUCAO LIMPADORA P/ PVC RIGIDO | C151: L | D151: 36.6 | E151: 36.6 | F151: 0
A152: 35000161 | B152: ANEL BORRACHA TOROIDAL-AJE-DN50 DE60MM | C152: UN | D152: 1.09 | E152: 1.09 | F152: 0
A153: 35000162 | B153: ANEL BORRACHA TOROIDAL-AJE-DN75 DE85MM | C153: UN | D153: 1.63 | E153: 1.63 | F153: 0
A154: 35000163 | B154: ANEL BORRACHA TOROIDAL-AJE-DN100 DE110MM | C154: UN | D154: 2.05 | E154: 2.05 | F154: 0
A155: 35000164 | B155: ADAPTADOR PVC PBA BFF DN100x100 DE110MM | C155: UN | D155: 14.55 | E155: 14.55 | F155: 0
A156: 35000165 | B156: CURVA 90 GR RL PVC PBA JE DN75 DE85 MM | C156: UN | D156: 17.85 | E156: 17.85 | F156: 0
A157: 35000166 | B157: CURVA 90 GR RL PVC PBA JE DN100 DE110 MM | C157: UN | D157: 36.11 | E157: 36.11 | F157: 0
A158: 35000167 | B158: CANALETA RETA TUBO PVC PB DN 100. | C158: UN | D158: 14.07 | E158: 14.07 | F158: 0
A159: 35000168 | B159: TE 90 GR PVC BBB JE DN50 DE60MM | C159: UN | D159: 12.02 | E159: 12.02 | F159: 0
A160: 35000169 | B160: TUBO PVC PBA CL15 DN50 DE60MM | C160: M | D160: 6.12 | E160: 6.12 | F160: 0
A161: 35000170 | B161: TUBO PVC PBA CL15 DN75 DE85MM | C161: M | D161: 13.68 | E161: 13.68 | F161: 0
A162: 35000171 | B162: TUBO PVC PBA CL15 DN100 DE110MM | C162: M | D162: 20.78 | E162: 20.78 | F162: 0
A163: 35000172 | B163: TUBO PVC PBA CL20 DN50 DE 60MM | C163: M | D163: 7.42 | E163: 7.42 | F163: 0
A164: 35000173 | B164: TUBO PVC PBA CL20 DN75 DE 85MM | C164: M | D164: 17.27 | E164: 17.27 | F164: 0
A165: 35000174 | B165: TUBO PVC PBA CL20 DN100 DE110MM | C165: M | D165: 26.21 | E165: 26.21 | F165: 0
A166: 35000175 | B166: TUBO PVC RIG. DEFOFO PBA JE DN150 | C166: M | D166: 40.64 | E166: 40.64 | F166: 0
A167: 35000176 | B167: AGENTE ESPUMANTE DRILLFOAN OU SIMILAR | C167: L | D167: 26.53 | E167: 26.53 | F167: 0
A168: 35000177 | B168: AREIA SELECIONADA - TIPO PEROLA | C168: KG | D168: 1.1 | E168: 1.1 | F168: 0
A169: 35000178 | B169: HEXAMETAFOSFATO DE SODIO 69% DE P2O5 | C169: KG | D169: 18 | E169: 18 | F169: 0
A170: 35000179 | B170: BENTONITA ATIVADA | C170: KG | D170: 1.06 | E170: 1.06 | F170: 0
A171: 35000180 | B171: REGISTRO GAVETA, FoFo-RCFV16, DN 50 | C171: UN | D171: 434.11 | E171: 434.11 | F171: 0
A172: 35000181 | B172: REGISTRO S. METRICA CHATA RCFV16 DN 75 | C172: UN | D172: 604.42 | E172: 604.42 | F172: 0
A173: 35000182 | B173: REGISTRO S. METRICA CHATA RCFV16 DN 150 | C173: UN | D173: 1597.54 | E173: 1597.54 | F173: 0
A174: 35000183 | B174: VALVULA RETENCAO FoFo VRPUS16 - DN 150 | C174: UN | D174: 1382.46 | E174: 1382.46 | F174: 0
A175: 35000184 | B175: VENTOSA SIMPLES FOFO C/F 10/16/25 DN 50 | C175: UN | D175: 176.54 | E175: 176.54 | F175: 0
A176: 35000185 | B176: VENTOSA SIMPLES FOFO C/ROSCA PN25 DN1" | C176: UN | D176: 325.12 | E176: 325.12 | F176: 0
A177: 35000186 | B177: VENTOSA SIMPL FOFO C/ROSCA-PN25 DN1.1/2" | C177: UN | D177: 176.54 | E177: 176.54 | F177: 0
A178: 35000187 | B178: CURVA 45º FoFo JE - C45JGS - DN150 | C178: UN | D178: 150.24 | E178: 150.24 | F178: 0
A179: 35000188 | B179: CURVA 90º FoFo FF-C90FF10/16-DN 100 | C179: UN | D179: 182.08 | E179: 182.08 | F179: 0
A180: 35000189 | B180: CURVA 90º FoFo FF-C90FF10/16-DN 150 | C180: UN | D180: 339.84 | E180: 339.84 | F180: 0
A181: 35000190 | B181: EXTREMIDADE FoFo-EPFAV10/16-DN 100 | C181: UN | D181: 275.68 | E181: 275.68 | F181: 0
A182: 35000191 | B182: TE 90º FoFo-TFF10/16-DN 150x100 | C182: UN | D182: 534.11 | E182: 534.11 | F182: 0
A183: 35000192 | B183: VALVULA RET BR PH 150 PSI R BSP D=1.1/2" | C183: UN | D183: 127.29 | E183: 127.29 | F183: 0
A184: 35000193 | B184: VALVULA RET BR PH 150 PSI R BSP D=2" | C184: UN | D184: 191.95 | E184: 191.95 | F184: 0
A185: 35000194 | B185: VALVULA RET BR PH 150 PSI R BSP D=2.1/2" | C185: UN | D185: 316.52 | E185: 316.52 | F185: 0
A186: 35000195 | B186: VALVULA RET BR PH 150 PSI R BSP D=3" | C186: UN | D186: 383.95 | E186: 383.95 | F186: 0
A187: 35000196 | B187: VALVULA RET BR PH 150 PSI R BSP D=4" | C187: UN | D187: 679.2 | E187: 679.2 | F187: 0
A188: 35000197 | B188: TUBO FoFo-TFP10/16-DN 150 L = 3,00M | C188: UN | D188: 1379.77 | E188: 1379.77 | F188: 0
A189: 35000198 | B189: CURVA 45º FoFo FF-C45FF10/16-DN 150 | C189: UN | D189: 302.82 | E189: 302.82 | F189: 0
A190: 35000199 | B190: FLANGE AVULSO FoFo-FA10/16-DN 150 | C190: UN | D190: 126.33 | E190: 126.33 | F190: 0
A191: 35000200 | B191: PLACA REDUCAO FoFo FF-PR10/16-DN 100x50 | C191: UN | D191: 147.59 | E191: 147.59 | F191: 0
A192: 35000201 | B192: PARAFUSO P/ JUNTA MECANICA-PJM-DN18x90 | C192: UN | D192: 4 | E192: 4 | F192: 0
A193: 35000202 | B193: PARAFUSO C/PORCAS P/ FLANGES-PPF DN16x80 | C193: UN | D193: 3 | E193: 3 | F193: 0
A194: 35000203 | B194: ANEL PREM. CONC. P-104/_-DN 600x320MM. | C194: UN | D194: 72.63 | E194: 72.63 | F194: =E194/D194-1 -> 0
A195: 35000204 | B195: ANEL PREM. CONC. P-104/_-DN 1000x320MM. | C195: UN | D195: 111.03 | E195: 111.03 | F195: 0
A196: 35000205 | B196: ANEL PREM. CONC. P-104/_-DN 1200x320MM. | C196: UN | D196: 136.2 | E196: 136.2 | F196: 0
A197: 35000206 | B197: LAJE RED. CA P-105/_ DE (1300x600x120)MM | C197: UN | D197: 198 | E197: 198 | F197: 0
A198: 35000207 | B198: LAJE RED. CA P-105/_ DE (1500x600x120)MM | C198: UN | D198: 231.09 | E198: 231.09 | F198: 0
A199: 35000208 | B199: TAMPAO T- 5 FOFO P/PL PADRAO 030/- | C199: UN | D199: 41.89 | E199: 41.89 | F199: 0
A200: 35000209 | B200: TAMPAO T-22 FOFO P/CX PAS. PADRAO 032/- | C200: UN | D200: 88.38 | E200: 88.38 | F200: 0
... 925 more rows

Sheet COPASA NORTE 11_2020
A1: CÓD | B1: DESCRIÇÃO | C1: UNID | D1: VR ONERADO | E1: VR DESONERADO | F1: DIF
A2: 35000000 | B2: SERVENTE AGUA - COPASA | C2: H | D2: 15.33 | E2: 13.24 | F2: =E2/D2-1 -> -0.1363339856
A3: 35000001 | B3: SERVENTE ESGOTO - COPASA | C3: H | D3: 15.33 | E3: 13.24 | F3: -0.1363339856
A4: 35000002 | B4: SERVICO AUXILIAR OPERACIONAL - COPASA | C4: H | D4: 15.33 | E4: 13.24 | F4: -0.1363339856
A5: 35000003 | B5: AUXILIAR DE LABORATORIO - COPASA | C5: H | D5: 15.64 | E5: 13.51 | F5: -0.1361892583
A6: 35000004 | B6: AUXILIAR DE ESCRITORIO CEC | C6: H | D6: 18.42 | E6: 16.26 | F6: -0.1172638436
A7: 35000005 | B7: AUXILIAR APOIO ADMINISTRATIVO - COPASA | C7: H | D7: 21.04 | E7: 18.18 | F7: -0.1359315589
A8: 35000006 | B8: ATENDENTE COMERCIAL - COPASA | C8: H | D8: 25.66 | E8: 22.16 | F8: -0.1363990647
A9: 35000007 | B9: BIOLOGO - COPASA | C9: H | D9: 69.38 | E9: 59.93 | F9: -0.1362063995
A10: 35000008 | B10: TECNICO ORCAMENTISTA CEC | C10: H | D10: 33.63 | E10: 29.34 | F10: -0.1275646744
A11: 35000009 | B11: LEITURISTA - COPASA | C11: H | D11: 21.04 | E11: 18.18 | F11: -0.1359315589
A12: 35000010 | B12: ENCARREGADO MANUTENCAO AGUA II - COPASA | C12: H | D12: 21.04 | E12: 18.18 | F12: -0.1359315589
A13: 35000011 | B13: ENCARREGADO MANUTENCAO ESGOTO I - COPASA | C13: H | D13: 21.04 | E13: 18.18 | F13: -0.1359315589
A14: 35000012 | B14: TECNICO DE LABORATORIO - COPASA | C14: H | D14: 39.66 | E14: 34.26 | F14: -0.1361573374
A15: 35000013 | B15: TECNICO DE LABORATORIO CEC | C15: H | D15: 33.65 | E15: 29.37 | F15: -0.127191679
A16: 35000014 | B16: TECNICO DE SEGURANCA DO TRABALHO CEC | C16: H | D16: 33.65 | E16: 29.37 | F16: -0.127191679
A17: 35000015 | B17: PROGRAMACAO PROCES. DADOS - COPASA | C17: H | D17: 39.66 | E17: 34.26 | F17: -0.1361573374
A18: 35000016 | B18: ENCARREGADO DE AREAS CEC | C18: H | D18: 24.81 | E18: 21.84 | F18: -0.1197097944
A19: 35000017 | B19: ENCARREGADO GERAL CEC | C19: H | D19: 33.65 | E19: 29.37 | F19: -0.127191679
A20: 35000018 | B20: CONSULTOR | C20: H | D20: 313.5 | E20: 313.5 | F20: 0
A21: 35000019 | B21: ENGENHEIRO NÍVEL I FAIXA I CEC | C21: MES | D21: 16409.87 | E21: 14192.28 | F21: -0.1351375727
A22: 35000021 | B22: ENGENHEIRO NÍVEL II FAIXA I CEC | C22: MES | D22: 18475.72 | E22: 15969.63 | F22: -0.1356423457
A23: 35000022 | B23: ENGENHEIRO NÍVEL IV FAIXA I CEC | C23: MES | D23: 23450.63 | E23: 20249.78 | F23: -0.1364931347
A24: 35000023 | B24: ENGENHEIRO NÍVEL III FAIXA I CEC | C24: MES | D24: 20810.93 | E24: 17978.72 | F24: -0.1360924284
A25: 35000024 | B25: ENGENHEIRO NÍVEL II FAIXA II CEC | C25: MES | D25: 19222.55 | E25: 16612.16 | F25: -0.1357983202
A26: 35000025 | B26: HIDROGEOLOGO CEC | C26: MES | D26: 16330.4 | E26: 14123.32 | F26: -0.1351516191
A27: 35000026 | B27: PROJETISTA CEC | C27: MES | D27: 12048.41 | E27: 10439.32 | F27: -0.1335520621
A28: 35000027 | B28: SUPERVISOR TECNICO CEC | C28: MES | D28: 8783.58 | E28: 7603.23 | F28: -0.1343814253
A29: 35000028 | B29: AUXILIAR DE PROGRAMACAO CEC | C29: MES | D29: 4732.83 | E29: 4122.9 | F29: -0.1288721547
A30: 35000029 | B30: ALMOXARIFE CEC | C30: MES | D30: 4737.1 | E30: 4127.18 | F30: -0.128753879
A31: 35000030 | B31: AUXILIAR DE ALMOXARIFE CEC | C31: MES | D31: 3786.97 | E31: 3314.35 | F31: -0.1248016224
A32: 35000032 | B32: TOPOGRAFO CEC | C32: MES | D32: 6412.6 | E32: 5560.54 | F32: -0.1328727817
A33: 35000033 | B33: TECNICO CADASTRISTA CEC | C33: MES | D33: 6408.32 | E33: 5556.26 | F33: -0.132961525
A34: 35000034 | B34: NIVELADOR CEC | C34: MES | D34: 4737.1 | E34: 4127.18 | F34: -0.128753879
A35: 35000035 | B35: AUXILIAR DE TOPOGRAFIA CEC | C35: MES | D35: 3786.97 | E35: 3314.35 | F35: -0.1248016224
A36: 35000037 | B36: TECNICO CALCULISTA CEC | C36: MES | D36: 6408.32 | E36: 5556.26 | F36: -0.132961525
A37: 35000038 | B37: DESENHISTA TECNICO (CADISTA) CEC | C37: MES | D37: 4732.83 | E37: 4122.9 | F37: -0.1288721547
A38: 35000039 | B38: ALMOXARIFE CEC | C38: H | D38: 27.22 | E38: 23.83 | F38: -0.1245407788
A39: 35000040 | B39: AUXILIAR DE ALMOXARIFE CEC | C39: H | D39: 21.77 | E39: 19.15 | F39: -0.1203491043
A40: 35000041 | B40: OFICIAL CEC | C40: H | D40: 20.76 | E40: 18.35 | F40: -0.116088632
A41: 35000042 | B41: NIVELADOR CEC | C41: H | D41: 27.22 | E41: 23.83 | F41: -0.1245407788
A42: 35000043 | B42: AUXILIAR DE OFICIAL CEC | C42: H | D42: 16.51 | E42: 14.69 | F42: -0.1102362205
A43: 35000044 | B43: SERVENTE CEC | C43: H | D43: 14.71 | E43: 13.13 | F43: -0.1074099252
A44: 35000045 | B44: TOPOGRAFO CEC | C44: H | D44: 36.82 | E44: 32.09 | F44: -0.128462792
A45: 35000046 | B45: AUXILIAR DE TOPOGRAFIA CEC | C45: H | D45: 21.77 | E45: 19.15 | F45: -0.1203491043
A46: 35000047 | B46: AUXILIAR DE OPERADOR - MAQ PESADAS CEC | C46: H | D46: 16.77 | E46: 14.88 | F46: -0.1127012522
A47: 35000048 | B47: MOTORISTA CEC | C47: H | D47: 22.14 | E47: 19.5 | F47: -0.1192411924
A48: 35000049 | B48: OPERADOR DE MAQUINAS PESADAS CEC | C48: H | D48: 24.06 | E48: 21.15 | F48: -0.1209476309
A49: 35000050 | B49: SONDADOR I - COPASA | C49: H | D49: 16.93 | E49: 14.62 | F49: -0.1364441819
A50: 35000051 | B50: SONDADOR II - COPASA | C50: H | D50: 21.04 | E50: 18.18 | F50: -0.1359315589
A51: 35000052 | B51: ACO CA-50 A OU B | C51: TO | D51: 4330.73 | E51: 4330.73 | F51: 0
A52: 35000053 | B52: ACO CA-60 A OU B | C52: TO | D52: 4330.73 | E52: 4330.73 | F52: 0
A53: 35000056 | B53: VEU DE POLIESTER 75 G/M2 | C53: M2 | D53: 2.99 | E53: 2.99 | F53: 0
A54: 35000059 | B54: LIMITADOR JUNTA TARUCEL - JUNTA 1x1CM | C54: M | D54: 0.32 | E54: 0.32 | F54: 0
A55: 35000060 | B55: LIMITADOR JUNTA TARUCEL - JUNTA 2x2CM | C55: M | D55: 0.82 | E55: 0.82 | F55: 0
A56: 35000062 | B56: ACELERADOR-IMPERMEABILIZANTE | C56: KG | D56: 8.99 | E56: 8.99 | F56: 0
A57: 35000063 | B57: RESINA POLIURETANO-MC 2300 NV OU SIMILAR | C57: L | D57: 113.96 | E57: 113.96 | F57: 0
A58: 35000064 | B58: RESINA POLIURETANO MC 2033 OU SIMILAR | C58: L | D58: 136.13 | E58: 136.13 | F58: 0
A59: 35000065 | B59: XYPEX CONCENTRADO OU SIMILAR | C59: KG | D59: 18.05 | E59: 18.05 | F59: 0
A60: 35000066 | B60: XYPEX MODIFICADO OU SIMILAR | C60: KG | D60: 16.71 | E60: 16.71 | F60: 0
A61: 35000067 | B61: XYPEX PATCH'N PLUG OU SIMILAR | C61: KG | D61: 9.28 | E61: 9.28 | F61: 0
A62: 35000068 | B62: ADESIVO EPOXICO MCDUR 1300 TX OU SIMILAR | C62: KG | D62: 22.28 | E62: 22.28 | F62: 0
A63: 35000069 | B63: SOLVENTE REINIGUNGSMITTEL U OU SIMILAR | C63: L | D63: 43 | E63: 43 | F63: 0
A64: 35000070 | B64: BEXIGA BORRACHA- BLOQUEADOR FLUXO Ø100MM | C64: UN | D64: 1850 | E64: 1850 | F64: 0
A65: 35000071 | B65: SIKA I | C65: L | D65: 5.03 | E65: 5.03 | F65: 0
A66: 35000072 | B66: SIKA CHAPISCO PLUS | C66: KG | D66: 8.04 | E66: 8.04 | F66: =E66/D66-1 -> 0
A67: 35000073 | B67: SIKA TOP 122 - BICOMPONENTE A E B | C67: KG | D67: 8.92 | E67: 8.92 | F67: 0
A68: 35000074 | B68: SIKALIT - ADITIVO IMPERMEABILIZANTE | C68: KG | D68: 15.07 | E68: 15.07 | F68: 0
A69: 35000075 | B69: SIKADUR 32 | C69: KG | D69: 90.74 | E69: 90.74 | F69: 0
A70: 35000076 | B70: ADESIVO EPOXI SIKADUR 31 | C70: KG | D70: 83.87 | E70: 83.87 | F70: 0
A71: 35000077 | B71: SIKAGROUT - 250 | C71: KG | D71: 1.25 | E71: 1.25 | F71: 0
A72: 35000078 | B72: SIKAFLEX 1A - CARTUCHO DE 310 ML | C72: UN | D72: 63.3 | E72: 63.3 | F72: 0
A73: 35000079 | B73: SIKA PRIMER 1 - LATA COM 320 ML | C73: UN | D73: 75.25 | E73: 75.25 | F73: 0
A74: 35000080 | B74: IMPERMEABILIZANTE TIPO HEYDI - K11 | C74: KG | D74: 2.67 | E74: 2.67 | F74: 0
A75: 35000081 | B75: IMPERMEABILIZANTE TIPO HEYDI - KZ | C75: KG | D75: 15.56 | E75: 15.56 | F75: 0
A76: 35000082 | B76: SIKA TOP 107 | C76: KG | D76: 6.76 | E76: 6.76 | F76: 0
A77: 35000083 | B77: SIKA TOP 108 ARMATEC | C77: KG | D77: 22.32 | E77: 22.32 | F77: 0
A78: 35000084 | B78: DESMOLDANTE PARA FORMAS | C78: L | D78: 8.31 | E78: 8.31 | F78: 0
A79: 35000085 | B79: CONCRETO - FCK 10 MPA - USINADO | C79: M3 | D79: 226.99 | E79: 226.99 | F79: 0
A80: 35000086 | B80: CONCRETO - FCK-15 MPA - USINADO | C80: M3 | D80: 246.29 | E80: 246.29 | F80: 0
A81: 35000087 | B81: CONCRETO - FCK - 20MPA - USINADO | C81: M3 | D81: 257.15 | E81: 257.15 | F81: 0
A82: 35000088 | B82: CONCRETO - FCK -25 MPA - USINADO | C82: M3 | D82: 270 | E82: 270 | F82: 0
A83: 35000089 | B83: CONCRETO-FCK-30MPA - USINADO/ADITIVO | C83: M3 | D83: 287.37 | E83: 287.37 | F83: 0
A84: 35000090 | B84: CONCRETO-FCK-35MPA - USINADO/ADITIVO | C84: M3 | D84: 294.3 | E84: 294.3 | F84: 0
A85: 35000091 | B85: CONCRETO-FCK-40MPA - USINADO/ADITIVO | C85: M3 | D85: 324.14 | E85: 324.14 | F85: 0
A86: 35000092 | B86: ARAME DE AMARRACAO GABIAO-Ø=2,2MM. | C86: KG | D86: 18.61 | E86: 18.61 | F86: 0
A87: 35000093 | B87: GABIAO-MALHA 8X10 GALV ALT=0,50M | C87: M3 | D87: 282.51 | E87: 282.51 | F87: 0
A88: 35000094 | B88: GABIAO-MALHA 8X10 GALV ALT=1,00M | C88: M3 | D88: 206.2 | E88: 206.2 | F88: 0
A89: 35000095 | B89: COLCHAO RENO-MALHA 6X 8 GPVC-E=0,30M | C89: M2 | D89: 122.01 | E89: 122.01 | F89: 0
A90: 35000096 | B90: GABIAO TIPO SACO-MALHA 8X10 REC. C/ PVC | C90: M3 | D90: 267.09 | E90: 267.09 | F90: 0
A91: 35000097 | B91: CANALETA DE CONCRETO- MEIA CANA,Ø300MM | C91: M | D91: 29.44 | E91: 29.44 | F91: 0
A92: 35000098 | B92: CANALETA DE CONCRETO- MEIA CANA,Ø400MM | C92: M | D92: 37.27 | E92: 37.27 | F92: 0
A93: 35000099 | B93: CANALETA DE CONCRETO- MEIA CANA,Ø500MM | C93: M | D93: 40.63 | E93: 40.63 | F93: 0
A94: 35000100 | B94: CANALETA DE CONCRETO- MEIA CANA,Ø600MM | C94: M | D94: 54.2 | E94: 54.2 | F94: 0
A95: 35000101 | B95: CORDEL DETONANTE NP-10 | C95: M | D95: 1.2 | E95: 1.2 | F95: 0
A96: 35000102 | B96: DINAMITE-ENCARTUCHADO, Ø 1" A 1.1/2" | C96: KG | D96: 9.95 | E96: 9.95 | F96: 0
A97: 35000103 | B97: ESPOLETA SIMPLES NR. 8 | C97: UN | D97: 2.99 | E97: 2.99 | F97: 0
A98: 35000104 | B98: ESTOPIM SIMPLES | C98: M | D98: 4.31 | E98: 4.31 | F98: 0
A99: 35000105 | B99: RETARDO P/CORDEL-NP-05/10-ESPERA 25/50MS | C99: UN | D99: 15.16 | E99: 15.16 | F99: 0
A100: 35000107 | B100: CANGA DE MINERIO DE FERRO | C100: TO | D100: 16.9 | E100: 16.9 | F100: 0
A101: 35000108 | B101: ESCORIA DE ALTO FORNO | C101: TO | D101: 71.38 | E101: 71.38 | F101: 0
A102: 35000109 | B102: BICA CORRIDA | C102: TO | D102: 23.12 | E102: 23.12 | F102: 0
A103: 35000110 | B103: BRITA GRADUADA | C103: TO | D103: 59.48 | E103: 59.48 | F103: 0
A104: 35000111 | B104: EMULSAO ASFALTICA RR-1C | C104: KG | D104: 2.16 | E104: 2.16 | F104: 0
A105: 35000112 | B105: EMULSAO ASFALTICA RR-2C | C105: KG | D105: 2.46 | E105: 2.46 | F105: 0
